Workbook

Sheet YARIŞMA BİLGİLERİ
A2: Türkiye Atletizm Federasyonu İzmir Atletizm İl Temsilciliği
A14: =F19 -> Naili Moran Türkiye Atletizm Şampiyonası
A18: Yarışma Bilgileri
A19: Yarışma Adı : | F19: Naili Moran Türkiye Atletizm Şampiyonası
A20: Yarışmanın Yapıldığı İl : | F20: İzmir
A21: Kategori : | F21: 12 Yaş Erkekler
A22: Tarih : | F22: 14 - 15 Haziran 2014
A23: Katılan Sporcu Sayısı : | F23: 77

Sheet YARIŞMA PROGRAMI
H1: Diskalifiye Nedenleri ve Kural Numaraları
B2: ='YARIŞMA BİLGİLERİ'!F19 -> Naili Moran Türkiye Atletizm Şampiyonası
B3: YARIŞMA PROGRAMI
B4: Bakmak istediğiniz branş üzerine "Tıkla"yınız… | H4: KURAL 125.5 : Yarışmalar esnasında sportmenlik dışı davranışlarda bulunan sporcu IAAF Kural 125.5 gereği diskalifiye edilecektir. Sporcunun yarışmanın devamındaki diğer branşlara katılması da engellenecektir. “Bu kurala göre diskalifiye edilen atletin, diskalifiye edildiği yarıştaki dereceleri geçersizdir.” Yarışma sonucunda o atletin karşısında sadece “DQ 125.5” yazacak. Tüm uyarılar ve diskalifikasyonlar (yani sarı ve kırmızı kartlar) yarışma sekreterliğine ve tüm başhakemlere bildirilecektir.
B5: ='YARIŞMA BİLGİLERİ'!F21 -> 12 Yaş Erkekler | D5: 1.GÜN | H5: KURAL 144.2 : Yarışma sırasında kurallar dışında yardım alan veya yardım veren atlet, başhakem tarafından önce sarı kartla uyarılır, tekrarı halinde IAAF Kural 144.2’ye göre diskalifiye edİLİ-İLİr. Yarışma alanında telefon, telsiz, radyo, kasetçalar vb. cihazlar kullanılması, atlete avantaj sağlayacak şekilde yay, tekerlek vb. donanıma sahip ayakkabıların giyilmesi, atma aletlerinin normal ölçülerine eklerin yapılması, “kural dışı yardım” kabul edİLİ-İLİr. Mesafe koşularında tur yemiş ya da tur yemek üzere olan atletlerin tempo vermesi, IAAF Kural 144.2 çerçevesinde her iki atletin de diskalifiye edilmesini gerektirir.
B6: SAAT | C6: BRANŞ | D6: BARAJ DERECESİ | E6: REKOR | H6: KURAL 162.5 :Yerlerinize ya da dikkat komutundan sonra makul bir sürede pozisyon almayan ve yerlerinize komutundan sonra sesle ya da başka şekilde diğer atlet(ler)i rahatsız eden atlet(ler) önce sarı kart, tekrarı halinde kırmızı kart görür.” Eğer başhakem, starterin kararıyla mutabık değilse, tüm atletlere yeşil kart gösterİLİ-İLİr. Bu kural sadece starteri/start başhakemini ilgilendirir.
B7: 14 Haziran 2014 - 17:50 | C7: 75 Metre | H7: KURAL 162.7 : Hatalı çıkış yapan her atlet diskalifiye edİLİ-İLİr. Yarışmada ilk hatalı çıkışı yapan sporcu dahil, hatalı çıkış yapan tüm atletler IAAF Kural 162.7 gereği diskalifiye edilecektir.
B8: 14 Haziran 2014 - 19:45 | C8: 1500 Metre | H8: KURAL 163.2 : Yarışma içerisinde bir sporcunun iterek veya çelme takarak, kasıtlı olarak bir başka sporcunun düşmesine neden olması diskalifiye sebebidir. Bunu yapan sporcu IAAF Kural 163.2 gereği diskalifiye edilecektir. (Bu tip olaylarda yardımcı hakem sarı bayrağını kaldıracak ve başhakemi bilgilendirecektir. Diskalifiye olup olmayacağına başhakem karar verecektir.)
B9: 14 Haziran 2014 - 9:50 | C9: 70 Metre Engelli | H9: KURAL 163.3 : Kulvarlı koşuların tamamında sporcu, yarışmayı çıkıştan varışa kadar kendi kulvarında koşmak zorundadır. Virajda kendi kulvarının solundaki kulvara geçen ya da o kulvarın çizgisine temas eden atlet, IAAF Kural 163.3 gereği diskalifiye edilecektir. Ancak sporcu yarışma içerisinde başkası tarafından itilmek veya dengesinin bozulması sonucu kulvar değiştirmek zorunda kalırsa ve bu durum kendisine avantaj sağlamazsa diskalifiye söz konusu olmayacaktır. Düzlükte kendi kulvarının dışına çıkan ve kendisine mesafe avantajı sağlamayan atlet, bir diğer kulvardaki atleti engellememişse diskalifiye edilmez. Virajda kendi kulvarının sağındaki kulvara geçen ya da o kulvarın çizgisiyle temas eden atlet, o kulvarda koşan atleti engellememişse diskalifiye edilmez.
B10: 14 Haziran 2014 - 17:00 | C10: Yüksek Atlama | H10: KURAL 163.3 : 800 metre koşusunda sporcular kendi kulvarlarını terk edecekleri çizgiye kadar, kulvarlarında koşmak zorundadır. Bu işaretli bölüme gelmeden kulvarını terk eden sporcu IAAF Kural 163.3 gereği diskalifiye edilecektir.
B11: 14 Haziran 2014 - 11:45 | C11: Uzun Atlama-A | H11: KURAL 163.3 : 4*400 metre bayrak yarışmasında ikinci sıradaki sporcu kulvar farkı sona erinceye kadar (ilk dönemeç) kendi kulvarında koşacaktır. Bu noktaya gelene kadar kulvar ihlali yapan sporcunun takımı IAAF Kural 163.3 gereği diskalifiye edilecektir
B12: 14 Haziran 2014 - 11:45 | C12: Uzun Atlama-B | H12: KURAL 168.7 : Engel yarışmalarında engel geçişi esnasında ayağını engelin üst kısmının yatay düzeyinin aşağısından geçiren, eli veya ayağı ile engeli kasten deviren ve her ne sebeple olursa olsun engel üzerinden geçmeyen sporcu IAAF Kural 168.7 gereği diskalifiye edilecektir.
B13: 15 Haziran 2014 - 11:15 | C13: 800 Metre | H13: KURAL 170.9 : 4*400 metre bayrak yarışmasında 3. ve 4. sporcular; kendilerinden önceki takım elemanlarının 200 metreyi geçiş durumuna göre sıralanacaklar ve bu sıralamayı bayrak değişim anına kadar değiştirdikleri takdirde takımları IAAF Kural 170.9 gereği diskalifiye edilecektir.
B14: 14 Haziran 2014 - 10:45 | C14: Gülle Atma | H14: KURAL 170.13 : Bayrak yarışmalarında bayrağın yere düşmesi halinde, bayrağı düşüren atlet alacaktır. Bayrağı düşüren atletin dışında bir atletin alması, IAAF Kural 170.13’e göre takımın diskalifiye edilmesine neden olur. Bayrağı düşüren atlet, bayrağı yerden alırken koşulan mesafeyi kısaltır ya da bir başka kulvardaki atleti engellerse, yine bu kural çerçevesinde takımı diskalifiye edİLİ-İLİr.
B15: 15 Haziran 2014 - 10:15 | C15: Cirit Atma | H15: KURAL 170.14 : Bayrak yarışmalarında bayrağın değişim sahasının dışında değiştirilmesi durumunda hatalı değişimi yapan takım IAAF Kural 170.14 gereği diskalifiye edilecektir. Bu noktada dikkat edilmesi gereken en önemli husus sporcunun değil, bayrağın değişim alanı içerisinde olmasıdır.
H16: Uluslararası kısaltmalar
H17: DNS : Yarışa başlamadı
H18: DNF : Yarışı tamamlamadı
H19: DQ : Diskalifiye
H20: NM : Geçerli derecesi yok
H21: Türkiye Rekoru Kısaltmaları
H22: TR : Türkiye Rekoru
H23: GTR : Türkiye Gençler Rekoru
H24: YTR : Türkiye Yıldızlar Rekoru

Sheet KAYIT LİSTESİ
A1: ='YARIŞMA BİLGİLERİ'!F19 -> Naili Moran Türkiye Atletizm Şampiyonası
A2: ='YARIŞMA BİLGİLERİ'!F21 -> 12 Yaş Erkekler | G2: Kayıt Listesi | I2: =NOW() -> 41805.63986
A3: S.N. | B3: SERİ-KULVAR FORMÜLÜ | C3: GÖĞÜS NO | D3: TC NO | E3: DOĞUM TARİHİ | F3: ADI VE SOYADI | G3: İLİ-İLİ | H3: YARIŞACAĞI BRANŞ | I3: EN İYİ DERECESİ | J3: SERİ | K3: KULVAR | L3: ATMA-ATLAMA SIRASI
A4: 1 | B4: =CONCATENATE(H4,"-",J4,"-",K4) -> 75M-1-4 | C4: 116 | D4: - | E4: 2002-01-01 | F4: SERKUT DEĞİRMENCİ | G4: BALIKESİR | H4: 75M | I4: 900 | J4: 1 | K4: 4
A5: 2 | B5: =CONCATENATE(H5,"-",J5,"-",K5) -> 75M-1-5 | C5: 425 | D5: - | E5: 2002-09-16 | F5: EREN GENÇ | G5: İZMİR | H5: 75M | I5: 950 | J5: 1 | K5: 5
A6: 3 | B6: 75M-1-3 | C6: 679 | E6: 2002-11-21 | F6: GÖKHAN GENÇTÜRK | G6: TEKİRDAĞ | H6: 75M | I6: 976 | J6: 1 | K6: 3
A7: 4 | B7: 75M-1-6 | C7: 695 | E7: 2002-06-19 | F7: AHMET EREN ŞAHİN | G7: TOKAT | H7: 75M | I7: 1000 | J7: 1 | K7: 6
A8: 5 | B8: 75M-1-2 | C8: 233 | D8: - | E8: 2002-01-01 | F8: ÖMER İÇLEK | G8: DİYARBAKIR | H8: 75M | I8: 1000 | J8: 1 | K8: 2
A9: 6 | B9: 75M-1-7 | C9: 508 | E9: 2002-05-03 | F9: ERSİN İLHAN | G9: KOCAELİ | H9: 75M | I9: 1011 | J9: 1 | K9: 7
A10: 7 | B10: 75M-1-1 | C10: 509 | E10: 2002-01-01 | F10: UMUT DOĞAN | G10: KOCAELİ | H10: 75M | I10: 1015 | J10: 1 | K10: 1
A11: 8 | B11: 75M-1-8 | C11: 655 | E11: 2002-02-12 | F11: ZÜBEYT TEMEL | G11: SİİRT | H11: 75M | I11: 1020 | J11: 1 | K11: 8
A12: 9 | B12: 75M-2-4 | C12: 702 | E12: 2002-01-30 | F12: OZAN ŞAHİN | G12: TOKAT | H12: 75M | I12: 1046 | J12: 2 | K12: 4
A13: 10 | B13: 75M-2-5 | C13: 349 | D13: - | E13: 2002-07-09 | F13: A.BATUHAN KESKİNKILIÇ | G13: ISPARTA | H13: 75M | I13: 1050 | J13: 2 | K13: 5
A14: 11 | B14: 75M-2-3 | C14: 346 | D14: - | E14: 2002-05-28 | F14: MELİH GÜLDAL | G14: ISPARTA | H14: 75M | I14: 1050 | J14: 2 | K14: 3
A15: 12 | B15: 75M-2-6 | C15: 549 | E15: 2002-03-04 | F15: HASAN ÇAĞRI AKAN | G15: KÜTAHYA | H15: 75M | I15: 1050 | J15: 2 | K15: 6
A16: 13 | B16: 75M-2-2 | C16: 220 | D16: - | E16: 2002-06-03 | F16: BERKİN BERBEROĞLU | G16: ÇANAKKALE | H16: 75M | I16: 1080 | J16: 2 | K16: 2
A17: 14 | B17: 75M-2-7 | C17: 350 | D17: - | E17: 2002-03-14 | F17: HÜSEYİN EĞİN | G17: ISPARTA | H17: 75M | I17: 1080 | J17: 2 | K17: 7
A18: 15 | B18: 75M-2-1 | C18: 548 | E18: 2002-01-05 | F18: MELİH GÖKALP | G18: KÜTAHYA | H18: 75M | I18: 1080 | J18: 2 | K18: 1
A19: 16 | B19: 75M-2-8 | C19: 653 | E19: 2002-01-01 | F19: MUSA DALKILIÇ | G19: SİİRT | H19: 75M | I19: 1080 | J19: 2 | K19: 8
A20: 17 | B20: 75M-3-4 | C20: 157 | D20: - | E20: 2002-06-25 | F20: C. BERKE TAŞATAN | G20: BİLECİK | H20: 75M | I20: 1098 | J20: 3 | K20: 4
A21: 18 | B21: 75M-3-5 | C21: 696 | E21: 2002-01-01 | F21: ÖZCAN ÖNDER | G21: TOKAT | H21: 75M | I21: 1100 | J21: 3 | K21: 5
A22: 19 | B22: 75M-3-3 | C22: 234 | D22: - | E22: 2002-01-01 | F22: M.ŞİRİN FİDANBOY | G22: DİYARBAKIR | H22: 75M | I22: - | J22: 3 | K22: 3
A23: 20 | B23: 75M-3-6 | C23: 565 | E23: 2002-07-31 | F23: FERHAT ÇELİK | G23: MUĞLA | H23: 75M | I23: - | J23: 3 | K23: 6
A24: 21 | B24: 75M-3-2 | C24: 50 | D24: - | E24: 2002-06-13 | F24: TOLGA BAŞKOL | G24: AMASYA | H24: 75M | I24: - | J24: 3 | K24: 2
A25: 22 | B25: 75M-3-7 | C25: 40 | D25: - | E25: 2002-01-15 | F25: HAKAN ACUN | G25: AKSARAY | H25: 75M | I25: - | J25: 3 | K25: 7
A26: 23 | B26: 75M-3-1 | C26: 16 | D26: - | E26: 2002-01-01 | F26: GÖRKEM KAYA | G26: ADANA | H26: 75M | I26: - | J26: 3 | K26: 1
A27: 24 | B27: 75M-4-4 | C27: 84 | D27: - | E27: 2002-01-01 | F27: İLHAN BAKTEMUR | G27: AYDIN | H27: 75M | I27: - | J27: 4 | K27: 4
A28: 25 | B28: 75M-4-5 | C28: 735 | D28: - | E28: 2002-01-01 | F28: MİRSAT KADİR KUTLU | G28: BURSA | H28: 75M | I28: - | J28: 4 | K28: 5
A29: 26 | B29: 75M-4-3 | C29: 608 | E29: 2002-09-15 | F29: OĞUZHAN USTA | G29: OSMANİYE | H29: 75M | I29: - | J29: 4 | K29: 3
A30: 27 | B30: 75M-4-6 | C30: 301 | D30: - | E30: 2002-11-24 | F30: YUSUFHAN DEMİRÇİ | G30: GİRESUN | H30: 75M | I30: - | J30: 4 | K30: 6
A31: 28 | B31: 75M-4-2 | C31: 611 | E31: 2002-09-05 | F31: MEHMET ALİ GÜNEŞ | G31: OSMANİYE | H31: 75M | I31: - | J31: 4 | K31: 2
A32: 29 | B32: 75M-4-7 | C32: 610 | E32: 2002-01-10 | F32: BURAK YILDIZ | G32: OSMANİYE | H32: 75M | I32: - | J32: 4 | K32: 7
A33: 30 | B33: 75M-4-1 | C33: 248 | D33: - | E33: 2002-11-20 | F33: ERAY KARAL | G33: ERZİNCAN | H33: 75M | I33: - | J33: 4 | K33: 1
A34: 31 | B34: --
A35: 32 | B35: 70M.ENG-1-4 | C35: 116 | D35: - | E35: 2002-01-01 | F35: SERKUT DEĞİRMENCİ | G35: BALIKESİR | H35: 70M.ENG | I35: 1100 | J35: 1 | K35: 4
A36: 33 | B36: 70M.ENG-1-5 | C36: 696 | E36: 2002-01-01 | F36: ÖZCAN ÖNDER | G36: TOKAT | H36: 70M.ENG | I36: 1230 | J36: 1 | K36: 5
A37: 34 | B37: 70M.ENG-1-3 | C37: 734 | D37: - | E37: 2002-03-28 | F37: BARTU AYDOĞAN | G37: BURSA | H37: 70M.ENG | I37: 1300 | J37: 1 | K37: 3
A38: 35 | B38: 70M.ENG-1-6 | C38: 679 | E38: 2002-11-21 | F38: GÖKHAN GENÇTÜRK | G38: TEKİRDAĞ | H38: 70M.ENG | I38: 1311 | J38: 1 | K38: 6
A39: 36 | B39: 70M.ENG-2-4 | C39: 680 | E39: 2002-02-27 | F39: KAAN YILDIRIM | G39: TEKİRDAĞ | H39: 70M.ENG | I39: 1312 | J39: 2 | K39: 4
A40: 37 | B40: 70M.ENG-1-2 | C40: 157 | D40: - | E40: 2002-06-25 | F40: C. BERKE TAŞATAN | G40: BİLECİK | H40: 70M.ENG | I40: 1480 | J40: 1 | K40: 2
A41: 38 | B41: 70M.ENG-2-5 | C41: 411 | D41: - | E41: 2002-07-19 | F41: GÖRKEM ÖNSAY | G41: İZMİR | H41: 70M.ENG | I41: - | J41: 2 | K41: 5
A42: 39 | B42: 70M.ENG-2-3 | C42: 156 | D42: - | E42: 2002-11-25 | F42: ABDÜLKADİR TAŞKIRAN | G42: BİLECİK | H42: 70M.ENG | I42: - | J42: 2 | K42: 3
A43: 40 | B43: 70M.ENG-2-6 | C43: 27 | D43: - | E43: 2002-01-01 | F43: AHMET COŞKUN | G43: ADIYAMAN | H43: 70M.ENG | I43: - | J43: 2 | K43: 6
A44: 41 | B44: 70M.ENG-2-2 | C44: 84 | D44: - | E44: 2002-01-01 | F44: İLHAN BAKTEMUR | G44: AYDIN | H44: 70M.ENG | I44: - | J44: 2 | K44: 2
A45: 42 | B45: 70M.ENG-- | H45: 70M.ENG
A46: 65 | B46: =CONCATENATE(H46,"-",J46,"-",K46) -> --
A47: 66 | B47: 1500M-1-2 | C47: 428 | D47: - | E47: 2002-07-25 | F47: YASİN KINA | G47: İZMİR | H47: 1500M | I47: 43200 | J47: 1 | K47: 2
A48: 67 | B48: 1500M-1-3 | C48: 573 | E48: 2002-01-01 | F48: İbrahim KARATEKER | G48: MUŞ | H48: 1500M | I48: 43500 | J48: 1 | K48: 3
A49: 68 | B49: 1500M-1-4 | C49: 64 | D49: - | E49: 2002-07-09 | F49: DOĞUKAN KÖMÜR | G49: ARDAHAN | H49: 1500M | I49: 44000 | J49: 1 | K49: 4
A50: 69 | B50: 1500M-1-5 | C50: 426 | D50: - | E50: 2002-08-06 | F50: BARAN ÇAPKIN | G50: İZMİR | H50: 1500M | I50: 44200 | J50: 1 | K50: 5
A51: 70 | B51: 1500M-1-6 | C51: 733 | D51: - | E51: 2002-01-17 | F51: KEMAL EREN ZEYTUN | G51: BURSA | H51: 1500M | I51: 44500 | J51: 1 | K51: 6
A52: 71 | B52: 1500M-1-7 | C52: 654 | E52: 2002-01-07 | F52: DAVUT BASUT | G52: SİİRT | H52: 1500M | I52: 44500 | J52: 1 | K52: 7
A53: 72 | B53: 1500M-1-8 | C53: 584 | E53: 2002-07-20 | F53: Mezher GÜLER | G53: MUŞ | H53: 1500M | I53: 44800 | J53: 1 | K53: 8
A54: 73 | B54: 1500M-1-9 | C54: 465 | E54: 2002-02-16 | F54: İSMET FURKAN YANDI | G54: KARAMAN | H54: 1500M | I54: 44800 | J54: 1 | K54: 9
A55: 74 | B55: 1500M-1-10 | C55: 425 | D55: - | E55: 2002-09-16 | F55: EREN GENÇ | G55: İZMİR | H55: 1500M | I55: 45000 | J55: 1 | K55: 10
A56: 75 | B56: 1500M-1-11 | C56: 550 | E56: 2002-01-01 | F56: AHMET ÖZER | G56: KÜTAHYA | H56: 1500M | I56: 45000 | J56: 1 | K56: 11
A57: 76 | B57: 1500M-1-12 | C57: 427 | D57: - | E57: 2002-05-21 | F57: ENSAR YILMAZ | G57: İZMİR | H57: 1500M | I57: 45200 | J57: 1 | K57: 12
A58: 77 | B58: 1500M-2-1 | C58: 466 | E58: 2002-08-22 | F58: MUSTAFA TALAŞ | G58: KARAMAN | H58: 1500M | I58: 45400 | J58: 2 | K58: 1
A59: 78 | B59: 1500M-2-2 | C59: 480 | E59: 2002-05-21 | F59: RAMAZAN YULAF | G59: KIRIKKALE | H59: 1500M | I59: 50000 | J59: 2 | K59: 2
A60: 79 | B60: 1500M-2-3 | C60: 283 | D60: - | E60: 2002-01-01 | F60: SÜLEYMAN TOKER | G60: GAZİANTEP | H60: 1500M | I60: 50000 | J60: 2 | K60: 3
A61: 80 | B61: 1500M-2-4 | C61: 66 | D61: - | E61: 2002-01-01 | F61: YUSUF ARABUL | G61: ARDAHAN | H61: 1500M | I61: 50000 | J61: 2 | K61: 4
A62: 81 | B62: 1500M-2-5 | C62: 249 | D62: - | E62: 2002-03-24 | F62: EMRE YILDIZ | G62: ERZİNCAN | H62: 1500M | I62: 50000 | J62: 2 | K62: 5
A63: 82 | B63: 1500M-2-6 | C63: 67 | D63: - | E63: 2002-01-01 | F63: ADEM BİLGİN | G63: ARDAHAN | H63: 1500M | I63: 50300 | J63: 2 | K63: 6
A64: 83 | B64: 1500M-2-7 | C64: 281 | D64: - | E64: 2002-01-01 | F64: DAVUT AKDENİZ | G64: GAZİANTEP | H64: 1500M | I64: 50500 | J64: 2 | K64: 7
A65: 84 | B65: 1500M-2-8 | C65: 510 | E65: 2002-01-01 | F65: MURAT GÜN | G65: KOCAELİ | H65: 1500M | I65: 50500 | J65: 2 | K65: 8
A66: 85 | B66: 1500M-2-9 | C66: 348 | D66: - | E66: 2002-10-30 | F66: FAİK ÖLMEZ | G66: ISPARTA | H66: 1500M | I66: 50600 | J66: 2 | K66: 9
A67: 86 | B67: 1500M-2-10 | C67: 282 | D67: - | E67: 2002-01-01 | F67: MUSTAFA BAKIR | G67: GAZİANTEP | H67: 1500M | I67: 50700 | J67: 2 | K67: 10
A68: 87 | B68: 1500M-2-11 | C68: 734 | D68: - | E68: 2002-03-28 | F68: BARTU AYDOĞAN | G68: BURSA | H68: 1500M | I68: 51000 | J68: 2 | K68: 11
A69: 88 | B69: 1500M-2-12 | C69: 233 | D69: - | E69: 2002-01-01 | F69: ÖMER İÇLEK | G69: DİYARBAKIR | H69: 1500M | I69: 51000 | J69: 2 | K69: 12
A70: 89 | B70: 1500M-3-1 | C70: 551 | E70: 2002-01-01 | F70: HALİT GÜNGÖR | G70: KÜTAHYA | H70: 1500M | I70: 51000 | J70: 3 | K70: 1
A71: 90 | B71: -- | D71: -
A72: 91 | B72: 1500M-3-3 | C72: 111 | D72: - | E72: 2002-09-24 | F72: OĞUZHAN KOŞAR | G72: BALIKESİR | H72: 1500M | I72: 52100 | J72: 3 | K72: 3
A73: 92 | B73: 1500M-3-4 | C73: 112 | D73: - | E73: 2002-11-25 | F73: BEYCAN DELİGÖZ | G73: BALIKESİR | H73: 1500M | I73: 52200 | J73: 3 | K73: 4
A74: 93 | B74: 1500M-3-5 | C74: 174 | D74: - | E74: 2002-01-01 | F74: NİHAT BİRGİN | G74: BİNGÖL | H74: 1500M | I74: 52845 | J74: 3 | K74: 5
A75: 94 | B75: 1500M-3-6 | C75: 127 | D75: - | E75: 2002-12-26 | F75: ALPER RIZA BASAN | G75: BARTIN | H75: 1500M | I75: 53100 | J75: 3 | K75: 6
A76: 95 | B76: 1500M-3-7 | C76: 168 | D76: - | E76: 2002-01-01 | F76: UMUT DÖĞÜM | G76: BİNGÖL | H76: 1500M | I76: 53240 | J76: 3 | K76: 7
A77: 96 | B77: 1500M-3-8 | C77: 169 | D77: - | E77: 2002-01-01 | F77: EYÜP YILDIRIM | G77: BİNGÖL | H77: 1500M | I77: 53812 | J77: 3 | K77: 8
A78: 97 | B78: 1500M-3-9 | C78: 156 | D78: - | E78: 2002-11-25 | F78: ABDÜLKADİR TAŞKIRAN | G78: BİLECİK | H78: 1500M | I78: 53900 | J78: 3 | K78: 9
A79: 98 | B79: 1500M-3-10 | C79: 170 | D79: - | E79: 2002-01-01 | F79: HALİT ÇAKAR | G79: BİNGÖL | H79: 1500M | I79: 54421 | J79: 3 | K79: 10
A80: 99 | B80: 1500M-3-11 | C80: 128 | D80: - | E80: 2002-02-16 | F80: ENİS ÖZDEMİR | G80: BARTIN | H80: 1500M | I80: 55200 | J80: 3 | K80: 11
A81: 100 | B81: 1500M-4-1 | C81: 600 | E81: 2002-11-21 | F81: MELİH ÇOPUR | G81: NEVŞEHİR | H81: 1500M | I81: - | J81: 4 | K81: 1
A82: 101 | B82: 1500M-4-2 | C82: 28 | D82: - | E82: 2002-08-01 | F82: HASAN ALANTAR | G82: ADIYAMAN | H82: 1500M | I82: - | J82: 4 | K82: 2
A83: 102 | B83: 1500M-4-3 | C83: 601 | E83: 2002-07-04 | F83: ÖMER DİLDÖKEN | G83: NEVŞEHİR | H83: 1500M | I83: - | J83: 4 | K83: 3
A84: 103 | B84: 1500M-4-4 | C84: 26 | D84: - | E84: 2002-01-01 | F84: MEHMET VURUCU | G84: ADIYAMAN | H84: 1500M | I84: - | J84: 4 | K84: 4
A85: 104 | B85: 1500M-4-5 | C85: 499 | E85: 2002-12-17 | F85: BEYTULLAH KAYA | G85: KIRŞEHİR | H85: 1500M | I85: - | J85: 4 | K85: 5
A86: 105 | B86: 1500M-4-6 | C86: 315 | E86: 2002-09-09 | F86: MUSTAFA TUNA | G86: HATAY | H86: 1500M | I86: - | J86: 4 | K86: 6
A87: 106 | B87: 1500M-4-7 | C87: 314 | E87: 2002-02-22 | F87: ALİ İSMAİL ÇİÇEK | G87: HATAY | H87: 1500M | I87: - | J87: 4 | K87: 7
A88: 107 | B88: 1500M-4-8 | C88: 322 | E88: 2002-02-07 | F88: EMRE KARA | G88: HATAY | H88: 1500M | I88: - | J88: 4 | K88: 8
A89: 108 | B89: 1500M-4-9 | C89: 83 | D89: - | E89: 2002-01-20 | F89: ENVER VİRAN | G89: AYDIN | H89: 1500M | I89: - | J89: 4 | K89: 9
A90: 109 | B90: 1500M-4-10 | C90: 609 | E90: 2002-03-06 | F90: AKİF HANİFİOĞLU | G90: OSMANİYE | H90: 1500M | I90: - | J90: 4 | K90: 10
A91: 110 | B91: 1500M-4-11 | C91: 612 | E91: 2002-10-12 | F91: MERT YAHYA YILDIRIM | G91: OSMANİYE | H91: 1500M | I91: - | J91: 4 | K91: 11
A92: 111
A93: 150 | B93: =CONCATENATE(H93,"-",J93,"-",K93) -> 800M-1-1 | C93: 40 | D93: - | E93: 2002-01-15 | F93: HAKAN ACUN | G93: AKSARAY | H93: 800M | I93: 20500 | J93: 1 | K93: 1
A94: 151 | B94: --
A95: 152 | B95: 800M-1-3 | C95: 584 | E95: 2002-07-20 | F95: Mezher GÜLER | G95: MUŞ | H95: 800M | I95: 21200 | J95: 1 | K95: 3
A96: 153 | B96: 800M-1-4 | C96: 573 | E96: 2002-01-01 | F96: İbrahim KARATEKER | G96: MUŞ | H96: 800M | I96: 21300 | J96: 1 | K96: 4
A97: 154 | B97: 800M-1-5 | C97: 733 | D97: - | E97: 2002-01-17 | F97: KEMAL EREN ZEYTUN | G97: BURSA | H97: 800M | I97: 21500 | J97: 1 | K97: 5
A98: 155 | B98: 800M-1-6 | C98: 64 | D98: - | E98: 2002-07-09 | F98: DOĞUKAN KÖMÜR | G98: ARDAHAN | H98: 800M | I98: 22000 | J98: 1 | K98: 6
A99: 156 | B99: 800M-1-7 | C99: 480 | E99: 2002-05-21 | F99: RAMAZAN YULAF | G99: KIRIKKALE | H99: 800M | I99: 22000 | J99: 1 | K99: 7
A100: 157 | B100: 800M-1-8 | C100: 465 | E100: 2002-02-16 | F100: İSMET FURKAN YANDI | G100: KARAMAN | H100: 800M | I100: 22100 | J100: 1 | K100: 8
A101: 158 | B101: 800M-1-9 | C101: 111 | D101: - | E101: 2002-09-24 | F101: OĞUZHAN KOŞAR | G101: BALIKESİR | H101: 800M | I101: 22390 | J101: 1 | K101: 9
A102: 159 | B102: 800M-1-10 | C102: 466 | E102: 2002-08-22 | F102: MUSTAFA TALAŞ | G102: KARAMAN | H102: 800M | I102: 22400 | J102: 1 | K102: 10
A103: 160 | B103: 800M-2-1 | C103: 281 | D103: - | E103: 2002-01-01 | F103: DAVUT AKDENİZ | G103: GAZİANTEP | H103: 800M | I103: 22400 | J103: 2 | K103: 1
A104: 161 | B104: 800M-2-2 | C104: 550 | E104: 2002-01-01 | F104: AHMET ÖZER | G104: KÜTAHYA | H104: 800M | I104: 22500 | J104: 2 | K104: 2
A105: 162 | B105: 800M-2-3 | C105: 551 | E105: 2002-01-01 | F105: HALİT GÜNGÖR | G105: KÜTAHYA | H105: 800M | I105: 22500 | J105: 2 | K105: 3
A106: 163 | B106: 800M-2-4 | C106: 283 | D106: - | E106: 2002-01-01 | F106: SÜLEYMAN TOKER | G106: GAZİANTEP | H106: 800M | I106: 22500 | J106: 2 | K106: 4
A107: 164 | B107: 800M-2-5 | C107: 249 | D107: - | E107: 2002-03-24 | F107: EMRE YILDIZ | G107: ERZİNCAN | H107: 800M | I107: 22700 | J107: 2 | K107: 5
A108: 165 | B108: 800M-2-6 | C108: 282 | D108: - | E108: 2002-01-01 | F108: MUSTAFA BAKIR | G108: GAZİANTEP | H108: 800M | I108: 22700 | J108: 2 | K108: 6
A109: 166 | B109: 800M-2-7 | C109: 428 | D109: - | E109: 2002-07-25 | F109: YASİN KINA | G109: İZMİR | H109: 800M | I109: 22800 | J109: 2 | K109: 7
A110: 167 | B110: 800M-2-8 | C110: 510 | E110: 2002-01-01 | F110: MURAT GÜN | G110: KOCAELİ | H110: 800M | I110: 22900 | J110: 2 | K110: 8
A111: 168 | B111: 800M-2-9 | C111: 248 | D111: - | E111: 2002-11-20 | F111: ERAY KARAL | G111: ERZİNCAN | H111: 800M | I111: 23000 | J111: 2 | K111: 9
A112: 169 | B112: 800M-2-10 | C112: 346 | D112: - | E112: 2002-05-28 | F112: MELİH GÜLDAL | G112: ISPARTA | H112: 800M | I112: 23000 | J112: 2 | K112: 10
A113: 170 | B113: -- | D113: -
A114: 171 | B114: 800M-3-2 | C114: 348 | D114: - | E114: 2002-10-30 | F114: FAİK ÖLMEZ | G114: ISPARTA | H114: 800M | I114: 23200 | J114: 3 | K114: 2
A115: 172 | B115: 800M-3-3 | C115: 66 | D115: - | E115: 2002-01-01 | F115: YUSUF ARABUL | G115: ARDAHAN | H115: 800M | I115: 23200 | J115: 3 | K115: 3
A116: 173 | B116: 800M-3-4 | C116: 67 | D116: - | E116: 2002-01-01 | F116: ADEM BİLGİN | G116: ARDAHAN | H116: 800M | I116: 23300 | J116: 3 | K116: 4
A117: 174 | B117: 800M-3-5 | C117: 509 | E117: 2002-01-01 | F117: UMUT DOĞAN | G117: KOCAELİ | H117: 800M | I117: 23400 | J117: 3 | K117: 5
A118: 175 | B118: 800M-3-6 | C118: 168 | D118: - | E118: 2002-01-01 | F118: UMUT DÖĞÜM | G118: BİNGÖL | H118: 800M | I118: 23593 | J118: 3 | K118: 6
A119: 176 | B119: =CONCATENATE(H119,"-",J119,"-",K119) -> 800M-3-7 | C119: 654 | E119: 2002-01-07 | F119: DAVUT BASUT | G119: SİİRT | H119: 800M | I119: 23800 | J119: 3 | K119: 7
A120: 177 | B120: 800M-3-8 | C120: 427 | D120: - | E120: 2002-05-21 | F120: ENSAR YILMAZ | G120: İZMİR | H120: 800M | I120: 23800 | J120: 3 | K120: 8
A121: 178 | B121: 800M-3-9 | C121: 234 | D121: - | E121: 2002-01-01 | F121: M.ŞİRİN FİDANBOY | G121: DİYARBAKIR | H121: 800M | I121: 23800 | J121: 3 | K121: 9
A122: 179 | B122: 800M-3-10 | C122: 174 | D122: - | E122: 2002-01-01 | F122: NİHAT BİRGİN | G122: BİNGÖL | H122: 800M | I122: 23875 | J122: 3 | K122: 10
A123: 180 | B123: 800M-4-1 | C123: 169 | D123: - | E123: 2002-01-01 | F123: EYÜP YILDIRIM | G123: BİNGÖL | H123: 800M | I123: 23878 | J123: 4 | K123: 1
A124: 181 | B124: 800M-4-2 | C124: 127 | D124: - | E124: 2002-12-26 | F124: ALPER RIZA BASAN | G124: BARTIN | H124: 800M | I124: 24000 | J124: 4 | K124: 2
A125: 182 | B125: 800M-4-3 | C125: 695 | E125: 2002-06-19 | F125: AHMET EREN ŞAHİN | G125: TOKAT | H125: 800M | I125: 24000 | J125: 4 | K125: 3
A126: 183 | B126: 800M-4-4 | C126: 549 | E126: 2002-03-04 | F126: HASAN ÇAĞRI AKAN | G126: KÜTAHYA | H126: 800M | I126: 24000 | J126: 4 | K126: 4
A127: 184 | B127: 800M-4-5 | C127: 170 | D127: - | E127: 2002-01-01 | F127: HALİT ÇAKAR | G127: BİNGÖL | H127: 800M | I127: 24056 | J127: 4 | K127: 5
A128: 185 | B128: 800M-4-6 | C128: 112 | D128: - | E128: 2002-11-25 | F128: BEYCAN DELİGÖZ | G128: BALIKESİR | H128: 800M | I128: 24100 | J128: 4 | K128: 6
A129: 186 | B129: 800M-4-7 | C129: 426 | D129: - | E129: 2002-08-06 | F129: BARAN ÇAPKIN | G129: İZMİR | H129: 800M | I129: 24500 | J129: 4 | K129: 7
A130: 187 | B130: 800M-4-8 | C130: 411 | D130: - | E130: 2002-07-19 | F130: GÖRKEM ÖNSAY | G130: İZMİR | H130: 800M | I130: 24800 | J130: 4 | K130: 8
A131: 188 | B131: 800M-4-9 | C131: 350 | D131: - | E131: 2002-03-14 | F131: HÜSEYİN EĞİN | G131: ISPARTA | H131: 800M | I131: 25000 | J131: 4 | K131: 9
A132: 189 | B132: 800M-4-10 | C132: 128 | D132: - | E132: 2002-02-16 | F132: ENİS ÖZDEMİR | G132: BARTIN | H132: 800M | I132: 25400 | J132: 4 | K132: 10
A133: 190 | B133: 800M-5-1 | C133: 221 | D133: - | E133: 2002-01-05 | F133: KADİR FURKAN SİVRİOĞLU | G133: ÇANAKKALE | H133: 800M | I133: 30000 | J133: 5 | K133: 1
A134: 191 | B134: 800M-5-2 | C134: 499 | E134: 2002-12-17 | F134: BEYTULLAH KAYA | G134: KIRŞEHİR | H134: 800M | I134: - | J134: 5 | K134: 2
A135: 192 | B135: 800M-5-3 | C135: 315 | E135: 2002-09-09 | F135: MUSTAFA TUNA | G135: HATAY | H135: 800M | I135: - | J135: 5 | K135: 3
A136: 193 | B136: 800M-5-4 | C136: 314 | E136: 2002-02-22 | F136: ALİ İSMAİL ÇİÇEK | G136: HATAY | H136: 800M | I136: - | J136: 5 | K136: 4
A137: 194 | B137: 800M-5-5 | C137: 322 | E137: 2002-02-07 | F137: EMRE KARA | G137: HATAY | H137: 800M | I137: - | J137: 5 | K137: 5
A138: 195 | B138: 800M-5-6 | C138: 83 | D138: - | E138: 2002-01-20 | F138: ENVER VİRAN | G138: AYDIN | H138: 800M | I138: - | J138: 5 | K138: 6
A139: 196 | B139: 800M-5-7 | C139: 27 | D139: - | E139: 2002-01-01 | F139: AHMET COŞKUN | G139: ADIYAMAN | H139: 800M | I139: - | J139: 5 | K139: 7
A140: 197 | B140: 800M-5-8 | C140: 600 | E140: 2002-11-21 | F140: MELİH ÇOPUR | G140: NEVŞEHİR | H140: 800M | I140: - | J140: 5 | K140: 8
A141: 198 | B141: 800M-5-9 | C141: 28 | D141: - | E141: 2002-08-01 | F141: HASAN ALANTAR | G141: ADIYAMAN | H141: 800M | I141: - | J141: 5 | K141: 9
A142: 199 | B142: 800M-5-10 | C142: 601 | E142: 2002-07-04 | F142: ÖMER DİLDÖKEN | G142: NEVŞEHİR | H142: 800M | I142: - | J142: 5 | K142: 10
A143: 200 | B143: 800M-6-1 | C143: 26 | D143: - | E143: 2002-01-01 | F143: MEHMET VURUCU | G143: ADIYAMAN | H143: 800M | I143: - | J143: 6 | K143: 1
A144: 201 | B144: 800M-6-2 | C144: 50 | D144: - | E144: 2002-06-13 | F144: TOLGA BAŞKOL | G144: AMASYA | H144: 800M | I144: - | J144: 6 | K144: 2
A145: 202 | B145: 800M-6-3 | C145: 16 | D145: - | E145: 2002-01-01 | F145: GÖRKEM KAYA | G145: ADANA | H145: 800M | I145: - | J145: 6 | K145: 3
A146: 203 | B146: 800M-6-4 | C146: 609 | E146: 2002-03-06 | F146: AKİF HANİFİOĞLU | G146: OSMANİYE | H146: 800M | I146: - | J146: 6 | K146: 4
A147: 204 | B147: 800M-6-5 | C147: 612 | E147: 2002-10-12 | F147: MERT YAHYA YILDIRIM | G147: OSMANİYE | H147: 800M | I147: - | J147: 6 | K147: 5
A148: 205 | B148: 800M-6-6 | C148: 566 | E148: 2002-07-31 | F148: FERAY ÇELİK | G148: MUĞLA | H148: 800M | I148: - | J148: 6 | K148: 6
A149: 206 | B149: =CONCATENATE(H149,"-",J149,"-",L149) -> UZUN-A-35 | C149: 156 | D149: - | E149: 2002-11-25 | F149: ABDÜLKADİR TAŞKIRAN | G149: BİLECİK | H149: UZUN | I149: - | J149: A | L149: 35
A150: 207 | B150: 800M-6-8 | C150: 611 | E150: 2002-09-05 | F150: MEHMET ALİ GÜNEŞ | G150: OSMANİYE | H150: 800M | I150: - | J150: 6 | K150: 8
A151: 208 | B151: 800M-6-9 | C151: 610 | E151: 2002-01-10 | F151: BURAK YILDIZ | G151: OSMANİYE | H151: 800M | I151: - | J151: 6 | K151: 9
A152: 209
A153: 239 | B153: =CONCATENATE(H153,"-",L153) -> CİRİT-2 | C153: 702 | E153: 2002-01-30 | F153: OZAN ŞAHİN | G153: TOKAT | H153: CİRİT | I153: 2514 | L153: 2
A154: 240 | B154: =CONCATENATE(H154,"-",L154) -> CİRİT-3 | C154: 548 | E154: 2002-01-05 | F154: MELİH GÖKALP | G154: KÜTAHYA | H154: CİRİT | I154: 2800 | L154: 3
A155: 241 | B155: CİRİT-4 | C155: 653 | E155: 2002-01-01 | F155: MUSA DALKILIÇ | G155: SİİRT | H155: CİRİT | I155: 2845 | L155: 4
A156: 242 | B156: CİRİT-5 | C156: 735 | D156: - | E156: 2002-01-01 | F156: MİRSAT KADİR KUTLU | G156: BURSA | H156: CİRİT | I156: 3500 | L156: 5
A157: 243 | B157: CİRİT-1 | C157: 608 | E157: 2002-09-15 | F157: OĞUZHAN USTA | G157: OSMANİYE | H157: CİRİT | I157: - | L157: 1
A158: 244 | B158: CİRİT- | H158: CİRİT
A159: 272 | B159: =CONCATENATE(H159,"-",L159) -> GÜLLE-6 | C159: 508 | E159: 2002-05-03 | F159: ERSİN İLHAN | G159: KOCAELİ | H159: GÜLLE | I159: 950 | L159: 6
A160: 273 | B160: GÜLLE-7 | C160: 653 | E160: 2002-01-01 | F160: MUSA DALKILIÇ | G160: SİİRT | H160: GÜLLE | I160: 970 | L160: 7
A161: 274 | B161: GÜLLE-8 | C161: 655 | E161: 2002-02-12 | F161: ZÜBEYT TEMEL | G161: SİİRT | H161: GÜLLE | I161: 987 | L161: 8
A162: 275 | B162: GÜLLE-9 | C162: 565 | E162: 2002-07-31 | F162: FERHAT ÇELİK | G162: MUĞLA | H162: GÜLLE | I162: 1000 | L162: 9
A163: 276 | B163: GÜLLE-10 | C163: 566 | E163: 2002-07-31 | F163: FERAY ÇELİK | G163: MUĞLA | H163: GÜLLE | I163: 1100 | L163: 10
A164: 277 | B164: GÜLLE-11 | C164: 680 | E164: 2002-02-27 | F164: KAAN YILDIRIM | G164: TEKİRDAĞ | H164: GÜLLE | I164: 1270 | L164: 11
A165: 278 | B165: GÜLLE-12 | C165: 548 | E165: 2002-01-05 | F165: MELİH GÖKALP | G165: KÜTAHYA | H165: GÜLLE | I165: 1325 | L165: 12
A166: 279 | B166: GÜLLE-1 | C166: 609 | E166: 2002-03-06 | F166: AKİF HANİFİOĞLU | G166: OSMANİYE | H166: GÜLLE | I166: - | L166: 1
A167: 280 | B167: GÜLLE-2 | C167: 735 | D167: - | E167: 2002-01-01 | F167: MİRSAT KADİR KUTLU | G167: BURSA | H167: GÜLLE | I167: - | L167: 2
A168: 281 | B168: GÜLLE-3 | C168: 157 | D168: - | E168: 2002-06-25 | F168: C. BERKE TAŞATAN | G168: BİLECİK | H168: GÜLLE | I168: - | L168: 3
A169: 282 | B169: GÜLLE-4 | C169: 608 | E169: 2002-09-15 | F169: OĞUZHAN USTA | G169: OSMANİYE | H169: GÜLLE | I169: - | L169: 4
A170: 283 | B170: GÜLLE-5 | C170: 27 | D170: - | E170: 2002-01-01 | F170: AHMET COŞKUN | G170: ADIYAMAN | H170: GÜLLE | I170: - | L170: 5
A171: 284 | B171: GÜLLE- | H171: GÜLLE
A172: 305 | B172: =CONCATENATE(H172,"-",J172,"-",L172) -> UZUN-A-1 | C172: 128 | D172: - | E172: 2002-02-16 | F172: ENİS ÖZDEMİR | G172: BARTIN | H172: UZUN | I172: 325 | J172: A | L172: 1
A173: 306 | B173: =CONCATENATE(H173,"-",J173,"-",L173) -> UZUN-A-2 | C173: 127 | D173: - | E173: 2002-12-26 | F173: ALPER RIZA BASAN | G173: BARTIN | H173: UZUN | I173: 335 | J173: A | L173: 2
A174: 307 | B174: UZUN-A-3 | C174: 170 | D174: - | E174: 2002-01-01 | F174: HALİT ÇAKAR | G174: BİNGÖL | H174: UZUN | I174: 336 | J174: A | L174: 3
A175: 308 | B175: UZUN-A-4 | C175: 169 | D175: - | E175: 2002-01-01 | F175: EYÜP YILDIRIM | G175: BİNGÖL | H175: UZUN | I175: 345 | J175: A | L175: 4
A176: 309 | B176: UZUN-A-5 | C176: 168 | D176: - | E176: 2002-01-01 | F176: UMUT DÖĞÜM | G176: BİNGÖL | H176: UZUN | I176: 347 | J176: A | L176: 5
A177: 310 | B177: UZUN-A-6 | C177: 346 | D177: - | E177: 2002-05-28 | F177: MELİH GÜLDAL | G177: ISPARTA | H177: UZUN | I177: 350 | J177: A | L177: 6
A178: 311 | B178: UZUN-A-7 | C178: 350 | D178: - | E178: 2002-03-14 | F178: HÜSEYİN EĞİN | G178: ISPARTA | H178: UZUN | I178: 350 | J178: A | L178: 7
A179: 312 | B179: UZUN-A-8 | C179: 348 | D179: - | E179: 2002-10-30 | F179: FAİK ÖLMEZ | G179: ISPARTA | H179: UZUN | I179: 365 | J179: A | L179: 8
A180: 313 | B180: UZUN-A-9 | C180: 573 | E180: 2002-01-01 | F180: İbrahim KARATEKER | G180: MUŞ | H180: UZUN | I180: 370 | J180: A | L180: 9
A181: 314 | B181: UZUN-A-10 | C181: 428 | D181: - | E181: 2002-07-25 | F181: YASİN KINA | G181: İZMİR | H181: UZUN | I181: 385 | J181: A | L181: 10
A182: 315 | B182: UZUN-A-11 | C182: 282 | D182: - | E182: 2002-01-01 | F182: MUSTAFA BAKIR | G182: GAZİANTEP | H182: UZUN | I182: 390 | J182: A | L182: 11
A183: 316 | B183: UZUN-A-12 | C183: 283 | D183: - | E183: 2002-01-01 | F183: SÜLEYMAN TOKER | G183: GAZİANTEP | H183: UZUN | I183: 390 | J183: A | L183: 12
A184: 317 | B184: UZUN-A-13 | C184: 551 | E184: 2002-01-01 | F184: HALİT GÜNGÖR | G184: KÜTAHYA | H184: UZUN | I184: 395 | J184: A | L184: 13
A185: 318 | B185: UZUN-A-14 | C185: 349 | D185: - | E185: 2002-07-09 | F185: A.BATUHAN KESKİNKILIÇ | G185: ISPARTA | H185: UZUN | I185: 397 | J185: A | L185: 14
A186: 319 | B186: UZUN-A-15 | C186: 427 | D186: - | E186: 2002-05-21 | F186: ENSAR YILMAZ | G186: İZMİR | H186: UZUN | I186: 400 | J186: A | L186: 15
A187: 320 | B187: UZUN-A-16 | C187: 480 | E187: 2002-05-21 | F187: RAMAZAN YULAF | G187: KIRIKKALE | H187: UZUN | I187: 405 | J187: A | L187: 16
A188: 321 | B188: UZUN-A-17 | C188: 695 | E188: 2002-06-19 | F188: AHMET EREN ŞAHİN | G188: TOKAT | H188: UZUN | I188: 410 | J188: A | L188: 17
A189: 322 | B189: UZUN-A-18 | C189: 233 | D189: - | E189: 2002-01-01 | F189: ÖMER İÇLEK | G189: DİYARBAKIR | H189: UZUN | I189: 412 | J189: A | L189: 18
A190: 323 | B190: UZUN-A-19 | C190: 565 | E190: 2002-07-31 | F190: FERHAT ÇELİK | G190: MUĞLA | H190: UZUN | I190: 415 | J190: A | L190: 19
A191: 324 | B191: UZUN-A-20 | C191: 733 | D191: - | E191: 2002-01-17 | F191: KEMAL EREN ZEYTUN | G191: BURSA | H191: UZUN | I191: 415 | J191: A | L191: 20
A192: 325 | B192: UZUN-A-21 | C192: 281 | D192: - | E192: 2002-01-01 | F192: DAVUT AKDENİZ | G192: GAZİANTEP | H192: UZUN | I192: 415 | J192: A | L192: 21
A193: 326 | B193: UZUN-A-22 | C193: 234 | D193: - | E193: 2002-01-01 | F193: M.ŞİRİN FİDANBOY | G193: DİYARBAKIR | H193: UZUN | I193: 418 | J193: A | L193: 22
A194: 327 | B194: UZUN-A-23 | C194: 549 | E194: 2002-03-04 | F194: HASAN ÇAĞRI AKAN | G194: KÜTAHYA | H194: UZUN | I194: 420 | J194: A | L194: 23
A195: 328 | B195: UZUN-A-24 | C195: 221 | D195: - | E195: 2002-01-05 | F195: KADİR FURKAN SİVRİOĞLU | G195: ÇANAKKALE | H195: UZUN | I195: 420 | J195: A | L195: 24
A196: 329 | B196: -- | D196: -
A197: 330 | B197: UZUN-A-26 | C197: 584 | E197: 2002-07-20 | F197: Mezher GÜLER | G197: MUŞ | H197: UZUN | I197: 425 | J197: A | L197: 26
A198: 331 | B198: UZUN-A-27 | C198: 111 | D198: - | E198: 2002-09-24 | F198: OĞUZHAN KOŞAR | G198: BALIKESİR | H198: UZUN | I198: 426 | J198: A | L198: 27
A199: 332 | B199: UZUN-A-28 | C199: 174 | D199: - | E199: 2002-01-01 | F199: NİHAT BİRGİN | G199: BİNGÖL | H199: UZUN | I199: 427 | J199: A | L199: 28
A200: 333 | B200: UZUN-A-29 | C200: 550 | E200: 2002-01-01 | F200: AHMET ÖZER | G200: KÜTAHYA | H200: UZUN | I200: 430 | J200: A | L200: 29
... 125 more rows

Sheet 1.Gün Start Listesi (hidden)
A1: =('YARIŞMA BİLGİLERİ'!A2) -> Türkiye Atletizm Federasyonu İzmir Atletizm İl Temsilciliği
A2: ='YARIŞMA BİLGİLERİ'!F19 -> Naili Moran Türkiye Atletizm Şampiyonası
A3: 1.GÜN GENÇ ERKEKLER START LİSTELERİ
A4: 100 METRE | J4: 400 METRE
A5: 1. SERİ | I5: SIRA NO | J5: 1. SERİ
A6: Sıra No | B6: Formül | C6: Göğüs No | D6: Doğum Tarihi | E6: Adı ve Soyadı | F6: Okulu | G6: Start Kontrol | J6: Sıra No | K6: Formül | L6: Göğüs No | M6: Doğum Tarihi | N6: Adı ve Soyadı | O6: Okulu | P6: Start Kontrol
A7: 1 | B7: 100M-1-1 | C7: =IF(ISERROR(VLOOKUP(B7,'KAYIT LİSTESİ'!$B$4:$H$788,2,0)),"",(VLOOKUP(B7,'KAYIT LİSTESİ'!$B$4:$H$788,2,0))) ->  | D7: =IF(ISERROR(VLOOKUP(B7,'KAYIT LİSTESİ'!$B$4:$H$788,4,0)),"",(VLOOKUP(B7,'KAYIT LİSTESİ'!$B$4:$H$788,4,0))) ->  | E7: =IF(ISERROR(VLOOKUP(B7,'KAYIT LİSTESİ'!$B$4:$H$788,5,0)),"",(VLOOKUP(B7,'KAYIT LİSTESİ'!$B$4:$H$788,5,0))) ->  | F7: =IF(ISERROR(VLOOKUP(B7,'KAYIT LİSTESİ'!$B$4:$H$788,6,0)),"",(VLOOKUP(B7,'KAYIT LİSTESİ'!$B$4:$H$788,6,0))) ->  | I7: 1 | J7: 1 | K7: 400M-1-1 | L7: =IF(ISERROR(VLOOKUP(K7,'KAYIT LİSTESİ'!$B$4:$H$788,2,0)),"",(VLOOKUP(K7,'KAYIT LİSTESİ'!$B$4:$H$788,2,0))) ->  | M7: =IF(ISERROR(VLOOKUP(K7,'KAYIT LİSTESİ'!$B$4:$H$788,4,0)),"",(VLOOKUP(K7,'KAYIT LİSTESİ'!$B$4:$H$788,4,0))) ->  | N7: =IF(ISERROR(VLOOKUP(K7,'KAYIT LİSTESİ'!$B$4:$H$788,5,0)),"",(VLOOKUP(K7,'KAYIT LİSTESİ'!$B$4:$H$788,5,0))) ->  | O7: =IF(ISERROR(VLOOKUP(K7,'KAYIT LİSTESİ'!$B$4:$H$788,6,0)),"",(VLOOKUP(K7,'KAYIT LİSTESİ'!$B$4:$H$788,6,0))) -> 
A8: 2 | B8: 100M-1-2 | C8: =IF(ISERROR(VLOOKUP(B8,'KAYIT LİSTESİ'!$B$4:$H$788,2,0)),"",(VLOOKUP(B8,'KAYIT LİSTESİ'!$B$4:$H$788,2,0))) ->  | D8: =IF(ISERROR(VLOOKUP(B8,'KAYIT LİSTESİ'!$B$4:$H$788,4,0)),"",(VLOOKUP(B8,'KAYIT LİSTESİ'!$B$4:$H$788,4,0))) ->  | E8: =IF(ISERROR(VLOOKUP(B8,'KAYIT LİSTESİ'!$B$4:$H$788,5,0)),"",(VLOOKUP(B8,'KAYIT LİSTESİ'!$B$4:$H$788,5,0))) ->  | F8: =IF(ISERROR(VLOOKUP(B8,'KAYIT LİSTESİ'!$B$4:$H$788,6,0)),"",(VLOOKUP(B8,'KAYIT LİSTESİ'!$B$4:$H$788,6,0))) ->  | I8: 2 | J8: 2 | K8: 400M-1-2 | L8: =IF(ISERROR(VLOOKUP(K8,'KAYIT LİSTESİ'!$B$4:$H$788,2,0)),"",(VLOOKUP(K8,'KAYIT LİSTESİ'!$B$4:$H$788,2,0))) ->  | M8: =IF(ISERROR(VLOOKUP(K8,'KAYIT LİSTESİ'!$B$4:$H$788,4,0)),"",(VLOOKUP(K8,'KAYIT LİSTESİ'!$B$4:$H$788,4,0))) ->  | N8: =IF(ISERROR(VLOOKUP(K8,'KAYIT LİSTESİ'!$B$4:$H$788,5,0)),"",(VLOOKUP(K8,'KAYIT LİSTESİ'!$B$4:$H$788,5,0))) ->  | O8: =IF(ISERROR(VLOOKUP(K8,'KAYIT LİSTESİ'!$B$4:$H$788,6,0)),"",(VLOOKUP(K8,'KAYIT LİSTESİ'!$B$4:$H$788,6,0))) -> 
A9: 3 | B9: 100M-1-3 | C9: =IF(ISERROR(VLOOKUP(B9,'KAYIT LİSTESİ'!$B$4:$H$788,2,0)),"",(VLOOKUP(B9,'KAYIT LİSTESİ'!$B$4:$H$788,2,0))) ->  | D9: =IF(ISERROR(VLOOKUP(B9,'KAYIT LİSTESİ'!$B$4:$H$788,4,0)),"",(VLOOKUP(B9,'KAYIT LİSTESİ'!$B$4:$H$788,4,0))) ->  | E9: =IF(ISERROR(VLOOKUP(B9,'KAYIT LİSTESİ'!$B$4:$H$788,5,0)),"",(VLOOKUP(B9,'KAYIT LİSTESİ'!$B$4:$H$788,5,0))) ->  | F9: =IF(ISERROR(VLOOKUP(B9,'KAYIT LİSTESİ'!$B$4:$H$788,6,0)),"",(VLOOKUP(B9,'KAYIT LİSTESİ'!$B$4:$H$788,6,0))) ->  | I9: 3 | J9: 3 | K9: 400M-1-3 | L9: =IF(ISERROR(VLOOKUP(K9,'KAYIT LİSTESİ'!$B$4:$H$788,2,0)),"",(VLOOKUP(K9,'KAYIT LİSTESİ'!$B$4:$H$788,2,0))) ->  | M9: =IF(ISERROR(VLOOKUP(K9,'KAYIT LİSTESİ'!$B$4:$H$788,4,0)),"",(VLOOKUP(K9,'KAYIT LİSTESİ'!$B$4:$H$788,4,0))) ->  | N9: =IF(ISERROR(VLOOKUP(K9,'KAYIT LİSTESİ'!$B$4:$H$788,5,0)),"",(VLOOKUP(K9,'KAYIT LİSTESİ'!$B$4:$H$788,5,0))) ->  | O9: =IF(ISERROR(VLOOKUP(K9,'KAYIT LİSTESİ'!$B$4:$H$788,6,0)),"",(VLOOKUP(K9,'KAYIT LİSTESİ'!$B$4:$H$788,6,0))) -> 
A10: 4 | B10: 100M-1-4 | C10: =IF(ISERROR(VLOOKUP(B10,'KAYIT LİSTESİ'!$B$4:$H$788,2,0)),"",(VLOOKUP(B10,'KAYIT LİSTESİ'!$B$4:$H$788,2,0))) ->  | D10: =IF(ISERROR(VLOOKUP(B10,'KAYIT LİSTESİ'!$B$4:$H$788,4,0)),"",(VLOOKUP(B10,'KAYIT LİSTESİ'!$B$4:$H$788,4,0))) ->  | E10: =IF(ISERROR(VLOOKUP(B10,'KAYIT LİSTESİ'!$B$4:$H$788,5,0)),"",(VLOOKUP(B10,'KAYIT LİSTESİ'!$B$4:$H$788,5,0))) ->  | F10: =IF(ISERROR(VLOOKUP(B10,'KAYIT LİSTESİ'!$B$4:$H$788,6,0)),"",(VLOOKUP(B10,'KAYIT LİSTESİ'!$B$4:$H$788,6,0))) ->  | I10: 4 | J10: 4 | K10: 400M-1-4 | L10: =IF(ISERROR(VLOOKUP(K10,'KAYIT LİSTESİ'!$B$4:$H$788,2,0)),"",(VLOOKUP(K10,'KAYIT LİSTESİ'!$B$4:$H$788,2,0))) ->  | M10: =IF(ISERROR(VLOOKUP(K10,'KAYIT LİSTESİ'!$B$4:$H$788,4,0)),"",(VLOOKUP(K10,'KAYIT LİSTESİ'!$B$4:$H$788,4,0))) ->  | N10: =IF(ISERROR(VLOOKUP(K10,'KAYIT LİSTESİ'!$B$4:$H$788,5,0)),"",(VLOOKUP(K10,'KAYIT LİSTESİ'!$B$4:$H$788,5,0))) ->  | O10: =IF(ISERROR(VLOOKUP(K10,'KAYIT LİSTESİ'!$B$4:$H$788,6,0)),"",(VLOOKUP(K10,'KAYIT LİSTESİ'!$B$4:$H$788,6,0))) -> 
A11: 5 | B11: 100M-1-5 | C11: =IF(ISERROR(VLOOKUP(B11,'KAYIT LİSTESİ'!$B$4:$H$788,2,0)),"",(VLOOKUP(B11,'KAYIT LİSTESİ'!$B$4:$H$788,2,0))) ->  | D11: =IF(ISERROR(VLOOKUP(B11,'KAYIT LİSTESİ'!$B$4:$H$788,4,0)),"",(VLOOKUP(B11,'KAYIT LİSTESİ'!$B$4:$H$788,4,0))) ->  | E11: =IF(ISERROR(VLOOKUP(B11,'KAYIT LİSTESİ'!$B$4:$H$788,5,0)),"",(VLOOKUP(B11,'KAYIT LİSTESİ'!$B$4:$H$788,5,0))) ->  | F11: =IF(ISERROR(VLOOKUP(B11,'KAYIT LİSTESİ'!$B$4:$H$788,6,0)),"",(VLOOKUP(B11,'KAYIT LİSTESİ'!$B$4:$H$788,6,0))) ->  | I11: 5 | J11: 5 | K11: 400M-1-5 | L11: =IF(ISERROR(VLOOKUP(K11,'KAYIT LİSTESİ'!$B$4:$H$788,2,0)),"",(VLOOKUP(K11,'KAYIT LİSTESİ'!$B$4:$H$788,2,0))) ->  | M11: =IF(ISERROR(VLOOKUP(K11,'KAYIT LİSTESİ'!$B$4:$H$788,4,0)),"",(VLOOKUP(K11,'KAYIT LİSTESİ'!$B$4:$H$788,4,0))) ->  | N11: =IF(ISERROR(VLOOKUP(K11,'KAYIT LİSTESİ'!$B$4:$H$788,5,0)),"",(VLOOKUP(K11,'KAYIT LİSTESİ'!$B$4:$H$788,5,0))) ->  | O11: =IF(ISERROR(VLOOKUP(K11,'KAYIT LİSTESİ'!$B$4:$H$788,6,0)),"",(VLOOKUP(K11,'KAYIT LİSTESİ'!$B$4:$H$788,6,0))) -> 
A12: 6 | B12: 100M-1-6 | C12: =IF(ISERROR(VLOOKUP(B12,'KAYIT LİSTESİ'!$B$4:$H$788,2,0)),"",(VLOOKUP(B12,'KAYIT LİSTESİ'!$B$4:$H$788,2,0))) ->  | D12: =IF(ISERROR(VLOOKUP(B12,'KAYIT LİSTESİ'!$B$4:$H$788,4,0)),"",(VLOOKUP(B12,'KAYIT LİSTESİ'!$B$4:$H$788,4,0))) ->  | E12: =IF(ISERROR(VLOOKUP(B12,'KAYIT LİSTESİ'!$B$4:$H$788,5,0)),"",(VLOOKUP(B12,'KAYIT LİSTESİ'!$B$4:$H$788,5,0))) ->  | F12: =IF(ISERROR(VLOOKUP(B12,'KAYIT LİSTESİ'!$B$4:$H$788,6,0)),"",(VLOOKUP(B12,'KAYIT LİSTESİ'!$B$4:$H$788,6,0))) ->  | I12: 6 | J12: 6 | K12: 400M-1-6 | L12: =IF(ISERROR(VLOOKUP(K12,'KAYIT LİSTESİ'!$B$4:$H$788,2,0)),"",(VLOOKUP(K12,'KAYIT LİSTESİ'!$B$4:$H$788,2,0))) ->  | M12: =IF(ISERROR(VLOOKUP(K12,'KAYIT LİSTESİ'!$B$4:$H$788,4,0)),"",(VLOOKUP(K12,'KAYIT LİSTESİ'!$B$4:$H$788,4,0))) ->  | N12: =IF(ISERROR(VLOOKUP(K12,'KAYIT LİSTESİ'!$B$4:$H$788,5,0)),"",(VLOOKUP(K12,'KAYIT LİSTESİ'!$B$4:$H$788,5,0))) ->  | O12: =IF(ISERROR(VLOOKUP(K12,'KAYIT LİSTESİ'!$B$4:$H$788,6,0)),"",(VLOOKUP(K12,'KAYIT LİSTESİ'!$B$4:$H$788,6,0))) -> 
A13: 7 | B13: 100M-1-7 | C13: =IF(ISERROR(VLOOKUP(B13,'KAYIT LİSTESİ'!$B$4:$H$788,2,0)),"",(VLOOKUP(B13,'KAYIT LİSTESİ'!$B$4:$H$788,2,0))) ->  | D13: =IF(ISERROR(VLOOKUP(B13,'KAYIT LİSTESİ'!$B$4:$H$788,4,0)),"",(VLOOKUP(B13,'KAYIT LİSTESİ'!$B$4:$H$788,4,0))) ->  | E13: =IF(ISERROR(VLOOKUP(B13,'KAYIT LİSTESİ'!$B$4:$H$788,5,0)),"",(VLOOKUP(B13,'KAYIT LİSTESİ'!$B$4:$H$788,5,0))) ->  | F13: =IF(ISERROR(VLOOKUP(B13,'KAYIT LİSTESİ'!$B$4:$H$788,6,0)),"",(VLOOKUP(B13,'KAYIT LİSTESİ'!$B$4:$H$788,6,0))) ->  | I13: 7 | J13: 7 | K13: 400M-1-7 | L13: =IF(ISERROR(VLOOKUP(K13,'KAYIT LİSTESİ'!$B$4:$H$788,2,0)),"",(VLOOKUP(K13,'KAYIT LİSTESİ'!$B$4:$H$788,2,0))) ->  | M13: =IF(ISERROR(VLOOKUP(K13,'KAYIT LİSTESİ'!$B$4:$H$788,4,0)),"",(VLOOKUP(K13,'KAYIT LİSTESİ'!$B$4:$H$788,4,0))) ->  | N13: =IF(ISERROR(VLOOKUP(K13,'KAYIT LİSTESİ'!$B$4:$H$788,5,0)),"",(VLOOKUP(K13,'KAYIT LİSTESİ'!$B$4:$H$788,5,0))) ->  | O13: =IF(ISERROR(VLOOKUP(K13,'KAYIT LİSTESİ'!$B$4:$H$788,6,0)),"",(VLOOKUP(K13,'KAYIT LİSTESİ'!$B$4:$H$788,6,0))) -> 
A14: 8 | B14: 100M-1-8 | C14: =IF(ISERROR(VLOOKUP(B14,'KAYIT LİSTESİ'!$B$4:$H$788,2,0)),"",(VLOOKUP(B14,'KAYIT LİSTESİ'!$B$4:$H$788,2,0))) ->  | D14: =IF(ISERROR(VLOOKUP(B14,'KAYIT LİSTESİ'!$B$4:$H$788,4,0)),"",(VLOOKUP(B14,'KAYIT LİSTESİ'!$B$4:$H$788,4,0))) ->  | E14: =IF(ISERROR(VLOOKUP(B14,'KAYIT LİSTESİ'!$B$4:$H$788,5,0)),"",(VLOOKUP(B14,'KAYIT LİSTESİ'!$B$4:$H$788,5,0))) ->  | F14: =IF(ISERROR(VLOOKUP(B14,'KAYIT LİSTESİ'!$B$4:$H$788,6,0)),"",(VLOOKUP(B14,'KAYIT LİSTESİ'!$B$4:$H$788,6,0))) ->  | I14: 8 | J14: 8 | K14: 400M-1-8 | L14: =IF(ISERROR(VLOOKUP(K14,'KAYIT LİSTESİ'!$B$4:$H$788,2,0)),"",(VLOOKUP(K14,'KAYIT LİSTESİ'!$B$4:$H$788,2,0))) ->  | M14: =IF(ISERROR(VLOOKUP(K14,'KAYIT LİSTESİ'!$B$4:$H$788,4,0)),"",(VLOOKUP(K14,'KAYIT LİSTESİ'!$B$4:$H$788,4,0))) ->  | N14: =IF(ISERROR(VLOOKUP(K14,'KAYIT LİSTESİ'!$B$4:$H$788,5,0)),"",(VLOOKUP(K14,'KAYIT LİSTESİ'!$B$4:$H$788,5,0))) ->  | O14: =IF(ISERROR(VLOOKUP(K14,'KAYIT LİSTESİ'!$B$4:$H$788,6,0)),"",(VLOOKUP(K14,'KAYIT LİSTESİ'!$B$4:$H$788,6,0))) -> 
A15: 2. SERİ | I15: 9 | J15: 2. SERİ
A16: Sıra No | B16: Formül | C16: Göğüs No | D16: Doğum Tarihi | E16: Adı ve Soyadı | F16: Okulu | G16: Start Kontrol | I16: 10 | J16: Sıra No | K16: Formül | L16: Göğüs No | M16: Doğum Tarihi | N16: Adı ve Soyadı | O16: Okulu | P16: Start Kontrol
A17: 1 | B17: 100M-2-1 | C17: =IF(ISERROR(VLOOKUP(B17,'KAYIT LİSTESİ'!$B$4:$H$788,2,0)),"",(VLOOKUP(B17,'KAYIT LİSTESİ'!$B$4:$H$788,2,0))) ->  | D17: =IF(ISERROR(VLOOKUP(B17,'KAYIT LİSTESİ'!$B$4:$H$788,4,0)),"",(VLOOKUP(B17,'KAYIT LİSTESİ'!$B$4:$H$788,4,0))) ->  | E17: =IF(ISERROR(VLOOKUP(B17,'KAYIT LİSTESİ'!$B$4:$H$788,5,0)),"",(VLOOKUP(B17,'KAYIT LİSTESİ'!$B$4:$H$788,5,0))) ->  | F17: =IF(ISERROR(VLOOKUP(B17,'KAYIT LİSTESİ'!$B$4:$H$788,6,0)),"",(VLOOKUP(B17,'KAYIT LİSTESİ'!$B$4:$H$788,6,0))) ->  | I17: 11 | J17: 1 | K17: 400M-2-1 | L17: =IF(ISERROR(VLOOKUP(K17,'KAYIT LİSTESİ'!$B$4:$H$788,2,0)),"",(VLOOKUP(K17,'KAYIT LİSTESİ'!$B$4:$H$788,2,0))) ->  | M17: =IF(ISERROR(VLOOKUP(K17,'KAYIT LİSTESİ'!$B$4:$H$788,4,0)),"",(VLOOKUP(K17,'KAYIT LİSTESİ'!$B$4:$H$788,4,0))) ->  | N17: =IF(ISERROR(VLOOKUP(K17,'KAYIT LİSTESİ'!$B$4:$H$788,5,0)),"",(VLOOKUP(K17,'KAYIT LİSTESİ'!$B$4:$H$788,5,0))) ->  | O17: =IF(ISERROR(VLOOKUP(K17,'KAYIT LİSTESİ'!$B$4:$H$788,6,0)),"",(VLOOKUP(K17,'KAYIT LİSTESİ'!$B$4:$H$788,6,0))) -> 
A18: 2 | B18: 100M-2-2 | C18: =IF(ISERROR(VLOOKUP(B18,'KAYIT LİSTESİ'!$B$4:$H$788,2,0)),"",(VLOOKUP(B18,'KAYIT LİSTESİ'!$B$4:$H$788,2,0))) ->  | D18: =IF(ISERROR(VLOOKUP(B18,'KAYIT LİSTESİ'!$B$4:$H$788,4,0)),"",(VLOOKUP(B18,'KAYIT LİSTESİ'!$B$4:$H$788,4,0))) ->  | E18: =IF(ISERROR(VLOOKUP(B18,'KAYIT LİSTESİ'!$B$4:$H$788,5,0)),"",(VLOOKUP(B18,'KAYIT LİSTESİ'!$B$4:$H$788,5,0))) ->  | F18: =IF(ISERROR(VLOOKUP(B18,'KAYIT LİSTESİ'!$B$4:$H$788,6,0)),"",(VLOOKUP(B18,'KAYIT LİSTESİ'!$B$4:$H$788,6,0))) ->  | I18: 12 | J18: 2 | K18: 400M-2-2 | L18: =IF(ISERROR(VLOOKUP(K18,'KAYIT LİSTESİ'!$B$4:$H$788,2,0)),"",(VLOOKUP(K18,'KAYIT LİSTESİ'!$B$4:$H$788,2,0))) ->  | M18: =IF(ISERROR(VLOOKUP(K18,'KAYIT LİSTESİ'!$B$4:$H$788,4,0)),"",(VLOOKUP(K18,'KAYIT LİSTESİ'!$B$4:$H$788,4,0))) ->  | N18: =IF(ISERROR(VLOOKUP(K18,'KAYIT LİSTESİ'!$B$4:$H$788,5,0)),"",(VLOOKUP(K18,'KAYIT LİSTESİ'!$B$4:$H$788,5,0))) ->  | O18: =IF(ISERROR(VLOOKUP(K18,'KAYIT LİSTESİ'!$B$4:$H$788,6,0)),"",(VLOOKUP(K18,'KAYIT LİSTESİ'!$B$4:$H$788,6,0))) -> 
A19: 3 | B19: 100M-2-3 | C19: =IF(ISERROR(VLOOKUP(B19,'KAYIT LİSTESİ'!$B$4:$H$788,2,0)),"",(VLOOKUP(B19,'KAYIT LİSTESİ'!$B$4:$H$788,2,0))) ->  | D19: =IF(ISERROR(VLOOKUP(B19,'KAYIT LİSTESİ'!$B$4:$H$788,4,0)),"",(VLOOKUP(B19,'KAYIT LİSTESİ'!$B$4:$H$788,4,0))) ->  | E19: =IF(ISERROR(VLOOKUP(B19,'KAYIT LİSTESİ'!$B$4:$H$788,5,0)),"",(VLOOKUP(B19,'KAYIT LİSTESİ'!$B$4:$H$788,5,0))) ->  | F19: =IF(ISERROR(VLOOKUP(B19,'KAYIT LİSTESİ'!$B$4:$H$788,6,0)),"",(VLOOKUP(B19,'KAYIT LİSTESİ'!$B$4:$H$788,6,0))) ->  | I19: 13 | J19: 3 | K19: 400M-2-3 | L19: =IF(ISERROR(VLOOKUP(K19,'KAYIT LİSTESİ'!$B$4:$H$788,2,0)),"",(VLOOKUP(K19,'KAYIT LİSTESİ'!$B$4:$H$788,2,0))) ->  | M19: =IF(ISERROR(VLOOKUP(K19,'KAYIT LİSTESİ'!$B$4:$H$788,4,0)),"",(VLOOKUP(K19,'KAYIT LİSTESİ'!$B$4:$H$788,4,0))) ->  | N19: =IF(ISERROR(VLOOKUP(K19,'KAYIT LİSTESİ'!$B$4:$H$788,5,0)),"",(VLOOKUP(K19,'KAYIT LİSTESİ'!$B$4:$H$788,5,0))) ->  | O19: =IF(ISERROR(VLOOKUP(K19,'KAYIT LİSTESİ'!$B$4:$H$788,6,0)),"",(VLOOKUP(K19,'KAYIT LİSTESİ'!$B$4:$H$788,6,0))) -> 
A20: 4 | B20: 100M-2-4 | C20: =IF(ISERROR(VLOOKUP(B20,'KAYIT LİSTESİ'!$B$4:$H$788,2,0)),"",(VLOOKUP(B20,'KAYIT LİSTESİ'!$B$4:$H$788,2,0))) ->  | D20: =IF(ISERROR(VLOOKUP(B20,'KAYIT LİSTESİ'!$B$4:$H$788,4,0)),"",(VLOOKUP(B20,'KAYIT LİSTESİ'!$B$4:$H$788,4,0))) ->  | E20: =IF(ISERROR(VLOOKUP(B20,'KAYIT LİSTESİ'!$B$4:$H$788,5,0)),"",(VLOOKUP(B20,'KAYIT LİSTESİ'!$B$4:$H$788,5,0))) ->  | F20: =IF(ISERROR(VLOOKUP(B20,'KAYIT LİSTESİ'!$B$4:$H$788,6,0)),"",(VLOOKUP(B20,'KAYIT LİSTESİ'!$B$4:$H$788,6,0))) ->  | I20: 14 | J20: 4 | K20: 400M-2-4 | L20: =IF(ISERROR(VLOOKUP(K20,'KAYIT LİSTESİ'!$B$4:$H$788,2,0)),"",(VLOOKUP(K20,'KAYIT LİSTESİ'!$B$4:$H$788,2,0))) ->  | M20: =IF(ISERROR(VLOOKUP(K20,'KAYIT LİSTESİ'!$B$4:$H$788,4,0)),"",(VLOOKUP(K20,'KAYIT LİSTESİ'!$B$4:$H$788,4,0))) ->  | N20: =IF(ISERROR(VLOOKUP(K20,'KAYIT LİSTESİ'!$B$4:$H$788,5,0)),"",(VLOOKUP(K20,'KAYIT LİSTESİ'!$B$4:$H$788,5,0))) ->  | O20: =IF(ISERROR(VLOOKUP(K20,'KAYIT LİSTESİ'!$B$4:$H$788,6,0)),"",(VLOOKUP(K20,'KAYIT LİSTESİ'!$B$4:$H$788,6,0))) -> 
A21: 5 | B21: 100M-2-5 | C21: =IF(ISERROR(VLOOKUP(B21,'KAYIT LİSTESİ'!$B$4:$H$788,2,0)),"",(VLOOKUP(B21,'KAYIT LİSTESİ'!$B$4:$H$788,2,0))) ->  | D21: =IF(ISERROR(VLOOKUP(B21,'KAYIT LİSTESİ'!$B$4:$H$788,4,0)),"",(VLOOKUP(B21,'KAYIT LİSTESİ'!$B$4:$H$788,4,0))) ->  | E21: =IF(ISERROR(VLOOKUP(B21,'KAYIT LİSTESİ'!$B$4:$H$788,5,0)),"",(VLOOKUP(B21,'KAYIT LİSTESİ'!$B$4:$H$788,5,0))) ->  | F21: =IF(ISERROR(VLOOKUP(B21,'KAYIT LİSTESİ'!$B$4:$H$788,6,0)),"",(VLOOKUP(B21,'KAYIT LİSTESİ'!$B$4:$H$788,6,0))) ->  | I21: 15 | J21: 5 | K21: 400M-2-5 | L21: =IF(ISERROR(VLOOKUP(K21,'KAYIT LİSTESİ'!$B$4:$H$788,2,0)),"",(VLOOKUP(K21,'KAYIT LİSTESİ'!$B$4:$H$788,2,0))) ->  | M21: =IF(ISERROR(VLOOKUP(K21,'KAYIT LİSTESİ'!$B$4:$H$788,4,0)),"",(VLOOKUP(K21,'KAYIT LİSTESİ'!$B$4:$H$788,4,0))) ->  | N21: =IF(ISERROR(VLOOKUP(K21,'KAYIT LİSTESİ'!$B$4:$H$788,5,0)),"",(VLOOKUP(K21,'KAYIT LİSTESİ'!$B$4:$H$788,5,0))) ->  | O21: =IF(ISERROR(VLOOKUP(K21,'KAYIT LİSTESİ'!$B$4:$H$788,6,0)),"",(VLOOKUP(K21,'KAYIT LİSTESİ'!$B$4:$H$788,6,0))) -> 
A22: 6 | B22: 100M-2-6 | C22: =IF(ISERROR(VLOOKUP(B22,'KAYIT LİSTESİ'!$B$4:$H$788,2,0)),"",(VLOOKUP(B22,'KAYIT LİSTESİ'!$B$4:$H$788,2,0))) ->  | D22: =IF(ISERROR(VLOOKUP(B22,'KAYIT LİSTESİ'!$B$4:$H$788,4,0)),"",(VLOOKUP(B22,'KAYIT LİSTESİ'!$B$4:$H$788,4,0))) ->  | E22: =IF(ISERROR(VLOOKUP(B22,'KAYIT LİSTESİ'!$B$4:$H$788,5,0)),"",(VLOOKUP(B22,'KAYIT LİSTESİ'!$B$4:$H$788,5,0))) ->  | F22: =IF(ISERROR(VLOOKUP(B22,'KAYIT LİSTESİ'!$B$4:$H$788,6,0)),"",(VLOOKUP(B22,'KAYIT LİSTESİ'!$B$4:$H$788,6,0))) ->  | I22: 16 | J22: 6 | K22: 400M-2-6 | L22: =IF(ISERROR(VLOOKUP(K22,'KAYIT LİSTESİ'!$B$4:$H$788,2,0)),"",(VLOOKUP(K22,'KAYIT LİSTESİ'!$B$4:$H$788,2,0))) ->  | M22: =IF(ISERROR(VLOOKUP(K22,'KAYIT LİSTESİ'!$B$4:$H$788,4,0)),"",(VLOOKUP(K22,'KAYIT LİSTESİ'!$B$4:$H$788,4,0))) ->  | N22: =IF(ISERROR(VLOOKUP(K22,'KAYIT LİSTESİ'!$B$4:$H$788,5,0)),"",(VLOOKUP(K22,'KAYIT LİSTESİ'!$B$4:$H$788,5,0))) ->  | O22: =IF(ISERROR(VLOOKUP(K22,'KAYIT LİSTESİ'!$B$4:$H$788,6,0)),"",(VLOOKUP(K22,'KAYIT LİSTESİ'!$B$4:$H$788,6,0))) -> 
A23: 7 | B23: 100M-2-7 | C23: =IF(ISERROR(VLOOKUP(B23,'KAYIT LİSTESİ'!$B$4:$H$788,2,0)),"",(VLOOKUP(B23,'KAYIT LİSTESİ'!$B$4:$H$788,2,0))) ->  | D23: =IF(ISERROR(VLOOKUP(B23,'KAYIT LİSTESİ'!$B$4:$H$788,4,0)),"",(VLOOKUP(B23,'KAYIT LİSTESİ'!$B$4:$H$788,4,0))) ->  | E23: =IF(ISERROR(VLOOKUP(B23,'KAYIT LİSTESİ'!$B$4:$H$788,5,0)),"",(VLOOKUP(B23,'KAYIT LİSTESİ'!$B$4:$H$788,5,0))) ->  | F23: =IF(ISERROR(VLOOKUP(B23,'KAYIT LİSTESİ'!$B$4:$H$788,6,0)),"",(VLOOKUP(B23,'KAYIT LİSTESİ'!$B$4:$H$788,6,0))) ->  | I23: 17 | J23: 7 | K23: 400M-2-7 | L23: =IF(ISERROR(VLOOKUP(K23,'KAYIT LİSTESİ'!$B$4:$H$788,2,0)),"",(VLOOKUP(K23,'KAYIT LİSTESİ'!$B$4:$H$788,2,0))) ->  | M23: =IF(ISERROR(VLOOKUP(K23,'KAYIT LİSTESİ'!$B$4:$H$788,4,0)),"",(VLOOKUP(K23,'KAYIT LİSTESİ'!$B$4:$H$788,4,0))) ->  | N23: =IF(ISERROR(VLOOKUP(K23,'KAYIT LİSTESİ'!$B$4:$H$788,5,0)),"",(VLOOKUP(K23,'KAYIT LİSTESİ'!$B$4:$H$788,5,0))) ->  | O23: =IF(ISERROR(VLOOKUP(K23,'KAYIT LİSTESİ'!$B$4:$H$788,6,0)),"",(VLOOKUP(K23,'KAYIT LİSTESİ'!$B$4:$H$788,6,0))) -> 
A24: 8 | B24: 100M-2-8 | C24: =IF(ISERROR(VLOOKUP(B24,'KAYIT LİSTESİ'!$B$4:$H$788,2,0)),"",(VLOOKUP(B24,'KAYIT LİSTESİ'!$B$4:$H$788,2,0))) ->  | D24: =IF(ISERROR(VLOOKUP(B24,'KAYIT LİSTESİ'!$B$4:$H$788,4,0)),"",(VLOOKUP(B24,'KAYIT LİSTESİ'!$B$4:$H$788,4,0))) ->  | E24: =IF(ISERROR(VLOOKUP(B24,'KAYIT LİSTESİ'!$B$4:$H$788,5,0)),"",(VLOOKUP(B24,'KAYIT LİSTESİ'!$B$4:$H$788,5,0))) ->  | F24: =IF(ISERROR(VLOOKUP(B24,'KAYIT LİSTESİ'!$B$4:$H$788,6,0)),"",(VLOOKUP(B24,'KAYIT LİSTESİ'!$B$4:$H$788,6,0))) ->  | I24: 18 | J24: 8 | K24: 400M-2-8 | L24: =IF(ISERROR(VLOOKUP(K24,'KAYIT LİSTESİ'!$B$4:$H$788,2,0)),"",(VLOOKUP(K24,'KAYIT LİSTESİ'!$B$4:$H$788,2,0))) ->  | M24: =IF(ISERROR(VLOOKUP(K24,'KAYIT LİSTESİ'!$B$4:$H$788,4,0)),"",(VLOOKUP(K24,'KAYIT LİSTESİ'!$B$4:$H$788,4,0))) ->  | N24: =IF(ISERROR(VLOOKUP(K24,'KAYIT LİSTESİ'!$B$4:$H$788,5,0)),"",(VLOOKUP(K24,'KAYIT LİSTESİ'!$B$4:$H$788,5,0))) ->  | O24: =IF(ISERROR(VLOOKUP(K24,'KAYIT LİSTESİ'!$B$4:$H$788,6,0)),"",(VLOOKUP(K24,'KAYIT LİSTESİ'!$B$4:$H$788,6,0))) -> 
A25: 3. SERİ | I25: 19 | J25: 3. SERİ
A26: Sıra No | B26: Formül | C26: Göğüs No | D26: Doğum Tarihi | E26: Adı ve Soyadı | F26: Okulu | G26: Start Kontrol | I26: 20 | J26: Sıra No | K26: Formül | L26: Göğüs No | M26: Doğum Tarihi | N26: Adı ve Soyadı | O26: Okulu | P26: Start Kontrol
A27: 1 | B27: 100M-3-1 | C27: =IF(ISERROR(VLOOKUP(B27,'KAYIT LİSTESİ'!$B$4:$H$788,2,0)),"",(VLOOKUP(B27,'KAYIT LİSTESİ'!$B$4:$H$788,2,0))) ->  | D27: =IF(ISERROR(VLOOKUP(B27,'KAYIT LİSTESİ'!$B$4:$H$788,4,0)),"",(VLOOKUP(B27,'KAYIT LİSTESİ'!$B$4:$H$788,4,0))) ->  | E27: =IF(ISERROR(VLOOKUP(B27,'KAYIT LİSTESİ'!$B$4:$H$788,5,0)),"",(VLOOKUP(B27,'KAYIT LİSTESİ'!$B$4:$H$788,5,0))) ->  | F27: =IF(ISERROR(VLOOKUP(B27,'KAYIT LİSTESİ'!$B$4:$H$788,6,0)),"",(VLOOKUP(B27,'KAYIT LİSTESİ'!$B$4:$H$788,6,0))) ->  | I27: 21 | J27: 1 | K27: 400M-3-1 | L27: =IF(ISERROR(VLOOKUP(K27,'KAYIT LİSTESİ'!$B$4:$H$788,2,0)),"",(VLOOKUP(K27,'KAYIT LİSTESİ'!$B$4:$H$788,2,0))) ->  | M27: =IF(ISERROR(VLOOKUP(K27,'KAYIT LİSTESİ'!$B$4:$H$788,4,0)),"",(VLOOKUP(K27,'KAYIT LİSTESİ'!$B$4:$H$788,4,0))) ->  | N27: =IF(ISERROR(VLOOKUP(K27,'KAYIT LİSTESİ'!$B$4:$H$788,5,0)),"",(VLOOKUP(K27,'KAYIT LİSTESİ'!$B$4:$H$788,5,0))) ->  | O27: =IF(ISERROR(VLOOKUP(K27,'KAYIT LİSTESİ'!$B$4:$H$788,6,0)),"",(VLOOKUP(K27,'KAYIT LİSTESİ'!$B$4:$H$788,6,0))) -> 
A28: 2 | B28: 100M-3-2 | C28: =IF(ISERROR(VLOOKUP(B28,'KAYIT LİSTESİ'!$B$4:$H$788,2,0)),"",(VLOOKUP(B28,'KAYIT LİSTESİ'!$B$4:$H$788,2,0))) ->  | D28: =IF(ISERROR(VLOOKUP(B28,'KAYIT LİSTESİ'!$B$4:$H$788,4,0)),"",(VLOOKUP(B28,'KAYIT LİSTESİ'!$B$4:$H$788,4,0))) ->  | E28: =IF(ISERROR(VLOOKUP(B28,'KAYIT LİSTESİ'!$B$4:$H$788,5,0)),"",(VLOOKUP(B28,'KAYIT LİSTESİ'!$B$4:$H$788,5,0))) ->  | F28: =IF(ISERROR(VLOOKUP(B28,'KAYIT LİSTESİ'!$B$4:$H$788,6,0)),"",(VLOOKUP(B28,'KAYIT LİSTESİ'!$B$4:$H$788,6,0))) ->  | I28: 22 | J28: 2 | K28: 400M-3-2 | L28: =IF(ISERROR(VLOOKUP(K28,'KAYIT LİSTESİ'!$B$4:$H$788,2,0)),"",(VLOOKUP(K28,'KAYIT LİSTESİ'!$B$4:$H$788,2,0))) ->  | M28: =IF(ISERROR(VLOOKUP(K28,'KAYIT LİSTESİ'!$B$4:$H$788,4,0)),"",(VLOOKUP(K28,'KAYIT LİSTESİ'!$B$4:$H$788,4,0))) ->  | N28: =IF(ISERROR(VLOOKUP(K28,'KAYIT LİSTESİ'!$B$4:$H$788,5,0)),"",(VLOOKUP(K28,'KAYIT LİSTESİ'!$B$4:$H$788,5,0))) ->  | O28: =IF(ISERROR(VLOOKUP(K28,'KAYIT LİSTESİ'!$B$4:$H$788,6,0)),"",(VLOOKUP(K28,'KAYIT LİSTESİ'!$B$4:$H$788,6,0))) -> 
A29: 3 | B29: 100M-3-3 | C29: =IF(ISERROR(VLOOKUP(B29,'KAYIT LİSTESİ'!$B$4:$H$788,2,0)),"",(VLOOKUP(B29,'KAYIT LİSTESİ'!$B$4:$H$788,2,0))) ->  | D29: =IF(ISERROR(VLOOKUP(B29,'KAYIT LİSTESİ'!$B$4:$H$788,4,0)),"",(VLOOKUP(B29,'KAYIT LİSTESİ'!$B$4:$H$788,4,0))) ->  | E29: =IF(ISERROR(VLOOKUP(B29,'KAYIT LİSTESİ'!$B$4:$H$788,5,0)),"",(VLOOKUP(B29,'KAYIT LİSTESİ'!$B$4:$H$788,5,0))) ->  | F29: =IF(ISERROR(VLOOKUP(B29,'KAYIT LİSTESİ'!$B$4:$H$788,6,0)),"",(VLOOKUP(B29,'KAYIT LİSTESİ'!$B$4:$H$788,6,0))) ->  | I29: 23 | J29: 3 | K29: 400M-3-3 | L29: =IF(ISERROR(VLOOKUP(K29,'KAYIT LİSTESİ'!$B$4:$H$788,2,0)),"",(VLOOKUP(K29,'KAYIT LİSTESİ'!$B$4:$H$788,2,0))) ->  | M29: =IF(ISERROR(VLOOKUP(K29,'KAYIT LİSTESİ'!$B$4:$H$788,4,0)),"",(VLOOKUP(K29,'KAYIT LİSTESİ'!$B$4:$H$788,4,0))) ->  | N29: =IF(ISERROR(VLOOKUP(K29,'KAYIT LİSTESİ'!$B$4:$H$788,5,0)),"",(VLOOKUP(K29,'KAYIT LİSTESİ'!$B$4:$H$788,5,0))) ->  | O29: =IF(ISERROR(VLOOKUP(K29,'KAYIT LİSTESİ'!$B$4:$H$788,6,0)),"",(VLOOKUP(K29,'KAYIT LİSTESİ'!$B$4:$H$788,6,0))) -> 
A30: 4 | B30: 100M-3-4 | C30: =IF(ISERROR(VLOOKUP(B30,'KAYIT LİSTESİ'!$B$4:$H$788,2,0)),"",(VLOOKUP(B30,'KAYIT LİSTESİ'!$B$4:$H$788,2,0))) ->  | D30: =IF(ISERROR(VLOOKUP(B30,'KAYIT LİSTESİ'!$B$4:$H$788,4,0)),"",(VLOOKUP(B30,'KAYIT LİSTESİ'!$B$4:$H$788,4,0))) ->  | E30: =IF(ISERROR(VLOOKUP(B30,'KAYIT LİSTESİ'!$B$4:$H$788,5,0)),"",(VLOOKUP(B30,'KAYIT LİSTESİ'!$B$4:$H$788,5,0))) ->  | F30: =IF(ISERROR(VLOOKUP(B30,'KAYIT LİSTESİ'!$B$4:$H$788,6,0)),"",(VLOOKUP(B30,'KAYIT LİSTESİ'!$B$4:$H$788,6,0))) ->  | I30: 24 | J30: 4 | K30: 400M-3-4 | L30: =IF(ISERROR(VLOOKUP(K30,'KAYIT LİSTESİ'!$B$4:$H$788,2,0)),"",(VLOOKUP(K30,'KAYIT LİSTESİ'!$B$4:$H$788,2,0))) ->  | M30: =IF(ISERROR(VLOOKUP(K30,'KAYIT LİSTESİ'!$B$4:$H$788,4,0)),"",(VLOOKUP(K30,'KAYIT LİSTESİ'!$B$4:$H$788,4,0))) ->  | N30: =IF(ISERROR(VLOOKUP(K30,'KAYIT LİSTESİ'!$B$4:$H$788,5,0)),"",(VLOOKUP(K30,'KAYIT LİSTESİ'!$B$4:$H$788,5,0))) ->  | O30: =IF(ISERROR(VLOOKUP(K30,'KAYIT LİSTESİ'!$B$4:$H$788,6,0)),"",(VLOOKUP(K30,'KAYIT LİSTESİ'!$B$4:$H$788,6,0))) -> 
A31: 5 | B31: 100M-3-5 | C31: =IF(ISERROR(VLOOKUP(B31,'KAYIT LİSTESİ'!$B$4:$H$788,2,0)),"",(VLOOKUP(B31,'KAYIT LİSTESİ'!$B$4:$H$788,2,0))) ->  | D31: =IF(ISERROR(VLOOKUP(B31,'KAYIT LİSTESİ'!$B$4:$H$788,4,0)),"",(VLOOKUP(B31,'KAYIT LİSTESİ'!$B$4:$H$788,4,0))) ->  | E31: =IF(ISERROR(VLOOKUP(B31,'KAYIT LİSTESİ'!$B$4:$H$788,5,0)),"",(VLOOKUP(B31,'KAYIT LİSTESİ'!$B$4:$H$788,5,0))) ->  | F31: =IF(ISERROR(VLOOKUP(B31,'KAYIT LİSTESİ'!$B$4:$H$788,6,0)),"",(VLOOKUP(B31,'KAYIT LİSTESİ'!$B$4:$H$788,6,0))) ->  | I31: 25 | J31: 5 | K31: 400M-3-5 | L31: =IF(ISERROR(VLOOKUP(K31,'KAYIT LİSTESİ'!$B$4:$H$788,2,0)),"",(VLOOKUP(K31,'KAYIT LİSTESİ'!$B$4:$H$788,2,0))) ->  | M31: =IF(ISERROR(VLOOKUP(K31,'KAYIT LİSTESİ'!$B$4:$H$788,4,0)),"",(VLOOKUP(K31,'KAYIT LİSTESİ'!$B$4:$H$788,4,0))) ->  | N31: =IF(ISERROR(VLOOKUP(K31,'KAYIT LİSTESİ'!$B$4:$H$788,5,0)),"",(VLOOKUP(K31,'KAYIT LİSTESİ'!$B$4:$H$788,5,0))) ->  | O31: =IF(ISERROR(VLOOKUP(K31,'KAYIT LİSTESİ'!$B$4:$H$788,6,0)),"",(VLOOKUP(K31,'KAYIT LİSTESİ'!$B$4:$H$788,6,0))) -> 
A32: 6 | B32: 100M-3-6 | C32: =IF(ISERROR(VLOOKUP(B32,'KAYIT LİSTESİ'!$B$4:$H$788,2,0)),"",(VLOOKUP(B32,'KAYIT LİSTESİ'!$B$4:$H$788,2,0))) ->  | D32: =IF(ISERROR(VLOOKUP(B32,'KAYIT LİSTESİ'!$B$4:$H$788,4,0)),"",(VLOOKUP(B32,'KAYIT LİSTESİ'!$B$4:$H$788,4,0))) ->  | E32: =IF(ISERROR(VLOOKUP(B32,'KAYIT LİSTESİ'!$B$4:$H$788,5,0)),"",(VLOOKUP(B32,'KAYIT LİSTESİ'!$B$4:$H$788,5,0))) ->  | F32: =IF(ISERROR(VLOOKUP(B32,'KAYIT LİSTESİ'!$B$4:$H$788,6,0)),"",(VLOOKUP(B32,'KAYIT LİSTESİ'!$B$4:$H$788,6,0))) ->  | J32: 6 | K32: 400M-3-6 | L32: =IF(ISERROR(VLOOKUP(K32,'KAYIT LİSTESİ'!$B$4:$H$788,2,0)),"",(VLOOKUP(K32,'KAYIT LİSTESİ'!$B$4:$H$788,2,0))) ->  | M32: =IF(ISERROR(VLOOKUP(K32,'KAYIT LİSTESİ'!$B$4:$H$788,4,0)),"",(VLOOKUP(K32,'KAYIT LİSTESİ'!$B$4:$H$788,4,0))) ->  | N32: =IF(ISERROR(VLOOKUP(K32,'KAYIT LİSTESİ'!$B$4:$H$788,5,0)),"",(VLOOKUP(K32,'KAYIT LİSTESİ'!$B$4:$H$788,5,0))) ->  | O32: =IF(ISERROR(VLOOKUP(K32,'KAYIT LİSTESİ'!$B$4:$H$788,6,0)),"",(VLOOKUP(K32,'KAYIT LİSTESİ'!$B$4:$H$788,6,0))) -> 
A33: 7 | B33: 100M-3-7 | C33: =IF(ISERROR(VLOOKUP(B33,'KAYIT LİSTESİ'!$B$4:$H$788,2,0)),"",(VLOOKUP(B33,'KAYIT LİSTESİ'!$B$4:$H$788,2,0))) ->  | D33: =IF(ISERROR(VLOOKUP(B33,'KAYIT LİSTESİ'!$B$4:$H$788,4,0)),"",(VLOOKUP(B33,'KAYIT LİSTESİ'!$B$4:$H$788,4,0))) ->  | E33: =IF(ISERROR(VLOOKUP(B33,'KAYIT LİSTESİ'!$B$4:$H$788,5,0)),"",(VLOOKUP(B33,'KAYIT LİSTESİ'!$B$4:$H$788,5,0))) ->  | F33: =IF(ISERROR(VLOOKUP(B33,'KAYIT LİSTESİ'!$B$4:$H$788,6,0)),"",(VLOOKUP(B33,'KAYIT LİSTESİ'!$B$4:$H$788,6,0))) ->  | J33: 7 | K33: 400M-3-7 | L33: =IF(ISERROR(VLOOKUP(K33,'KAYIT LİSTESİ'!$B$4:$H$788,2,0)),"",(VLOOKUP(K33,'KAYIT LİSTESİ'!$B$4:$H$788,2,0))) ->  | M33: =IF(ISERROR(VLOOKUP(K33,'KAYIT LİSTESİ'!$B$4:$H$788,4,0)),"",(VLOOKUP(K33,'KAYIT LİSTESİ'!$B$4:$H$788,4,0))) ->  | N33: =IF(ISERROR(VLOOKUP(K33,'KAYIT LİSTESİ'!$B$4:$H$788,5,0)),"",(VLOOKUP(K33,'KAYIT LİSTESİ'!$B$4:$H$788,5,0))) ->  | O33: =IF(ISERROR(VLOOKUP(K33,'KAYIT LİSTESİ'!$B$4:$H$788,6,0)),"",(VLOOKUP(K33,'KAYIT LİSTESİ'!$B$4:$H$788,6,0))) -> 
A34: 8 | B34: 100M-3-8 | C34: =IF(ISERROR(VLOOKUP(B34,'KAYIT LİSTESİ'!$B$4:$H$788,2,0)),"",(VLOOKUP(B34,'KAYIT LİSTESİ'!$B$4:$H$788,2,0))) ->  | D34: =IF(ISERROR(VLOOKUP(B34,'KAYIT LİSTESİ'!$B$4:$H$788,4,0)),"",(VLOOKUP(B34,'KAYIT LİSTESİ'!$B$4:$H$788,4,0))) ->  | E34: =IF(ISERROR(VLOOKUP(B34,'KAYIT LİSTESİ'!$B$4:$H$788,5,0)),"",(VLOOKUP(B34,'KAYIT LİSTESİ'!$B$4:$H$788,5,0))) ->  | F34: =IF(ISERROR(VLOOKUP(B34,'KAYIT LİSTESİ'!$B$4:$H$788,6,0)),"",(VLOOKUP(B34,'KAYIT LİSTESİ'!$B$4:$H$788,6,0))) ->  | J34: 8 | K34: 400M-3-8 | L34: =IF(ISERROR(VLOOKUP(K34,'KAYIT LİSTESİ'!$B$4:$H$788,2,0)),"",(VLOOKUP(K34,'KAYIT LİSTESİ'!$B$4:$H$788,2,0))) ->  | M34: =IF(ISERROR(VLOOKUP(K34,'KAYIT LİSTESİ'!$B$4:$H$788,4,0)),"",(VLOOKUP(K34,'KAYIT LİSTESİ'!$B$4:$H$788,4,0))) ->  | N34: =IF(ISERROR(VLOOKUP(K34,'KAYIT LİSTESİ'!$B$4:$H$788,5,0)),"",(VLOOKUP(K34,'KAYIT LİSTESİ'!$B$4:$H$788,5,0))) ->  | O34: =IF(ISERROR(VLOOKUP(K34,'KAYIT LİSTESİ'!$B$4:$H$788,6,0)),"",(VLOOKUP(K34,'KAYIT LİSTESİ'!$B$4:$H$788,6,0))) -> 
A35: 4. SERİ | J35: 4. SERİ
A36: Sıra No | B36: Formül | C36: Göğüs No | D36: Doğum Tarihi | E36: Adı ve Soyadı | F36: Okulu | G36: Start Kontrol | J36: Sıra No | K36: Formül | L36: Göğüs No | M36: Doğum Tarihi | N36: Adı ve Soyadı | O36: Okulu | P36: Start Kontrol
A37: 1 | B37: 100M-4-1 | C37: =IF(ISERROR(VLOOKUP(B37,'KAYIT LİSTESİ'!$B$4:$H$788,2,0)),"",(VLOOKUP(B37,'KAYIT LİSTESİ'!$B$4:$H$788,2,0))) ->  | D37: =IF(ISERROR(VLOOKUP(B37,'KAYIT LİSTESİ'!$B$4:$H$788,4,0)),"",(VLOOKUP(B37,'KAYIT LİSTESİ'!$B$4:$H$788,4,0))) ->  | E37: =IF(ISERROR(VLOOKUP(B37,'KAYIT LİSTESİ'!$B$4:$H$788,5,0)),"",(VLOOKUP(B37,'KAYIT LİSTESİ'!$B$4:$H$788,5,0))) ->  | F37: =IF(ISERROR(VLOOKUP(B37,'KAYIT LİSTESİ'!$B$4:$H$788,6,0)),"",(VLOOKUP(B37,'KAYIT LİSTESİ'!$B$4:$H$788,6,0))) ->  | J37: 1 | K37: 400M-4-1 | L37: =IF(ISERROR(VLOOKUP(K37,'KAYIT LİSTESİ'!$B$4:$H$788,2,0)),"",(VLOOKUP(K37,'KAYIT LİSTESİ'!$B$4:$H$788,2,0))) ->  | M37: =IF(ISERROR(VLOOKUP(K37,'KAYIT LİSTESİ'!$B$4:$H$788,4,0)),"",(VLOOKUP(K37,'KAYIT LİSTESİ'!$B$4:$H$788,4,0))) ->  | N37: =IF(ISERROR(VLOOKUP(K37,'KAYIT LİSTESİ'!$B$4:$H$788,5,0)),"",(VLOOKUP(K37,'KAYIT LİSTESİ'!$B$4:$H$788,5,0))) ->  | O37: =IF(ISERROR(VLOOKUP(K37,'KAYIT LİSTESİ'!$B$4:$H$788,6,0)),"",(VLOOKUP(K37,'KAYIT LİSTESİ'!$B$4:$H$788,6,0))) -> 
A38: 2 | B38: 100M-4-2 | C38: =IF(ISERROR(VLOOKUP(B38,'KAYIT LİSTESİ'!$B$4:$H$788,2,0)),"",(VLOOKUP(B38,'KAYIT LİSTESİ'!$B$4:$H$788,2,0))) ->  | D38: =IF(ISERROR(VLOOKUP(B38,'KAYIT LİSTESİ'!$B$4:$H$788,4,0)),"",(VLOOKUP(B38,'KAYIT LİSTESİ'!$B$4:$H$788,4,0))) ->  | E38: =IF(ISERROR(VLOOKUP(B38,'KAYIT LİSTESİ'!$B$4:$H$788,5,0)),"",(VLOOKUP(B38,'KAYIT LİSTESİ'!$B$4:$H$788,5,0))) ->  | F38: =IF(ISERROR(VLOOKUP(B38,'KAYIT LİSTESİ'!$B$4:$H$788,6,0)),"",(VLOOKUP(B38,'KAYIT LİSTESİ'!$B$4:$H$788,6,0))) ->  | J38: 2 | K38: 400M-4-2 | L38: =IF(ISERROR(VLOOKUP(K38,'KAYIT LİSTESİ'!$B$4:$H$788,2,0)),"",(VLOOKUP(K38,'KAYIT LİSTESİ'!$B$4:$H$788,2,0))) ->  | M38: =IF(ISERROR(VLOOKUP(K38,'KAYIT LİSTESİ'!$B$4:$H$788,4,0)),"",(VLOOKUP(K38,'KAYIT LİSTESİ'!$B$4:$H$788,4,0))) ->  | N38: =IF(ISERROR(VLOOKUP(K38,'KAYIT LİSTESİ'!$B$4:$H$788,5,0)),"",(VLOOKUP(K38,'KAYIT LİSTESİ'!$B$4:$H$788,5,0))) ->  | O38: =IF(ISERROR(VLOOKUP(K38,'KAYIT LİSTESİ'!$B$4:$H$788,6,0)),"",(VLOOKUP(K38,'KAYIT LİSTESİ'!$B$4:$H$788,6,0))) -> 
A39: 3 | B39: 100M-4-3 | C39: =IF(ISERROR(VLOOKUP(B39,'KAYIT LİSTESİ'!$B$4:$H$788,2,0)),"",(VLOOKUP(B39,'KAYIT LİSTESİ'!$B$4:$H$788,2,0))) ->  | D39: =IF(ISERROR(VLOOKUP(B39,'KAYIT LİSTESİ'!$B$4:$H$788,4,0)),"",(VLOOKUP(B39,'KAYIT LİSTESİ'!$B$4:$H$788,4,0))) ->  | E39: =IF(ISERROR(VLOOKUP(B39,'KAYIT LİSTESİ'!$B$4:$H$788,5,0)),"",(VLOOKUP(B39,'KAYIT LİSTESİ'!$B$4:$H$788,5,0))) ->  | F39: =IF(ISERROR(VLOOKUP(B39,'KAYIT LİSTESİ'!$B$4:$H$788,6,0)),"",(VLOOKUP(B39,'KAYIT LİSTESİ'!$B$4:$H$788,6,0))) ->  | J39: 3 | K39: 400M-4-3 | L39: =IF(ISERROR(VLOOKUP(K39,'KAYIT LİSTESİ'!$B$4:$H$788,2,0)),"",(VLOOKUP(K39,'KAYIT LİSTESİ'!$B$4:$H$788,2,0))) ->  | M39: =IF(ISERROR(VLOOKUP(K39,'KAYIT LİSTESİ'!$B$4:$H$788,4,0)),"",(VLOOKUP(K39,'KAYIT LİSTESİ'!$B$4:$H$788,4,0))) ->  | N39: =IF(ISERROR(VLOOKUP(K39,'KAYIT LİSTESİ'!$B$4:$H$788,5,0)),"",(VLOOKUP(K39,'KAYIT LİSTESİ'!$B$4:$H$788,5,0))) ->  | O39: =IF(ISERROR(VLOOKUP(K39,'KAYIT LİSTESİ'!$B$4:$H$788,6,0)),"",(VLOOKUP(K39,'KAYIT LİSTESİ'!$B$4:$H$788,6,0))) -> 
A40: 4 | B40: 100M-4-4 | C40: =IF(ISERROR(VLOOKUP(B40,'KAYIT LİSTESİ'!$B$4:$H$788,2,0)),"",(VLOOKUP(B40,'KAYIT LİSTESİ'!$B$4:$H$788,2,0))) ->  | D40: =IF(ISERROR(VLOOKUP(B40,'KAYIT LİSTESİ'!$B$4:$H$788,4,0)),"",(VLOOKUP(B40,'KAYIT LİSTESİ'!$B$4:$H$788,4,0))) ->  | E40: =IF(ISERROR(VLOOKUP(B40,'KAYIT LİSTESİ'!$B$4:$H$788,5,0)),"",(VLOOKUP(B40,'KAYIT LİSTESİ'!$B$4:$H$788,5,0))) ->  | F40: =IF(ISERROR(VLOOKUP(B40,'KAYIT LİSTESİ'!$B$4:$H$788,6,0)),"",(VLOOKUP(B40,'KAYIT LİSTESİ'!$B$4:$H$788,6,0))) ->  | J40: 4 | K40: 400M-4-4 | L40: =IF(ISERROR(VLOOKUP(K40,'KAYIT LİSTESİ'!$B$4:$H$788,2,0)),"",(VLOOKUP(K40,'KAYIT LİSTESİ'!$B$4:$H$788,2,0))) ->  | M40: =IF(ISERROR(VLOOKUP(K40,'KAYIT LİSTESİ'!$B$4:$H$788,4,0)),"",(VLOOKUP(K40,'KAYIT LİSTESİ'!$B$4:$H$788,4,0))) ->  | N40: =IF(ISERROR(VLOOKUP(K40,'KAYIT LİSTESİ'!$B$4:$H$788,5,0)),"",(VLOOKUP(K40,'KAYIT LİSTESİ'!$B$4:$H$788,5,0))) ->  | O40: =IF(ISERROR(VLOOKUP(K40,'KAYIT LİSTESİ'!$B$4:$H$788,6,0)),"",(VLOOKUP(K40,'KAYIT LİSTESİ'!$B$4:$H$788,6,0))) -> 
A41: 5 | B41: 100M-4-5 | C41: =IF(ISERROR(VLOOKUP(B41,'KAYIT LİSTESİ'!$B$4:$H$788,2,0)),"",(VLOOKUP(B41,'KAYIT LİSTESİ'!$B$4:$H$788,2,0))) ->  | D41: =IF(ISERROR(VLOOKUP(B41,'KAYIT LİSTESİ'!$B$4:$H$788,4,0)),"",(VLOOKUP(B41,'KAYIT LİSTESİ'!$B$4:$H$788,4,0))) ->  | E41: =IF(ISERROR(VLOOKUP(B41,'KAYIT LİSTESİ'!$B$4:$H$788,5,0)),"",(VLOOKUP(B41,'KAYIT LİSTESİ'!$B$4:$H$788,5,0))) ->  | F41: =IF(ISERROR(VLOOKUP(B41,'KAYIT LİSTESİ'!$B$4:$H$788,6,0)),"",(VLOOKUP(B41,'KAYIT LİSTESİ'!$B$4:$H$788,6,0))) ->  | J41: 5 | K41: 400M-4-5 | L41: =IF(ISERROR(VLOOKUP(K41,'KAYIT LİSTESİ'!$B$4:$H$788,2,0)),"",(VLOOKUP(K41,'KAYIT LİSTESİ'!$B$4:$H$788,2,0))) ->  | M41: =IF(ISERROR(VLOOKUP(K41,'KAYIT LİSTESİ'!$B$4:$H$788,4,0)),"",(VLOOKUP(K41,'KAYIT LİSTESİ'!$B$4:$H$788,4,0))) ->  | N41: =IF(ISERROR(VLOOKUP(K41,'KAYIT LİSTESİ'!$B$4:$H$788,5,0)),"",(VLOOKUP(K41,'KAYIT LİSTESİ'!$B$4:$H$788,5,0))) ->  | O41: =IF(ISERROR(VLOOKUP(K41,'KAYIT LİSTESİ'!$B$4:$H$788,6,0)),"",(VLOOKUP(K41,'KAYIT LİSTESİ'!$B$4:$H$788,6,0))) -> 
A42: 6 | B42: 100M-4-6 | C42: =IF(ISERROR(VLOOKUP(B42,'KAYIT LİSTESİ'!$B$4:$H$788,2,0)),"",(VLOOKUP(B42,'KAYIT LİSTESİ'!$B$4:$H$788,2,0))) ->  | D42: =IF(ISERROR(VLOOKUP(B42,'KAYIT LİSTESİ'!$B$4:$H$788,4,0)),"",(VLOOKUP(B42,'KAYIT LİSTESİ'!$B$4:$H$788,4,0))) ->  | E42: =IF(ISERROR(VLOOKUP(B42,'KAYIT LİSTESİ'!$B$4:$H$788,5,0)),"",(VLOOKUP(B42,'KAYIT LİSTESİ'!$B$4:$H$788,5,0))) ->  | F42: =IF(ISERROR(VLOOKUP(B42,'KAYIT LİSTESİ'!$B$4:$H$788,6,0)),"",(VLOOKUP(B42,'KAYIT LİSTESİ'!$B$4:$H$788,6,0))) ->  | J42: 6 | K42: 400M-4-6 | L42: =IF(ISERROR(VLOOKUP(K42,'KAYIT LİSTESİ'!$B$4:$H$788,2,0)),"",(VLOOKUP(K42,'KAYIT LİSTESİ'!$B$4:$H$788,2,0))) ->  | M42: =IF(ISERROR(VLOOKUP(K42,'KAYIT LİSTESİ'!$B$4:$H$788,4,0)),"",(VLOOKUP(K42,'KAYIT LİSTESİ'!$B$4:$H$788,4,0))) ->  | N42: =IF(ISERROR(VLOOKUP(K42,'KAYIT LİSTESİ'!$B$4:$H$788,5,0)),"",(VLOOKUP(K42,'KAYIT LİSTESİ'!$B$4:$H$788,5,0))) ->  | O42: =IF(ISERROR(VLOOKUP(K42,'KAYIT LİSTESİ'!$B$4:$H$788,6,0)),"",(VLOOKUP(K42,'KAYIT LİSTESİ'!$B$4:$H$788,6,0))) -> 
A43: 7 | B43: 100M-4-7 | C43: =IF(ISERROR(VLOOKUP(B43,'KAYIT LİSTESİ'!$B$4:$H$788,2,0)),"",(VLOOKUP(B43,'KAYIT LİSTESİ'!$B$4:$H$788,2,0))) ->  | D43: =IF(ISERROR(VLOOKUP(B43,'KAYIT LİSTESİ'!$B$4:$H$788,4,0)),"",(VLOOKUP(B43,'KAYIT LİSTESİ'!$B$4:$H$788,4,0))) ->  | E43: =IF(ISERROR(VLOOKUP(B43,'KAYIT LİSTESİ'!$B$4:$H$788,5,0)),"",(VLOOKUP(B43,'KAYIT LİSTESİ'!$B$4:$H$788,5,0))) ->  | F43: =IF(ISERROR(VLOOKUP(B43,'KAYIT LİSTESİ'!$B$4:$H$788,6,0)),"",(VLOOKUP(B43,'KAYIT LİSTESİ'!$B$4:$H$788,6,0))) ->  | J43: 7 | K43: 400M-4-7 | L43: =IF(ISERROR(VLOOKUP(K43,'KAYIT LİSTESİ'!$B$4:$H$788,2,0)),"",(VLOOKUP(K43,'KAYIT LİSTESİ'!$B$4:$H$788,2,0))) ->  | M43: =IF(ISERROR(VLOOKUP(K43,'KAYIT LİSTESİ'!$B$4:$H$788,4,0)),"",(VLOOKUP(K43,'KAYIT LİSTESİ'!$B$4:$H$788,4,0))) ->  | N43: =IF(ISERROR(VLOOKUP(K43,'KAYIT LİSTESİ'!$B$4:$H$788,5,0)),"",(VLOOKUP(K43,'KAYIT LİSTESİ'!$B$4:$H$788,5,0))) ->  | O43: =IF(ISERROR(VLOOKUP(K43,'KAYIT LİSTESİ'!$B$4:$H$788,6,0)),"",(VLOOKUP(K43,'KAYIT LİSTESİ'!$B$4:$H$788,6,0))) -> 
A44: 8 | B44: 100M-4-8 | C44: =IF(ISERROR(VLOOKUP(B44,'KAYIT LİSTESİ'!$B$4:$H$788,2,0)),"",(VLOOKUP(B44,'KAYIT LİSTESİ'!$B$4:$H$788,2,0))) ->  | D44: =IF(ISERROR(VLOOKUP(B44,'KAYIT LİSTESİ'!$B$4:$H$788,4,0)),"",(VLOOKUP(B44,'KAYIT LİSTESİ'!$B$4:$H$788,4,0))) ->  | E44: =IF(ISERROR(VLOOKUP(B44,'KAYIT LİSTESİ'!$B$4:$H$788,5,0)),"",(VLOOKUP(B44,'KAYIT LİSTESİ'!$B$4:$H$788,5,0))) ->  | F44: =IF(ISERROR(VLOOKUP(B44,'KAYIT LİSTESİ'!$B$4:$H$788,6,0)),"",(VLOOKUP(B44,'KAYIT LİSTESİ'!$B$4:$H$788,6,0))) ->  | J44: 8 | K44: 400M-4-8 | L44: =IF(ISERROR(VLOOKUP(K44,'KAYIT LİSTESİ'!$B$4:$H$788,2,0)),"",(VLOOKUP(K44,'KAYIT LİSTESİ'!$B$4:$H$788,2,0))) ->  | M44: =IF(ISERROR(VLOOKUP(K44,'KAYIT LİSTESİ'!$B$4:$H$788,4,0)),"",(VLOOKUP(K44,'KAYIT LİSTESİ'!$B$4:$H$788,4,0))) ->  | N44: =IF(ISERROR(VLOOKUP(K44,'KAYIT LİSTESİ'!$B$4:$H$788,5,0)),"",(VLOOKUP(K44,'KAYIT LİSTESİ'!$B$4:$H$788,5,0))) ->  | O44: =IF(ISERROR(VLOOKUP(K44,'KAYIT LİSTESİ'!$B$4:$H$788,6,0)),"",(VLOOKUP(K44,'KAYIT LİSTESİ'!$B$4:$H$788,6,0))) -> 
A45: 110 METRE ENGELLİ | J45: YÜKSEK ATLAMA
A46: 1. SERİ | J46: SIRA NO | L46: GÖĞÜS NO | M46: DOĞUM TARİHİ | N46: ADI VE SOYADI | O46: OKULU | P46: Start Kontrol
A47: Sıra No | B47: Formül | C47: Göğüs No | D47: Doğum Tarihi | E47: Adı ve Soyadı | F47: Okulu | G47: Start Kontrol
A48: 1 | B48: 110M.ENG-1-1 | C48: =IF(ISERROR(VLOOKUP(B48,'KAYIT LİSTESİ'!$B$4:$H$788,2,0)),"",(VLOOKUP(B48,'KAYIT LİSTESİ'!$B$4:$H$788,2,0))) ->  | D48: =IF(ISERROR(VLOOKUP(B48,'KAYIT LİSTESİ'!$B$4:$H$788,4,0)),"",(VLOOKUP(B48,'KAYIT LİSTESİ'!$B$4:$H$788,4,0))) ->  | E48: =IF(ISERROR(VLOOKUP(B48,'KAYIT LİSTESİ'!$B$4:$H$788,5,0)),"",(VLOOKUP(B48,'KAYIT LİSTESİ'!$B$4:$H$788,5,0))) ->  | F48: =IF(ISERROR(VLOOKUP(B48,'KAYIT LİSTESİ'!$B$4:$H$788,6,0)),"",(VLOOKUP(B48,'KAYIT LİSTESİ'!$B$4:$H$788,6,0))) ->  | J48: 1 | K48: YÜKSEK-1 | L48: =IF(ISERROR(VLOOKUP(K48,'KAYIT LİSTESİ'!$B$4:$H$788,2,0)),"",(VLOOKUP(K48,'KAYIT LİSTESİ'!$B$4:$H$788,2,0))) -> 301 | M48: =IF(ISERROR(VLOOKUP(K48,'KAYIT LİSTESİ'!$B$4:$H$788,4,0)),"",(VLOOKUP(K48,'KAYIT LİSTESİ'!$B$4:$H$788,4,0))) -> 2002-11-24 | N48: =IF(ISERROR(VLOOKUP(K48,'KAYIT LİSTESİ'!$B$4:$H$788,5,0)),"",(VLOOKUP(K48,'KAYIT LİSTESİ'!$B$4:$H$788,5,0))) -> YUSUFHAN DEMİRÇİ | O48: =IF(ISERROR(VLOOKUP(K48,'KAYIT LİSTESİ'!$B$4:$H$788,6,0)),"",(VLOOKUP(K48,'KAYIT LİSTESİ'!$B$4:$H$788,6,0))) -> GİRESUN
A49: 2 | B49: 110M.ENG-1-2 | C49: =IF(ISERROR(VLOOKUP(B49,'KAYIT LİSTESİ'!$B$4:$H$788,2,0)),"",(VLOOKUP(B49,'KAYIT LİSTESİ'!$B$4:$H$788,2,0))) ->  | D49: =IF(ISERROR(VLOOKUP(B49,'KAYIT LİSTESİ'!$B$4:$H$788,4,0)),"",(VLOOKUP(B49,'KAYIT LİSTESİ'!$B$4:$H$788,4,0))) ->  | E49: =IF(ISERROR(VLOOKUP(B49,'KAYIT LİSTESİ'!$B$4:$H$788,5,0)),"",(VLOOKUP(B49,'KAYIT LİSTESİ'!$B$4:$H$788,5,0))) ->  | F49: =IF(ISERROR(VLOOKUP(B49,'KAYIT LİSTESİ'!$B$4:$H$788,6,0)),"",(VLOOKUP(B49,'KAYIT LİSTESİ'!$B$4:$H$788,6,0))) ->  | J49: 2 | K49: YÜKSEK-2 | L49: =IF(ISERROR(VLOOKUP(K49,'KAYIT LİSTESİ'!$B$4:$H$788,2,0)),"",(VLOOKUP(K49,'KAYIT LİSTESİ'!$B$4:$H$788,2,0))) -> 112 | M49: =IF(ISERROR(VLOOKUP(K49,'KAYIT LİSTESİ'!$B$4:$H$788,4,0)),"",(VLOOKUP(K49,'KAYIT LİSTESİ'!$B$4:$H$788,4,0))) -> 2002-11-25 | N49: =IF(ISERROR(VLOOKUP(K49,'KAYIT LİSTESİ'!$B$4:$H$788,5,0)),"",(VLOOKUP(K49,'KAYIT LİSTESİ'!$B$4:$H$788,5,0))) -> BEYCAN DELİGÖZ | O49: =IF(ISERROR(VLOOKUP(K49,'KAYIT LİSTESİ'!$B$4:$H$788,6,0)),"",(VLOOKUP(K49,'KAYIT LİSTESİ'!$B$4:$H$788,6,0))) -> BALIKESİR
A50: 3 | B50: 110M.ENG-1-3 | C50: =IF(ISERROR(VLOOKUP(B50,'KAYIT LİSTESİ'!$B$4:$H$788,2,0)),"",(VLOOKUP(B50,'KAYIT LİSTESİ'!$B$4:$H$788,2,0))) ->  | D50: =IF(ISERROR(VLOOKUP(B50,'KAYIT LİSTESİ'!$B$4:$H$788,4,0)),"",(VLOOKUP(B50,'KAYIT LİSTESİ'!$B$4:$H$788,4,0))) ->  | E50: =IF(ISERROR(VLOOKUP(B50,'KAYIT LİSTESİ'!$B$4:$H$788,5,0)),"",(VLOOKUP(B50,'KAYIT LİSTESİ'!$B$4:$H$788,5,0))) ->  | F50: =IF(ISERROR(VLOOKUP(B50,'KAYIT LİSTESİ'!$B$4:$H$788,6,0)),"",(VLOOKUP(B50,'KAYIT LİSTESİ'!$B$4:$H$788,6,0))) ->  | J50: 3 | K50: YÜKSEK-3 | L50: =IF(ISERROR(VLOOKUP(K50,'KAYIT LİSTESİ'!$B$4:$H$788,2,0)),"",(VLOOKUP(K50,'KAYIT LİSTESİ'!$B$4:$H$788,2,0))) -> 220 | M50: =IF(ISERROR(VLOOKUP(K50,'KAYIT LİSTESİ'!$B$4:$H$788,4,0)),"",(VLOOKUP(K50,'KAYIT LİSTESİ'!$B$4:$H$788,4,0))) -> 2002-06-03 | N50: =IF(ISERROR(VLOOKUP(K50,'KAYIT LİSTESİ'!$B$4:$H$788,5,0)),"",(VLOOKUP(K50,'KAYIT LİSTESİ'!$B$4:$H$788,5,0))) -> BERKİN BERBEROĞLU | O50: =IF(ISERROR(VLOOKUP(K50,'KAYIT LİSTESİ'!$B$4:$H$788,6,0)),"",(VLOOKUP(K50,'KAYIT LİSTESİ'!$B$4:$H$788,6,0))) -> ÇANAKKALE
A51: 4 | B51: 110M.ENG-1-4 | C51: =IF(ISERROR(VLOOKUP(B51,'KAYIT LİSTESİ'!$B$4:$H$788,2,0)),"",(VLOOKUP(B51,'KAYIT LİSTESİ'!$B$4:$H$788,2,0))) ->  | D51: =IF(ISERROR(VLOOKUP(B51,'KAYIT LİSTESİ'!$B$4:$H$788,4,0)),"",(VLOOKUP(B51,'KAYIT LİSTESİ'!$B$4:$H$788,4,0))) ->  | E51: =IF(ISERROR(VLOOKUP(B51,'KAYIT LİSTESİ'!$B$4:$H$788,5,0)),"",(VLOOKUP(B51,'KAYIT LİSTESİ'!$B$4:$H$788,5,0))) ->  | F51: =IF(ISERROR(VLOOKUP(B51,'KAYIT LİSTESİ'!$B$4:$H$788,6,0)),"",(VLOOKUP(B51,'KAYIT LİSTESİ'!$B$4:$H$788,6,0))) ->  | J51: 4 | K51: YÜKSEK-4 | L51: =IF(ISERROR(VLOOKUP(K51,'KAYIT LİSTESİ'!$B$4:$H$788,2,0)),"",(VLOOKUP(K51,'KAYIT LİSTESİ'!$B$4:$H$788,2,0))) -> 349 | M51: =IF(ISERROR(VLOOKUP(K51,'KAYIT LİSTESİ'!$B$4:$H$788,4,0)),"",(VLOOKUP(K51,'KAYIT LİSTESİ'!$B$4:$H$788,4,0))) -> 2002-07-09 | N51: =IF(ISERROR(VLOOKUP(K51,'KAYIT LİSTESİ'!$B$4:$H$788,5,0)),"",(VLOOKUP(K51,'KAYIT LİSTESİ'!$B$4:$H$788,5,0))) -> A.BATUHAN KESKİNKILIÇ | O51: =IF(ISERROR(VLOOKUP(K51,'KAYIT LİSTESİ'!$B$4:$H$788,6,0)),"",(VLOOKUP(K51,'KAYIT LİSTESİ'!$B$4:$H$788,6,0))) -> ISPARTA
A52: 5 | B52: 110M.ENG-1-5 | C52: =IF(ISERROR(VLOOKUP(B52,'KAYIT LİSTESİ'!$B$4:$H$788,2,0)),"",(VLOOKUP(B52,'KAYIT LİSTESİ'!$B$4:$H$788,2,0))) ->  | D52: =IF(ISERROR(VLOOKUP(B52,'KAYIT LİSTESİ'!$B$4:$H$788,4,0)),"",(VLOOKUP(B52,'KAYIT LİSTESİ'!$B$4:$H$788,4,0))) ->  | E52: =IF(ISERROR(VLOOKUP(B52,'KAYIT LİSTESİ'!$B$4:$H$788,5,0)),"",(VLOOKUP(B52,'KAYIT LİSTESİ'!$B$4:$H$788,5,0))) ->  | F52: =IF(ISERROR(VLOOKUP(B52,'KAYIT LİSTESİ'!$B$4:$H$788,6,0)),"",(VLOOKUP(B52,'KAYIT LİSTESİ'!$B$4:$H$788,6,0))) ->  | J52: 5 | K52: YÜKSEK-5 | L52: =IF(ISERROR(VLOOKUP(K52,'KAYIT LİSTESİ'!$B$4:$H$788,2,0)),"",(VLOOKUP(K52,'KAYIT LİSTESİ'!$B$4:$H$788,2,0))) -> 221 | M52: =IF(ISERROR(VLOOKUP(K52,'KAYIT LİSTESİ'!$B$4:$H$788,4,0)),"",(VLOOKUP(K52,'KAYIT LİSTESİ'!$B$4:$H$788,4,0))) -> 2002-01-05 | N52: =IF(ISERROR(VLOOKUP(K52,'KAYIT LİSTESİ'!$B$4:$H$788,5,0)),"",(VLOOKUP(K52,'KAYIT LİSTESİ'!$B$4:$H$788,5,0))) -> KADİR FURKAN SİVRİOĞLU | O52: =IF(ISERROR(VLOOKUP(K52,'KAYIT LİSTESİ'!$B$4:$H$788,6,0)),"",(VLOOKUP(K52,'KAYIT LİSTESİ'!$B$4:$H$788,6,0))) -> ÇANAKKALE
A53: 6 | B53: 110M.ENG-1-6 | C53: =IF(ISERROR(VLOOKUP(B53,'KAYIT LİSTESİ'!$B$4:$H$788,2,0)),"",(VLOOKUP(B53,'KAYIT LİSTESİ'!$B$4:$H$788,2,0))) ->  | D53: =IF(ISERROR(VLOOKUP(B53,'KAYIT LİSTESİ'!$B$4:$H$788,4,0)),"",(VLOOKUP(B53,'KAYIT LİSTESİ'!$B$4:$H$788,4,0))) ->  | E53: =IF(ISERROR(VLOOKUP(B53,'KAYIT LİSTESİ'!$B$4:$H$788,5,0)),"",(VLOOKUP(B53,'KAYIT LİSTESİ'!$B$4:$H$788,5,0))) ->  | F53: =IF(ISERROR(VLOOKUP(B53,'KAYIT LİSTESİ'!$B$4:$H$788,6,0)),"",(VLOOKUP(B53,'KAYIT LİSTESİ'!$B$4:$H$788,6,0))) ->  | J53: 6 | K53: YÜKSEK-6 | L53: =IF(ISERROR(VLOOKUP(K53,'KAYIT LİSTESİ'!$B$4:$H$788,2,0)),"",(VLOOKUP(K53,'KAYIT LİSTESİ'!$B$4:$H$788,2,0))) -> 680 | M53: =IF(ISERROR(VLOOKUP(K53,'KAYIT LİSTESİ'!$B$4:$H$788,4,0)),"",(VLOOKUP(K53,'KAYIT LİSTESİ'!$B$4:$H$788,4,0))) -> 2002-02-27 | N53: =IF(ISERROR(VLOOKUP(K53,'KAYIT LİSTESİ'!$B$4:$H$788,5,0)),"",(VLOOKUP(K53,'KAYIT LİSTESİ'!$B$4:$H$788,5,0))) -> KAAN YILDIRIM | O53: =IF(ISERROR(VLOOKUP(K53,'KAYIT LİSTESİ'!$B$4:$H$788,6,0)),"",(VLOOKUP(K53,'KAYIT LİSTESİ'!$B$4:$H$788,6,0))) -> TEKİRDAĞ
A54: 7 | B54: 110M.ENG-1-7 | C54: =IF(ISERROR(VLOOKUP(B54,'KAYIT LİSTESİ'!$B$4:$H$788,2,0)),"",(VLOOKUP(B54,'KAYIT LİSTESİ'!$B$4:$H$788,2,0))) ->  | D54: =IF(ISERROR(VLOOKUP(B54,'KAYIT LİSTESİ'!$B$4:$H$788,4,0)),"",(VLOOKUP(B54,'KAYIT LİSTESİ'!$B$4:$H$788,4,0))) ->  | E54: =IF(ISERROR(VLOOKUP(B54,'KAYIT LİSTESİ'!$B$4:$H$788,5,0)),"",(VLOOKUP(B54,'KAYIT LİSTESİ'!$B$4:$H$788,5,0))) ->  | F54: =IF(ISERROR(VLOOKUP(B54,'KAYIT LİSTESİ'!$B$4:$H$788,6,0)),"",(VLOOKUP(B54,'KAYIT LİSTESİ'!$B$4:$H$788,6,0))) ->  | J54: 7 | K54: YÜKSEK-7 | L54: =IF(ISERROR(VLOOKUP(K54,'KAYIT LİSTESİ'!$B$4:$H$788,2,0)),"",(VLOOKUP(K54,'KAYIT LİSTESİ'!$B$4:$H$788,2,0))) -> 510 | M54: =IF(ISERROR(VLOOKUP(K54,'KAYIT LİSTESİ'!$B$4:$H$788,4,0)),"",(VLOOKUP(K54,'KAYIT LİSTESİ'!$B$4:$H$788,4,0))) -> 2002-01-01 | N54: =IF(ISERROR(VLOOKUP(K54,'KAYIT LİSTESİ'!$B$4:$H$788,5,0)),"",(VLOOKUP(K54,'KAYIT LİSTESİ'!$B$4:$H$788,5,0))) -> MURAT GÜN | O54: =IF(ISERROR(VLOOKUP(K54,'KAYIT LİSTESİ'!$B$4:$H$788,6,0)),"",(VLOOKUP(K54,'KAYIT LİSTESİ'!$B$4:$H$788,6,0))) -> KOCAELİ
A55: 8 | B55: 110M.ENG-1-8 | C55: =IF(ISERROR(VLOOKUP(B55,'KAYIT LİSTESİ'!$B$4:$H$788,2,0)),"",(VLOOKUP(B55,'KAYIT LİSTESİ'!$B$4:$H$788,2,0))) ->  | D55: =IF(ISERROR(VLOOKUP(B55,'KAYIT LİSTESİ'!$B$4:$H$788,4,0)),"",(VLOOKUP(B55,'KAYIT LİSTESİ'!$B$4:$H$788,4,0))) ->  | E55: =IF(ISERROR(VLOOKUP(B55,'KAYIT LİSTESİ'!$B$4:$H$788,5,0)),"",(VLOOKUP(B55,'KAYIT LİSTESİ'!$B$4:$H$788,5,0))) ->  | F55: =IF(ISERROR(VLOOKUP(B55,'KAYIT LİSTESİ'!$B$4:$H$788,6,0)),"",(VLOOKUP(B55,'KAYIT LİSTESİ'!$B$4:$H$788,6,0))) ->  | J55: 8 | K55: YÜKSEK-8 | L55: =IF(ISERROR(VLOOKUP(K55,'KAYIT LİSTESİ'!$B$4:$H$788,2,0)),"",(VLOOKUP(K55,'KAYIT LİSTESİ'!$B$4:$H$788,2,0))) ->  | M55: =IF(ISERROR(VLOOKUP(K55,'KAYIT LİSTESİ'!$B$4:$H$788,4,0)),"",(VLOOKUP(K55,'KAYIT LİSTESİ'!$B$4:$H$788,4,0))) ->  | N55: =IF(ISERROR(VLOOKUP(K55,'KAYIT LİSTESİ'!$B$4:$H$788,5,0)),"",(VLOOKUP(K55,'KAYIT LİSTESİ'!$B$4:$H$788,5,0))) ->  | O55: =IF(ISERROR(VLOOKUP(K55,'KAYIT LİSTESİ'!$B$4:$H$788,6,0)),"",(VLOOKUP(K55,'KAYIT LİSTESİ'!$B$4:$H$788,6,0))) -> 
A56: 2. SERİ | J56: 9 | K56: YÜKSEK-9 | L56: =IF(ISERROR(VLOOKUP(K56,'KAYIT LİSTESİ'!$B$4:$H$788,2,0)),"",(VLOOKUP(K56,'KAYIT LİSTESİ'!$B$4:$H$788,2,0))) ->  | M56: =IF(ISERROR(VLOOKUP(K56,'KAYIT LİSTESİ'!$B$4:$H$788,4,0)),"",(VLOOKUP(K56,'KAYIT LİSTESİ'!$B$4:$H$788,4,0))) ->  | N56: =IF(ISERROR(VLOOKUP(K56,'KAYIT LİSTESİ'!$B$4:$H$788,5,0)),"",(VLOOKUP(K56,'KAYIT LİSTESİ'!$B$4:$H$788,5,0))) ->  | O56: =IF(ISERROR(VLOOKUP(K56,'KAYIT LİSTESİ'!$B$4:$H$788,6,0)),"",(VLOOKUP(K56,'KAYIT LİSTESİ'!$B$4:$H$788,6,0))) -> 
A57: Sıra No | B57: Formül | C57: Göğüs No | D57: Doğum Tarihi | E57: Adı ve Soyadı | F57: Okulu | G57: Start Kontrol | J57: 10 | K57: YÜKSEK-10 | L57: =IF(ISERROR(VLOOKUP(K57,'KAYIT LİSTESİ'!$B$4:$H$788,2,0)),"",(VLOOKUP(K57,'KAYIT LİSTESİ'!$B$4:$H$788,2,0))) ->  | M57: =IF(ISERROR(VLOOKUP(K57,'KAYIT LİSTESİ'!$B$4:$H$788,4,0)),"",(VLOOKUP(K57,'KAYIT LİSTESİ'!$B$4:$H$788,4,0))) ->  | N57: =IF(ISERROR(VLOOKUP(K57,'KAYIT LİSTESİ'!$B$4:$H$788,5,0)),"",(VLOOKUP(K57,'KAYIT LİSTESİ'!$B$4:$H$788,5,0))) ->  | O57: =IF(ISERROR(VLOOKUP(K57,'KAYIT LİSTESİ'!$B$4:$H$788,6,0)),"",(VLOOKUP(K57,'KAYIT LİSTESİ'!$B$4:$H$788,6,0))) -> 
A58: 1 | B58: 110M.ENG-2-1 | C58: =IF(ISERROR(VLOOKUP(B58,'KAYIT LİSTESİ'!$B$4:$H$788,2,0)),"",(VLOOKUP(B58,'KAYIT LİSTESİ'!$B$4:$H$788,2,0))) ->  | D58: =IF(ISERROR(VLOOKUP(B58,'KAYIT LİSTESİ'!$B$4:$H$788,4,0)),"",(VLOOKUP(B58,'KAYIT LİSTESİ'!$B$4:$H$788,4,0))) ->  | E58: =IF(ISERROR(VLOOKUP(B58,'KAYIT LİSTESİ'!$B$4:$H$788,5,0)),"",(VLOOKUP(B58,'KAYIT LİSTESİ'!$B$4:$H$788,5,0))) ->  | F58: =IF(ISERROR(VLOOKUP(B58,'KAYIT LİSTESİ'!$B$4:$H$788,6,0)),"",(VLOOKUP(B58,'KAYIT LİSTESİ'!$B$4:$H$788,6,0))) ->  | J58: 11 | K58: YÜKSEK-11 | L58: =IF(ISERROR(VLOOKUP(K58,'KAYIT LİSTESİ'!$B$4:$H$788,2,0)),"",(VLOOKUP(K58,'KAYIT LİSTESİ'!$B$4:$H$788,2,0))) ->  | M58: =IF(ISERROR(VLOOKUP(K58,'KAYIT LİSTESİ'!$B$4:$H$788,4,0)),"",(VLOOKUP(K58,'KAYIT LİSTESİ'!$B$4:$H$788,4,0))) ->  | N58: =IF(ISERROR(VLOOKUP(K58,'KAYIT LİSTESİ'!$B$4:$H$788,5,0)),"",(VLOOKUP(K58,'KAYIT LİSTESİ'!$B$4:$H$788,5,0))) ->  | O58: =IF(ISERROR(VLOOKUP(K58,'KAYIT LİSTESİ'!$B$4:$H$788,6,0)),"",(VLOOKUP(K58,'KAYIT LİSTESİ'!$B$4:$H$788,6,0))) -> 
A59: 2 | B59: 110M.ENG-2-2 | C59: =IF(ISERROR(VLOOKUP(B59,'KAYIT LİSTESİ'!$B$4:$H$788,2,0)),"",(VLOOKUP(B59,'KAYIT LİSTESİ'!$B$4:$H$788,2,0))) ->  | D59: =IF(ISERROR(VLOOKUP(B59,'KAYIT LİSTESİ'!$B$4:$H$788,4,0)),"",(VLOOKUP(B59,'KAYIT LİSTESİ'!$B$4:$H$788,4,0))) ->  | E59: =IF(ISERROR(VLOOKUP(B59,'KAYIT LİSTESİ'!$B$4:$H$788,5,0)),"",(VLOOKUP(B59,'KAYIT LİSTESİ'!$B$4:$H$788,5,0))) ->  | F59: =IF(ISERROR(VLOOKUP(B59,'KAYIT LİSTESİ'!$B$4:$H$788,6,0)),"",(VLOOKUP(B59,'KAYIT LİSTESİ'!$B$4:$H$788,6,0))) ->  | J59: 12 | K59: YÜKSEK-12 | L59: =IF(ISERROR(VLOOKUP(K59,'KAYIT LİSTESİ'!$B$4:$H$788,2,0)),"",(VLOOKUP(K59,'KAYIT LİSTESİ'!$B$4:$H$788,2,0))) ->  | M59: =IF(ISERROR(VLOOKUP(K59,'KAYIT LİSTESİ'!$B$4:$H$788,4,0)),"",(VLOOKUP(K59,'KAYIT LİSTESİ'!$B$4:$H$788,4,0))) ->  | N59: =IF(ISERROR(VLOOKUP(K59,'KAYIT LİSTESİ'!$B$4:$H$788,5,0)),"",(VLOOKUP(K59,'KAYIT LİSTESİ'!$B$4:$H$788,5,0))) ->  | O59: =IF(ISERROR(VLOOKUP(K59,'KAYIT LİSTESİ'!$B$4:$H$788,6,0)),"",(VLOOKUP(K59,'KAYIT LİSTESİ'!$B$4:$H$788,6,0))) -> 
A60: 3 | B60: 110M.ENG-2-3 | C60: =IF(ISERROR(VLOOKUP(B60,'KAYIT LİSTESİ'!$B$4:$H$788,2,0)),"",(VLOOKUP(B60,'KAYIT LİSTESİ'!$B$4:$H$788,2,0))) ->  | D60: =IF(ISERROR(VLOOKUP(B60,'KAYIT LİSTESİ'!$B$4:$H$788,4,0)),"",(VLOOKUP(B60,'KAYIT LİSTESİ'!$B$4:$H$788,4,0))) ->  | E60: =IF(ISERROR(VLOOKUP(B60,'KAYIT LİSTESİ'!$B$4:$H$788,5,0)),"",(VLOOKUP(B60,'KAYIT LİSTESİ'!$B$4:$H$788,5,0))) ->  | F60: =IF(ISERROR(VLOOKUP(B60,'KAYIT LİSTESİ'!$B$4:$H$788,6,0)),"",(VLOOKUP(B60,'KAYIT LİSTESİ'!$B$4:$H$788,6,0))) ->  | J60: 13 | K60: YÜKSEK-13 | L60: =IF(ISERROR(VLOOKUP(K60,'KAYIT LİSTESİ'!$B$4:$H$788,2,0)),"",(VLOOKUP(K60,'KAYIT LİSTESİ'!$B$4:$H$788,2,0))) ->  | M60: =IF(ISERROR(VLOOKUP(K60,'KAYIT LİSTESİ'!$B$4:$H$788,4,0)),"",(VLOOKUP(K60,'KAYIT LİSTESİ'!$B$4:$H$788,4,0))) ->  | N60: =IF(ISERROR(VLOOKUP(K60,'KAYIT LİSTESİ'!$B$4:$H$788,5,0)),"",(VLOOKUP(K60,'KAYIT LİSTESİ'!$B$4:$H$788,5,0))) ->  | O60: =IF(ISERROR(VLOOKUP(K60,'KAYIT LİSTESİ'!$B$4:$H$788,6,0)),"",(VLOOKUP(K60,'KAYIT LİSTESİ'!$B$4:$H$788,6,0))) -> 
A61: 4 | B61: 110M.ENG-2-4 | C61: =IF(ISERROR(VLOOKUP(B61,'KAYIT LİSTESİ'!$B$4:$H$788,2,0)),"",(VLOOKUP(B61,'KAYIT LİSTESİ'!$B$4:$H$788,2,0))) ->  | D61: =IF(ISERROR(VLOOKUP(B61,'KAYIT LİSTESİ'!$B$4:$H$788,4,0)),"",(VLOOKUP(B61,'KAYIT LİSTESİ'!$B$4:$H$788,4,0))) ->  | E61: =IF(ISERROR(VLOOKUP(B61,'KAYIT LİSTESİ'!$B$4:$H$788,5,0)),"",(VLOOKUP(B61,'KAYIT LİSTESİ'!$B$4:$H$788,5,0))) ->  | F61: =IF(ISERROR(VLOOKUP(B61,'KAYIT LİSTESİ'!$B$4:$H$788,6,0)),"",(VLOOKUP(B61,'KAYIT LİSTESİ'!$B$4:$H$788,6,0))) ->  | J61: 14 | K61: YÜKSEK-14 | L61: =IF(ISERROR(VLOOKUP(K61,'KAYIT LİSTESİ'!$B$4:$H$788,2,0)),"",(VLOOKUP(K61,'KAYIT LİSTESİ'!$B$4:$H$788,2,0))) ->  | M61: =IF(ISERROR(VLOOKUP(K61,'KAYIT LİSTESİ'!$B$4:$H$788,4,0)),"",(VLOOKUP(K61,'KAYIT LİSTESİ'!$B$4:$H$788,4,0))) ->  | N61: =IF(ISERROR(VLOOKUP(K61,'KAYIT LİSTESİ'!$B$4:$H$788,5,0)),"",(VLOOKUP(K61,'KAYIT LİSTESİ'!$B$4:$H$788,5,0))) ->  | O61: =IF(ISERROR(VLOOKUP(K61,'KAYIT LİSTESİ'!$B$4:$H$788,6,0)),"",(VLOOKUP(K61,'KAYIT LİSTESİ'!$B$4:$H$788,6,0))) -> 
A62: 5 | B62: 110M.ENG-2-5 | C62: =IF(ISERROR(VLOOKUP(B62,'KAYIT LİSTESİ'!$B$4:$H$788,2,0)),"",(VLOOKUP(B62,'KAYIT LİSTESİ'!$B$4:$H$788,2,0))) ->  | D62: =IF(ISERROR(VLOOKUP(B62,'KAYIT LİSTESİ'!$B$4:$H$788,4,0)),"",(VLOOKUP(B62,'KAYIT LİSTESİ'!$B$4:$H$788,4,0))) ->  | E62: =IF(ISERROR(VLOOKUP(B62,'KAYIT LİSTESİ'!$B$4:$H$788,5,0)),"",(VLOOKUP(B62,'KAYIT LİSTESİ'!$B$4:$H$788,5,0))) ->  | F62: =IF(ISERROR(VLOOKUP(B62,'KAYIT LİSTESİ'!$B$4:$H$788,6,0)),"",(VLOOKUP(B62,'KAYIT LİSTESİ'!$B$4:$H$788,6,0))) ->  | J62: 15 | K62: YÜKSEK-15 | L62: =IF(ISERROR(VLOOKUP(K62,'KAYIT LİSTESİ'!$B$4:$H$788,2,0)),"",(VLOOKUP(K62,'KAYIT LİSTESİ'!$B$4:$H$788,2,0))) ->  | M62: =IF(ISERROR(VLOOKUP(K62,'KAYIT LİSTESİ'!$B$4:$H$788,4,0)),"",(VLOOKUP(K62,'KAYIT LİSTESİ'!$B$4:$H$788,4,0))) ->  | N62: =IF(ISERROR(VLOOKUP(K62,'KAYIT LİSTESİ'!$B$4:$H$788,5,0)),"",(VLOOKUP(K62,'KAYIT LİSTESİ'!$B$4:$H$788,5,0))) ->  | O62: =IF(ISERROR(VLOOKUP(K62,'KAYIT LİSTESİ'!$B$4:$H$788,6,0)),"",(VLOOKUP(K62,'KAYIT LİSTESİ'!$B$4:$H$788,6,0))) -> 
A63: 6 | B63: 110M.ENG-2-6 | C63: =IF(ISERROR(VLOOKUP(B63,'KAYIT LİSTESİ'!$B$4:$H$788,2,0)),"",(VLOOKUP(B63,'KAYIT LİSTESİ'!$B$4:$H$788,2,0))) ->  | D63: =IF(ISERROR(VLOOKUP(B63,'KAYIT LİSTESİ'!$B$4:$H$788,4,0)),"",(VLOOKUP(B63,'KAYIT LİSTESİ'!$B$4:$H$788,4,0))) ->  | E63: =IF(ISERROR(VLOOKUP(B63,'KAYIT LİSTESİ'!$B$4:$H$788,5,0)),"",(VLOOKUP(B63,'KAYIT LİSTESİ'!$B$4:$H$788,5,0))) ->  | F63: =IF(ISERROR(VLOOKUP(B63,'KAYIT LİSTESİ'!$B$4:$H$788,6,0)),"",(VLOOKUP(B63,'KAYIT LİSTESİ'!$B$4:$H$788,6,0))) ->  | J63: 16 | K63: YÜKSEK-16 | L63: =IF(ISERROR(VLOOKUP(K63,'KAYIT LİSTESİ'!$B$4:$H$788,2,0)),"",(VLOOKUP(K63,'KAYIT LİSTESİ'!$B$4:$H$788,2,0))) ->  | M63: =IF(ISERROR(VLOOKUP(K63,'KAYIT LİSTESİ'!$B$4:$H$788,4,0)),"",(VLOOKUP(K63,'KAYIT LİSTESİ'!$B$4:$H$788,4,0))) ->  | N63: =IF(ISERROR(VLOOKUP(K63,'KAYIT LİSTESİ'!$B$4:$H$788,5,0)),"",(VLOOKUP(K63,'KAYIT LİSTESİ'!$B$4:$H$788,5,0))) ->  | O63: =IF(ISERROR(VLOOKUP(K63,'KAYIT LİSTESİ'!$B$4:$H$788,6,0)),"",(VLOOKUP(K63,'KAYIT LİSTESİ'!$B$4:$H$788,6,0))) -> 
A64: 7 | B64: 110M.ENG-2-7 | C64: =IF(ISERROR(VLOOKUP(B64,'KAYIT LİSTESİ'!$B$4:$H$788,2,0)),"",(VLOOKUP(B64,'KAYIT LİSTESİ'!$B$4:$H$788,2,0))) ->  | D64: =IF(ISERROR(VLOOKUP(B64,'KAYIT LİSTESİ'!$B$4:$H$788,4,0)),"",(VLOOKUP(B64,'KAYIT LİSTESİ'!$B$4:$H$788,4,0))) ->  | E64: =IF(ISERROR(VLOOKUP(B64,'KAYIT LİSTESİ'!$B$4:$H$788,5,0)),"",(VLOOKUP(B64,'KAYIT LİSTESİ'!$B$4:$H$788,5,0))) ->  | F64: =IF(ISERROR(VLOOKUP(B64,'KAYIT LİSTESİ'!$B$4:$H$788,6,0)),"",(VLOOKUP(B64,'KAYIT LİSTESİ'!$B$4:$H$788,6,0))) ->  | J64: 17 | K64: YÜKSEK-17 | L64: =IF(ISERROR(VLOOKUP(K64,'KAYIT LİSTESİ'!$B$4:$H$788,2,0)),"",(VLOOKUP(K64,'KAYIT LİSTESİ'!$B$4:$H$788,2,0))) ->  | M64: =IF(ISERROR(VLOOKUP(K64,'KAYIT LİSTESİ'!$B$4:$H$788,4,0)),"",(VLOOKUP(K64,'KAYIT LİSTESİ'!$B$4:$H$788,4,0))) ->  | N64: =IF(ISERROR(VLOOKUP(K64,'KAYIT LİSTESİ'!$B$4:$H$788,5,0)),"",(VLOOKUP(K64,'KAYIT LİSTESİ'!$B$4:$H$788,5,0))) ->  | O64: =IF(ISERROR(VLOOKUP(K64,'KAYIT LİSTESİ'!$B$4:$H$788,6,0)),"",(VLOOKUP(K64,'KAYIT LİSTESİ'!$B$4:$H$788,6,0))) -> 
A65: 8 | B65: 110M.ENG-2-8 | C65: =IF(ISERROR(VLOOKUP(B65,'KAYIT LİSTESİ'!$B$4:$H$788,2,0)),"",(VLOOKUP(B65,'KAYIT LİSTESİ'!$B$4:$H$788,2,0))) ->  | D65: =IF(ISERROR(VLOOKUP(B65,'KAYIT LİSTESİ'!$B$4:$H$788,4,0)),"",(VLOOKUP(B65,'KAYIT LİSTESİ'!$B$4:$H$788,4,0))) ->  | E65: =IF(ISERROR(VLOOKUP(B65,'KAYIT LİSTESİ'!$B$4:$H$788,5,0)),"",(VLOOKUP(B65,'KAYIT LİSTESİ'!$B$4:$H$788,5,0))) ->  | F65: =IF(ISERROR(VLOOKUP(B65,'KAYIT LİSTESİ'!$B$4:$H$788,6,0)),"",(VLOOKUP(B65,'KAYIT LİSTESİ'!$B$4:$H$788,6,0))) ->  | J65: 18 | K65: YÜKSEK-18 | L65: =IF(ISERROR(VLOOKUP(K65,'KAYIT LİSTESİ'!$B$4:$H$788,2,0)),"",(VLOOKUP(K65,'KAYIT LİSTESİ'!$B$4:$H$788,2,0))) ->  | M65: =IF(ISERROR(VLOOKUP(K65,'KAYIT LİSTESİ'!$B$4:$H$788,4,0)),"",(VLOOKUP(K65,'KAYIT LİSTESİ'!$B$4:$H$788,4,0))) ->  | N65: =IF(ISERROR(VLOOKUP(K65,'KAYIT LİSTESİ'!$B$4:$H$788,5,0)),"",(VLOOKUP(K65,'KAYIT LİSTESİ'!$B$4:$H$788,5,0))) ->  | O65: =IF(ISERROR(VLOOKUP(K65,'KAYIT LİSTESİ'!$B$4:$H$788,6,0)),"",(VLOOKUP(K65,'KAYIT LİSTESİ'!$B$4:$H$788,6,0))) -> 
A66: 3. SERİ | J66: 19 | K66: YÜKSEK-19 | L66: =IF(ISERROR(VLOOKUP(K66,'KAYIT LİSTESİ'!$B$4:$H$788,2,0)),"",(VLOOKUP(K66,'KAYIT LİSTESİ'!$B$4:$H$788,2,0))) ->  | M66: =IF(ISERROR(VLOOKUP(K66,'KAYIT LİSTESİ'!$B$4:$H$788,4,0)),"",(VLOOKUP(K66,'KAYIT LİSTESİ'!$B$4:$H$788,4,0))) ->  | N66: =IF(ISERROR(VLOOKUP(K66,'KAYIT LİSTESİ'!$B$4:$H$788,5,0)),"",(VLOOKUP(K66,'KAYIT LİSTESİ'!$B$4:$H$788,5,0))) ->  | O66: =IF(ISERROR(VLOOKUP(K66,'KAYIT LİSTESİ'!$B$4:$H$788,6,0)),"",(VLOOKUP(K66,'KAYIT LİSTESİ'!$B$4:$H$788,6,0))) -> 
A67: Sıra No | B67: Formül | C67: Göğüs No | D67: Doğum Tarihi | E67: Adı ve Soyadı | F67: Okulu | G67: Start Kontrol | J67: 20 | K67: YÜKSEK-20 | L67: =IF(ISERROR(VLOOKUP(K67,'KAYIT LİSTESİ'!$B$4:$H$788,2,0)),"",(VLOOKUP(K67,'KAYIT LİSTESİ'!$B$4:$H$788,2,0))) ->  | M67: =IF(ISERROR(VLOOKUP(K67,'KAYIT LİSTESİ'!$B$4:$H$788,4,0)),"",(VLOOKUP(K67,'KAYIT LİSTESİ'!$B$4:$H$788,4,0))) ->  | N67: =IF(ISERROR(VLOOKUP(K67,'KAYIT LİSTESİ'!$B$4:$H$788,5,0)),"",(VLOOKUP(K67,'KAYIT LİSTESİ'!$B$4:$H$788,5,0))) ->  | O67: =IF(ISERROR(VLOOKUP(K67,'KAYIT LİSTESİ'!$B$4:$H$788,6,0)),"",(VLOOKUP(K67,'KAYIT LİSTESİ'!$B$4:$H$788,6,0))) -> 
A68: 1 | B68: 110M.ENG-3-1 | C68: =IF(ISERROR(VLOOKUP(B68,'KAYIT LİSTESİ'!$B$4:$H$788,2,0)),"",(VLOOKUP(B68,'KAYIT LİSTESİ'!$B$4:$H$788,2,0))) ->  | D68: =IF(ISERROR(VLOOKUP(B68,'KAYIT LİSTESİ'!$B$4:$H$788,4,0)),"",(VLOOKUP(B68,'KAYIT LİSTESİ'!$B$4:$H$788,4,0))) ->  | E68: =IF(ISERROR(VLOOKUP(B68,'KAYIT LİSTESİ'!$B$4:$H$788,5,0)),"",(VLOOKUP(B68,'KAYIT LİSTESİ'!$B$4:$H$788,5,0))) ->  | F68: =IF(ISERROR(VLOOKUP(B68,'KAYIT LİSTESİ'!$B$4:$H$788,6,0)),"",(VLOOKUP(B68,'KAYIT LİSTESİ'!$B$4:$H$788,6,0))) ->  | J68: 21 | K68: YÜKSEK-21 | L68: =IF(ISERROR(VLOOKUP(K68,'KAYIT LİSTESİ'!$B$4:$H$788,2,0)),"",(VLOOKUP(K68,'KAYIT LİSTESİ'!$B$4:$H$788,2,0))) ->  | M68: =IF(ISERROR(VLOOKUP(K68,'KAYIT LİSTESİ'!$B$4:$H$788,4,0)),"",(VLOOKUP(K68,'KAYIT LİSTESİ'!$B$4:$H$788,4,0))) ->  | N68: =IF(ISERROR(VLOOKUP(K68,'KAYIT LİSTESİ'!$B$4:$H$788,5,0)),"",(VLOOKUP(K68,'KAYIT LİSTESİ'!$B$4:$H$788,5,0))) ->  | O68: =IF(ISERROR(VLOOKUP(K68,'KAYIT LİSTESİ'!$B$4:$H$788,6,0)),"",(VLOOKUP(K68,'KAYIT LİSTESİ'!$B$4:$H$788,6,0))) -> 
A69: 2 | B69: 110M.ENG-3-2 | C69: =IF(ISERROR(VLOOKUP(B69,'KAYIT LİSTESİ'!$B$4:$H$788,2,0)),"",(VLOOKUP(B69,'KAYIT LİSTESİ'!$B$4:$H$788,2,0))) ->  | D69: =IF(ISERROR(VLOOKUP(B69,'KAYIT LİSTESİ'!$B$4:$H$788,4,0)),"",(VLOOKUP(B69,'KAYIT LİSTESİ'!$B$4:$H$788,4,0))) ->  | E69: =IF(ISERROR(VLOOKUP(B69,'KAYIT LİSTESİ'!$B$4:$H$788,5,0)),"",(VLOOKUP(B69,'KAYIT LİSTESİ'!$B$4:$H$788,5,0))) ->  | F69: =IF(ISERROR(VLOOKUP(B69,'KAYIT LİSTESİ'!$B$4:$H$788,6,0)),"",(VLOOKUP(B69,'KAYIT LİSTESİ'!$B$4:$H$788,6,0))) ->  | J69: 22 | K69: YÜKSEK-22 | L69: =IF(ISERROR(VLOOKUP(K69,'KAYIT LİSTESİ'!$B$4:$H$788,2,0)),"",(VLOOKUP(K69,'KAYIT LİSTESİ'!$B$4:$H$788,2,0))) ->  | M69: =IF(ISERROR(VLOOKUP(K69,'KAYIT LİSTESİ'!$B$4:$H$788,4,0)),"",(VLOOKUP(K69,'KAYIT LİSTESİ'!$B$4:$H$788,4,0))) ->  | N69: =IF(ISERROR(VLOOKUP(K69,'KAYIT LİSTESİ'!$B$4:$H$788,5,0)),"",(VLOOKUP(K69,'KAYIT LİSTESİ'!$B$4:$H$788,5,0))) ->  | O69: =IF(ISERROR(VLOOKUP(K69,'KAYIT LİSTESİ'!$B$4:$H$788,6,0)),"",(VLOOKUP(K69,'KAYIT LİSTESİ'!$B$4:$H$788,6,0))) -> 
A70: 3 | B70: 110M.ENG-3-3 | C70: =IF(ISERROR(VLOOKUP(B70,'KAYIT LİSTESİ'!$B$4:$H$788,2,0)),"",(VLOOKUP(B70,'KAYIT LİSTESİ'!$B$4:$H$788,2,0))) ->  | D70: =IF(ISERROR(VLOOKUP(B70,'KAYIT LİSTESİ'!$B$4:$H$788,4,0)),"",(VLOOKUP(B70,'KAYIT LİSTESİ'!$B$4:$H$788,4,0))) ->  | E70: =IF(ISERROR(VLOOKUP(B70,'KAYIT LİSTESİ'!$B$4:$H$788,5,0)),"",(VLOOKUP(B70,'KAYIT LİSTESİ'!$B$4:$H$788,5,0))) ->  | F70: =IF(ISERROR(VLOOKUP(B70,'KAYIT LİSTESİ'!$B$4:$H$788,6,0)),"",(VLOOKUP(B70,'KAYIT LİSTESİ'!$B$4:$H$788,6,0))) ->  | J70: 23 | K70: YÜKSEK-23 | L70: =IF(ISERROR(VLOOKUP(K70,'KAYIT LİSTESİ'!$B$4:$H$788,2,0)),"",(VLOOKUP(K70,'KAYIT LİSTESİ'!$B$4:$H$788,2,0))) ->  | M70: =IF(ISERROR(VLOOKUP(K70,'KAYIT LİSTESİ'!$B$4:$H$788,4,0)),"",(VLOOKUP(K70,'KAYIT LİSTESİ'!$B$4:$H$788,4,0))) ->  | N70: =IF(ISERROR(VLOOKUP(K70,'KAYIT LİSTESİ'!$B$4:$H$788,5,0)),"",(VLOOKUP(K70,'KAYIT LİSTESİ'!$B$4:$H$788,5,0))) ->  | O70: =IF(ISERROR(VLOOKUP(K70,'KAYIT LİSTESİ'!$B$4:$H$788,6,0)),"",(VLOOKUP(K70,'KAYIT LİSTESİ'!$B$4:$H$788,6,0))) -> 
A71: 4 | B71: 110M.ENG-3-4 | C71: =IF(ISERROR(VLOOKUP(B71,'KAYIT LİSTESİ'!$B$4:$H$788,2,0)),"",(VLOOKUP(B71,'KAYIT LİSTESİ'!$B$4:$H$788,2,0))) ->  | D71: =IF(ISERROR(VLOOKUP(B71,'KAYIT LİSTESİ'!$B$4:$H$788,4,0)),"",(VLOOKUP(B71,'KAYIT LİSTESİ'!$B$4:$H$788,4,0))) ->  | E71: =IF(ISERROR(VLOOKUP(B71,'KAYIT LİSTESİ'!$B$4:$H$788,5,0)),"",(VLOOKUP(B71,'KAYIT LİSTESİ'!$B$4:$H$788,5,0))) ->  | F71: =IF(ISERROR(VLOOKUP(B71,'KAYIT LİSTESİ'!$B$4:$H$788,6,0)),"",(VLOOKUP(B71,'KAYIT LİSTESİ'!$B$4:$H$788,6,0))) ->  | J71: 24 | K71: YÜKSEK-24 | L71: =IF(ISERROR(VLOOKUP(K71,'KAYIT LİSTESİ'!$B$4:$H$788,2,0)),"",(VLOOKUP(K71,'KAYIT LİSTESİ'!$B$4:$H$788,2,0))) ->  | M71: =IF(ISERROR(VLOOKUP(K71,'KAYIT LİSTESİ'!$B$4:$H$788,4,0)),"",(VLOOKUP(K71,'KAYIT LİSTESİ'!$B$4:$H$788,4,0))) ->  | N71: =IF(ISERROR(VLOOKUP(K71,'KAYIT LİSTESİ'!$B$4:$H$788,5,0)),"",(VLOOKUP(K71,'KAYIT LİSTESİ'!$B$4:$H$788,5,0))) ->  | O71: =IF(ISERROR(VLOOKUP(K71,'KAYIT LİSTESİ'!$B$4:$H$788,6,0)),"",(VLOOKUP(K71,'KAYIT LİSTESİ'!$B$4:$H$788,6,0))) -> 
A72: 5 | B72: 110M.ENG-3-5 | C72: =IF(ISERROR(VLOOKUP(B72,'KAYIT LİSTESİ'!$B$4:$H$788,2,0)),"",(VLOOKUP(B72,'KAYIT LİSTESİ'!$B$4:$H$788,2,0))) ->  | D72: =IF(ISERROR(VLOOKUP(B72,'KAYIT LİSTESİ'!$B$4:$H$788,4,0)),"",(VLOOKUP(B72,'KAYIT LİSTESİ'!$B$4:$H$788,4,0))) ->  | E72: =IF(ISERROR(VLOOKUP(B72,'KAYIT LİSTESİ'!$B$4:$H$788,5,0)),"",(VLOOKUP(B72,'KAYIT LİSTESİ'!$B$4:$H$788,5,0))) ->  | F72: =IF(ISERROR(VLOOKUP(B72,'KAYIT LİSTESİ'!$B$4:$H$788,6,0)),"",(VLOOKUP(B72,'KAYIT LİSTESİ'!$B$4:$H$788,6,0))) ->  | J72: 25 | K72: YÜKSEK-25 | L72: =IF(ISERROR(VLOOKUP(K72,'KAYIT LİSTESİ'!$B$4:$H$788,2,0)),"",(VLOOKUP(K72,'KAYIT LİSTESİ'!$B$4:$H$788,2,0))) ->  | M72: =IF(ISERROR(VLOOKUP(K72,'KAYIT LİSTESİ'!$B$4:$H$788,4,0)),"",(VLOOKUP(K72,'KAYIT LİSTESİ'!$B$4:$H$788,4,0))) ->  | N72: =IF(ISERROR(VLOOKUP(K72,'KAYIT LİSTESİ'!$B$4:$H$788,5,0)),"",(VLOOKUP(K72,'KAYIT LİSTESİ'!$B$4:$H$788,5,0))) ->  | O72: =IF(ISERROR(VLOOKUP(K72,'KAYIT LİSTESİ'!$B$4:$H$788,6,0)),"",(VLOOKUP(K72,'KAYIT LİSTESİ'!$B$4:$H$788,6,0))) -> 
A73: 6 | B73: 110M.ENG-3-6 | C73: =IF(ISERROR(VLOOKUP(B73,'KAYIT LİSTESİ'!$B$4:$H$788,2,0)),"",(VLOOKUP(B73,'KAYIT LİSTESİ'!$B$4:$H$788,2,0))) ->  | D73: =IF(ISERROR(VLOOKUP(B73,'KAYIT LİSTESİ'!$B$4:$H$788,4,0)),"",(VLOOKUP(B73,'KAYIT LİSTESİ'!$B$4:$H$788,4,0))) ->  | E73: =IF(ISERROR(VLOOKUP(B73,'KAYIT LİSTESİ'!$B$4:$H$788,5,0)),"",(VLOOKUP(B73,'KAYIT LİSTESİ'!$B$4:$H$788,5,0))) ->  | F73: =IF(ISERROR(VLOOKUP(B73,'KAYIT LİSTESİ'!$B$4:$H$788,6,0)),"",(VLOOKUP(B73,'KAYIT LİSTESİ'!$B$4:$H$788,6,0))) ->  | J73: GÜLLE ATMA
A74: 7 | B74: 110M.ENG-3-7 | C74: =IF(ISERROR(VLOOKUP(B74,'KAYIT LİSTESİ'!$B$4:$H$788,2,0)),"",(VLOOKUP(B74,'KAYIT LİSTESİ'!$B$4:$H$788,2,0))) ->  | D74: =IF(ISERROR(VLOOKUP(B74,'KAYIT LİSTESİ'!$B$4:$H$788,4,0)),"",(VLOOKUP(B74,'KAYIT LİSTESİ'!$B$4:$H$788,4,0))) ->  | E74: =IF(ISERROR(VLOOKUP(B74,'KAYIT LİSTESİ'!$B$4:$H$788,5,0)),"",(VLOOKUP(B74,'KAYIT LİSTESİ'!$B$4:$H$788,5,0))) ->  | F74: =IF(ISERROR(VLOOKUP(B74,'KAYIT LİSTESİ'!$B$4:$H$788,6,0)),"",(VLOOKUP(B74,'KAYIT LİSTESİ'!$B$4:$H$788,6,0))) ->  | J74: SIRA NO | L74: GÖĞÜS NO | M74: DOĞUM TARİHİ | N74: ADI VE SOYADI | O74: OKULU | P74: Start Kontrol
A75: 8 | B75: 110M.ENG-3-8 | C75: =IF(ISERROR(VLOOKUP(B75,'KAYIT LİSTESİ'!$B$4:$H$788,2,0)),"",(VLOOKUP(B75,'KAYIT LİSTESİ'!$B$4:$H$788,2,0))) ->  | D75: =IF(ISERROR(VLOOKUP(B75,'KAYIT LİSTESİ'!$B$4:$H$788,4,0)),"",(VLOOKUP(B75,'KAYIT LİSTESİ'!$B$4:$H$788,4,0))) ->  | E75: =IF(ISERROR(VLOOKUP(B75,'KAYIT LİSTESİ'!$B$4:$H$788,5,0)),"",(VLOOKUP(B75,'KAYIT LİSTESİ'!$B$4:$H$788,5,0))) ->  | F75: =IF(ISERROR(VLOOKUP(B75,'KAYIT LİSTESİ'!$B$4:$H$788,6,0)),"",(VLOOKUP(B75,'KAYIT LİSTESİ'!$B$4:$H$788,6,0))) -> 
A76: 4. SERİ | J76: 1 | K76: GÜLLE-1 | L76: =IF(ISERROR(VLOOKUP(K76,'KAYIT LİSTESİ'!$B$4:$H$788,2,0)),"",(VLOOKUP(K76,'KAYIT LİSTESİ'!$B$4:$H$788,2,0))) -> 609 | M76: =IF(ISERROR(VLOOKUP(K76,'KAYIT LİSTESİ'!$B$4:$H$788,4,0)),"",(VLOOKUP(K76,'KAYIT LİSTESİ'!$B$4:$H$788,4,0))) -> 2002-03-06 | N76: =IF(ISERROR(VLOOKUP(K76,'KAYIT LİSTESİ'!$B$4:$H$788,5,0)),"",(VLOOKUP(K76,'KAYIT LİSTESİ'!$B$4:$H$788,5,0))) -> AKİF HANİFİOĞLU | O76: =IF(ISERROR(VLOOKUP(K76,'KAYIT LİSTESİ'!$B$4:$H$788,6,0)),"",(VLOOKUP(K76,'KAYIT LİSTESİ'!$B$4:$H$788,6,0))) -> OSMANİYE
A77: Sıra No | B77: Formül | C77: Göğüs No | D77: Doğum Tarihi | E77: Adı ve Soyadı | F77: Okulu | G77: Start Kontrol | J77: 2 | K77: GÜLLE-2 | L77: =IF(ISERROR(VLOOKUP(K77,'KAYIT LİSTESİ'!$B$4:$H$788,2,0)),"",(VLOOKUP(K77,'KAYIT LİSTESİ'!$B$4:$H$788,2,0))) -> 735 | M77: =IF(ISERROR(VLOOKUP(K77,'KAYIT LİSTESİ'!$B$4:$H$788,4,0)),"",(VLOOKUP(K77,'KAYIT LİSTESİ'!$B$4:$H$788,4,0))) -> 2002-01-01 | N77: =IF(ISERROR(VLOOKUP(K77,'KAYIT LİSTESİ'!$B$4:$H$788,5,0)),"",(VLOOKUP(K77,'KAYIT LİSTESİ'!$B$4:$H$788,5,0))) -> MİRSAT KADİR KUTLU | O77: =IF(ISERROR(VLOOKUP(K77,'KAYIT LİSTESİ'!$B$4:$H$788,6,0)),"",(VLOOKUP(K77,'KAYIT LİSTESİ'!$B$4:$H$788,6,0))) -> BURSA
A78: 1 | B78: 110M.ENG-4-1 | C78: =IF(ISERROR(VLOOKUP(B78,'KAYIT LİSTESİ'!$B$4:$H$788,2,0)),"",(VLOOKUP(B78,'KAYIT LİSTESİ'!$B$4:$H$788,2,0))) ->  | D78: =IF(ISERROR(VLOOKUP(B78,'KAYIT LİSTESİ'!$B$4:$H$788,4,0)),"",(VLOOKUP(B78,'KAYIT LİSTESİ'!$B$4:$H$788,4,0))) ->  | E78: =IF(ISERROR(VLOOKUP(B78,'KAYIT LİSTESİ'!$B$4:$H$788,5,0)),"",(VLOOKUP(B78,'KAYIT LİSTESİ'!$B$4:$H$788,5,0))) ->  | F78: =IF(ISERROR(VLOOKUP(B78,'KAYIT LİSTESİ'!$B$4:$H$788,6,0)),"",(VLOOKUP(B78,'KAYIT LİSTESİ'!$B$4:$H$788,6,0))) ->  | J78: 3 | K78: GÜLLE-3 | L78: =IF(ISERROR(VLOOKUP(K78,'KAYIT LİSTESİ'!$B$4:$H$788,2,0)),"",(VLOOKUP(K78,'KAYIT LİSTESİ'!$B$4:$H$788,2,0))) -> 157 | M78: =IF(ISERROR(VLOOKUP(K78,'KAYIT LİSTESİ'!$B$4:$H$788,4,0)),"",(VLOOKUP(K78,'KAYIT LİSTESİ'!$B$4:$H$788,4,0))) -> 2002-06-25 | N78: =IF(ISERROR(VLOOKUP(K78,'KAYIT LİSTESİ'!$B$4:$H$788,5,0)),"",(VLOOKUP(K78,'KAYIT LİSTESİ'!$B$4:$H$788,5,0))) -> C. BERKE TAŞATAN | O78: =IF(ISERROR(VLOOKUP(K78,'KAYIT LİSTESİ'!$B$4:$H$788,6,0)),"",(VLOOKUP(K78,'KAYIT LİSTESİ'!$B$4:$H$788,6,0))) -> BİLECİK
A79: 2 | B79: 110M.ENG-4-2 | C79: =IF(ISERROR(VLOOKUP(B79,'KAYIT LİSTESİ'!$B$4:$H$788,2,0)),"",(VLOOKUP(B79,'KAYIT LİSTESİ'!$B$4:$H$788,2,0))) ->  | D79: =IF(ISERROR(VLOOKUP(B79,'KAYIT LİSTESİ'!$B$4:$H$788,4,0)),"",(VLOOKUP(B79,'KAYIT LİSTESİ'!$B$4:$H$788,4,0))) ->  | E79: =IF(ISERROR(VLOOKUP(B79,'KAYIT LİSTESİ'!$B$4:$H$788,5,0)),"",(VLOOKUP(B79,'KAYIT LİSTESİ'!$B$4:$H$788,5,0))) ->  | F79: =IF(ISERROR(VLOOKUP(B79,'KAYIT LİSTESİ'!$B$4:$H$788,6,0)),"",(VLOOKUP(B79,'KAYIT LİSTESİ'!$B$4:$H$788,6,0))) ->  | J79: 4 | K79: GÜLLE-4 | L79: =IF(ISERROR(VLOOKUP(K79,'KAYIT LİSTESİ'!$B$4:$H$788,2,0)),"",(VLOOKUP(K79,'KAYIT LİSTESİ'!$B$4:$H$788,2,0))) -> 608 | M79: =IF(ISERROR(VLOOKUP(K79,'KAYIT LİSTESİ'!$B$4:$H$788,4,0)),"",(VLOOKUP(K79,'KAYIT LİSTESİ'!$B$4:$H$788,4,0))) -> 2002-09-15 | N79: =IF(ISERROR(VLOOKUP(K79,'KAYIT LİSTESİ'!$B$4:$H$788,5,0)),"",(VLOOKUP(K79,'KAYIT LİSTESİ'!$B$4:$H$788,5,0))) -> OĞUZHAN USTA | O79: =IF(ISERROR(VLOOKUP(K79,'KAYIT LİSTESİ'!$B$4:$H$788,6,0)),"",(VLOOKUP(K79,'KAYIT LİSTESİ'!$B$4:$H$788,6,0))) -> OSMANİYE
A80: 3 | B80: 110M.ENG-4-3 | C80: =IF(ISERROR(VLOOKUP(B80,'KAYIT LİSTESİ'!$B$4:$H$788,2,0)),"",(VLOOKUP(B80,'KAYIT LİSTESİ'!$B$4:$H$788,2,0))) ->  | D80: =IF(ISERROR(VLOOKUP(B80,'KAYIT LİSTESİ'!$B$4:$H$788,4,0)),"",(VLOOKUP(B80,'KAYIT LİSTESİ'!$B$4:$H$788,4,0))) ->  | E80: =IF(ISERROR(VLOOKUP(B80,'KAYIT LİSTESİ'!$B$4:$H$788,5,0)),"",(VLOOKUP(B80,'KAYIT LİSTESİ'!$B$4:$H$788,5,0))) ->  | F80: =IF(ISERROR(VLOOKUP(B80,'KAYIT LİSTESİ'!$B$4:$H$788,6,0)),"",(VLOOKUP(B80,'KAYIT LİSTESİ'!$B$4:$H$788,6,0))) ->  | J80: 5 | K80: GÜLLE-5 | L80: =IF(ISERROR(VLOOKUP(K80,'KAYIT LİSTESİ'!$B$4:$H$788,2,0)),"",(VLOOKUP(K80,'KAYIT LİSTESİ'!$B$4:$H$788,2,0))) -> 27 | M80: =IF(ISERROR(VLOOKUP(K80,'KAYIT LİSTESİ'!$B$4:$H$788,4,0)),"",(VLOOKUP(K80,'KAYIT LİSTESİ'!$B$4:$H$788,4,0))) -> 2002-01-01 | N80: =IF(ISERROR(VLOOKUP(K80,'KAYIT LİSTESİ'!$B$4:$H$788,5,0)),"",(VLOOKUP(K80,'KAYIT LİSTESİ'!$B$4:$H$788,5,0))) -> AHMET COŞKUN | O80: =IF(ISERROR(VLOOKUP(K80,'KAYIT LİSTESİ'!$B$4:$H$788,6,0)),"",(VLOOKUP(K80,'KAYIT LİSTESİ'!$B$4:$H$788,6,0))) -> ADIYAMAN
A81: 4 | B81: 110M.ENG-4-4 | C81: =IF(ISERROR(VLOOKUP(B81,'KAYIT LİSTESİ'!$B$4:$H$788,2,0)),"",(VLOOKUP(B81,'KAYIT LİSTESİ'!$B$4:$H$788,2,0))) ->  | D81: =IF(ISERROR(VLOOKUP(B81,'KAYIT LİSTESİ'!$B$4:$H$788,4,0)),"",(VLOOKUP(B81,'KAYIT LİSTESİ'!$B$4:$H$788,4,0))) ->  | E81: =IF(ISERROR(VLOOKUP(B81,'KAYIT LİSTESİ'!$B$4:$H$788,5,0)),"",(VLOOKUP(B81,'KAYIT LİSTESİ'!$B$4:$H$788,5,0))) ->  | F81: =IF(ISERROR(VLOOKUP(B81,'KAYIT LİSTESİ'!$B$4:$H$788,6,0)),"",(VLOOKUP(B81,'KAYIT LİSTESİ'!$B$4:$H$788,6,0))) ->  | J81: 6 | K81: GÜLLE-6 | L81: =IF(ISERROR(VLOOKUP(K81,'KAYIT LİSTESİ'!$B$4:$H$788,2,0)),"",(VLOOKUP(K81,'KAYIT LİSTESİ'!$B$4:$H$788,2,0))) -> 508 | M81: =IF(ISERROR(VLOOKUP(K81,'KAYIT LİSTESİ'!$B$4:$H$788,4,0)),"",(VLOOKUP(K81,'KAYIT LİSTESİ'!$B$4:$H$788,4,0))) -> 2002-05-03 | N81: =IF(ISERROR(VLOOKUP(K81,'KAYIT LİSTESİ'!$B$4:$H$788,5,0)),"",(VLOOKUP(K81,'KAYIT LİSTESİ'!$B$4:$H$788,5,0))) -> ERSİN İLHAN | O81: =IF(ISERROR(VLOOKUP(K81,'KAYIT LİSTESİ'!$B$4:$H$788,6,0)),"",(VLOOKUP(K81,'KAYIT LİSTESİ'!$B$4:$H$788,6,0))) -> KOCAELİ
A82: 5 | B82: 110M.ENG-4-5 | C82: =IF(ISERROR(VLOOKUP(B82,'KAYIT LİSTESİ'!$B$4:$H$788,2,0)),"",(VLOOKUP(B82,'KAYIT LİSTESİ'!$B$4:$H$788,2,0))) ->  | D82: =IF(ISERROR(VLOOKUP(B82,'KAYIT LİSTESİ'!$B$4:$H$788,4,0)),"",(VLOOKUP(B82,'KAYIT LİSTESİ'!$B$4:$H$788,4,0))) ->  | E82: =IF(ISERROR(VLOOKUP(B82,'KAYIT LİSTESİ'!$B$4:$H$788,5,0)),"",(VLOOKUP(B82,'KAYIT LİSTESİ'!$B$4:$H$788,5,0))) ->  | F82: =IF(ISERROR(VLOOKUP(B82,'KAYIT LİSTESİ'!$B$4:$H$788,6,0)),"",(VLOOKUP(B82,'KAYIT LİSTESİ'!$B$4:$H$788,6,0))) ->  | J82: 7 | K82: GÜLLE-7 | L82: =IF(ISERROR(VLOOKUP(K82,'KAYIT LİSTESİ'!$B$4:$H$788,2,0)),"",(VLOOKUP(K82,'KAYIT LİSTESİ'!$B$4:$H$788,2,0))) -> 653 | M82: =IF(ISERROR(VLOOKUP(K82,'KAYIT LİSTESİ'!$B$4:$H$788,4,0)),"",(VLOOKUP(K82,'KAYIT LİSTESİ'!$B$4:$H$788,4,0))) -> 2002-01-01 | N82: =IF(ISERROR(VLOOKUP(K82,'KAYIT LİSTESİ'!$B$4:$H$788,5,0)),"",(VLOOKUP(K82,'KAYIT LİSTESİ'!$B$4:$H$788,5,0))) -> MUSA DALKILIÇ | O82: =IF(ISERROR(VLOOKUP(K82,'KAYIT LİSTESİ'!$B$4:$H$788,6,0)),"",(VLOOKUP(K82,'KAYIT LİSTESİ'!$B$4:$H$788,6,0))) -> SİİRT
A83: 6 | B83: 110M.ENG-4-6 | C83: =IF(ISERROR(VLOOKUP(B83,'KAYIT LİSTESİ'!$B$4:$H$788,2,0)),"",(VLOOKUP(B83,'KAYIT LİSTESİ'!$B$4:$H$788,2,0))) ->  | D83: =IF(ISERROR(VLOOKUP(B83,'KAYIT LİSTESİ'!$B$4:$H$788,4,0)),"",(VLOOKUP(B83,'KAYIT LİSTESİ'!$B$4:$H$788,4,0))) ->  | E83: =IF(ISERROR(VLOOKUP(B83,'KAYIT LİSTESİ'!$B$4:$H$788,5,0)),"",(VLOOKUP(B83,'KAYIT LİSTESİ'!$B$4:$H$788,5,0))) ->  | F83: =IF(ISERROR(VLOOKUP(B83,'KAYIT LİSTESİ'!$B$4:$H$788,6,0)),"",(VLOOKUP(B83,'KAYIT LİSTESİ'!$B$4:$H$788,6,0))) ->  | J83: 8 | K83: GÜLLE-8 | L83: =IF(ISERROR(VLOOKUP(K83,'KAYIT LİSTESİ'!$B$4:$H$788,2,0)),"",(VLOOKUP(K83,'KAYIT LİSTESİ'!$B$4:$H$788,2,0))) -> 655 | M83: =IF(ISERROR(VLOOKUP(K83,'KAYIT LİSTESİ'!$B$4:$H$788,4,0)),"",(VLOOKUP(K83,'KAYIT LİSTESİ'!$B$4:$H$788,4,0))) -> 2002-02-12 | N83: =IF(ISERROR(VLOOKUP(K83,'KAYIT LİSTESİ'!$B$4:$H$788,5,0)),"",(VLOOKUP(K83,'KAYIT LİSTESİ'!$B$4:$H$788,5,0))) -> ZÜBEYT TEMEL | O83: =IF(ISERROR(VLOOKUP(K83,'KAYIT LİSTESİ'!$B$4:$H$788,6,0)),"",(VLOOKUP(K83,'KAYIT LİSTESİ'!$B$4:$H$788,6,0))) -> SİİRT
A84: 7 | B84: 110M.ENG-4-7 | C84: =IF(ISERROR(VLOOKUP(B84,'KAYIT LİSTESİ'!$B$4:$H$788,2,0)),"",(VLOOKUP(B84,'KAYIT LİSTESİ'!$B$4:$H$788,2,0))) ->  | D84: =IF(ISERROR(VLOOKUP(B84,'KAYIT LİSTESİ'!$B$4:$H$788,4,0)),"",(VLOOKUP(B84,'KAYIT LİSTESİ'!$B$4:$H$788,4,0))) ->  | E84: =IF(ISERROR(VLOOKUP(B84,'KAYIT LİSTESİ'!$B$4:$H$788,5,0)),"",(VLOOKUP(B84,'KAYIT LİSTESİ'!$B$4:$H$788,5,0))) ->  | F84: =IF(ISERROR(VLOOKUP(B84,'KAYIT LİSTESİ'!$B$4:$H$788,6,0)),"",(VLOOKUP(B84,'KAYIT LİSTESİ'!$B$4:$H$788,6,0))) ->  | J84: 9 | K84: GÜLLE-9 | L84: =IF(ISERROR(VLOOKUP(K84,'KAYIT LİSTESİ'!$B$4:$H$788,2,0)),"",(VLOOKUP(K84,'KAYIT LİSTESİ'!$B$4:$H$788,2,0))) -> 565 | M84: =IF(ISERROR(VLOOKUP(K84,'KAYIT LİSTESİ'!$B$4:$H$788,4,0)),"",(VLOOKUP(K84,'KAYIT LİSTESİ'!$B$4:$H$788,4,0))) -> 2002-07-31 | N84: =IF(ISERROR(VLOOKUP(K84,'KAYIT LİSTESİ'!$B$4:$H$788,5,0)),"",(VLOOKUP(K84,'KAYIT LİSTESİ'!$B$4:$H$788,5,0))) -> FERHAT ÇELİK | O84: =IF(ISERROR(VLOOKUP(K84,'KAYIT LİSTESİ'!$B$4:$H$788,6,0)),"",(VLOOKUP(K84,'KAYIT LİSTESİ'!$B$4:$H$788,6,0))) -> MUĞLA
A85: 8 | B85: 110M.ENG-4-8 | C85: =IF(ISERROR(VLOOKUP(B85,'KAYIT LİSTESİ'!$B$4:$H$788,2,0)),"",(VLOOKUP(B85,'KAYIT LİSTESİ'!$B$4:$H$788,2,0))) ->  | D85: =IF(ISERROR(VLOOKUP(B85,'KAYIT LİSTESİ'!$B$4:$H$788,4,0)),"",(VLOOKUP(B85,'KAYIT LİSTESİ'!$B$4:$H$788,4,0))) ->  | E85: =IF(ISERROR(VLOOKUP(B85,'KAYIT LİSTESİ'!$B$4:$H$788,5,0)),"",(VLOOKUP(B85,'KAYIT LİSTESİ'!$B$4:$H$788,5,0))) ->  | F85: =IF(ISERROR(VLOOKUP(B85,'KAYIT LİSTESİ'!$B$4:$H$788,6,0)),"",(VLOOKUP(B85,'KAYIT LİSTESİ'!$B$4:$H$788,6,0))) ->  | J85: 10 | K85: GÜLLE-10 | L85: =IF(ISERROR(VLOOKUP(K85,'KAYIT LİSTESİ'!$B$4:$H$788,2,0)),"",(VLOOKUP(K85,'KAYIT LİSTESİ'!$B$4:$H$788,2,0))) -> 566 | M85: =IF(ISERROR(VLOOKUP(K85,'KAYIT LİSTESİ'!$B$4:$H$788,4,0)),"",(VLOOKUP(K85,'KAYIT LİSTESİ'!$B$4:$H$788,4,0))) -> 2002-07-31 | N85: =IF(ISERROR(VLOOKUP(K85,'KAYIT LİSTESİ'!$B$4:$H$788,5,0)),"",(VLOOKUP(K85,'KAYIT LİSTESİ'!$B$4:$H$788,5,0))) -> FERAY ÇELİK | O85: =IF(ISERROR(VLOOKUP(K85,'KAYIT LİSTESİ'!$B$4:$H$788,6,0)),"",(VLOOKUP(K85,'KAYIT LİSTESİ'!$B$4:$H$788,6,0))) -> MUĞLA
A86: 1500 METRE | J86: 11 | K86: GÜLLE-11 | L86: =IF(ISERROR(VLOOKUP(K86,'KAYIT LİSTESİ'!$B$4:$H$788,2,0)),"",(VLOOKUP(K86,'KAYIT LİSTESİ'!$B$4:$H$788,2,0))) -> 680 | M86: =IF(ISERROR(VLOOKUP(K86,'KAYIT LİSTESİ'!$B$4:$H$788,4,0)),"",(VLOOKUP(K86,'KAYIT LİSTESİ'!$B$4:$H$788,4,0))) -> 2002-02-27 | N86: =IF(ISERROR(VLOOKUP(K86,'KAYIT LİSTESİ'!$B$4:$H$788,5,0)),"",(VLOOKUP(K86,'KAYIT LİSTESİ'!$B$4:$H$788,5,0))) -> KAAN YILDIRIM | O86: =IF(ISERROR(VLOOKUP(K86,'KAYIT LİSTESİ'!$B$4:$H$788,6,0)),"",(VLOOKUP(K86,'KAYIT LİSTESİ'!$B$4:$H$788,6,0))) -> TEKİRDAĞ
A87: 1. SERİ | J87: 12 | K87: GÜLLE-12 | L87: =IF(ISERROR(VLOOKUP(K87,'KAYIT LİSTESİ'!$B$4:$H$788,2,0)),"",(VLOOKUP(K87,'KAYIT LİSTESİ'!$B$4:$H$788,2,0))) -> 548 | M87: =IF(ISERROR(VLOOKUP(K87,'KAYIT LİSTESİ'!$B$4:$H$788,4,0)),"",(VLOOKUP(K87,'KAYIT LİSTESİ'!$B$4:$H$788,4,0))) -> 2002-01-05 | N87: =IF(ISERROR(VLOOKUP(K87,'KAYIT LİSTESİ'!$B$4:$H$788,5,0)),"",(VLOOKUP(K87,'KAYIT LİSTESİ'!$B$4:$H$788,5,0))) -> MELİH GÖKALP | O87: =IF(ISERROR(VLOOKUP(K87,'KAYIT LİSTESİ'!$B$4:$H$788,6,0)),"",(VLOOKUP(K87,'KAYIT LİSTESİ'!$B$4:$H$788,6,0))) -> KÜTAHYA
A88: Sıra No | B88: Formül | C88: Göğüs No | D88: Doğum Tarihi | E88: Adı ve Soyadı | F88: Okulu | G88: Start Kontrol | J88: 13 | K88: GÜLLE-13 | L88: =IF(ISERROR(VLOOKUP(K88,'KAYIT LİSTESİ'!$B$4:$H$788,2,0)),"",(VLOOKUP(K88,'KAYIT LİSTESİ'!$B$4:$H$788,2,0))) ->  | M88: =IF(ISERROR(VLOOKUP(K88,'KAYIT LİSTESİ'!$B$4:$H$788,4,0)),"",(VLOOKUP(K88,'KAYIT LİSTESİ'!$B$4:$H$788,4,0))) ->  | N88: =IF(ISERROR(VLOOKUP(K88,'KAYIT LİSTESİ'!$B$4:$H$788,5,0)),"",(VLOOKUP(K88,'KAYIT LİSTESİ'!$B$4:$H$788,5,0))) ->  | O88: =IF(ISERROR(VLOOKUP(K88,'KAYIT LİSTESİ'!$B$4:$H$788,6,0)),"",(VLOOKUP(K88,'KAYIT LİSTESİ'!$B$4:$H$788,6,0))) -> 
A89: 1 | B89: 1500M-1-1 | C89: =IF(ISERROR(VLOOKUP(B89,'KAYIT LİSTESİ'!$B$4:$H$788,2,0)),"",(VLOOKUP(B89,'KAYIT LİSTESİ'!$B$4:$H$788,2,0))) ->  | D89: =IF(ISERROR(VLOOKUP(B89,'KAYIT LİSTESİ'!$B$4:$H$788,4,0)),"",(VLOOKUP(B89,'KAYIT LİSTESİ'!$B$4:$H$788,4,0))) ->  | E89: =IF(ISERROR(VLOOKUP(B89,'KAYIT LİSTESİ'!$B$4:$H$788,5,0)),"",(VLOOKUP(B89,'KAYIT LİSTESİ'!$B$4:$H$788,5,0))) ->  | F89: =IF(ISERROR(VLOOKUP(B89,'KAYIT LİSTESİ'!$B$4:$H$788,6,0)),"",(VLOOKUP(B89,'KAYIT LİSTESİ'!$B$4:$H$788,6,0))) ->  | J89: 14 | K89: GÜLLE-14 | L89: =IF(ISERROR(VLOOKUP(K89,'KAYIT LİSTESİ'!$B$4:$H$788,2,0)),"",(VLOOKUP(K89,'KAYIT LİSTESİ'!$B$4:$H$788,2,0))) ->  | M89: =IF(ISERROR(VLOOKUP(K89,'KAYIT LİSTESİ'!$B$4:$H$788,4,0)),"",(VLOOKUP(K89,'KAYIT LİSTESİ'!$B$4:$H$788,4,0))) ->  | N89: =IF(ISERROR(VLOOKUP(K89,'KAYIT LİSTESİ'!$B$4:$H$788,5,0)),"",(VLOOKUP(K89,'KAYIT LİSTESİ'!$B$4:$H$788,5,0))) ->  | O89: =IF(ISERROR(VLOOKUP(K89,'KAYIT LİSTESİ'!$B$4:$H$788,6,0)),"",(VLOOKUP(K89,'KAYIT LİSTESİ'!$B$4:$H$788,6,0))) -> 
A90: 2 | B90: 1500M-1-2 | C90: =IF(ISERROR(VLOOKUP(B90,'KAYIT LİSTESİ'!$B$4:$H$788,2,0)),"",(VLOOKUP(B90,'KAYIT LİSTESİ'!$B$4:$H$788,2,0))) -> 428 | D90: =IF(ISERROR(VLOOKUP(B90,'KAYIT LİSTESİ'!$B$4:$H$788,4,0)),"",(VLOOKUP(B90,'KAYIT LİSTESİ'!$B$4:$H$788,4,0))) -> 2002-07-25 | E90: =IF(ISERROR(VLOOKUP(B90,'KAYIT LİSTESİ'!$B$4:$H$788,5,0)),"",(VLOOKUP(B90,'KAYIT LİSTESİ'!$B$4:$H$788,5,0))) -> YASİN KINA | F90: =IF(ISERROR(VLOOKUP(B90,'KAYIT LİSTESİ'!$B$4:$H$788,6,0)),"",(VLOOKUP(B90,'KAYIT LİSTESİ'!$B$4:$H$788,6,0))) -> İZMİR | J90: 15 | K90: GÜLLE-15 | L90: =IF(ISERROR(VLOOKUP(K90,'KAYIT LİSTESİ'!$B$4:$H$788,2,0)),"",(VLOOKUP(K90,'KAYIT LİSTESİ'!$B$4:$H$788,2,0))) ->  | M90: =IF(ISERROR(VLOOKUP(K90,'KAYIT LİSTESİ'!$B$4:$H$788,4,0)),"",(VLOOKUP(K90,'KAYIT LİSTESİ'!$B$4:$H$788,4,0))) ->  | N90: =IF(ISERROR(VLOOKUP(K90,'KAYIT LİSTESİ'!$B$4:$H$788,5,0)),"",(VLOOKUP(K90,'KAYIT LİSTESİ'!$B$4:$H$788,5,0))) ->  | O90: =IF(ISERROR(VLOOKUP(K90,'KAYIT LİSTESİ'!$B$4:$H$788,6,0)),"",(VLOOKUP(K90,'KAYIT LİSTESİ'!$B$4:$H$788,6,0))) -> 
A91: 3 | B91: 1500M-1-3 | C91: =IF(ISERROR(VLOOKUP(B91,'KAYIT LİSTESİ'!$B$4:$H$788,2,0)),"",(VLOOKUP(B91,'KAYIT LİSTESİ'!$B$4:$H$788,2,0))) -> 573 | D91: =IF(ISERROR(VLOOKUP(B91,'KAYIT LİSTESİ'!$B$4:$H$788,4,0)),"",(VLOOKUP(B91,'KAYIT LİSTESİ'!$B$4:$H$788,4,0))) -> 2002-01-01 | E91: =IF(ISERROR(VLOOKUP(B91,'KAYIT LİSTESİ'!$B$4:$H$788,5,0)),"",(VLOOKUP(B91,'KAYIT LİSTESİ'!$B$4:$H$788,5,0))) -> İbrahim KARATEKER | F91: =IF(ISERROR(VLOOKUP(B91,'KAYIT LİSTESİ'!$B$4:$H$788,6,0)),"",(VLOOKUP(B91,'KAYIT LİSTESİ'!$B$4:$H$788,6,0))) -> MUŞ | J91: 16 | K91: GÜLLE-16 | L91: =IF(ISERROR(VLOOKUP(K91,'KAYIT LİSTESİ'!$B$4:$H$788,2,0)),"",(VLOOKUP(K91,'KAYIT LİSTESİ'!$B$4:$H$788,2,0))) ->  | M91: =IF(ISERROR(VLOOKUP(K91,'KAYIT LİSTESİ'!$B$4:$H$788,4,0)),"",(VLOOKUP(K91,'KAYIT LİSTESİ'!$B$4:$H$788,4,0))) ->  | N91: =IF(ISERROR(VLOOKUP(K91,'KAYIT LİSTESİ'!$B$4:$H$788,5,0)),"",(VLOOKUP(K91,'KAYIT LİSTESİ'!$B$4:$H$788,5,0))) ->  | O91: =IF(ISERROR(VLOOKUP(K91,'KAYIT LİSTESİ'!$B$4:$H$788,6,0)),"",(VLOOKUP(K91,'KAYIT LİSTESİ'!$B$4:$H$788,6,0))) -> 
A92: 4 | B92: 1500M-1-4 | C92: =IF(ISERROR(VLOOKUP(B92,'KAYIT LİSTESİ'!$B$4:$H$788,2,0)),"",(VLOOKUP(B92,'KAYIT LİSTESİ'!$B$4:$H$788,2,0))) -> 64 | D92: =IF(ISERROR(VLOOKUP(B92,'KAYIT LİSTESİ'!$B$4:$H$788,4,0)),"",(VLOOKUP(B92,'KAYIT LİSTESİ'!$B$4:$H$788,4,0))) -> 2002-07-09 | E92: =IF(ISERROR(VLOOKUP(B92,'KAYIT LİSTESİ'!$B$4:$H$788,5,0)),"",(VLOOKUP(B92,'KAYIT LİSTESİ'!$B$4:$H$788,5,0))) -> DOĞUKAN KÖMÜR | F92: =IF(ISERROR(VLOOKUP(B92,'KAYIT LİSTESİ'!$B$4:$H$788,6,0)),"",(VLOOKUP(B92,'KAYIT LİSTESİ'!$B$4:$H$788,6,0))) -> ARDAHAN | J92: 17 | K92: GÜLLE-17 | L92: =IF(ISERROR(VLOOKUP(K92,'KAYIT LİSTESİ'!$B$4:$H$788,2,0)),"",(VLOOKUP(K92,'KAYIT LİSTESİ'!$B$4:$H$788,2,0))) ->  | M92: =IF(ISERROR(VLOOKUP(K92,'KAYIT LİSTESİ'!$B$4:$H$788,4,0)),"",(VLOOKUP(K92,'KAYIT LİSTESİ'!$B$4:$H$788,4,0))) ->  | N92: =IF(ISERROR(VLOOKUP(K92,'KAYIT LİSTESİ'!$B$4:$H$788,5,0)),"",(VLOOKUP(K92,'KAYIT LİSTESİ'!$B$4:$H$788,5,0))) ->  | O92: =IF(ISERROR(VLOOKUP(K92,'KAYIT LİSTESİ'!$B$4:$H$788,6,0)),"",(VLOOKUP(K92,'KAYIT LİSTESİ'!$B$4:$H$788,6,0))) -> 
A93: 5 | B93: 1500M-1-5 | C93: =IF(ISERROR(VLOOKUP(B93,'KAYIT LİSTESİ'!$B$4:$H$788,2,0)),"",(VLOOKUP(B93,'KAYIT LİSTESİ'!$B$4:$H$788,2,0))) -> 426 | D93: =IF(ISERROR(VLOOKUP(B93,'KAYIT LİSTESİ'!$B$4:$H$788,4,0)),"",(VLOOKUP(B93,'KAYIT LİSTESİ'!$B$4:$H$788,4,0))) -> 2002-08-06 | E93: =IF(ISERROR(VLOOKUP(B93,'KAYIT LİSTESİ'!$B$4:$H$788,5,0)),"",(VLOOKUP(B93,'KAYIT LİSTESİ'!$B$4:$H$788,5,0))) -> BARAN ÇAPKIN | F93: =IF(ISERROR(VLOOKUP(B93,'KAYIT LİSTESİ'!$B$4:$H$788,6,0)),"",(VLOOKUP(B93,'KAYIT LİSTESİ'!$B$4:$H$788,6,0))) -> İZMİR | J93: 18 | K93: GÜLLE-18 | L93: =IF(ISERROR(VLOOKUP(K93,'KAYIT LİSTESİ'!$B$4:$H$788,2,0)),"",(VLOOKUP(K93,'KAYIT LİSTESİ'!$B$4:$H$788,2,0))) ->  | M93: =IF(ISERROR(VLOOKUP(K93,'KAYIT LİSTESİ'!$B$4:$H$788,4,0)),"",(VLOOKUP(K93,'KAYIT LİSTESİ'!$B$4:$H$788,4,0))) ->  | N93: =IF(ISERROR(VLOOKUP(K93,'KAYIT LİSTESİ'!$B$4:$H$788,5,0)),"",(VLOOKUP(K93,'KAYIT LİSTESİ'!$B$4:$H$788,5,0))) ->  | O93: =IF(ISERROR(VLOOKUP(K93,'KAYIT LİSTESİ'!$B$4:$H$788,6,0)),"",(VLOOKUP(K93,'KAYIT LİSTESİ'!$B$4:$H$788,6,0))) -> 
A94: 6 | B94: 1500M-1-6 | C94: =IF(ISERROR(VLOOKUP(B94,'KAYIT LİSTESİ'!$B$4:$H$788,2,0)),"",(VLOOKUP(B94,'KAYIT LİSTESİ'!$B$4:$H$788,2,0))) -> 733 | D94: =IF(ISERROR(VLOOKUP(B94,'KAYIT LİSTESİ'!$B$4:$H$788,4,0)),"",(VLOOKUP(B94,'KAYIT LİSTESİ'!$B$4:$H$788,4,0))) -> 2002-01-17 | E94: =IF(ISERROR(VLOOKUP(B94,'KAYIT LİSTESİ'!$B$4:$H$788,5,0)),"",(VLOOKUP(B94,'KAYIT LİSTESİ'!$B$4:$H$788,5,0))) -> KEMAL EREN ZEYTUN | F94: =IF(ISERROR(VLOOKUP(B94,'KAYIT LİSTESİ'!$B$4:$H$788,6,0)),"",(VLOOKUP(B94,'KAYIT LİSTESİ'!$B$4:$H$788,6,0))) -> BURSA | J94: 19 | K94: GÜLLE-19 | L94: =IF(ISERROR(VLOOKUP(K94,'KAYIT LİSTESİ'!$B$4:$H$788,2,0)),"",(VLOOKUP(K94,'KAYIT LİSTESİ'!$B$4:$H$788,2,0))) ->  | M94: =IF(ISERROR(VLOOKUP(K94,'KAYIT LİSTESİ'!$B$4:$H$788,4,0)),"",(VLOOKUP(K94,'KAYIT LİSTESİ'!$B$4:$H$788,4,0))) ->  | N94: =IF(ISERROR(VLOOKUP(K94,'KAYIT LİSTESİ'!$B$4:$H$788,5,0)),"",(VLOOKUP(K94,'KAYIT LİSTESİ'!$B$4:$H$788,5,0))) ->  | O94: =IF(ISERROR(VLOOKUP(K94,'KAYIT LİSTESİ'!$B$4:$H$788,6,0)),"",(VLOOKUP(K94,'KAYIT LİSTESİ'!$B$4:$H$788,6,0))) -> 
A95: 7 | B95: 1500M-1-7 | C95: =IF(ISERROR(VLOOKUP(B95,'KAYIT LİSTESİ'!$B$4:$H$788,2,0)),"",(VLOOKUP(B95,'KAYIT LİSTESİ'!$B$4:$H$788,2,0))) -> 654 | D95: =IF(ISERROR(VLOOKUP(B95,'KAYIT LİSTESİ'!$B$4:$H$788,4,0)),"",(VLOOKUP(B95,'KAYIT LİSTESİ'!$B$4:$H$788,4,0))) -> 2002-01-07 | E95: =IF(ISERROR(VLOOKUP(B95,'KAYIT LİSTESİ'!$B$4:$H$788,5,0)),"",(VLOOKUP(B95,'KAYIT LİSTESİ'!$B$4:$H$788,5,0))) -> DAVUT BASUT | F95: =IF(ISERROR(VLOOKUP(B95,'KAYIT LİSTESİ'!$B$4:$H$788,6,0)),"",(VLOOKUP(B95,'KAYIT LİSTESİ'!$B$4:$H$788,6,0))) -> SİİRT | J95: 20 | K95: GÜLLE-20 | L95: =IF(ISERROR(VLOOKUP(K95,'KAYIT LİSTESİ'!$B$4:$H$788,2,0)),"",(VLOOKUP(K95,'KAYIT LİSTESİ'!$B$4:$H$788,2,0))) ->  | M95: =IF(ISERROR(VLOOKUP(K95,'KAYIT LİSTESİ'!$B$4:$H$788,4,0)),"",(VLOOKUP(K95,'KAYIT LİSTESİ'!$B$4:$H$788,4,0))) ->  | N95: =IF(ISERROR(VLOOKUP(K95,'KAYIT LİSTESİ'!$B$4:$H$788,5,0)),"",(VLOOKUP(K95,'KAYIT LİSTESİ'!$B$4:$H$788,5,0))) ->  | O95: =IF(ISERROR(VLOOKUP(K95,'KAYIT LİSTESİ'!$B$4:$H$788,6,0)),"",(VLOOKUP(K95,'KAYIT LİSTESİ'!$B$4:$H$788,6,0))) -> 
A96: 8 | B96: 1500M-1-8 | C96: =IF(ISERROR(VLOOKUP(B96,'KAYIT LİSTESİ'!$B$4:$H$788,2,0)),"",(VLOOKUP(B96,'KAYIT LİSTESİ'!$B$4:$H$788,2,0))) -> 584 | D96: =IF(ISERROR(VLOOKUP(B96,'KAYIT LİSTESİ'!$B$4:$H$788,4,0)),"",(VLOOKUP(B96,'KAYIT LİSTESİ'!$B$4:$H$788,4,0))) -> 2002-07-20 | E96: =IF(ISERROR(VLOOKUP(B96,'KAYIT LİSTESİ'!$B$4:$H$788,5,0)),"",(VLOOKUP(B96,'KAYIT LİSTESİ'!$B$4:$H$788,5,0))) -> Mezher GÜLER | F96: =IF(ISERROR(VLOOKUP(B96,'KAYIT LİSTESİ'!$B$4:$H$788,6,0)),"",(VLOOKUP(B96,'KAYIT LİSTESİ'!$B$4:$H$788,6,0))) -> MUŞ | J96: 21 | K96: GÜLLE-21 | L96: =IF(ISERROR(VLOOKUP(K96,'KAYIT LİSTESİ'!$B$4:$H$788,2,0)),"",(VLOOKUP(K96,'KAYIT LİSTESİ'!$B$4:$H$788,2,0))) ->  | M96: =IF(ISERROR(VLOOKUP(K96,'KAYIT LİSTESİ'!$B$4:$H$788,4,0)),"",(VLOOKUP(K96,'KAYIT LİSTESİ'!$B$4:$H$788,4,0))) ->  | N96: =IF(ISERROR(VLOOKUP(K96,'KAYIT LİSTESİ'!$B$4:$H$788,5,0)),"",(VLOOKUP(K96,'KAYIT LİSTESİ'!$B$4:$H$788,5,0))) ->  | O96: =IF(ISERROR(VLOOKUP(K96,'KAYIT LİSTESİ'!$B$4:$H$788,6,0)),"",(VLOOKUP(K96,'KAYIT LİSTESİ'!$B$4:$H$788,6,0))) -> 
A97: 9 | B97: 1500M-1-9 | C97: =IF(ISERROR(VLOOKUP(B97,'KAYIT LİSTESİ'!$B$4:$H$788,2,0)),"",(VLOOKUP(B97,'KAYIT LİSTESİ'!$B$4:$H$788,2,0))) -> 465 | D97: =IF(ISERROR(VLOOKUP(B97,'KAYIT LİSTESİ'!$B$4:$H$788,4,0)),"",(VLOOKUP(B97,'KAYIT LİSTESİ'!$B$4:$H$788,4,0))) -> 2002-02-16 | E97: =IF(ISERROR(VLOOKUP(B97,'KAYIT LİSTESİ'!$B$4:$H$788,5,0)),"",(VLOOKUP(B97,'KAYIT LİSTESİ'!$B$4:$H$788,5,0))) -> İSMET FURKAN YANDI | F97: =IF(ISERROR(VLOOKUP(B97,'KAYIT LİSTESİ'!$B$4:$H$788,6,0)),"",(VLOOKUP(B97,'KAYIT LİSTESİ'!$B$4:$H$788,6,0))) -> KARAMAN | J97: 22 | K97: GÜLLE-22 | L97: =IF(ISERROR(VLOOKUP(K97,'KAYIT LİSTESİ'!$B$4:$H$788,2,0)),"",(VLOOKUP(K97,'KAYIT LİSTESİ'!$B$4:$H$788,2,0))) ->  | M97: =IF(ISERROR(VLOOKUP(K97,'KAYIT LİSTESİ'!$B$4:$H$788,4,0)),"",(VLOOKUP(K97,'KAYIT LİSTESİ'!$B$4:$H$788,4,0))) ->  | N97: =IF(ISERROR(VLOOKUP(K97,'KAYIT LİSTESİ'!$B$4:$H$788,5,0)),"",(VLOOKUP(K97,'KAYIT LİSTESİ'!$B$4:$H$788,5,0))) ->  | O97: =IF(ISERROR(VLOOKUP(K97,'KAYIT LİSTESİ'!$B$4:$H$788,6,0)),"",(VLOOKUP(K97,'KAYIT LİSTESİ'!$B$4:$H$788,6,0))) -> 
A98: 10 | B98: 1500M-1-10 | C98: =IF(ISERROR(VLOOKUP(B98,'KAYIT LİSTESİ'!$B$4:$H$788,2,0)),"",(VLOOKUP(B98,'KAYIT LİSTESİ'!$B$4:$H$788,2,0))) -> 425 | D98: =IF(ISERROR(VLOOKUP(B98,'KAYIT LİSTESİ'!$B$4:$H$788,4,0)),"",(VLOOKUP(B98,'KAYIT LİSTESİ'!$B$4:$H$788,4,0))) -> 2002-09-16 | E98: =IF(ISERROR(VLOOKUP(B98,'KAYIT LİSTESİ'!$B$4:$H$788,5,0)),"",(VLOOKUP(B98,'KAYIT LİSTESİ'!$B$4:$H$788,5,0))) -> EREN GENÇ | F98: =IF(ISERROR(VLOOKUP(B98,'KAYIT LİSTESİ'!$B$4:$H$788,6,0)),"",(VLOOKUP(B98,'KAYIT LİSTESİ'!$B$4:$H$788,6,0))) -> İZMİR | J98: 23 | K98: GÜLLE-23 | L98: =IF(ISERROR(VLOOKUP(K98,'KAYIT LİSTESİ'!$B$4:$H$788,2,0)),"",(VLOOKUP(K98,'KAYIT LİSTESİ'!$B$4:$H$788,2,0))) ->  | M98: =IF(ISERROR(VLOOKUP(K98,'KAYIT LİSTESİ'!$B$4:$H$788,4,0)),"",(VLOOKUP(K98,'KAYIT LİSTESİ'!$B$4:$H$788,4,0))) ->  | N98: =IF(ISERROR(VLOOKUP(K98,'KAYIT LİSTESİ'!$B$4:$H$788,5,0)),"",(VLOOKUP(K98,'KAYIT LİSTESİ'!$B$4:$H$788,5,0))) ->  | O98: =IF(ISERROR(VLOOKUP(K98,'KAYIT LİSTESİ'!$B$4:$H$788,6,0)),"",(VLOOKUP(K98,'KAYIT LİSTESİ'!$B$4:$H$788,6,0))) -> 
A99: 11 | B99: 1500M-1-11 | C99: =IF(ISERROR(VLOOKUP(B99,'KAYIT LİSTESİ'!$B$4:$H$788,2,0)),"",(VLOOKUP(B99,'KAYIT LİSTESİ'!$B$4:$H$788,2,0))) -> 550 | D99: =IF(ISERROR(VLOOKUP(B99,'KAYIT LİSTESİ'!$B$4:$H$788,4,0)),"",(VLOOKUP(B99,'KAYIT LİSTESİ'!$B$4:$H$788,4,0))) -> 2002-01-01 | E99: =IF(ISERROR(VLOOKUP(B99,'KAYIT LİSTESİ'!$B$4:$H$788,5,0)),"",(VLOOKUP(B99,'KAYIT LİSTESİ'!$B$4:$H$788,5,0))) -> AHMET ÖZER | F99: =IF(ISERROR(VLOOKUP(B99,'KAYIT LİSTESİ'!$B$4:$H$788,6,0)),"",(VLOOKUP(B99,'KAYIT LİSTESİ'!$B$4:$H$788,6,0))) -> KÜTAHYA | J99: 24 | K99: GÜLLE-24 | L99: =IF(ISERROR(VLOOKUP(K99,'KAYIT LİSTESİ'!$B$4:$H$788,2,0)),"",(VLOOKUP(K99,'KAYIT LİSTESİ'!$B$4:$H$788,2,0))) ->  | M99: =IF(ISERROR(VLOOKUP(K99,'KAYIT LİSTESİ'!$B$4:$H$788,4,0)),"",(VLOOKUP(K99,'KAYIT LİSTESİ'!$B$4:$H$788,4,0))) ->  | N99: =IF(ISERROR(VLOOKUP(K99,'KAYIT LİSTESİ'!$B$4:$H$788,5,0)),"",(VLOOKUP(K99,'KAYIT LİSTESİ'!$B$4:$H$788,5,0))) ->  | O99: =IF(ISERROR(VLOOKUP(K99,'KAYIT LİSTESİ'!$B$4:$H$788,6,0)),"",(VLOOKUP(K99,'KAYIT LİSTESİ'!$B$4:$H$788,6,0))) -> 
A100: 12 | B100: 1500M-1-12 | C100: =IF(ISERROR(VLOOKUP(B100,'KAYIT LİSTESİ'!$B$4:$H$788,2,0)),"",(VLOOKUP(B100,'KAYIT LİSTESİ'!$B$4:$H$788,2,0))) -> 427 | D100: =IF(ISERROR(VLOOKUP(B100,'KAYIT LİSTESİ'!$B$4:$H$788,4,0)),"",(VLOOKUP(B100,'KAYIT LİSTESİ'!$B$4:$H$788,4,0))) -> 2002-05-21 | E100: =IF(ISERROR(VLOOKUP(B100,'KAYIT LİSTESİ'!$B$4:$H$788,5,0)),"",(VLOOKUP(B100,'KAYIT LİSTESİ'!$B$4:$H$788,5,0))) -> ENSAR YILMAZ | F100: =IF(ISERROR(VLOOKUP(B100,'KAYIT LİSTESİ'!$B$4:$H$788,6,0)),"",(VLOOKUP(B100,'KAYIT LİSTESİ'!$B$4:$H$788,6,0))) -> İZMİR | J100: 25 | K100: GÜLLE-25 | L100: =IF(ISERROR(VLOOKUP(K100,'KAYIT LİSTESİ'!$B$4:$H$788,2,0)),"",(VLOOKUP(K100,'KAYIT LİSTESİ'!$B$4:$H$788,2,0))) ->  | M100: =IF(ISERROR(VLOOKUP(K100,'KAYIT LİSTESİ'!$B$4:$H$788,4,0)),"",(VLOOKUP(K100,'KAYIT LİSTESİ'!$B$4:$H$788,4,0))) ->  | N100: =IF(ISERROR(VLOOKUP(K100,'KAYIT LİSTESİ'!$B$4:$H$788,5,0)),"",(VLOOKUP(K100,'KAYIT LİSTESİ'!$B$4:$H$788,5,0))) ->  | O100: =IF(ISERROR(VLOOKUP(K100,'KAYIT LİSTESİ'!$B$4:$H$788,6,0)),"",(VLOOKUP(K100,'KAYIT LİSTESİ'!$B$4:$H$788,6,0))) -> 
A101: 2. SERİ | J101: 26 | K101: GÜLLE-26 | L101: =IF(ISERROR(VLOOKUP(K101,'KAYIT LİSTESİ'!$B$4:$H$788,2,0)),"",(VLOOKUP(K101,'KAYIT LİSTESİ'!$B$4:$H$788,2,0))) ->  | M101: =IF(ISERROR(VLOOKUP(K101,'KAYIT LİSTESİ'!$B$4:$H$788,4,0)),"",(VLOOKUP(K101,'KAYIT LİSTESİ'!$B$4:$H$788,4,0))) ->  | N101: =IF(ISERROR(VLOOKUP(K101,'KAYIT LİSTESİ'!$B$4:$H$788,5,0)),"",(VLOOKUP(K101,'KAYIT LİSTESİ'!$B$4:$H$788,5,0))) ->  | O101: =IF(ISERROR(VLOOKUP(K101,'KAYIT LİSTESİ'!$B$4:$H$788,6,0)),"",(VLOOKUP(K101,'KAYIT LİSTESİ'!$B$4:$H$788,6,0))) -> 
A102: Sıra No | B102: Formül | C102: Göğüs No | D102: Doğum Tarihi | E102: Adı ve Soyadı | F102: Okulu | G102: Start Kontrol | J102: 27 | K102: GÜLLE-27 | L102: =IF(ISERROR(VLOOKUP(K102,'KAYIT LİSTESİ'!$B$4:$H$788,2,0)),"",(VLOOKUP(K102,'KAYIT LİSTESİ'!$B$4:$H$788,2,0))) ->  | M102: =IF(ISERROR(VLOOKUP(K102,'KAYIT LİSTESİ'!$B$4:$H$788,4,0)),"",(VLOOKUP(K102,'KAYIT LİSTESİ'!$B$4:$H$788,4,0))) ->  | N102: =IF(ISERROR(VLOOKUP(K102,'KAYIT LİSTESİ'!$B$4:$H$788,5,0)),"",(VLOOKUP(K102,'KAYIT LİSTESİ'!$B$4:$H$788,5,0))) ->  | O102: =IF(ISERROR(VLOOKUP(K102,'KAYIT LİSTESİ'!$B$4:$H$788,6,0)),"",(VLOOKUP(K102,'KAYIT LİSTESİ'!$B$4:$H$788,6,0))) -> 
A103: 1 | B103: 1500M-2-1 | C103: =IF(ISERROR(VLOOKUP(B103,'KAYIT LİSTESİ'!$B$4:$H$788,2,0)),"",(VLOOKUP(B103,'KAYIT LİSTESİ'!$B$4:$H$788,2,0))) -> 466 | D103: =IF(ISERROR(VLOOKUP(B103,'KAYIT LİSTESİ'!$B$4:$H$788,4,0)),"",(VLOOKUP(B103,'KAYIT LİSTESİ'!$B$4:$H$788,4,0))) -> 2002-08-22 | E103: =IF(ISERROR(VLOOKUP(B103,'KAYIT LİSTESİ'!$B$4:$H$788,5,0)),"",(VLOOKUP(B103,'KAYIT LİSTESİ'!$B$4:$H$788,5,0))) -> MUSTAFA TALAŞ | F103: =IF(ISERROR(VLOOKUP(B103,'KAYIT LİSTESİ'!$B$4:$H$788,6,0)),"",(VLOOKUP(B103,'KAYIT LİSTESİ'!$B$4:$H$788,6,0))) -> KARAMAN | J103: 28 | K103: GÜLLE-28 | L103: =IF(ISERROR(VLOOKUP(K103,'KAYIT LİSTESİ'!$B$4:$H$788,2,0)),"",(VLOOKUP(K103,'KAYIT LİSTESİ'!$B$4:$H$788,2,0))) ->  | M103: =IF(ISERROR(VLOOKUP(K103,'KAYIT LİSTESİ'!$B$4:$H$788,4,0)),"",(VLOOKUP(K103,'KAYIT LİSTESİ'!$B$4:$H$788,4,0))) ->  | N103: =IF(ISERROR(VLOOKUP(K103,'KAYIT LİSTESİ'!$B$4:$H$788,5,0)),"",(VLOOKUP(K103,'KAYIT LİSTESİ'!$B$4:$H$788,5,0))) ->  | O103: =IF(ISERROR(VLOOKUP(K103,'KAYIT LİSTESİ'!$B$4:$H$788,6,0)),"",(VLOOKUP(K103,'KAYIT LİSTESİ'!$B$4:$H$788,6,0))) -> 
A104: 2 | B104: 1500M-2-2 | C104: =IF(ISERROR(VLOOKUP(B104,'KAYIT LİSTESİ'!$B$4:$H$788,2,0)),"",(VLOOKUP(B104,'KAYIT LİSTESİ'!$B$4:$H$788,2,0))) -> 480 | D104: =IF(ISERROR(VLOOKUP(B104,'KAYIT LİSTESİ'!$B$4:$H$788,4,0)),"",(VLOOKUP(B104,'KAYIT LİSTESİ'!$B$4:$H$788,4,0))) -> 2002-05-21 | E104: =IF(ISERROR(VLOOKUP(B104,'KAYIT LİSTESİ'!$B$4:$H$788,5,0)),"",(VLOOKUP(B104,'KAYIT LİSTESİ'!$B$4:$H$788,5,0))) -> RAMAZAN YULAF | F104: =IF(ISERROR(VLOOKUP(B104,'KAYIT LİSTESİ'!$B$4:$H$788,6,0)),"",(VLOOKUP(B104,'KAYIT LİSTESİ'!$B$4:$H$788,6,0))) -> KIRIKKALE | J104: 29 | K104: GÜLLE-29 | L104: =IF(ISERROR(VLOOKUP(K104,'KAYIT LİSTESİ'!$B$4:$H$788,2,0)),"",(VLOOKUP(K104,'KAYIT LİSTESİ'!$B$4:$H$788,2,0))) ->  | M104: =IF(ISERROR(VLOOKUP(K104,'KAYIT LİSTESİ'!$B$4:$H$788,4,0)),"",(VLOOKUP(K104,'KAYIT LİSTESİ'!$B$4:$H$788,4,0))) ->  | N104: =IF(ISERROR(VLOOKUP(K104,'KAYIT LİSTESİ'!$B$4:$H$788,5,0)),"",(VLOOKUP(K104,'KAYIT LİSTESİ'!$B$4:$H$788,5,0))) ->  | O104: =IF(ISERROR(VLOOKUP(K104,'KAYIT LİSTESİ'!$B$4:$H$788,6,0)),"",(VLOOKUP(K104,'KAYIT LİSTESİ'!$B$4:$H$788,6,0))) -> 
A105: 3 | B105: 1500M-2-3 | C105: =IF(ISERROR(VLOOKUP(B105,'KAYIT LİSTESİ'!$B$4:$H$788,2,0)),"",(VLOOKUP(B105,'KAYIT LİSTESİ'!$B$4:$H$788,2,0))) -> 283 | D105: =IF(ISERROR(VLOOKUP(B105,'KAYIT LİSTESİ'!$B$4:$H$788,4,0)),"",(VLOOKUP(B105,'KAYIT LİSTESİ'!$B$4:$H$788,4,0))) -> 2002-01-01 | E105: =IF(ISERROR(VLOOKUP(B105,'KAYIT LİSTESİ'!$B$4:$H$788,5,0)),"",(VLOOKUP(B105,'KAYIT LİSTESİ'!$B$4:$H$788,5,0))) -> SÜLEYMAN TOKER | F105: =IF(ISERROR(VLOOKUP(B105,'KAYIT LİSTESİ'!$B$4:$H$788,6,0)),"",(VLOOKUP(B105,'KAYIT LİSTESİ'!$B$4:$H$788,6,0))) -> GAZİANTEP | J105: 30 | K105: GÜLLE-30 | L105: =IF(ISERROR(VLOOKUP(K105,'KAYIT LİSTESİ'!$B$4:$H$788,2,0)),"",(VLOOKUP(K105,'KAYIT LİSTESİ'!$B$4:$H$788,2,0))) ->  | M105: =IF(ISERROR(VLOOKUP(K105,'KAYIT LİSTESİ'!$B$4:$H$788,4,0)),"",(VLOOKUP(K105,'KAYIT LİSTESİ'!$B$4:$H$788,4,0))) ->  | N105: =IF(ISERROR(VLOOKUP(K105,'KAYIT LİSTESİ'!$B$4:$H$788,5,0)),"",(VLOOKUP(K105,'KAYIT LİSTESİ'!$B$4:$H$788,5,0))) ->  | O105: =IF(ISERROR(VLOOKUP(K105,'KAYIT LİSTESİ'!$B$4:$H$788,6,0)),"",(VLOOKUP(K105,'KAYIT LİSTESİ'!$B$4:$H$788,6,0))) -> 
A106: 4 | B106: 1500M-2-4 | C106: =IF(ISERROR(VLOOKUP(B106,'KAYIT LİSTESİ'!$B$4:$H$788,2,0)),"",(VLOOKUP(B106,'KAYIT LİSTESİ'!$B$4:$H$788,2,0))) -> 66 | D106: =IF(ISERROR(VLOOKUP(B106,'KAYIT LİSTESİ'!$B$4:$H$788,4,0)),"",(VLOOKUP(B106,'KAYIT LİSTESİ'!$B$4:$H$788,4,0))) -> 2002-01-01 | E106: =IF(ISERROR(VLOOKUP(B106,'KAYIT LİSTESİ'!$B$4:$H$788,5,0)),"",(VLOOKUP(B106,'KAYIT LİSTESİ'!$B$4:$H$788,5,0))) -> YUSUF ARABUL | F106: =IF(ISERROR(VLOOKUP(B106,'KAYIT LİSTESİ'!$B$4:$H$788,6,0)),"",(VLOOKUP(B106,'KAYIT LİSTESİ'!$B$4:$H$788,6,0))) -> ARDAHAN | J106: 31 | K106: GÜLLE-31 | L106: =IF(ISERROR(VLOOKUP(K106,'KAYIT LİSTESİ'!$B$4:$H$788,2,0)),"",(VLOOKUP(K106,'KAYIT LİSTESİ'!$B$4:$H$788,2,0))) ->  | M106: =IF(ISERROR(VLOOKUP(K106,'KAYIT LİSTESİ'!$B$4:$H$788,4,0)),"",(VLOOKUP(K106,'KAYIT LİSTESİ'!$B$4:$H$788,4,0))) ->  | N106: =IF(ISERROR(VLOOKUP(K106,'KAYIT LİSTESİ'!$B$4:$H$788,5,0)),"",(VLOOKUP(K106,'KAYIT LİSTESİ'!$B$4:$H$788,5,0))) ->  | O106: =IF(ISERROR(VLOOKUP(K106,'KAYIT LİSTESİ'!$B$4:$H$788,6,0)),"",(VLOOKUP(K106,'KAYIT LİSTESİ'!$B$4:$H$788,6,0))) -> 
A107: 5 | B107: 1500M-2-5 | C107: =IF(ISERROR(VLOOKUP(B107,'KAYIT LİSTESİ'!$B$4:$H$788,2,0)),"",(VLOOKUP(B107,'KAYIT LİSTESİ'!$B$4:$H$788,2,0))) -> 249 | D107: =IF(ISERROR(VLOOKUP(B107,'KAYIT LİSTESİ'!$B$4:$H$788,4,0)),"",(VLOOKUP(B107,'KAYIT LİSTESİ'!$B$4:$H$788,4,0))) -> 2002-03-24 | E107: =IF(ISERROR(VLOOKUP(B107,'KAYIT LİSTESİ'!$B$4:$H$788,5,0)),"",(VLOOKUP(B107,'KAYIT LİSTESİ'!$B$4:$H$788,5,0))) -> EMRE YILDIZ | F107: =IF(ISERROR(VLOOKUP(B107,'KAYIT LİSTESİ'!$B$4:$H$788,6,0)),"",(VLOOKUP(B107,'KAYIT LİSTESİ'!$B$4:$H$788,6,0))) -> ERZİNCAN | J107: 32 | K107: GÜLLE-32 | L107: =IF(ISERROR(VLOOKUP(K107,'KAYIT LİSTESİ'!$B$4:$H$788,2,0)),"",(VLOOKUP(K107,'KAYIT LİSTESİ'!$B$4:$H$788,2,0))) ->  | M107: =IF(ISERROR(VLOOKUP(K107,'KAYIT LİSTESİ'!$B$4:$H$788,4,0)),"",(VLOOKUP(K107,'KAYIT LİSTESİ'!$B$4:$H$788,4,0))) ->  | N107: =IF(ISERROR(VLOOKUP(K107,'KAYIT LİSTESİ'!$B$4:$H$788,5,0)),"",(VLOOKUP(K107,'KAYIT LİSTESİ'!$B$4:$H$788,5,0))) ->  | O107: =IF(ISERROR(VLOOKUP(K107,'KAYIT LİSTESİ'!$B$4:$H$788,6,0)),"",(VLOOKUP(K107,'KAYIT LİSTESİ'!$B$4:$H$788,6,0))) -> 
A108: 6 | B108: 1500M-2-6 | C108: =IF(ISERROR(VLOOKUP(B108,'KAYIT LİSTESİ'!$B$4:$H$788,2,0)),"",(VLOOKUP(B108,'KAYIT LİSTESİ'!$B$4:$H$788,2,0))) -> 67 | D108: =IF(ISERROR(VLOOKUP(B108,'KAYIT LİSTESİ'!$B$4:$H$788,4,0)),"",(VLOOKUP(B108,'KAYIT LİSTESİ'!$B$4:$H$788,4,0))) -> 2002-01-01 | E108: =IF(ISERROR(VLOOKUP(B108,'KAYIT LİSTESİ'!$B$4:$H$788,5,0)),"",(VLOOKUP(B108,'KAYIT LİSTESİ'!$B$4:$H$788,5,0))) -> ADEM BİLGİN | F108: =IF(ISERROR(VLOOKUP(B108,'KAYIT LİSTESİ'!$B$4:$H$788,6,0)),"",(VLOOKUP(B108,'KAYIT LİSTESİ'!$B$4:$H$788,6,0))) -> ARDAHAN | J108: 33 | K108: GÜLLE-33 | L108: =IF(ISERROR(VLOOKUP(K108,'KAYIT LİSTESİ'!$B$4:$H$788,2,0)),"",(VLOOKUP(K108,'KAYIT LİSTESİ'!$B$4:$H$788,2,0))) ->  | M108: =IF(ISERROR(VLOOKUP(K108,'KAYIT LİSTESİ'!$B$4:$H$788,4,0)),"",(VLOOKUP(K108,'KAYIT LİSTESİ'!$B$4:$H$788,4,0))) ->  | N108: =IF(ISERROR(VLOOKUP(K108,'KAYIT LİSTESİ'!$B$4:$H$788,5,0)),"",(VLOOKUP(K108,'KAYIT LİSTESİ'!$B$4:$H$788,5,0))) ->  | O108: =IF(ISERROR(VLOOKUP(K108,'KAYIT LİSTESİ'!$B$4:$H$788,6,0)),"",(VLOOKUP(K108,'KAYIT LİSTESİ'!$B$4:$H$788,6,0))) -> 
A109: 7 | B109: 1500M-2-7 | C109: =IF(ISERROR(VLOOKUP(B109,'KAYIT LİSTESİ'!$B$4:$H$788,2,0)),"",(VLOOKUP(B109,'KAYIT LİSTESİ'!$B$4:$H$788,2,0))) -> 281 | D109: =IF(ISERROR(VLOOKUP(B109,'KAYIT LİSTESİ'!$B$4:$H$788,4,0)),"",(VLOOKUP(B109,'KAYIT LİSTESİ'!$B$4:$H$788,4,0))) -> 2002-01-01 | E109: =IF(ISERROR(VLOOKUP(B109,'KAYIT LİSTESİ'!$B$4:$H$788,5,0)),"",(VLOOKUP(B109,'KAYIT LİSTESİ'!$B$4:$H$788,5,0))) -> DAVUT AKDENİZ | F109: =IF(ISERROR(VLOOKUP(B109,'KAYIT LİSTESİ'!$B$4:$H$788,6,0)),"",(VLOOKUP(B109,'KAYIT LİSTESİ'!$B$4:$H$788,6,0))) -> GAZİANTEP | J109: 34 | K109: GÜLLE-34 | L109: =IF(ISERROR(VLOOKUP(K109,'KAYIT LİSTESİ'!$B$4:$H$788,2,0)),"",(VLOOKUP(K109,'KAYIT LİSTESİ'!$B$4:$H$788,2,0))) ->  | M109: =IF(ISERROR(VLOOKUP(K109,'KAYIT LİSTESİ'!$B$4:$H$788,4,0)),"",(VLOOKUP(K109,'KAYIT LİSTESİ'!$B$4:$H$788,4,0))) ->  | N109: =IF(ISERROR(VLOOKUP(K109,'KAYIT LİSTESİ'!$B$4:$H$788,5,0)),"",(VLOOKUP(K109,'KAYIT LİSTESİ'!$B$4:$H$788,5,0))) ->  | O109: =IF(ISERROR(VLOOKUP(K109,'KAYIT LİSTESİ'!$B$4:$H$788,6,0)),"",(VLOOKUP(K109,'KAYIT LİSTESİ'!$B$4:$H$788,6,0))) -> 
A110: 8 | B110: 1500M-2-8 | C110: =IF(ISERROR(VLOOKUP(B110,'KAYIT LİSTESİ'!$B$4:$H$788,2,0)),"",(VLOOKUP(B110,'KAYIT LİSTESİ'!$B$4:$H$788,2,0))) -> 510 | D110: =IF(ISERROR(VLOOKUP(B110,'KAYIT LİSTESİ'!$B$4:$H$788,4,0)),"",(VLOOKUP(B110,'KAYIT LİSTESİ'!$B$4:$H$788,4,0))) -> 2002-01-01 | E110: =IF(ISERROR(VLOOKUP(B110,'KAYIT LİSTESİ'!$B$4:$H$788,5,0)),"",(VLOOKUP(B110,'KAYIT LİSTESİ'!$B$4:$H$788,5,0))) -> MURAT GÜN | F110: =IF(ISERROR(VLOOKUP(B110,'KAYIT LİSTESİ'!$B$4:$H$788,6,0)),"",(VLOOKUP(B110,'KAYIT LİSTESİ'!$B$4:$H$788,6,0))) -> KOCAELİ | J110: 35 | K110: GÜLLE-35 | L110: =IF(ISERROR(VLOOKUP(K110,'KAYIT LİSTESİ'!$B$4:$H$788,2,0)),"",(VLOOKUP(K110,'KAYIT LİSTESİ'!$B$4:$H$788,2,0))) ->  | M110: =IF(ISERROR(VLOOKUP(K110,'KAYIT LİSTESİ'!$B$4:$H$788,4,0)),"",(VLOOKUP(K110,'KAYIT LİSTESİ'!$B$4:$H$788,4,0))) ->  | N110: =IF(ISERROR(VLOOKUP(K110,'KAYIT LİSTESİ'!$B$4:$H$788,5,0)),"",(VLOOKUP(K110,'KAYIT LİSTESİ'!$B$4:$H$788,5,0))) ->  | O110: =IF(ISERROR(VLOOKUP(K110,'KAYIT LİSTESİ'!$B$4:$H$788,6,0)),"",(VLOOKUP(K110,'KAYIT LİSTESİ'!$B$4:$H$788,6,0))) -> 
A111: 9 | B111: 1500M-2-9 | C111: =IF(ISERROR(VLOOKUP(B111,'KAYIT LİSTESİ'!$B$4:$H$788,2,0)),"",(VLOOKUP(B111,'KAYIT LİSTESİ'!$B$4:$H$788,2,0))) -> 348 | D111: =IF(ISERROR(VLOOKUP(B111,'KAYIT LİSTESİ'!$B$4:$H$788,4,0)),"",(VLOOKUP(B111,'KAYIT LİSTESİ'!$B$4:$H$788,4,0))) -> 2002-10-30 | E111: =IF(ISERROR(VLOOKUP(B111,'KAYIT LİSTESİ'!$B$4:$H$788,5,0)),"",(VLOOKUP(B111,'KAYIT LİSTESİ'!$B$4:$H$788,5,0))) -> FAİK ÖLMEZ | F111: =IF(ISERROR(VLOOKUP(B111,'KAYIT LİSTESİ'!$B$4:$H$788,6,0)),"",(VLOOKUP(B111,'KAYIT LİSTESİ'!$B$4:$H$788,6,0))) -> ISPARTA | J111: 36 | K111: GÜLLE-36 | L111: =IF(ISERROR(VLOOKUP(K111,'KAYIT LİSTESİ'!$B$4:$H$788,2,0)),"",(VLOOKUP(K111,'KAYIT LİSTESİ'!$B$4:$H$788,2,0))) ->  | M111: =IF(ISERROR(VLOOKUP(K111,'KAYIT LİSTESİ'!$B$4:$H$788,4,0)),"",(VLOOKUP(K111,'KAYIT LİSTESİ'!$B$4:$H$788,4,0))) ->  | N111: =IF(ISERROR(VLOOKUP(K111,'KAYIT LİSTESİ'!$B$4:$H$788,5,0)),"",(VLOOKUP(K111,'KAYIT LİSTESİ'!$B$4:$H$788,5,0))) ->  | O111: =IF(ISERROR(VLOOKUP(K111,'KAYIT LİSTESİ'!$B$4:$H$788,6,0)),"",(VLOOKUP(K111,'KAYIT LİSTESİ'!$B$4:$H$788,6,0))) -> 
A112: 10 | B112: 1500M-2-10 | C112: =IF(ISERROR(VLOOKUP(B112,'KAYIT LİSTESİ'!$B$4:$H$788,2,0)),"",(VLOOKUP(B112,'KAYIT LİSTESİ'!$B$4:$H$788,2,0))) -> 282 | D112: =IF(ISERROR(VLOOKUP(B112,'KAYIT LİSTESİ'!$B$4:$H$788,4,0)),"",(VLOOKUP(B112,'KAYIT LİSTESİ'!$B$4:$H$788,4,0))) -> 2002-01-01 | E112: =IF(ISERROR(VLOOKUP(B112,'KAYIT LİSTESİ'!$B$4:$H$788,5,0)),"",(VLOOKUP(B112,'KAYIT LİSTESİ'!$B$4:$H$788,5,0))) -> MUSTAFA BAKIR | F112: =IF(ISERROR(VLOOKUP(B112,'KAYIT LİSTESİ'!$B$4:$H$788,6,0)),"",(VLOOKUP(B112,'KAYIT LİSTESİ'!$B$4:$H$788,6,0))) -> GAZİANTEP | J112: 37 | K112: GÜLLE-37 | L112: =IF(ISERROR(VLOOKUP(K112,'KAYIT LİSTESİ'!$B$4:$H$788,2,0)),"",(VLOOKUP(K112,'KAYIT LİSTESİ'!$B$4:$H$788,2,0))) ->  | M112: =IF(ISERROR(VLOOKUP(K112,'KAYIT LİSTESİ'!$B$4:$H$788,4,0)),"",(VLOOKUP(K112,'KAYIT LİSTESİ'!$B$4:$H$788,4,0))) ->  | N112: =IF(ISERROR(VLOOKUP(K112,'KAYIT LİSTESİ'!$B$4:$H$788,5,0)),"",(VLOOKUP(K112,'KAYIT LİSTESİ'!$B$4:$H$788,5,0))) ->  | O112: =IF(ISERROR(VLOOKUP(K112,'KAYIT LİSTESİ'!$B$4:$H$788,6,0)),"",(VLOOKUP(K112,'KAYIT LİSTESİ'!$B$4:$H$788,6,0))) -> 
A113: 11 | B113: 1500M-2-11 | C113: =IF(ISERROR(VLOOKUP(B113,'KAYIT LİSTESİ'!$B$4:$H$788,2,0)),"",(VLOOKUP(B113,'KAYIT LİSTESİ'!$B$4:$H$788,2,0))) -> 734 | D113: =IF(ISERROR(VLOOKUP(B113,'KAYIT LİSTESİ'!$B$4:$H$788,4,0)),"",(VLOOKUP(B113,'KAYIT LİSTESİ'!$B$4:$H$788,4,0))) -> 2002-03-28 | E113: =IF(ISERROR(VLOOKUP(B113,'KAYIT LİSTESİ'!$B$4:$H$788,5,0)),"",(VLOOKUP(B113,'KAYIT LİSTESİ'!$B$4:$H$788,5,0))) -> BARTU AYDOĞAN | F113: =IF(ISERROR(VLOOKUP(B113,'KAYIT LİSTESİ'!$B$4:$H$788,6,0)),"",(VLOOKUP(B113,'KAYIT LİSTESİ'!$B$4:$H$788,6,0))) -> BURSA | J113: 38 | K113: GÜLLE-38 | L113: =IF(ISERROR(VLOOKUP(K113,'KAYIT LİSTESİ'!$B$4:$H$788,2,0)),"",(VLOOKUP(K113,'KAYIT LİSTESİ'!$B$4:$H$788,2,0))) ->  | M113: =IF(ISERROR(VLOOKUP(K113,'KAYIT LİSTESİ'!$B$4:$H$788,4,0)),"",(VLOOKUP(K113,'KAYIT LİSTESİ'!$B$4:$H$788,4,0))) ->  | N113: =IF(ISERROR(VLOOKUP(K113,'KAYIT LİSTESİ'!$B$4:$H$788,5,0)),"",(VLOOKUP(K113,'KAYIT LİSTESİ'!$B$4:$H$788,5,0))) ->  | O113: =IF(ISERROR(VLOOKUP(K113,'KAYIT LİSTESİ'!$B$4:$H$788,6,0)),"",(VLOOKUP(K113,'KAYIT LİSTESİ'!$B$4:$H$788,6,0))) -> 
A114: 12 | B114: 1500M-2-12 | C114: =IF(ISERROR(VLOOKUP(B114,'KAYIT LİSTESİ'!$B$4:$H$788,2,0)),"",(VLOOKUP(B114,'KAYIT LİSTESİ'!$B$4:$H$788,2,0))) -> 233 | D114: =IF(ISERROR(VLOOKUP(B114,'KAYIT LİSTESİ'!$B$4:$H$788,4,0)),"",(VLOOKUP(B114,'KAYIT LİSTESİ'!$B$4:$H$788,4,0))) -> 2002-01-01 | E114: =IF(ISERROR(VLOOKUP(B114,'KAYIT LİSTESİ'!$B$4:$H$788,5,0)),"",(VLOOKUP(B114,'KAYIT LİSTESİ'!$B$4:$H$788,5,0))) -> ÖMER İÇLEK | F114: =IF(ISERROR(VLOOKUP(B114,'KAYIT LİSTESİ'!$B$4:$H$788,6,0)),"",(VLOOKUP(B114,'KAYIT LİSTESİ'!$B$4:$H$788,6,0))) -> DİYARBAKIR | J114: 39 | K114: GÜLLE-39 | L114: =IF(ISERROR(VLOOKUP(K114,'KAYIT LİSTESİ'!$B$4:$H$788,2,0)),"",(VLOOKUP(K114,'KAYIT LİSTESİ'!$B$4:$H$788,2,0))) ->  | M114: =IF(ISERROR(VLOOKUP(K114,'KAYIT LİSTESİ'!$B$4:$H$788,4,0)),"",(VLOOKUP(K114,'KAYIT LİSTESİ'!$B$4:$H$788,4,0))) ->  | N114: =IF(ISERROR(VLOOKUP(K114,'KAYIT LİSTESİ'!$B$4:$H$788,5,0)),"",(VLOOKUP(K114,'KAYIT LİSTESİ'!$B$4:$H$788,5,0))) ->  | O114: =IF(ISERROR(VLOOKUP(K114,'KAYIT LİSTESİ'!$B$4:$H$788,6,0)),"",(VLOOKUP(K114,'KAYIT LİSTESİ'!$B$4:$H$788,6,0))) -> 
A115: 3. SERİ | J115: 40 | K115: GÜLLE-40 | L115: =IF(ISERROR(VLOOKUP(K115,'KAYIT LİSTESİ'!$B$4:$H$788,2,0)),"",(VLOOKUP(K115,'KAYIT LİSTESİ'!$B$4:$H$788,2,0))) ->  | M115: =IF(ISERROR(VLOOKUP(K115,'KAYIT LİSTESİ'!$B$4:$H$788,4,0)),"",(VLOOKUP(K115,'KAYIT LİSTESİ'!$B$4:$H$788,4,0))) ->  | N115: =IF(ISERROR(VLOOKUP(K115,'KAYIT LİSTESİ'!$B$4:$H$788,5,0)),"",(VLOOKUP(K115,'KAYIT LİSTESİ'!$B$4:$H$788,5,0))) ->  | O115: =IF(ISERROR(VLOOKUP(K115,'KAYIT LİSTESİ'!$B$4:$H$788,6,0)),"",(VLOOKUP(K115,'KAYIT LİSTESİ'!$B$4:$H$788,6,0))) -> 
A116: Sıra No | B116: Formül | C116: Göğüs No | D116: Doğum Tarihi | E116: Adı ve Soyadı | F116: Okulu | G116: Start Kontrol | J116: UZUN ATLAMA
A117: 1 | B117: 1500M-3-1 | C117: =IF(ISERROR(VLOOKUP(B117,'KAYIT LİSTESİ'!$B$4:$H$788,2,0)),"",(VLOOKUP(B117,'KAYIT LİSTESİ'!$B$4:$H$788,2,0))) -> 551 | D117: =IF(ISERROR(VLOOKUP(B117,'KAYIT LİSTESİ'!$B$4:$H$788,4,0)),"",(VLOOKUP(B117,'KAYIT LİSTESİ'!$B$4:$H$788,4,0))) -> 2002-01-01 | E117: =IF(ISERROR(VLOOKUP(B117,'KAYIT LİSTESİ'!$B$4:$H$788,5,0)),"",(VLOOKUP(B117,'KAYIT LİSTESİ'!$B$4:$H$788,5,0))) -> HALİT GÜNGÖR | F117: =IF(ISERROR(VLOOKUP(B117,'KAYIT LİSTESİ'!$B$4:$H$788,6,0)),"",(VLOOKUP(B117,'KAYIT LİSTESİ'!$B$4:$H$788,6,0))) -> KÜTAHYA | J117: SIRA NO | L117: GÖĞÜS NO | M117: DOĞUM TARİHİ | N117: ADI VE SOYADI | O117: OKULU | P117: Start Kontrol
A118: 2 | B118: 1500M-3-2 | C118: =IF(ISERROR(VLOOKUP(B118,'KAYIT LİSTESİ'!$B$4:$H$788,2,0)),"",(VLOOKUP(B118,'KAYIT LİSTESİ'!$B$4:$H$788,2,0))) ->  | D118: =IF(ISERROR(VLOOKUP(B118,'KAYIT LİSTESİ'!$B$4:$H$788,4,0)),"",(VLOOKUP(B118,'KAYIT LİSTESİ'!$B$4:$H$788,4,0))) ->  | E118: =IF(ISERROR(VLOOKUP(B118,'KAYIT LİSTESİ'!$B$4:$H$788,5,0)),"",(VLOOKUP(B118,'KAYIT LİSTESİ'!$B$4:$H$788,5,0))) ->  | F118: =IF(ISERROR(VLOOKUP(B118,'KAYIT LİSTESİ'!$B$4:$H$788,6,0)),"",(VLOOKUP(B118,'KAYIT LİSTESİ'!$B$4:$H$788,6,0))) -> 
A119: 3 | B119: 1500M-3-3 | C119: =IF(ISERROR(VLOOKUP(B119,'KAYIT LİSTESİ'!$B$4:$H$788,2,0)),"",(VLOOKUP(B119,'KAYIT LİSTESİ'!$B$4:$H$788,2,0))) -> 111 | D119: =IF(ISERROR(VLOOKUP(B119,'KAYIT LİSTESİ'!$B$4:$H$788,4,0)),"",(VLOOKUP(B119,'KAYIT LİSTESİ'!$B$4:$H$788,4,0))) -> 2002-09-24 | E119: =IF(ISERROR(VLOOKUP(B119,'KAYIT LİSTESİ'!$B$4:$H$788,5,0)),"",(VLOOKUP(B119,'KAYIT LİSTESİ'!$B$4:$H$788,5,0))) -> OĞUZHAN KOŞAR | F119: =IF(ISERROR(VLOOKUP(B119,'KAYIT LİSTESİ'!$B$4:$H$788,6,0)),"",(VLOOKUP(B119,'KAYIT LİSTESİ'!$B$4:$H$788,6,0))) -> BALIKESİR | J119: 1 | K119: UZUN-1 | L119: =IF(ISERROR(VLOOKUP(K119,'KAYIT LİSTESİ'!$B$4:$H$788,2,0)),"",(VLOOKUP(K119,'KAYIT LİSTESİ'!$B$4:$H$788,2,0))) ->  | M119: =IF(ISERROR(VLOOKUP(K119,'KAYIT LİSTESİ'!$B$4:$H$788,4,0)),"",(VLOOKUP(K119,'KAYIT LİSTESİ'!$B$4:$H$788,4,0))) ->  | N119: =IF(ISERROR(VLOOKUP(K119,'KAYIT LİSTESİ'!$B$4:$H$788,5,0)),"",(VLOOKUP(K119,'KAYIT LİSTESİ'!$B$4:$H$788,5,0))) ->  | O119: =IF(ISERROR(VLOOKUP(K119,'KAYIT LİSTESİ'!$B$4:$H$788,6,0)),"",(VLOOKUP(K119,'KAYIT LİSTESİ'!$B$4:$H$788,6,0))) -> 
A120: 4 | B120: 1500M-3-4 | C120: =IF(ISERROR(VLOOKUP(B120,'KAYIT LİSTESİ'!$B$4:$H$788,2,0)),"",(VLOOKUP(B120,'KAYIT LİSTESİ'!$B$4:$H$788,2,0))) -> 112 | D120: =IF(ISERROR(VLOOKUP(B120,'KAYIT LİSTESİ'!$B$4:$H$788,4,0)),"",(VLOOKUP(B120,'KAYIT LİSTESİ'!$B$4:$H$788,4,0))) -> 2002-11-25 | E120: =IF(ISERROR(VLOOKUP(B120,'KAYIT LİSTESİ'!$B$4:$H$788,5,0)),"",(VLOOKUP(B120,'KAYIT LİSTESİ'!$B$4:$H$788,5,0))) -> BEYCAN DELİGÖZ | F120: =IF(ISERROR(VLOOKUP(B120,'KAYIT LİSTESİ'!$B$4:$H$788,6,0)),"",(VLOOKUP(B120,'KAYIT LİSTESİ'!$B$4:$H$788,6,0))) -> BALIKESİR | J120: 2 | K120: UZUN-2 | L120: =IF(ISERROR(VLOOKUP(K120,'KAYIT LİSTESİ'!$B$4:$H$788,2,0)),"",(VLOOKUP(K120,'KAYIT LİSTESİ'!$B$4:$H$788,2,0))) ->  | M120: =IF(ISERROR(VLOOKUP(K120,'KAYIT LİSTESİ'!$B$4:$H$788,4,0)),"",(VLOOKUP(K120,'KAYIT LİSTESİ'!$B$4:$H$788,4,0))) ->  | N120: =IF(ISERROR(VLOOKUP(K120,'KAYIT LİSTESİ'!$B$4:$H$788,5,0)),"",(VLOOKUP(K120,'KAYIT LİSTESİ'!$B$4:$H$788,5,0))) ->  | O120: =IF(ISERROR(VLOOKUP(K120,'KAYIT LİSTESİ'!$B$4:$H$788,6,0)),"",(VLOOKUP(K120,'KAYIT LİSTESİ'!$B$4:$H$788,6,0))) -> 
A121: 5 | B121: 1500M-3-5 | C121: =IF(ISERROR(VLOOKUP(B121,'KAYIT LİSTESİ'!$B$4:$H$788,2,0)),"",(VLOOKUP(B121,'KAYIT LİSTESİ'!$B$4:$H$788,2,0))) -> 174 | D121: =IF(ISERROR(VLOOKUP(B121,'KAYIT LİSTESİ'!$B$4:$H$788,4,0)),"",(VLOOKUP(B121,'KAYIT LİSTESİ'!$B$4:$H$788,4,0))) -> 2002-01-01 | E121: =IF(ISERROR(VLOOKUP(B121,'KAYIT LİSTESİ'!$B$4:$H$788,5,0)),"",(VLOOKUP(B121,'KAYIT LİSTESİ'!$B$4:$H$788,5,0))) -> NİHAT BİRGİN | F121: =IF(ISERROR(VLOOKUP(B121,'KAYIT LİSTESİ'!$B$4:$H$788,6,0)),"",(VLOOKUP(B121,'KAYIT LİSTESİ'!$B$4:$H$788,6,0))) -> BİNGÖL | J121: 3 | K121: UZUN-3 | L121: =IF(ISERROR(VLOOKUP(K121,'KAYIT LİSTESİ'!$B$4:$H$788,2,0)),"",(VLOOKUP(K121,'KAYIT LİSTESİ'!$B$4:$H$788,2,0))) ->  | M121: =IF(ISERROR(VLOOKUP(K121,'KAYIT LİSTESİ'!$B$4:$H$788,4,0)),"",(VLOOKUP(K121,'KAYIT LİSTESİ'!$B$4:$H$788,4,0))) ->  | N121: =IF(ISERROR(VLOOKUP(K121,'KAYIT LİSTESİ'!$B$4:$H$788,5,0)),"",(VLOOKUP(K121,'KAYIT LİSTESİ'!$B$4:$H$788,5,0))) ->  | O121: =IF(ISERROR(VLOOKUP(K121,'KAYIT LİSTESİ'!$B$4:$H$788,6,0)),"",(VLOOKUP(K121,'KAYIT LİSTESİ'!$B$4:$H$788,6,0))) -> 
A122: 6 | B122: 1500M-3-6 | C122: =IF(ISERROR(VLOOKUP(B122,'KAYIT LİSTESİ'!$B$4:$H$788,2,0)),"",(VLOOKUP(B122,'KAYIT LİSTESİ'!$B$4:$H$788,2,0))) -> 127 | D122: =IF(ISERROR(VLOOKUP(B122,'KAYIT LİSTESİ'!$B$4:$H$788,4,0)),"",(VLOOKUP(B122,'KAYIT LİSTESİ'!$B$4:$H$788,4,0))) -> 2002-12-26 | E122: =IF(ISERROR(VLOOKUP(B122,'KAYIT LİSTESİ'!$B$4:$H$788,5,0)),"",(VLOOKUP(B122,'KAYIT LİSTESİ'!$B$4:$H$788,5,0))) -> ALPER RIZA BASAN | F122: =IF(ISERROR(VLOOKUP(B122,'KAYIT LİSTESİ'!$B$4:$H$788,6,0)),"",(VLOOKUP(B122,'KAYIT LİSTESİ'!$B$4:$H$788,6,0))) -> BARTIN | J122: 4 | K122: UZUN-4 | L122: =IF(ISERROR(VLOOKUP(K122,'KAYIT LİSTESİ'!$B$4:$H$788,2,0)),"",(VLOOKUP(K122,'KAYIT LİSTESİ'!$B$4:$H$788,2,0))) ->  | M122: =IF(ISERROR(VLOOKUP(K122,'KAYIT LİSTESİ'!$B$4:$H$788,4,0)),"",(VLOOKUP(K122,'KAYIT LİSTESİ'!$B$4:$H$788,4,0))) ->  | N122: =IF(ISERROR(VLOOKUP(K122,'KAYIT LİSTESİ'!$B$4:$H$788,5,0)),"",(VLOOKUP(K122,'KAYIT LİSTESİ'!$B$4:$H$788,5,0))) ->  | O122: =IF(ISERROR(VLOOKUP(K122,'KAYIT LİSTESİ'!$B$4:$H$788,6,0)),"",(VLOOKUP(K122,'KAYIT LİSTESİ'!$B$4:$H$788,6,0))) -> 
A123: 7 | B123: 1500M-3-7 | C123: =IF(ISERROR(VLOOKUP(B123,'KAYIT LİSTESİ'!$B$4:$H$788,2,0)),"",(VLOOKUP(B123,'KAYIT LİSTESİ'!$B$4:$H$788,2,0))) -> 168 | D123: =IF(ISERROR(VLOOKUP(B123,'KAYIT LİSTESİ'!$B$4:$H$788,4,0)),"",(VLOOKUP(B123,'KAYIT LİSTESİ'!$B$4:$H$788,4,0))) -> 2002-01-01 | E123: =IF(ISERROR(VLOOKUP(B123,'KAYIT LİSTESİ'!$B$4:$H$788,5,0)),"",(VLOOKUP(B123,'KAYIT LİSTESİ'!$B$4:$H$788,5,0))) -> UMUT DÖĞÜM | F123: =IF(ISERROR(VLOOKUP(B123,'KAYIT LİSTESİ'!$B$4:$H$788,6,0)),"",(VLOOKUP(B123,'KAYIT LİSTESİ'!$B$4:$H$788,6,0))) -> BİNGÖL | J123: 5 | K123: UZUN-5 | L123: =IF(ISERROR(VLOOKUP(K123,'KAYIT LİSTESİ'!$B$4:$H$788,2,0)),"",(VLOOKUP(K123,'KAYIT LİSTESİ'!$B$4:$H$788,2,0))) ->  | M123: =IF(ISERROR(VLOOKUP(K123,'KAYIT LİSTESİ'!$B$4:$H$788,4,0)),"",(VLOOKUP(K123,'KAYIT LİSTESİ'!$B$4:$H$788,4,0))) ->  | N123: =IF(ISERROR(VLOOKUP(K123,'KAYIT LİSTESİ'!$B$4:$H$788,5,0)),"",(VLOOKUP(K123,'KAYIT LİSTESİ'!$B$4:$H$788,5,0))) ->  | O123: =IF(ISERROR(VLOOKUP(K123,'KAYIT LİSTESİ'!$B$4:$H$788,6,0)),"",(VLOOKUP(K123,'KAYIT LİSTESİ'!$B$4:$H$788,6,0))) -> 
A124: 8 | B124: 1500M-3-8 | C124: =IF(ISERROR(VLOOKUP(B124,'KAYIT LİSTESİ'!$B$4:$H$788,2,0)),"",(VLOOKUP(B124,'KAYIT LİSTESİ'!$B$4:$H$788,2,0))) -> 169 | D124: =IF(ISERROR(VLOOKUP(B124,'KAYIT LİSTESİ'!$B$4:$H$788,4,0)),"",(VLOOKUP(B124,'KAYIT LİSTESİ'!$B$4:$H$788,4,0))) -> 2002-01-01 | E124: =IF(ISERROR(VLOOKUP(B124,'KAYIT LİSTESİ'!$B$4:$H$788,5,0)),"",(VLOOKUP(B124,'KAYIT LİSTESİ'!$B$4:$H$788,5,0))) -> EYÜP YILDIRIM | F124: =IF(ISERROR(VLOOKUP(B124,'KAYIT LİSTESİ'!$B$4:$H$788,6,0)),"",(VLOOKUP(B124,'KAYIT LİSTESİ'!$B$4:$H$788,6,0))) -> BİNGÖL | J124: 6 | K124: UZUN-6 | L124: =IF(ISERROR(VLOOKUP(K124,'KAYIT LİSTESİ'!$B$4:$H$788,2,0)),"",(VLOOKUP(K124,'KAYIT LİSTESİ'!$B$4:$H$788,2,0))) ->  | M124: =IF(ISERROR(VLOOKUP(K124,'KAYIT LİSTESİ'!$B$4:$H$788,4,0)),"",(VLOOKUP(K124,'KAYIT LİSTESİ'!$B$4:$H$788,4,0))) ->  | N124: =IF(ISERROR(VLOOKUP(K124,'KAYIT LİSTESİ'!$B$4:$H$788,5,0)),"",(VLOOKUP(K124,'KAYIT LİSTESİ'!$B$4:$H$788,5,0))) ->  | O124: =IF(ISERROR(VLOOKUP(K124,'KAYIT LİSTESİ'!$B$4:$H$788,6,0)),"",(VLOOKUP(K124,'KAYIT LİSTESİ'!$B$4:$H$788,6,0))) -> 
A125: 9 | B125: 1500M-3-9 | C125: =IF(ISERROR(VLOOKUP(B125,'KAYIT LİSTESİ'!$B$4:$H$788,2,0)),"",(VLOOKUP(B125,'KAYIT LİSTESİ'!$B$4:$H$788,2,0))) -> 156 | D125: =IF(ISERROR(VLOOKUP(B125,'KAYIT LİSTESİ'!$B$4:$H$788,4,0)),"",(VLOOKUP(B125,'KAYIT LİSTESİ'!$B$4:$H$788,4,0))) -> 2002-11-25 | E125: =IF(ISERROR(VLOOKUP(B125,'KAYIT LİSTESİ'!$B$4:$H$788,5,0)),"",(VLOOKUP(B125,'KAYIT LİSTESİ'!$B$4:$H$788,5,0))) -> ABDÜLKADİR TAŞKIRAN | F125: =IF(ISERROR(VLOOKUP(B125,'KAYIT LİSTESİ'!$B$4:$H$788,6,0)),"",(VLOOKUP(B125,'KAYIT LİSTESİ'!$B$4:$H$788,6,0))) -> BİLECİK | J125: 7 | K125: UZUN-7 | L125: =IF(ISERROR(VLOOKUP(K125,'KAYIT LİSTESİ'!$B$4:$H$788,2,0)),"",(VLOOKUP(K125,'KAYIT LİSTESİ'!$B$4:$H$788,2,0))) ->  | M125: =IF(ISERROR(VLOOKUP(K125,'KAYIT LİSTESİ'!$B$4:$H$788,4,0)),"",(VLOOKUP(K125,'KAYIT LİSTESİ'!$B$4:$H$788,4,0))) ->  | N125: =IF(ISERROR(VLOOKUP(K125,'KAYIT LİSTESİ'!$B$4:$H$788,5,0)),"",(VLOOKUP(K125,'KAYIT LİSTESİ'!$B$4:$H$788,5,0))) ->  | O125: =IF(ISERROR(VLOOKUP(K125,'KAYIT LİSTESİ'!$B$4:$H$788,6,0)),"",(VLOOKUP(K125,'KAYIT LİSTESİ'!$B$4:$H$788,6,0))) -> 
A126: 10 | B126: 1500M-3-10 | C126: =IF(ISERROR(VLOOKUP(B126,'KAYIT LİSTESİ'!$B$4:$H$788,2,0)),"",(VLOOKUP(B126,'KAYIT LİSTESİ'!$B$4:$H$788,2,0))) -> 170 | D126: =IF(ISERROR(VLOOKUP(B126,'KAYIT LİSTESİ'!$B$4:$H$788,4,0)),"",(VLOOKUP(B126,'KAYIT LİSTESİ'!$B$4:$H$788,4,0))) -> 2002-01-01 | E126: =IF(ISERROR(VLOOKUP(B126,'KAYIT LİSTESİ'!$B$4:$H$788,5,0)),"",(VLOOKUP(B126,'KAYIT LİSTESİ'!$B$4:$H$788,5,0))) -> HALİT ÇAKAR | F126: =IF(ISERROR(VLOOKUP(B126,'KAYIT LİSTESİ'!$B$4:$H$788,6,0)),"",(VLOOKUP(B126,'KAYIT LİSTESİ'!$B$4:$H$788,6,0))) -> BİNGÖL | J126: 8 | K126: UZUN-8 | L126: =IF(ISERROR(VLOOKUP(K126,'KAYIT LİSTESİ'!$B$4:$H$788,2,0)),"",(VLOOKUP(K126,'KAYIT LİSTESİ'!$B$4:$H$788,2,0))) ->  | M126: =IF(ISERROR(VLOOKUP(K126,'KAYIT LİSTESİ'!$B$4:$H$788,4,0)),"",(VLOOKUP(K126,'KAYIT LİSTESİ'!$B$4:$H$788,4,0))) ->  | N126: =IF(ISERROR(VLOOKUP(K126,'KAYIT LİSTESİ'!$B$4:$H$788,5,0)),"",(VLOOKUP(K126,'KAYIT LİSTESİ'!$B$4:$H$788,5,0))) ->  | O126: =IF(ISERROR(VLOOKUP(K126,'KAYIT LİSTESİ'!$B$4:$H$788,6,0)),"",(VLOOKUP(K126,'KAYIT LİSTESİ'!$B$4:$H$788,6,0))) -> 
A127: 11 | B127: 1500M-3-11 | C127: =IF(ISERROR(VLOOKUP(B127,'KAYIT LİSTESİ'!$B$4:$H$788,2,0)),"",(VLOOKUP(B127,'KAYIT LİSTESİ'!$B$4:$H$788,2,0))) -> 128 | D127: =IF(ISERROR(VLOOKUP(B127,'KAYIT LİSTESİ'!$B$4:$H$788,4,0)),"",(VLOOKUP(B127,'KAYIT LİSTESİ'!$B$4:$H$788,4,0))) -> 2002-02-16 | E127: =IF(ISERROR(VLOOKUP(B127,'KAYIT LİSTESİ'!$B$4:$H$788,5,0)),"",(VLOOKUP(B127,'KAYIT LİSTESİ'!$B$4:$H$788,5,0))) -> ENİS ÖZDEMİR | F127: =IF(ISERROR(VLOOKUP(B127,'KAYIT LİSTESİ'!$B$4:$H$788,6,0)),"",(VLOOKUP(B127,'KAYIT LİSTESİ'!$B$4:$H$788,6,0))) -> BARTIN | J127: 9 | K127: UZUN-9 | L127: =IF(ISERROR(VLOOKUP(K127,'KAYIT LİSTESİ'!$B$4:$H$788,2,0)),"",(VLOOKUP(K127,'KAYIT LİSTESİ'!$B$4:$H$788,2,0))) ->  | M127: =IF(ISERROR(VLOOKUP(K127,'KAYIT LİSTESİ'!$B$4:$H$788,4,0)),"",(VLOOKUP(K127,'KAYIT LİSTESİ'!$B$4:$H$788,4,0))) ->  | N127: =IF(ISERROR(VLOOKUP(K127,'KAYIT LİSTESİ'!$B$4:$H$788,5,0)),"",(VLOOKUP(K127,'KAYIT LİSTESİ'!$B$4:$H$788,5,0))) ->  | O127: =IF(ISERROR(VLOOKUP(K127,'KAYIT LİSTESİ'!$B$4:$H$788,6,0)),"",(VLOOKUP(K127,'KAYIT LİSTESİ'!$B$4:$H$788,6,0))) -> 
A128: 12 | B128: 1500M-3-12 | C128: =IF(ISERROR(VLOOKUP(B128,'KAYIT LİSTESİ'!$B$4:$H$788,2,0)),"",(VLOOKUP(B128,'KAYIT LİSTESİ'!$B$4:$H$788,2,0))) ->  | D128: =IF(ISERROR(VLOOKUP(B128,'KAYIT LİSTESİ'!$B$4:$H$788,4,0)),"",(VLOOKUP(B128,'KAYIT LİSTESİ'!$B$4:$H$788,4,0))) ->  | E128: =IF(ISERROR(VLOOKUP(B128,'KAYIT LİSTESİ'!$B$4:$H$788,5,0)),"",(VLOOKUP(B128,'KAYIT LİSTESİ'!$B$4:$H$788,5,0))) ->  | F128: =IF(ISERROR(VLOOKUP(B128,'KAYIT LİSTESİ'!$B$4:$H$788,6,0)),"",(VLOOKUP(B128,'KAYIT LİSTESİ'!$B$4:$H$788,6,0))) ->  | J128: 10 | K128: UZUN-10 | L128: =IF(ISERROR(VLOOKUP(K128,'KAYIT LİSTESİ'!$B$4:$H$788,2,0)),"",(VLOOKUP(K128,'KAYIT LİSTESİ'!$B$4:$H$788,2,0))) ->  | M128: =IF(ISERROR(VLOOKUP(K128,'KAYIT LİSTESİ'!$B$4:$H$788,4,0)),"",(VLOOKUP(K128,'KAYIT LİSTESİ'!$B$4:$H$788,4,0))) ->  | N128: =IF(ISERROR(VLOOKUP(K128,'KAYIT LİSTESİ'!$B$4:$H$788,5,0)),"",(VLOOKUP(K128,'KAYIT LİSTESİ'!$B$4:$H$788,5,0))) ->  | O128: =IF(ISERROR(VLOOKUP(K128,'KAYIT LİSTESİ'!$B$4:$H$788,6,0)),"",(VLOOKUP(K128,'KAYIT LİSTESİ'!$B$4:$H$788,6,0))) -> 
A129: 4. SERİ | J129: 11 | K129: UZUN-11 | L129: =IF(ISERROR(VLOOKUP(K129,'KAYIT LİSTESİ'!$B$4:$H$788,2,0)),"",(VLOOKUP(K129,'KAYIT LİSTESİ'!$B$4:$H$788,2,0))) ->  | M129: =IF(ISERROR(VLOOKUP(K129,'KAYIT LİSTESİ'!$B$4:$H$788,4,0)),"",(VLOOKUP(K129,'KAYIT LİSTESİ'!$B$4:$H$788,4,0))) ->  | N129: =IF(ISERROR(VLOOKUP(K129,'KAYIT LİSTESİ'!$B$4:$H$788,5,0)),"",(VLOOKUP(K129,'KAYIT LİSTESİ'!$B$4:$H$788,5,0))) ->  | O129: =IF(ISERROR(VLOOKUP(K129,'KAYIT LİSTESİ'!$B$4:$H$788,6,0)),"",(VLOOKUP(K129,'KAYIT LİSTESİ'!$B$4:$H$788,6,0))) -> 
A130: Sıra No | B130: Formül | C130: Göğüs No | D130: Doğum Tarihi | E130: Adı ve Soyadı | F130: Okulu | G130: Start Kontrol | J130: 12 | K130: UZUN-12 | L130: =IF(ISERROR(VLOOKUP(K130,'KAYIT LİSTESİ'!$B$4:$H$788,2,0)),"",(VLOOKUP(K130,'KAYIT LİSTESİ'!$B$4:$H$788,2,0))) ->  | M130: =IF(ISERROR(VLOOKUP(K130,'KAYIT LİSTESİ'!$B$4:$H$788,4,0)),"",(VLOOKUP(K130,'KAYIT LİSTESİ'!$B$4:$H$788,4,0))) ->  | N130: =IF(ISERROR(VLOOKUP(K130,'KAYIT LİSTESİ'!$B$4:$H$788,5,0)),"",(VLOOKUP(K130,'KAYIT LİSTESİ'!$B$4:$H$788,5,0))) ->  | O130: =IF(ISERROR(VLOOKUP(K130,'KAYIT LİSTESİ'!$B$4:$H$788,6,0)),"",(VLOOKUP(K130,'KAYIT LİSTESİ'!$B$4:$H$788,6,0))) -> 
A131: 1 | B131: 1500M-4-1 | C131: =IF(ISERROR(VLOOKUP(B131,'KAYIT LİSTESİ'!$B$4:$H$788,2,0)),"",(VLOOKUP(B131,'KAYIT LİSTESİ'!$B$4:$H$788,2,0))) -> 600 | D131: =IF(ISERROR(VLOOKUP(B131,'KAYIT LİSTESİ'!$B$4:$H$788,4,0)),"",(VLOOKUP(B131,'KAYIT LİSTESİ'!$B$4:$H$788,4,0))) -> 2002-11-21 | E131: =IF(ISERROR(VLOOKUP(B131,'KAYIT LİSTESİ'!$B$4:$H$788,5,0)),"",(VLOOKUP(B131,'KAYIT LİSTESİ'!$B$4:$H$788,5,0))) -> MELİH ÇOPUR | F131: =IF(ISERROR(VLOOKUP(B131,'KAYIT LİSTESİ'!$B$4:$H$788,6,0)),"",(VLOOKUP(B131,'KAYIT LİSTESİ'!$B$4:$H$788,6,0))) -> NEVŞEHİR | J131: 13 | K131: UZUN-13 | L131: =IF(ISERROR(VLOOKUP(K131,'KAYIT LİSTESİ'!$B$4:$H$788,2,0)),"",(VLOOKUP(K131,'KAYIT LİSTESİ'!$B$4:$H$788,2,0))) ->  | M131: =IF(ISERROR(VLOOKUP(K131,'KAYIT LİSTESİ'!$B$4:$H$788,4,0)),"",(VLOOKUP(K131,'KAYIT LİSTESİ'!$B$4:$H$788,4,0))) ->  | N131: =IF(ISERROR(VLOOKUP(K131,'KAYIT LİSTESİ'!$B$4:$H$788,5,0)),"",(VLOOKUP(K131,'KAYIT LİSTESİ'!$B$4:$H$788,5,0))) ->  | O131: =IF(ISERROR(VLOOKUP(K131,'KAYIT LİSTESİ'!$B$4:$H$788,6,0)),"",(VLOOKUP(K131,'KAYIT LİSTESİ'!$B$4:$H$788,6,0))) -> 
A132: 2 | B132: 1500M-4-2 | C132: =IF(ISERROR(VLOOKUP(B132,'KAYIT LİSTESİ'!$B$4:$H$788,2,0)),"",(VLOOKUP(B132,'KAYIT LİSTESİ'!$B$4:$H$788,2,0))) -> 28 | D132: =IF(ISERROR(VLOOKUP(B132,'KAYIT LİSTESİ'!$B$4:$H$788,4,0)),"",(VLOOKUP(B132,'KAYIT LİSTESİ'!$B$4:$H$788,4,0))) -> 2002-08-01 | E132: =IF(ISERROR(VLOOKUP(B132,'KAYIT LİSTESİ'!$B$4:$H$788,5,0)),"",(VLOOKUP(B132,'KAYIT LİSTESİ'!$B$4:$H$788,5,0))) -> HASAN ALANTAR | F132: =IF(ISERROR(VLOOKUP(B132,'KAYIT LİSTESİ'!$B$4:$H$788,6,0)),"",(VLOOKUP(B132,'KAYIT LİSTESİ'!$B$4:$H$788,6,0))) -> ADIYAMAN | J132: 14 | K132: UZUN-14 | L132: =IF(ISERROR(VLOOKUP(K132,'KAYIT LİSTESİ'!$B$4:$H$788,2,0)),"",(VLOOKUP(K132,'KAYIT LİSTESİ'!$B$4:$H$788,2,0))) ->  | M132: =IF(ISERROR(VLOOKUP(K132,'KAYIT LİSTESİ'!$B$4:$H$788,4,0)),"",(VLOOKUP(K132,'KAYIT LİSTESİ'!$B$4:$H$788,4,0))) ->  | N132: =IF(ISERROR(VLOOKUP(K132,'KAYIT LİSTESİ'!$B$4:$H$788,5,0)),"",(VLOOKUP(K132,'KAYIT LİSTESİ'!$B$4:$H$788,5,0))) ->  | O132: =IF(ISERROR(VLOOKUP(K132,'KAYIT LİSTESİ'!$B$4:$H$788,6,0)),"",(VLOOKUP(K132,'KAYIT LİSTESİ'!$B$4:$H$788,6,0))) -> 
A133: 3 | B133: 1500M-4-3 | C133: =IF(ISERROR(VLOOKUP(B133,'KAYIT LİSTESİ'!$B$4:$H$788,2,0)),"",(VLOOKUP(B133,'KAYIT LİSTESİ'!$B$4:$H$788,2,0))) -> 601 | D133: =IF(ISERROR(VLOOKUP(B133,'KAYIT LİSTESİ'!$B$4:$H$788,4,0)),"",(VLOOKUP(B133,'KAYIT LİSTESİ'!$B$4:$H$788,4,0))) -> 2002-07-04 | E133: =IF(ISERROR(VLOOKUP(B133,'KAYIT LİSTESİ'!$B$4:$H$788,5,0)),"",(VLOOKUP(B133,'KAYIT LİSTESİ'!$B$4:$H$788,5,0))) -> ÖMER DİLDÖKEN | F133: =IF(ISERROR(VLOOKUP(B133,'KAYIT LİSTESİ'!$B$4:$H$788,6,0)),"",(VLOOKUP(B133,'KAYIT LİSTESİ'!$B$4:$H$788,6,0))) -> NEVŞEHİR | J133: 15 | K133: UZUN-15 | L133: =IF(ISERROR(VLOOKUP(K133,'KAYIT LİSTESİ'!$B$4:$H$788,2,0)),"",(VLOOKUP(K133,'KAYIT LİSTESİ'!$B$4:$H$788,2,0))) ->  | M133: =IF(ISERROR(VLOOKUP(K133,'KAYIT LİSTESİ'!$B$4:$H$788,4,0)),"",(VLOOKUP(K133,'KAYIT LİSTESİ'!$B$4:$H$788,4,0))) ->  | N133: =IF(ISERROR(VLOOKUP(K133,'KAYIT LİSTESİ'!$B$4:$H$788,5,0)),"",(VLOOKUP(K133,'KAYIT LİSTESİ'!$B$4:$H$788,5,0))) ->  | O133: =IF(ISERROR(VLOOKUP(K133,'KAYIT LİSTESİ'!$B$4:$H$788,6,0)),"",(VLOOKUP(K133,'KAYIT LİSTESİ'!$B$4:$H$788,6,0))) -> 
A134: 4 | B134: 1500M-4-4 | C134: =IF(ISERROR(VLOOKUP(B134,'KAYIT LİSTESİ'!$B$4:$H$788,2,0)),"",(VLOOKUP(B134,'KAYIT LİSTESİ'!$B$4:$H$788,2,0))) -> 26 | D134: =IF(ISERROR(VLOOKUP(B134,'KAYIT LİSTESİ'!$B$4:$H$788,4,0)),"",(VLOOKUP(B134,'KAYIT LİSTESİ'!$B$4:$H$788,4,0))) -> 2002-01-01 | E134: =IF(ISERROR(VLOOKUP(B134,'KAYIT LİSTESİ'!$B$4:$H$788,5,0)),"",(VLOOKUP(B134,'KAYIT LİSTESİ'!$B$4:$H$788,5,0))) -> MEHMET VURUCU | F134: =IF(ISERROR(VLOOKUP(B134,'KAYIT LİSTESİ'!$B$4:$H$788,6,0)),"",(VLOOKUP(B134,'KAYIT LİSTESİ'!$B$4:$H$788,6,0))) -> ADIYAMAN | J134: 16 | K134: UZUN-16 | L134: =IF(ISERROR(VLOOKUP(K134,'KAYIT LİSTESİ'!$B$4:$H$788,2,0)),"",(VLOOKUP(K134,'KAYIT LİSTESİ'!$B$4:$H$788,2,0))) ->  | M134: =IF(ISERROR(VLOOKUP(K134,'KAYIT LİSTESİ'!$B$4:$H$788,4,0)),"",(VLOOKUP(K134,'KAYIT LİSTESİ'!$B$4:$H$788,4,0))) ->  | N134: =IF(ISERROR(VLOOKUP(K134,'KAYIT LİSTESİ'!$B$4:$H$788,5,0)),"",(VLOOKUP(K134,'KAYIT LİSTESİ'!$B$4:$H$788,5,0))) ->  | O134: =IF(ISERROR(VLOOKUP(K134,'KAYIT LİSTESİ'!$B$4:$H$788,6,0)),"",(VLOOKUP(K134,'KAYIT LİSTESİ'!$B$4:$H$788,6,0))) -> 
A135: 5 | B135: 1500M-4-5 | C135: =IF(ISERROR(VLOOKUP(B135,'KAYIT LİSTESİ'!$B$4:$H$788,2,0)),"",(VLOOKUP(B135,'KAYIT LİSTESİ'!$B$4:$H$788,2,0))) -> 499 | D135: =IF(ISERROR(VLOOKUP(B135,'KAYIT LİSTESİ'!$B$4:$H$788,4,0)),"",(VLOOKUP(B135,'KAYIT LİSTESİ'!$B$4:$H$788,4,0))) -> 2002-12-17 | E135: =IF(ISERROR(VLOOKUP(B135,'KAYIT LİSTESİ'!$B$4:$H$788,5,0)),"",(VLOOKUP(B135,'KAYIT LİSTESİ'!$B$4:$H$788,5,0))) -> BEYTULLAH KAYA | F135: =IF(ISERROR(VLOOKUP(B135,'KAYIT LİSTESİ'!$B$4:$H$788,6,0)),"",(VLOOKUP(B135,'KAYIT LİSTESİ'!$B$4:$H$788,6,0))) -> KIRŞEHİR | J135: 17 | K135: UZUN-17 | L135: =IF(ISERROR(VLOOKUP(K135,'KAYIT LİSTESİ'!$B$4:$H$788,2,0)),"",(VLOOKUP(K135,'KAYIT LİSTESİ'!$B$4:$H$788,2,0))) ->  | M135: =IF(ISERROR(VLOOKUP(K135,'KAYIT LİSTESİ'!$B$4:$H$788,4,0)),"",(VLOOKUP(K135,'KAYIT LİSTESİ'!$B$4:$H$788,4,0))) ->  | N135: =IF(ISERROR(VLOOKUP(K135,'KAYIT LİSTESİ'!$B$4:$H$788,5,0)),"",(VLOOKUP(K135,'KAYIT LİSTESİ'!$B$4:$H$788,5,0))) ->  | O135: =IF(ISERROR(VLOOKUP(K135,'KAYIT LİSTESİ'!$B$4:$H$788,6,0)),"",(VLOOKUP(K135,'KAYIT LİSTESİ'!$B$4:$H$788,6,0))) -> 
A136: 6 | B136: 1500M-4-6 | C136: =IF(ISERROR(VLOOKUP(B136,'KAYIT LİSTESİ'!$B$4:$H$788,2,0)),"",(VLOOKUP(B136,'KAYIT LİSTESİ'!$B$4:$H$788,2,0))) -> 315 | D136: =IF(ISERROR(VLOOKUP(B136,'KAYIT LİSTESİ'!$B$4:$H$788,4,0)),"",(VLOOKUP(B136,'KAYIT LİSTESİ'!$B$4:$H$788,4,0))) -> 2002-09-09 | E136: =IF(ISERROR(VLOOKUP(B136,'KAYIT LİSTESİ'!$B$4:$H$788,5,0)),"",(VLOOKUP(B136,'KAYIT LİSTESİ'!$B$4:$H$788,5,0))) -> MUSTAFA TUNA | F136: =IF(ISERROR(VLOOKUP(B136,'KAYIT LİSTESİ'!$B$4:$H$788,6,0)),"",(VLOOKUP(B136,'KAYIT LİSTESİ'!$B$4:$H$788,6,0))) -> HATAY | J136: 18 | K136: UZUN-18 | L136: =IF(ISERROR(VLOOKUP(K136,'KAYIT LİSTESİ'!$B$4:$H$788,2,0)),"",(VLOOKUP(K136,'KAYIT LİSTESİ'!$B$4:$H$788,2,0))) ->  | M136: =IF(ISERROR(VLOOKUP(K136,'KAYIT LİSTESİ'!$B$4:$H$788,4,0)),"",(VLOOKUP(K136,'KAYIT LİSTESİ'!$B$4:$H$788,4,0))) ->  | N136: =IF(ISERROR(VLOOKUP(K136,'KAYIT LİSTESİ'!$B$4:$H$788,5,0)),"",(VLOOKUP(K136,'KAYIT LİSTESİ'!$B$4:$H$788,5,0))) ->  | O136: =IF(ISERROR(VLOOKUP(K136,'KAYIT LİSTESİ'!$B$4:$H$788,6,0)),"",(VLOOKUP(K136,'KAYIT LİSTESİ'!$B$4:$H$788,6,0))) -> 
A137: 7 | B137: 1500M-4-7 | C137: =IF(ISERROR(VLOOKUP(B137,'KAYIT LİSTESİ'!$B$4:$H$788,2,0)),"",(VLOOKUP(B137,'KAYIT LİSTESİ'!$B$4:$H$788,2,0))) -> 314 | D137: =IF(ISERROR(VLOOKUP(B137,'KAYIT LİSTESİ'!$B$4:$H$788,4,0)),"",(VLOOKUP(B137,'KAYIT LİSTESİ'!$B$4:$H$788,4,0))) -> 2002-02-22 | E137: =IF(ISERROR(VLOOKUP(B137,'KAYIT LİSTESİ'!$B$4:$H$788,5,0)),"",(VLOOKUP(B137,'KAYIT LİSTESİ'!$B$4:$H$788,5,0))) -> ALİ İSMAİL ÇİÇEK | F137: =IF(ISERROR(VLOOKUP(B137,'KAYIT LİSTESİ'!$B$4:$H$788,6,0)),"",(VLOOKUP(B137,'KAYIT LİSTESİ'!$B$4:$H$788,6,0))) -> HATAY | J137: 19 | K137: UZUN-19 | L137: =IF(ISERROR(VLOOKUP(K137,'KAYIT LİSTESİ'!$B$4:$H$788,2,0)),"",(VLOOKUP(K137,'KAYIT LİSTESİ'!$B$4:$H$788,2,0))) ->  | M137: =IF(ISERROR(VLOOKUP(K137,'KAYIT LİSTESİ'!$B$4:$H$788,4,0)),"",(VLOOKUP(K137,'KAYIT LİSTESİ'!$B$4:$H$788,4,0))) ->  | N137: =IF(ISERROR(VLOOKUP(K137,'KAYIT LİSTESİ'!$B$4:$H$788,5,0)),"",(VLOOKUP(K137,'KAYIT LİSTESİ'!$B$4:$H$788,5,0))) ->  | O137: =IF(ISERROR(VLOOKUP(K137,'KAYIT LİSTESİ'!$B$4:$H$788,6,0)),"",(VLOOKUP(K137,'KAYIT LİSTESİ'!$B$4:$H$788,6,0))) -> 
A138: 8 | B138: 1500M-4-8 | C138: =IF(ISERROR(VLOOKUP(B138,'KAYIT LİSTESİ'!$B$4:$H$788,2,0)),"",(VLOOKUP(B138,'KAYIT LİSTESİ'!$B$4:$H$788,2,0))) -> 322 | D138: =IF(ISERROR(VLOOKUP(B138,'KAYIT LİSTESİ'!$B$4:$H$788,4,0)),"",(VLOOKUP(B138,'KAYIT LİSTESİ'!$B$4:$H$788,4,0))) -> 2002-02-07 | E138: =IF(ISERROR(VLOOKUP(B138,'KAYIT LİSTESİ'!$B$4:$H$788,5,0)),"",(VLOOKUP(B138,'KAYIT LİSTESİ'!$B$4:$H$788,5,0))) -> EMRE KARA | F138: =IF(ISERROR(VLOOKUP(B138,'KAYIT LİSTESİ'!$B$4:$H$788,6,0)),"",(VLOOKUP(B138,'KAYIT LİSTESİ'!$B$4:$H$788,6,0))) -> HATAY | J138: 20 | K138: UZUN-20 | L138: =IF(ISERROR(VLOOKUP(K138,'KAYIT LİSTESİ'!$B$4:$H$788,2,0)),"",(VLOOKUP(K138,'KAYIT LİSTESİ'!$B$4:$H$788,2,0))) ->  | M138: =IF(ISERROR(VLOOKUP(K138,'KAYIT LİSTESİ'!$B$4:$H$788,4,0)),"",(VLOOKUP(K138,'KAYIT LİSTESİ'!$B$4:$H$788,4,0))) ->  | N138: =IF(ISERROR(VLOOKUP(K138,'KAYIT LİSTESİ'!$B$4:$H$788,5,0)),"",(VLOOKUP(K138,'KAYIT LİSTESİ'!$B$4:$H$788,5,0))) ->  | O138: =IF(ISERROR(VLOOKUP(K138,'KAYIT LİSTESİ'!$B$4:$H$788,6,0)),"",(VLOOKUP(K138,'KAYIT LİSTESİ'!$B$4:$H$788,6,0))) -> 
A139: 9 | B139: 1500M-4-9 | C139: =IF(ISERROR(VLOOKUP(B139,'KAYIT LİSTESİ'!$B$4:$H$788,2,0)),"",(VLOOKUP(B139,'KAYIT LİSTESİ'!$B$4:$H$788,2,0))) -> 83 | D139: =IF(ISERROR(VLOOKUP(B139,'KAYIT LİSTESİ'!$B$4:$H$788,4,0)),"",(VLOOKUP(B139,'KAYIT LİSTESİ'!$B$4:$H$788,4,0))) -> 2002-01-20 | E139: =IF(ISERROR(VLOOKUP(B139,'KAYIT LİSTESİ'!$B$4:$H$788,5,0)),"",(VLOOKUP(B139,'KAYIT LİSTESİ'!$B$4:$H$788,5,0))) -> ENVER VİRAN | F139: =IF(ISERROR(VLOOKUP(B139,'KAYIT LİSTESİ'!$B$4:$H$788,6,0)),"",(VLOOKUP(B139,'KAYIT LİSTESİ'!$B$4:$H$788,6,0))) -> AYDIN | J139: 21 | K139: UZUN-21 | L139: =IF(ISERROR(VLOOKUP(K139,'KAYIT LİSTESİ'!$B$4:$H$788,2,0)),"",(VLOOKUP(K139,'KAYIT LİSTESİ'!$B$4:$H$788,2,0))) ->  | M139: =IF(ISERROR(VLOOKUP(K139,'KAYIT LİSTESİ'!$B$4:$H$788,4,0)),"",(VLOOKUP(K139,'KAYIT LİSTESİ'!$B$4:$H$788,4,0))) ->  | N139: =IF(ISERROR(VLOOKUP(K139,'KAYIT LİSTESİ'!$B$4:$H$788,5,0)),"",(VLOOKUP(K139,'KAYIT LİSTESİ'!$B$4:$H$788,5,0))) ->  | O139: =IF(ISERROR(VLOOKUP(K139,'KAYIT LİSTESİ'!$B$4:$H$788,6,0)),"",(VLOOKUP(K139,'KAYIT LİSTESİ'!$B$4:$H$788,6,0))) -> 
A140: 10 | B140: 1500M-4-10 | C140: =IF(ISERROR(VLOOKUP(B140,'KAYIT LİSTESİ'!$B$4:$H$788,2,0)),"",(VLOOKUP(B140,'KAYIT LİSTESİ'!$B$4:$H$788,2,0))) -> 609 | D140: =IF(ISERROR(VLOOKUP(B140,'KAYIT LİSTESİ'!$B$4:$H$788,4,0)),"",(VLOOKUP(B140,'KAYIT LİSTESİ'!$B$4:$H$788,4,0))) -> 2002-03-06 | E140: =IF(ISERROR(VLOOKUP(B140,'KAYIT LİSTESİ'!$B$4:$H$788,5,0)),"",(VLOOKUP(B140,'KAYIT LİSTESİ'!$B$4:$H$788,5,0))) -> AKİF HANİFİOĞLU | F140: =IF(ISERROR(VLOOKUP(B140,'KAYIT LİSTESİ'!$B$4:$H$788,6,0)),"",(VLOOKUP(B140,'KAYIT LİSTESİ'!$B$4:$H$788,6,0))) -> OSMANİYE | J140: 22 | K140: UZUN-22 | L140: =IF(ISERROR(VLOOKUP(K140,'KAYIT LİSTESİ'!$B$4:$H$788,2,0)),"",(VLOOKUP(K140,'KAYIT LİSTESİ'!$B$4:$H$788,2,0))) ->  | M140: =IF(ISERROR(VLOOKUP(K140,'KAYIT LİSTESİ'!$B$4:$H$788,4,0)),"",(VLOOKUP(K140,'KAYIT LİSTESİ'!$B$4:$H$788,4,0))) ->  | N140: =IF(ISERROR(VLOOKUP(K140,'KAYIT LİSTESİ'!$B$4:$H$788,5,0)),"",(VLOOKUP(K140,'KAYIT LİSTESİ'!$B$4:$H$788,5,0))) ->  | O140: =IF(ISERROR(VLOOKUP(K140,'KAYIT LİSTESİ'!$B$4:$H$788,6,0)),"",(VLOOKUP(K140,'KAYIT LİSTESİ'!$B$4:$H$788,6,0))) -> 
A141: 11 | B141: 1500M-4-11 | C141: =IF(ISERROR(VLOOKUP(B141,'KAYIT LİSTESİ'!$B$4:$H$788,2,0)),"",(VLOOKUP(B141,'KAYIT LİSTESİ'!$B$4:$H$788,2,0))) -> 612 | D141: =IF(ISERROR(VLOOKUP(B141,'KAYIT LİSTESİ'!$B$4:$H$788,4,0)),"",(VLOOKUP(B141,'KAYIT LİSTESİ'!$B$4:$H$788,4,0))) -> 2002-10-12 | E141: =IF(ISERROR(VLOOKUP(B141,'KAYIT LİSTESİ'!$B$4:$H$788,5,0)),"",(VLOOKUP(B141,'KAYIT LİSTESİ'!$B$4:$H$788,5,0))) -> MERT YAHYA YILDIRIM | F141: =IF(ISERROR(VLOOKUP(B141,'KAYIT LİSTESİ'!$B$4:$H$788,6,0)),"",(VLOOKUP(B141,'KAYIT LİSTESİ'!$B$4:$H$788,6,0))) -> OSMANİYE | J141: 23 | K141: UZUN-23 | L141: =IF(ISERROR(VLOOKUP(K141,'KAYIT LİSTESİ'!$B$4:$H$788,2,0)),"",(VLOOKUP(K141,'KAYIT LİSTESİ'!$B$4:$H$788,2,0))) ->  | M141: =IF(ISERROR(VLOOKUP(K141,'KAYIT LİSTESİ'!$B$4:$H$788,4,0)),"",(VLOOKUP(K141,'KAYIT LİSTESİ'!$B$4:$H$788,4,0))) ->  | N141: =IF(ISERROR(VLOOKUP(K141,'KAYIT LİSTESİ'!$B$4:$H$788,5,0)),"",(VLOOKUP(K141,'KAYIT LİSTESİ'!$B$4:$H$788,5,0))) ->  | O141: =IF(ISERROR(VLOOKUP(K141,'KAYIT LİSTESİ'!$B$4:$H$788,6,0)),"",(VLOOKUP(K141,'KAYIT LİSTESİ'!$B$4:$H$788,6,0))) -> 
A142: 12 | B142: 1500M-4-12 | C142: =IF(ISERROR(VLOOKUP(B142,'KAYIT LİSTESİ'!$B$4:$H$788,2,0)),"",(VLOOKUP(B142,'KAYIT LİSTESİ'!$B$4:$H$788,2,0))) ->  | D142: =IF(ISERROR(VLOOKUP(B142,'KAYIT LİSTESİ'!$B$4:$H$788,4,0)),"",(VLOOKUP(B142,'KAYIT LİSTESİ'!$B$4:$H$788,4,0))) ->  | E142: =IF(ISERROR(VLOOKUP(B142,'KAYIT LİSTESİ'!$B$4:$H$788,5,0)),"",(VLOOKUP(B142,'KAYIT LİSTESİ'!$B$4:$H$788,5,0))) ->  | F142: =IF(ISERROR(VLOOKUP(B142,'KAYIT LİSTESİ'!$B$4:$H$788,6,0)),"",(VLOOKUP(B142,'KAYIT LİSTESİ'!$B$4:$H$788,6,0))) ->  | J142: 24 | K142: UZUN-24 | L142: =IF(ISERROR(VLOOKUP(K142,'KAYIT LİSTESİ'!$B$4:$H$788,2,0)),"",(VLOOKUP(K142,'KAYIT LİSTESİ'!$B$4:$H$788,2,0))) ->  | M142: =IF(ISERROR(VLOOKUP(K142,'KAYIT LİSTESİ'!$B$4:$H$788,4,0)),"",(VLOOKUP(K142,'KAYIT LİSTESİ'!$B$4:$H$788,4,0))) ->  | N142: =IF(ISERROR(VLOOKUP(K142,'KAYIT LİSTESİ'!$B$4:$H$788,5,0)),"",(VLOOKUP(K142,'KAYIT LİSTESİ'!$B$4:$H$788,5,0))) ->  | O142: =IF(ISERROR(VLOOKUP(K142,'KAYIT LİSTESİ'!$B$4:$H$788,6,0)),"",(VLOOKUP(K142,'KAYIT LİSTESİ'!$B$4:$H$788,6,0))) -> 
J143: 25 | K143: UZUN-25 | L143: =IF(ISERROR(VLOOKUP(K143,'KAYIT LİSTESİ'!$B$4:$H$788,2,0)),"",(VLOOKUP(K143,'KAYIT LİSTESİ'!$B$4:$H$788,2,0))) ->  | M143: =IF(ISERROR(VLOOKUP(K143,'KAYIT LİSTESİ'!$B$4:$H$788,4,0)),"",(VLOOKUP(K143,'KAYIT LİSTESİ'!$B$4:$H$788,4,0))) ->  | N143: =IF(ISERROR(VLOOKUP(K143,'KAYIT LİSTESİ'!$B$4:$H$788,5,0)),"",(VLOOKUP(K143,'KAYIT LİSTESİ'!$B$4:$H$788,5,0))) ->  | O143: =IF(ISERROR(VLOOKUP(K143,'KAYIT LİSTESİ'!$B$4:$H$788,6,0)),"",(VLOOKUP(K143,'KAYIT LİSTESİ'!$B$4:$H$788,6,0))) -> 

Sheet puan (hidden)
A1: NAİLİ MORAN TÜRKİYE ŞAMPİYONASI PUAN TABLOSU
A2: PUAN | B2: FOTO FİNİSH | D2: FOTO FİNİSH | F2: FOTO FİNİSH | H2: FOTO FİNİSH | J2: FOTO FİNİSH | L2: FOTO FİNİSH | N2: FOTO FİNİSH | P2: FOTO FİNİSH | R2: FOTO FİNİSH | T2: FOTO FİNİSH | V2: FOTO FİNİSH | Y2: PUAN | Z2: ATLAMALAR | AD2: ATMALAR | AH2: PUAN
B3: 100m | D3: 200m | F3: 75 m | H3: 400m | J3: 70 m H 75 m H 80 m H | L3: 300m H | N3: 800m | P3: 1500m | R3: 2000m Yıldız | T3: 3000m | V3: 100 m H | Z3: Yüksek | AA3: Uzun | AB3: Üçadım | AC3: Sırık | AD3: Gülle | AE3: Disk | AF3: Cirit | AG3: Çekiç
B4: DERECE | D4: DERECE | F4: DERECE | H4: DERECE | J4: DERECE | L4: DERECE | N4: DERECE | P4: DERECE | R4: DERECE | T4: DERECE | V4: DERECE | Z4: DERECE | AA4: DERECE | AB4: DERECE | AC4: DERECE | AD4: DERECE | AE4: DERECE | AF4: DERECE | AG4: DERECE
J5: DNS | Y5: 0 | Z5: 10 | AA5: 100 | AB5: 100 | AC5: 100 | AD5: 100 | AE5: 100 | AF5: 100 | AG5: 100 | AH5: 0
A6: 100 | B6: 1130 | C6: 100 | D6: 2300 | E6: 100 | F6: 950 | G6: 100 | H6: 5200 | I6: 100 | J6: 1140 | K6: 100 | L6: 4250 | M6: 100 | N6: 20000 | O6: 100 | P6: 40300 | Q6: 100 | R6: 54524 | S6: 100 | T6: 85000 | U6: 100 | V6: 1440 | W6: 100 | Y6: 100 | Z6: 65 | AA6: 190 | AB6: 420 | AC6: - | AD6: - | AE6: - | AF6: - | AG6: - | AH6: 1
A7: 99 | B7: 1140 | C7: 99 | D7: 2320 | E7: 99 | F7: - | G7: 99 | H7: 5240 | I7: 99 | J7: 1150 | K7: 99 | L7: 4300 | M7: 99 | N7: 20200 | O7: 99 | P7: 40600 | Q7: 99 | R7: 54624 | S7: 99 | T7: 90000 | U7: 99 | V7: 1450 | W7: 99 | Y7: 99 | Z7: 66 | AA7: 193 | AB7: 425 | AC7: - | AD7: - | AE7: - | AF7: - | AG7: - | AH7: 2
A8: 98 | B8: 1150 | C8: 98 | D8: 2340 | E8: 98 | F8: 960 | G8: 98 | H8: 5270 | I8: 98 | J8: 1160 | K8: 98 | L8: 4350 | M8: 98 | N8: 20400 | O8: 98 | P8: 40900 | Q8: 98 | R8: 54724 | S8: 98 | T8: 91000 | U8: 98 | V8: 1460 | W8: 98 | Y8: 98 | Z8: 67 | AA8: 197 | AB8: 430 | AC8: - | AD8: - | AE8: - | AF8: - | AG8: - | AH8: 3
A9: 97 | B9: 1160 | C9: 97 | D9: 2360 | E9: 97 | F9: - | G9: 97 | H9: 5300 | I9: 97 | J9: 1170 | K9: 97 | L9: 4400 | M9: 97 | N9: 20600 | O9: 97 | P9: 41200 | Q9: 97 | R9: 54824 | S9: 97 | T9: 92000 | U9: 97 | V9: 1470 | W9: 97 | Y9: 97 | Z9: 68 | AA9: 200 | AB9: 435 | AC9: - | AD9: - | AE9: - | AF9: - | AG9: - | AH9: 4
A10: 96 | B10: 1170 | C10: 96 | D10: 2380 | E10: 96 | F10: 970 | G10: 96 | H10: 5340 | I10: 96 | J10: 1180 | K10: 96 | L10: 4450 | M10: 96 | N10: 20800 | O10: 96 | P10: 41500 | Q10: 96 | R10: 54924 | S10: 96 | T10: 93000 | U10: 96 | V10: 1480 | W10: 96 | Y10: 96 | Z10: 69 | AA10: 203 | AB10: 440 | AC10: - | AD10: - | AE10: - | AF10: - | AG10: - | AH10: 5
A11: 95 | B11: 1180 | C11: 95 | D11: 2400 | E11: 95 | F11: - | G11: 95 | H11: 5370 | I11: 95 | J11: 1190 | K11: 95 | L11: 4500 | M11: 95 | N11: 21000 | O11: 95 | P11: 41800 | Q11: 95 | R11: 55024 | S11: 95 | T11: 93500 | U11: 95 | V11: 1490 | W11: 95 | Y11: 95 | Z11: 70 | AA11: 205 | AB11: 445 | AC11: - | AD11: - | AE11: - | AF11: - | AG11: - | AH11: 6
A12: 94 | B12: 1190 | C12: 94 | D12: 2420 | E12: 94 | F12: 980 | G12: 94 | H12: 5400 | I12: 94 | J12: 1200 | K12: 94 | L12: 4550 | M12: 94 | N12: 21100 | O12: 94 | P12: 42100 | Q12: 94 | R12: 55124 | S12: 94 | T12: 94000 | U12: 94 | V12: 1500 | W12: 94 | Y12: 94 | Z12: 71 | AA12: 207 | AB12: 450 | AC12: - | AD12: - | AE12: - | AF12: - | AG12: - | AH12: 7
A13: 93 | B13: 1200 | C13: 93 | D13: 2440 | E13: 93 | F13: - | G13: 93 | H13: 5440 | I13: 93 | J13: 1210 | K13: 93 | L13: 4600 | M13: 93 | N13: 21200 | O13: 93 | P13: 42400 | Q13: 93 | R13: 55224 | S13: 93 | T13: 94500 | U13: 93 | V13: 1510 | W13: 93 | Y13: 93 | Z13: 72 | AA13: 210 | AB13: 455 | AC13: - | AD13: - | AE13: - | AF13: - | AG13: - | AH13: 8
A14: 92 | B14: 1210 | C14: 92 | D14: 2460 | E14: 92 | F14: 990 | G14: 92 | H14: 5470 | I14: 92 | J14: 1220 | K14: 92 | L14: 4650 | M14: 92 | N14: 21300 | O14: 92 | P14: 42700 | Q14: 92 | R14: 55324 | S14: 92 | T14: 95000 | U14: 92 | V14: 1520 | W14: 92 | Y14: 92 | Z14: 73 | AA14: 213 | AB14: 460 | AC14: - | AD14: - | AE14: - | AF14: - | AG14: - | AH14: 9
A15: 91 | B15: 1220 | C15: 91 | D15: 2480 | E15: 91 | F15: - | G15: 91 | H15: 5500 | I15: 91 | J15: 1230 | K15: 91 | L15: 4700 | M15: 91 | N15: 21400 | O15: 91 | P15: 43000 | Q15: 91 | R15: 55424 | S15: 91 | T15: 95500 | U15: 91 | V15: 1530 | W15: 91 | Y15: 91 | Z15: 74 | AA15: 216 | AB15: 465 | AC15: - | AD15: - | AE15: - | AF15: - | AG15: - | AH15: 10
A16: 90 | B16: 1230 | C16: 90 | D16: 2500 | E16: 90 | F16: 1000 | G16: 90 | H16: 5550 | I16: 90 | J16: 1240 | K16: 90 | L16: 4750 | M16: 90 | N16: 21500 | O16: 90 | P16: 43300 | Q16: 90 | R16: 55524 | S16: 90 | T16: 100000 | U16: 90 | V16: 1540 | W16: 90 | Y16: 90 | Z16: 75 | AA16: 219 | AB16: 470 | AC16: - | AD16: 400 | AE16: 400 | AF16: 400 | AG16: 400 | AH16: 11
A17: 89 | B17: 1240 | C17: 89 | D17: 2520 | E17: 89 | F17: - | G17: 89 | H17: 5600 | I17: 89 | J17: 1250 | K17: 89 | L17: 4800 | M17: 89 | N17: 21600 | O17: 89 | P17: 43600 | Q17: 89 | R17: 55624 | S17: 89 | T17: 100500 | U17: 89 | V17: 1550 | W17: 89 | Y17: 89 | Z17: 76 | AA17: 222 | AB17: 475 | AC17: - | AD17: 410 | AE17: 450 | AF17: 450 | AG17: 450 | AH17: 12
A18: 88 | B18: 1250 | C18: 88 | D18: 2540 | E18: 88 | F18: 1010 | G18: 88 | H18: 5650 | I18: 88 | J18: 1260 | K18: 88 | L18: 4850 | M18: 88 | N18: 21700 | O18: 88 | P18: 43900 | Q18: 88 | R18: 55724 | S18: 88 | T18: 101000 | U18: 88 | V18: 1560 | W18: 88 | Y18: 88 | Z18: 77 | AA18: 225 | AB18: 480 | AC18: - | AD18: 420 | AE18: 500 | AF18: 500 | AG18: 500 | AH18: 13
A19: 87 | B19: 1260 | C19: 87 | D19: 2560 | E19: 87 | F19: - | G19: 87 | H19: 5700 | I19: 87 | J19: 1270 | K19: 87 | L19: 4900 | M19: 87 | N19: 21800 | O19: 87 | P19: 44200 | Q19: 87 | R19: 55824 | S19: 87 | T19: 101500 | U19: 87 | V19: 1570 | W19: 87 | Y19: 87 | Z19: 78 | AA19: 228 | AB19: 485 | AC19: - | AD19: 430 | AE19: 550 | AF19: 550 | AG19: 550 | AH19: 14
A20: 86 | B20: 1270 | C20: 86 | D20: 2580 | E20: 86 | F20: 1020 | G20: 86 | H20: 5750 | I20: 86 | J20: 1280 | K20: 86 | L20: 4950 | M20: 86 | N20: 21900 | O20: 86 | P20: 44500 | Q20: 86 | R20: 55924 | S20: 86 | T20: 102000 | U20: 86 | V20: 1580 | W20: 86 | Y20: 86 | Z20: 79 | AA20: 231 | AB20: 490 | AC20: - | AD20: 440 | AE20: 600 | AF20: 600 | AG20: 600 | AH20: 15
A21: 85 | B21: 1280 | C21: 85 | D21: 2600 | E21: 85 | F21: - | G21: 85 | H21: 5800 | I21: 85 | J21: 1290 | K21: 85 | L21: 5000 | M21: 85 | N21: 22000 | O21: 85 | P21: 44800 | Q21: 85 | R21: 60024 | S21: 85 | T21: 102500 | U21: 85 | V21: 1590 | W21: 85 | Y21: 85 | Z21: 80 | AA21: 234 | AB21: 495 | AC21: 105 | AD21: 450 | AE21: 650 | AF21: 650 | AG21: 650 | AH21: 16
A22: 84 | B22: 1290 | C22: 84 | D22: 2620 | E22: 84 | F22: 1030 | G22: 84 | H22: 5850 | I22: 84 | J22: 1300 | K22: 84 | L22: 5050 | M22: 84 | N22: 22100 | O22: 84 | P22: 45100 | Q22: 84 | R22: 60124 | S22: 84 | T22: 103000 | U22: 84 | V22: 1600 | W22: 84 | Y22: 84 | Z22: 81 | AA22: 237 | AB22: 500 | AC22: - | AD22: 460 | AE22: 700 | AF22: 700 | AG22: 700 | AH22: 17
A23: 83 | B23: 1300 | C23: 83 | D23: 2640 | E23: 83 | F23: - | G23: 83 | H23: 5900 | I23: 83 | J23: 1310 | K23: 83 | L23: 5100 | M23: 83 | N23: 22200 | O23: 83 | P23: 45400 | Q23: 83 | R23: 60224 | S23: 83 | T23: 103500 | U23: 83 | V23: 1610 | W23: 83 | Y23: 83 | Z23: 82 | AA23: 240 | AB23: 505 | AC23: 110 | AD23: 470 | AE23: 750 | AF23: 750 | AG23: 750 | AH23: 18
A24: 82 | B24: 1310 | C24: 82 | D24: 2660 | E24: 82 | F24: 1040 | G24: 82 | H24: 5950 | I24: 82 | J24: 1320 | K24: 82 | L24: 5150 | M24: 82 | N24: 22300 | O24: 82 | P24: 45700 | Q24: 82 | R24: 60324 | S24: 82 | T24: 104000 | U24: 82 | V24: 1620 | W24: 82 | Y24: 82 | Z24: 83 | AA24: 243 | AB24: 510 | AC24: - | AD24: 480 | AE24: 800 | AF24: 800 | AG24: 800 | AH24: 19
A25: 81 | B25: 1320 | C25: 81 | D25: 2680 | E25: 81 | F25: - | G25: 81 | H25: 10000 | I25: 81 | J25: 1330 | K25: 81 | L25: 5200 | M25: 81 | N25: 22400 | O25: 81 | P25: 50000 | Q25: 81 | R25: 60424 | S25: 81 | T25: 104500 | U25: 81 | V25: 1630 | W25: 81 | Y25: 81 | Z25: 84 | AA25: 246 | AB25: 515 | AC25: 115 | AD25: 490 | AE25: 850 | AF25: 850 | AG25: 850 | AH25: 20
A26: 80 | B26: 1330 | C26: 80 | D26: 2700 | E26: 80 | F26: 1050 | G26: 80 | H26: 10050 | I26: 80 | J26: 1340 | K26: 80 | L26: 5250 | M26: 80 | N26: 22500 | O26: 80 | P26: 50300 | Q26: 80 | R26: 60524 | S26: 80 | T26: 105000 | U26: 80 | V26: 1640 | W26: 80 | Y26: 80 | Z26: 85 | AA26: 249 | AB26: 520 | AC26: - | AD26: 500 | AE26: 900 | AF26: 900 | AG26: 900 | AH26: 21
A27: 79 | B27: 1340 | C27: 79 | D27: 2720 | E27: 79 | F27: - | G27: 79 | H27: 10100 | I27: 79 | J27: 1350 | K27: 79 | L27: 5300 | M27: 79 | N27: 22600 | O27: 79 | P27: 50600 | Q27: 79 | R27: 60624 | S27: 79 | T27: 105500 | U27: 79 | V27: 1650 | W27: 79 | Y27: 79 | Z27: 86 | AA27: 252 | AB27: 525 | AC27: 120 | AD27: 510 | AE27: 925 | AF27: 925 | AG27: 925 | AH27: 22
A28: 78 | B28: 1350 | C28: 78 | D28: 2740 | E28: 78 | F28: 1060 | G28: 78 | H28: 10150 | I28: 78 | J28: 1360 | K28: 78 | L28: 5350 | M28: 78 | N28: 22700 | O28: 78 | P28: 50900 | Q28: 78 | R28: 60724 | S28: 78 | T28: 110000 | U28: 78 | V28: 1660 | W28: 78 | Y28: 78 | Z28: 87 | AA28: 255 | AB28: 530 | AC28: - | AD28: 520 | AE28: 950 | AF28: 950 | AG28: 950 | AH28: 23
A29: 77 | B29: 1360 | C29: 77 | D29: 2760 | E29: 77 | F29: - | G29: 77 | H29: 10200 | I29: 77 | J29: 1370 | K29: 77 | L29: 5400 | M29: 77 | N29: 22800 | O29: 77 | P29: 51200 | Q29: 77 | R29: 60824 | S29: 77 | T29: 110500 | U29: 77 | V29: 1670 | W29: 77 | Y29: 77 | Z29: 88 | AA29: 258 | AB29: 535 | AC29: 125 | AD29: 530 | AE29: 975 | AF29: 975 | AG29: 975 | AH29: 24
A30: 76 | B30: 1370 | C30: 76 | D30: 2780 | E30: 76 | F30: 1070 | G30: 76 | H30: 10250 | I30: 76 | J30: 1380 | K30: 76 | L30: 5450 | M30: 76 | N30: 22900 | O30: 76 | P30: 51500 | Q30: 76 | R30: 60924 | S30: 76 | T30: 111000 | U30: 76 | V30: 1680 | W30: 76 | Y30: 76 | Z30: 89 | AA30: 261 | AB30: 540 | AC30: - | AD30: 540 | AE30: 1000 | AF30: 1000 | AG30: 1000 | AH30: 25
A31: 75 | B31: 1380 | C31: 75 | D31: 2800 | E31: 75 | F31: - | G31: 75 | H31: 10300 | I31: 75 | J31: 1390 | K31: 75 | L31: 5500 | M31: 75 | N31: 23000 | O31: 75 | P31: 51800 | Q31: 75 | R31: 61024 | S31: 75 | T31: 111500 | U31: 75 | V31: 1690 | W31: 75 | Y31: 75 | Z31: 90 | AA31: 264 | AB31: 545 | AC31: 130 | AD31: 550 | AE31: 1025 | AF31: 1025 | AG31: 1025 | AH31: 26
A32: 74 | B32: 1390 | C32: 74 | D32: 2820 | E32: 74 | F32: 1080 | G32: 74 | H32: 10350 | I32: 74 | J32: 1400 | K32: 74 | L32: 5550 | M32: 74 | N32: 23200 | O32: 74 | P32: 52100 | Q32: 74 | R32: 61124 | S32: 74 | T32: 112000 | U32: 74 | V32: 1700 | W32: 74 | Y32: 74 | Z32: 91 | AA32: 267 | AB32: 550 | AC32: - | AD32: 560 | AE32: 1050 | AF32: 1050 | AG32: 1050 | AH32: 27
A33: 73 | B33: 1400 | C33: 73 | D33: 2840 | E33: 73 | F33: - | G33: 73 | H33: 10400 | I33: 73 | J33: 1410 | K33: 73 | L33: 5600 | M33: 73 | N33: 23400 | O33: 73 | P33: 52400 | Q33: 73 | R33: 61224 | S33: 73 | T33: 112500 | U33: 73 | V33: 1710 | W33: 73 | Y33: 73 | Z33: 92 | AA33: 270 | AB33: 555 | AC33: 135 | AD33: 570 | AE33: 1075 | AF33: 1075 | AG33: 1075 | AH33: 28
A34: 72 | B34: - | C34: 72 | D34: 2860 | E34: 72 | F34: 1090 | G34: 72 | H34: 10450 | I34: 72 | J34: 1420 | K34: 72 | L34: 5650 | M34: 72 | N34: 23600 | O34: 72 | P34: 52700 | Q34: 72 | R34: 61324 | S34: 72 | T34: 113000 | U34: 72 | V34: 1720 | W34: 72 | Y34: 72 | Z34: 93 | AA34: 273 | AB34: 560 | AC34: - | AD34: 580 | AE34: 1100 | AF34: 1100 | AG34: 1100 | AH34: 29
A35: 71 | B35: 1410 | C35: 71 | D35: 2880 | E35: 71 | F35: - | G35: 71 | H35: 10500 | I35: 71 | J35: 1430 | K35: 71 | L35: 5700 | M35: 71 | N35: 23800 | O35: 71 | P35: 53000 | Q35: 71 | R35: 61424 | S35: 71 | T35: 113500 | U35: 71 | V35: 1730 | W35: 71 | Y35: 71 | Z35: 94 | AA35: 276 | AB35: 565 | AC35: 140 | AD35: 590 | AE35: 1125 | AF35: 1125 | AG35: 1125 | AH35: 30
A36: 70 | B36: - | C36: 70 | D36: 2900 | E36: 70 | F36: 1100 | G36: 70 | H36: 10550 | I36: 70 | J36: 1440 | K36: 70 | L36: 5750 | M36: 70 | N36: 24000 | O36: 70 | P36: 53300 | Q36: 70 | R36: 61524 | S36: 70 | T36: 114000 | U36: 70 | V36: 1740 | W36: 70 | Y36: 70 | Z36: 95 | AA36: 279 | AB36: 570 | AC36: - | AD36: 600 | AE36: 1150 | AF36: 1150 | AG36: 1150 | AH36: 31
A37: 69 | B37: 1420 | C37: 69 | D37: 2920 | E37: 69 | F37: - | G37: 69 | H37: 10600 | I37: 69 | J37: 1450 | K37: 69 | L37: 5800 | M37: 69 | N37: 24200 | O37: 69 | P37: 53600 | Q37: 69 | R37: 61624 | S37: 69 | T37: 114500 | U37: 69 | V37: 1750 | W37: 69 | Y37: 69 | Z37: 96 | AA37: 282 | AB37: 575 | AC37: 145 | AD37: 610 | AE37: 1175 | AF37: 1175 | AG37: 1175 | AH37: 32
A38: 68 | B38: - | C38: 68 | D38: 2940 | E38: 68 | F38: 1110 | G38: 68 | H38: 10650 | I38: 68 | J38: 1460 | K38: 68 | L38: 5850 | M38: 68 | N38: 24400 | O38: 68 | P38: 53900 | Q38: 68 | R38: 61724 | S38: 68 | T38: 115000 | U38: 68 | V38: 1760 | W38: 68 | Y38: 68 | Z38: 97 | AA38: 285 | AB38: 580 | AC38: - | AD38: 620 | AE38: 1200 | AF38: 1200 | AG38: 1200 | AH38: 33
A39: 67 | B39: 1430 | C39: 67 | D39: 2960 | E39: 67 | F39: 1120 | G39: 67 | H39: 10700 | I39: 67 | J39: 1470 | K39: 67 | L39: 5900 | M39: 67 | N39: 24600 | O39: 67 | P39: 54200 | Q39: 67 | R39: 61824 | S39: 67 | T39: 115500 | U39: 67 | V39: 1770 | W39: 67 | Y39: 67 | Z39: 98 | AA39: 288 | AB39: 585 | AC39: 150 | AD39: 630 | AE39: 1225 | AF39: 1225 | AG39: 1225 | AH39: 34
A40: 66 | B40: - | C40: 66 | D40: 2980 | E40: 66 | F40: 1130 | G40: 66 | H40: 10750 | I40: 66 | J40: 1480 | K40: 66 | L40: 5950 | M40: 66 | N40: 24800 | O40: 66 | P40: 54500 | Q40: 66 | R40: 61924 | S40: 66 | T40: 120000 | U40: 66 | V40: 1780 | W40: 66 | Y40: 66 | Z40: 99 | AA40: 291 | AB40: 590 | AC40: - | AD40: 640 | AE40: 1250 | AF40: 1250 | AG40: 1250 | AH40: 35
A41: 65 | B41: 1440 | C41: 65 | D41: 3000 | E41: 65 | F41: 1140 | G41: 65 | H41: 10800 | I41: 65 | J41: 1490 | K41: 65 | L41: 10000 | M41: 65 | N41: 25000 | O41: 65 | P41: 54800 | Q41: 65 | R41: 62024 | S41: 65 | T41: 120500 | U41: 65 | V41: 1790 | W41: 65 | Y41: 65 | Z41: 100 | AA41: 294 | AB41: 595 | AC41: 155 | AD41: 650 | AE41: 1275 | AF41: 1275 | AG41: 1275 | AH41: 36
A42: 64 | B42: - | C42: 64 | D42: 3020 | E42: 64 | F42: 1150 | G42: 64 | H42: 10850 | I42: 64 | J42: 1500 | K42: 64 | L42: 10050 | M42: 64 | N42: 25200 | O42: 64 | P42: 55100 | Q42: 64 | R42: 62124 | S42: 64 | T42: 121000 | U42: 64 | V42: 1800 | W42: 64 | Y42: 64 | Z42: 101 | AA42: 297 | AB42: 600 | AC42: - | AD42: 660 | AE42: 1300 | AF42: 1300 | AG42: 1300 | AH42: 37
A43: 63 | B43: 1450 | C43: 63 | D43: 3040 | E43: 63 | F43: 1160 | G43: 63 | H43: 10900 | I43: 63 | J43: 1510 | K43: 63 | L43: 10100 | M43: 63 | N43: 25400 | O43: 63 | P43: 55400 | Q43: 63 | R43: 62224 | S43: 63 | T43: 121500 | U43: 63 | V43: 1810 | W43: 63 | Y43: 63 | Z43: 102 | AA43: 300 | AB43: 610 | AC43: 160 | AD43: 670 | AE43: 1325 | AF43: 1325 | AG43: 1325 | AH43: 38
A44: 62 | B44: - | C44: 62 | D44: 3060 | E44: 62 | F44: 1170 | G44: 62 | H44: 10950 | I44: 62 | J44: 1520 | K44: 62 | L44: 10150 | M44: 62 | N44: 25600 | O44: 62 | P44: 55700 | Q44: 62 | R44: 62324 | S44: 62 | T44: 122000 | U44: 62 | V44: 1820 | W44: 62 | Y44: 62 | Z44: 103 | AA44: 303 | AB44: 620 | AC44: - | AD44: 680 | AE44: 1350 | AF44: 1350 | AG44: 1350 | AH44: 39
A45: 61 | B45: 1460 | C45: 61 | D45: 3080 | E45: 61 | F45: 1180 | G45: 61 | H45: 11000 | I45: 61 | J45: 1530 | K45: 61 | L45: 10200 | M45: 61 | N45: 25800 | O45: 61 | P45: 60000 | Q45: 61 | R45: 62424 | S45: 61 | T45: 122500 | U45: 61 | V45: 1830 | W45: 61 | Y45: 61 | Z45: 104 | AA45: 306 | AB45: 630 | AC45: 165 | AD45: 690 | AE45: 1375 | AF45: 1375 | AG45: 1375 | AH45: 40
A46: 60 | B46: - | C46: 60 | D46: 3100 | E46: 60 | F46: 1190 | G46: 60 | H46: 11100 | I46: 60 | J46: 1540 | K46: 60 | L46: 10250 | M46: 60 | N46: 30000 | O46: 60 | P46: 60300 | Q46: 60 | R46: 62524 | S46: 60 | T46: 123000 | U46: 60 | V46: 1840 | W46: 60 | Y46: 60 | Z46: 105 | AA46: 309 | AB46: 640 | AC46: - | AD46: 700 | AE46: 1400 | AF46: 1400 | AG46: 1400 | AH46: 41
A47: 59 | B47: 1470 | C47: 59 | D47: 3120 | E47: 59 | F47: 1200 | G47: 59 | H47: 11200 | I47: 59 | J47: 1550 | K47: 59 | L47: 10300 | M47: 59 | N47: 30200 | O47: 59 | P47: 60600 | Q47: 59 | R47: 62624 | S47: 59 | T47: 123500 | U47: 59 | V47: 1850 | W47: 59 | Y47: 59 | Z47: 106 | AA47: 312 | AB47: 650 | AC47: 170 | AD47: 710 | AE47: 1425 | AF47: 1425 | AG47: 1425 | AH47: 42
A48: 58 | B48: - | C48: 58 | D48: 3140 | E48: 58 | F48: 1210 | G48: 58 | H48: 11300 | I48: 58 | J48: 1560 | K48: 58 | L48: 10350 | M48: 58 | N48: 30400 | O48: 58 | P48: 60900 | Q48: 58 | R48: 62724 | S48: 58 | T48: 124000 | U48: 58 | V48: 1860 | W48: 58 | Y48: 58 | Z48: 107 | AA48: 315 | AB48: 660 | AC48: - | AD48: 720 | AE48: 1450 | AF48: 1450 | AG48: 1450 | AH48: 43
A49: 57 | B49: 1480 | C49: 57 | D49: 3160 | E49: 57 | F49: 1220 | G49: 57 | H49: 11400 | I49: 57 | J49: 1570 | K49: 57 | L49: 10400 | M49: 57 | N49: 30600 | O49: 57 | P49: 61200 | Q49: 57 | R49: 62824 | S49: 57 | T49: 124500 | U49: 57 | V49: 1870 | W49: 57 | Y49: 57 | Z49: 108 | AA49: 318 | AB49: 670 | AC49: 175 | AD49: 730 | AE49: 1475 | AF49: 1475 | AG49: 1475 | AH49: 44
A50: 56 | B50: - | C50: 56 | D50: 3180 | E50: 56 | F50: 1230 | G50: 56 | H50: 11500 | I50: 56 | J50: 1580 | K50: 56 | L50: 10450 | M50: 56 | N50: 30800 | O50: 56 | P50: 61500 | Q50: 56 | R50: 62924 | S50: 56 | T50: 125000 | U50: 56 | V50: 1880 | W50: 56 | Y50: 56 | Z50: 109 | AA50: 321 | AB50: 680 | AC50: - | AD50: 740 | AE50: 1500 | AF50: 1500 | AG50: 1500 | AH50: 45
A51: 55 | B51: 1490 | C51: 55 | D51: 3200 | E51: 55 | F51: 1240 | G51: 55 | H51: 11600 | I51: 55 | J51: 1590 | K51: 55 | L51: 10500 | M51: 55 | N51: 31000 | O51: 55 | P51: 61800 | Q51: 55 | R51: 63024 | S51: 55 | T51: 125500 | U51: 55 | V51: 1890 | W51: 55 | Y51: 55 | Z51: 110 | AA51: 324 | AB51: 690 | AC51: 180 | AD51: 750 | AE51: 1525 | AF51: 1525 | AG51: 1525 | AH51: 46
A52: 54 | B52: - | C52: 54 | D52: 3220 | E52: 54 | F52: 1250 | G52: 54 | H52: 11700 | I52: 54 | J52: 1600 | K52: 54 | L52: 10550 | M52: 54 | N52: 31200 | O52: 54 | P52: 62100 | Q52: 54 | R52: 63124 | S52: 54 | T52: 130000 | U52: 54 | V52: 1900 | W52: 54 | Y52: 54 | Z52: 111 | AA52: 327 | AB52: 700 | AC52: - | AD52: 760 | AE52: 1550 | AF52: 1550 | AG52: 1550 | AH52: 47
A53: 53 | B53: 1500 | C53: 53 | D53: 3240 | E53: 53 | F53: 1260 | G53: 53 | H53: 11800 | I53: 53 | J53: 1610 | K53: 53 | L53: 10600 | M53: 53 | N53: 31400 | O53: 53 | P53: 62400 | Q53: 53 | R53: 63224 | S53: 53 | T53: 131000 | U53: 53 | V53: 1910 | W53: 53 | Y53: 53 | Z53: 112 | AA53: 330 | AB53: 710 | AC53: 185 | AD53: 770 | AE53: 1575 | AF53: 1575 | AG53: 1575 | AH53: 48
A54: 52 | B54: - | C54: 52 | D54: 3260 | E54: 52 | F54: 1270 | G54: 52 | H54: 11900 | I54: 52 | J54: 1620 | K54: 52 | L54: 10650 | M54: 52 | N54: 31600 | O54: 52 | P54: 62700 | Q54: 52 | R54: 63324 | S54: 52 | T54: 132000 | U54: 52 | V54: 1920 | W54: 52 | Y54: 52 | Z54: 113 | AA54: 333 | AB54: 720 | AC54: - | AD54: 780 | AE54: 1600 | AF54: 1600 | AG54: 1600 | AH54: 49
A55: 51 | B55: 1510 | C55: 51 | D55: 3280 | E55: 51 | F55: 1280 | G55: 51 | H55: 12000 | I55: 51 | J55: 1630 | K55: 51 | L55: 10700 | M55: 51 | N55: 31800 | O55: 51 | P55: 63000 | Q55: 51 | R55: 63424 | S55: 51 | T55: 133000 | U55: 51 | V55: 1930 | W55: 51 | Y55: 51 | Z55: 114 | AA55: 336 | AB55: 730 | AC55: 190 | AD55: 790 | AE55: 1625 | AF55: 1625 | AG55: 1625 | AH55: 50
A56: 50 | B56: - | C56: 50 | D56: 3300 | E56: 50 | F56: 1290 | G56: 50 | H56: 12100 | I56: 50 | J56: 1640 | K56: 50 | L56: 10750 | M56: 50 | N56: 32000 | O56: 50 | P56: 63300 | Q56: 50 | R56: 63524 | S56: 50 | T56: 134000 | U56: 50 | V56: 1940 | W56: 50 | Y56: 50 | Z56: 115 | AA56: 339 | AB56: 740 | AC56: - | AD56: 800 | AE56: 1650 | AF56: 1650 | AG56: 1650 | AH56: 51
A57: 49 | B57: 1520 | C57: 49 | D57: 3320 | E57: 49 | F57: 1300 | G57: 49 | H57: 12200 | I57: 49 | J57: 1650 | K57: 49 | L57: 10800 | M57: 49 | N57: 32200 | O57: 49 | P57: 63600 | Q57: 49 | R57: 63624 | S57: 49 | T57: 135000 | U57: 49 | V57: 1950 | W57: 49 | Y57: 49 | Z57: 116 | AA57: 342 | AB57: 750 | AC57: 195 | AD57: 810 | AE57: 1675 | AF57: 1675 | AG57: 1675 | AH57: 52
A58: 48 | B58: 1530 | C58: 48 | D58: 3340 | E58: 48 | F58: 1310 | G58: 48 | H58: 12300 | I58: 48 | J58: 1660 | K58: 48 | L58: 10850 | M58: 48 | N58: 32400 | O58: 48 | P58: 63900 | Q58: 48 | R58: 63724 | S58: 48 | T58: 140000 | U58: 48 | V58: 1960 | W58: 48 | Y58: 48 | Z58: 117 | AA58: 345 | AB58: 760 | AC58: - | AD58: 820 | AE58: 1700 | AF58: 1700 | AG58: 1700 | AH58: 53
A59: 47 | B59: 1540 | C59: 47 | D59: 3360 | E59: 47 | F59: 1320 | G59: 47 | H59: 12400 | I59: 47 | J59: 1670 | K59: 47 | L59: 10900 | M59: 47 | N59: 32600 | O59: 47 | P59: 64200 | Q59: 47 | R59: 63824 | S59: 47 | T59: 141000 | U59: 47 | V59: 1970 | W59: 47 | Y59: 47 | Z59: 118 | AA59: 348 | AB59: 770 | AC59: 200 | AD59: 830 | AE59: 1725 | AF59: 1725 | AG59: 1725 | AH59: 54
A60: 46 | B60: 1550 | C60: 46 | D60: 3380 | E60: 46 | F60: 1330 | G60: 46 | H60: 12500 | I60: 46 | J60: 1680 | K60: 46 | L60: 10950 | M60: 46 | N60: 32800 | O60: 46 | P60: 64500 | Q60: 46 | R60: 63924 | S60: 46 | T60: 142000 | U60: 46 | V60: 1980 | W60: 46 | Y60: 46 | Z60: 119 | AA60: 351 | AB60: 780 | AC60: - | AD60: 840 | AE60: 1750 | AF60: 1750 | AG60: 1750 | AH60: 55
A61: 45 | B61: 1560 | C61: 45 | D61: 3400 | E61: 45 | F61: 1340 | G61: 45 | H61: 12600 | I61: 45 | J61: 1690 | K61: 45 | L61: 11000 | M61: 45 | N61: 33000 | O61: 45 | P61: 64800 | Q61: 45 | R61: 64024 | S61: 45 | T61: 143000 | U61: 45 | V61: 1990 | W61: 45 | Y61: 45 | Z61: 120 | AA61: 354 | AB61: 790 | AC61: 205 | AD61: 850 | AE61: 1775 | AF61: 1775 | AG61: 1775 | AH61: 56
A62: 44 | B62: 1570 | C62: 44 | D62: 3420 | E62: 44 | F62: 1350 | G62: 44 | H62: 12700 | I62: 44 | J62: 1700 | K62: 44 | L62: 11100 | M62: 44 | N62: 33200 | O62: 44 | P62: 65100 | Q62: 44 | R62: 64124 | S62: 44 | T62: 144000 | U62: 44 | V62: 2000 | W62: 44 | Y62: 44 | Z62: 121 | AA62: 357 | AB62: 800 | AC62: - | AD62: 860 | AE62: 1800 | AF62: 1800 | AG62: 1800 | AH62: 57
A63: 43 | B63: 1580 | C63: 43 | D63: 3440 | E63: 43 | F63: 1360 | G63: 43 | H63: 12800 | I63: 43 | J63: 1710 | K63: 43 | L63: 11200 | M63: 43 | N63: 33400 | O63: 43 | P63: 65400 | Q63: 43 | R63: 64224 | S63: 43 | T63: 145000 | U63: 43 | V63: 2010 | W63: 43 | Y63: 43 | Z63: 122 | AA63: 360 | AB63: 810 | AC63: 210 | AD63: 870 | AE63: 1825 | AF63: 1825 | AG63: 1825 | AH63: 58
A64: 42 | B64: 1590 | C64: 42 | D64: 3460 | E64: 42 | F64: 1370 | G64: 42 | H64: 12900 | I64: 42 | J64: 1720 | K64: 42 | L64: 11300 | M64: 42 | N64: 33600 | O64: 42 | P64: 65700 | Q64: 42 | R64: 64324 | S64: 42 | T64: 150000 | U64: 42 | V64: 2020 | W64: 42 | Y64: 42 | Z64: 123 | AA64: 363 | AB64: 820 | AC64: - | AD64: 880 | AE64: 1850 | AF64: 1850 | AG64: 1850 | AH64: 59
A65: 41 | B65: 1600 | C65: 41 | D65: 3480 | E65: 41 | F65: 1380 | G65: 41 | H65: 13000 | I65: 41 | J65: 1730 | K65: 41 | L65: 11400 | M65: 41 | N65: 33800 | O65: 41 | P65: 70000 | Q65: 41 | R65: 64424 | S65: 41 | T65: 151000 | U65: 41 | V65: 2030 | W65: 41 | Y65: 41 | Z65: 124 | AA65: 366 | AB65: 830 | AC65: 215 | AD65: 890 | AE65: 1875 | AF65: 1875 | AG65: 1875 | AH65: 60
A66: 40 | B66: 1610 | C66: 40 | D66: 3500 | E66: 40 | F66: 1390 | G66: 40 | H66: 13100 | I66: 40 | J66: 1740 | K66: 40 | L66: 11500 | M66: 40 | N66: 34000 | O66: 40 | P66: 70300 | Q66: 40 | R66: 64524 | S66: 40 | T66: 152000 | U66: 40 | V66: 2040 | W66: 40 | Y66: 40 | Z66: 125 | AA66: 369 | AB66: 840 | AC66: - | AD66: 900 | AE66: 1900 | AF66: 1900 | AG66: 1900 | AH66: 61
A67: 39 | B67: 1620 | C67: 39 | D67: 3520 | E67: 39 | F67: 1400 | G67: 39 | H67: 13200 | I67: 39 | J67: 1750 | K67: 39 | L67: 11600 | M67: 39 | N67: 34200 | O67: 39 | P67: 70600 | Q67: 39 | R67: 64624 | S67: 39 | T67: 153000 | U67: 39 | V67: 2050 | W67: 39 | Y67: 39 | Z67: 126 | AA67: 372 | AB67: 850 | AC67: 220 | AD67: 910 | AE67: 1925 | AF67: 1925 | AG67: 1925 | AH67: 62
A68: 38 | B68: 1630 | C68: 38 | D68: 3540 | E68: 38 | F68: 1410 | G68: 38 | H68: 13300 | I68: 38 | J68: 1760 | K68: 38 | L68: 11700 | M68: 38 | N68: 34400 | O68: 38 | P68: 70900 | Q68: 38 | R68: 64724 | S68: 38 | T68: 154000 | U68: 38 | V68: 2060 | W68: 38 | Y68: 38 | Z68: 127 | AA68: 375 | AB68: 860 | AC68: - | AD68: 920 | AE68: 1950 | AF68: 1950 | AG68: 1950 | AH68: 63
A69: 37 | B69: 1640 | C69: 37 | D69: 3560 | E69: 37 | F69: 1420 | G69: 37 | H69: 13400 | I69: 37 | J69: 1770 | K69: 37 | L69: 11800 | M69: 37 | N69: 34600 | O69: 37 | P69: 71200 | Q69: 37 | R69: 64824 | S69: 37 | T69: 155000 | U69: 37 | V69: 2070 | W69: 37 | Y69: 37 | Z69: 128 | AA69: 378 | AB69: 870 | AC69: 225 | AD69: 930 | AE69: 1975 | AF69: 1975 | AG69: 1975 | AH69: 64
A70: 36 | B70: 1650 | C70: 36 | D70: 3580 | E70: 36 | F70: 1430 | G70: 36 | H70: 13500 | I70: 36 | J70: 1780 | K70: 36 | L70: 11900 | M70: 36 | N70: 34800 | O70: 36 | P70: 71500 | Q70: 36 | R70: 64924 | S70: 36 | T70: 160000 | U70: 36 | V70: 2080 | W70: 36 | Y70: 36 | Z70: 129 | AA70: 381 | AB70: 880 | AC70: - | AD70: 940 | AE70: 2000 | AF70: 2000 | AG70: 2000 | AH70: 65
A71: 35 | B71: 1660 | C71: 35 | D71: 3600 | E71: 35 | F71: 1440 | G71: 35 | H71: 13600 | I71: 35 | J71: 1790 | K71: 35 | L71: 12000 | M71: 35 | N71: 35000 | O71: 35 | P71: 71800 | Q71: 35 | R71: 65024 | S71: 35 | T71: 161000 | U71: 35 | V71: 2090 | W71: 35 | Y71: 35 | Z71: 130 | AA71: 384 | AB71: 890 | AC71: 230 | AD71: 950 | AE71: 2025 | AF71: 2025 | AG71: 2025 | AH71: 66
A72: 34 | B72: 1670 | C72: 34 | D72: 3620 | E72: 34 | F72: 1450 | G72: 34 | H72: 13700 | I72: 34 | J72: 1800 | K72: 34 | L72: 12200 | M72: 34 | N72: 35200 | O72: 34 | P72: 72100 | Q72: 34 | R72: 65124 | S72: 34 | T72: 162000 | U72: 34 | V72: 2100 | W72: 34 | Y72: 34 | Z72: 131 | AA72: 387 | AB72: 900 | AC72: - | AD72: 960 | AE72: 2050 | AF72: 2050 | AG72: 2050 | AH72: 67
A73: 33 | B73: 1680 | C73: 33 | D73: 3640 | E73: 33 | F73: 1460 | G73: 33 | H73: 13800 | I73: 33 | J73: 1810 | K73: 33 | L73: 12400 | M73: 33 | N73: 35400 | O73: 33 | P73: 72400 | Q73: 33 | R73: 65224 | S73: 33 | T73: 163000 | U73: 33 | V73: 2110 | W73: 33 | Y73: 33 | Z73: 132 | AA73: 390 | AB73: 910 | AC73: 235 | AD73: 970 | AE73: 2075 | AF73: 2075 | AG73: 2075 | AH73: 68
A74: 32 | B74: 1690 | C74: 32 | D74: 3660 | E74: 32 | F74: 1470 | G74: 32 | H74: 13900 | I74: 32 | J74: 1820 | K74: 32 | L74: 12600 | M74: 32 | N74: 35600 | O74: 32 | P74: 72700 | Q74: 32 | R74: 65324 | S74: 32 | T74: 164000 | U74: 32 | V74: 2120 | W74: 32 | Y74: 32 | Z74: 133 | AA74: 393 | AB74: 920 | AC74: - | AD74: 980 | AE74: 2100 | AF74: 2100 | AG74: 2100 | AH74: 69
A75: 31 | B75: 1700 | C75: 31 | D75: 3680 | E75: 31 | F75: 1480 | G75: 31 | H75: 14000 | I75: 31 | J75: 1830 | K75: 31 | L75: 12800 | M75: 31 | N75: 35800 | O75: 31 | P75: 73000 | Q75: 31 | R75: 65424 | S75: 31 | T75: 165000 | U75: 31 | V75: 2130 | W75: 31 | Y75: 31 | Z75: 134 | AA75: 397 | AB75: 930 | AC75: 240 | AD75: 990 | AE75: 2125 | AF75: 2200 | AG75: 2125 | AH75: 70
A76: 30 | B76: 1710 | C76: 30 | D76: 3700 | E76: 30 | F76: 1490 | G76: 30 | H76: 14100 | I76: 30 | J76: 1840 | K76: 30 | L76: 13000 | M76: 30 | N76: 40000 | O76: 30 | P76: 73500 | Q76: 30 | R76: 65524 | S76: 30 | T76: 170000 | U76: 30 | V76: 2140 | W76: 30 | Y76: 30 | Z76: 135 | AA76: 400 | AB76: 940 | AC76: - | AD76: 1000 | AE76: 2150 | AF76: 2300 | AG76: 2150 | AH76: 71
A77: 29 | B77: 1720 | C77: 29 | D77: 3720 | E77: 29 | F77: 1500 | G77: 29 | H77: 14200 | I77: 29 | J77: 1850 | K77: 29 | L77: 13200 | M77: 29 | N77: 40200 | O77: 29 | P77: 74000 | Q77: 29 | R77: 65624 | S77: 29 | T77: 171000 | U77: 29 | V77: 2150 | W77: 29 | Y77: 29 | Z77: 136 | AA77: 410 | AB77: 950 | AC77: 245 | AD77: 1010 | AE77: 2175 | AF77: 2400 | AG77: 2175 | AH77: 72
A78: 28 | B78: 1730 | C78: 28 | D78: 3740 | E78: 28 | F78: 1510 | G78: 28 | H78: 14300 | I78: 28 | J78: 1860 | K78: 28 | L78: 13400 | M78: 28 | N78: 40400 | O78: 28 | P78: 74500 | Q78: 28 | R78: 65724 | S78: 28 | T78: 172000 | U78: 28 | V78: 2160 | W78: 28 | Y78: 28 | Z78: 137 | AA78: 420 | AB78: 960 | AC78: - | AD78: 1020 | AE78: 2200 | AF78: 2500 | AG78: 2200 | AH78: 73
A79: 27 | B79: 1740 | C79: 27 | D79: 3760 | E79: 27 | F79: 1520 | G79: 27 | H79: 14400 | I79: 27 | J79: 1870 | K79: 27 | L79: 13600 | M79: 27 | N79: 40600 | O79: 27 | P79: 75000 | Q79: 27 | R79: 65824 | S79: 27 | T79: 173000 | U79: 27 | V79: 2170 | W79: 27 | Y79: 27 | Z79: 138 | AA79: 430 | AB79: 970 | AC79: 250 | AD79: 1030 | AE79: 2250 | AF79: 2600 | AG79: 2250 | AH79: 74
A80: 26 | B80: 1750 | C80: 26 | D80: 3780 | E80: 26 | F80: 1530 | G80: 26 | H80: 14500 | I80: 26 | J80: 1880 | K80: 26 | L80: 13800 | M80: 26 | N80: 40800 | O80: 26 | P80: 75500 | Q80: 26 | R80: 65924 | S80: 26 | T80: 174000 | U80: 26 | V80: 2180 | W80: 26 | Y80: 26 | Z80: 139 | AA80: 440 | AB80: 980 | AC80: - | AD80: 1040 | AE80: 2300 | AF80: 2700 | AG80: 2300 | AH80: 75
A81: 25 | B81: 1760 | C81: 25 | D81: 3800 | E81: 25 | F81: 1540 | G81: 25 | H81: 14600 | I81: 25 | J81: 1890 | K81: 25 | L81: 14000 | M81: 25 | N81: 41000 | O81: 25 | P81: 80000 | Q81: 25 | R81: 70024 | S81: 25 | T81: 175000 | U81: 25 | V81: 2190 | W81: 25 | Y81: 25 | Z81: 140 | AA81: 450 | AB81: 990 | AC81: 255 | AD81: 1050 | AE81: 2350 | AF81: 2800 | AG81: 2350 | AH81: 76
A82: 24 | B82: 1770 | C82: 24 | D82: 3850 | E82: 24 | F82: 1550 | G82: 24 | H82: 14700 | I82: 24 | J82: 1900 | K82: 24 | L82: 14200 | M82: 24 | N82: 41200 | O82: 24 | P82: 80500 | Q82: 24 | R82: 70124 | S82: 24 | T82: 180000 | U82: 24 | V82: 2200 | W82: 24 | Y82: 24 | Z82: 142 | AA82: 460 | AB82: 1000 | AC82: - | AD82: 1060 | AE82: 2400 | AF82: 2900 | AG82: 2400 | AH82: 77
A83: 23 | B83: 1780 | C83: 23 | D83: 3900 | E83: 23 | F83: 1560 | G83: 23 | H83: 14800 | I83: 23 | J83: 1910 | K83: 23 | L83: 14400 | M83: 23 | N83: 41400 | O83: 23 | P83: 81000 | Q83: 23 | R83: 70224 | S83: 23 | T83: 181000 | U83: 23 | V83: 2210 | W83: 23 | Y83: 23 | Z83: 144 | AA83: 470 | AB83: 1015 | AC83: 260 | AD83: 1070 | AE83: 2450 | AF83: 3000 | AG83: 2450 | AH83: 78
A84: 22 | B84: 1790 | C84: 22 | D84: 3950 | E84: 22 | F84: 1570 | G84: 22 | H84: 14900 | I84: 22 | J84: 1920 | K84: 22 | L84: 14600 | M84: 22 | N84: 41600 | O84: 22 | P84: 81500 | Q84: 22 | R84: 70324 | S84: 22 | T84: 182000 | U84: 22 | V84: 2220 | W84: 22 | Y84: 22 | Z84: 146 | AA84: 480 | AB84: 1030 | AC84: - | AD84: 1080 | AE84: 2500 | AF84: 3100 | AG84: 2500 | AH84: 79
A85: 21 | B85: 1800 | C85: 21 | D85: 4000 | E85: 21 | F85: 1580 | G85: 21 | H85: 15000 | I85: 21 | J85: 1930 | K85: 21 | L85: 14800 | M85: 21 | N85: 41800 | O85: 21 | P85: 82000 | Q85: 21 | R85: 70424 | S85: 21 | T85: 183000 | U85: 21 | V85: 2230 | W85: 21 | Y85: 21 | Z85: 148 | AA85: 490 | AB85: 1045 | AC85: 265 | AD85: 1090 | AE85: 2550 | AF85: 3200 | AG85: 2550 | AH85: 80
A86: 20 | B86: 1810 | C86: 20 | D86: 4050 | E86: 20 | F86: 1590 | G86: 20 | H86: 15100 | I86: 20 | J86: 1940 | K86: 20 | L86: 15000 | M86: 20 | N86: 42000 | O86: 20 | P86: 82500 | Q86: 20 | R86: 70524 | S86: 20 | T86: 184000 | U86: 20 | V86: 2240 | W86: 20 | Y86: 20 | Z86: 150 | AA86: 500 | AB86: 1060 | AC86: - | AD86: 1100 | AE86: 2600 | AF86: 3300 | AG86: 2600 | AH86: 81
A87: 19 | B87: 1820 | C87: 19 | D87: 4100 | E87: 19 | F87: 1600 | G87: 19 | H87: 15200 | I87: 19 | J87: 1950 | K87: 19 | L87: 15200 | M87: 19 | N87: 42200 | O87: 19 | P87: 83000 | Q87: 19 | R87: 70624 | S87: 19 | T87: 185000 | U87: 19 | V87: 2250 | W87: 19 | Y87: 19 | Z87: 152 | AA87: 505 | AB87: 1075 | AC87: 270 | AD87: 1110 | AE87: 2650 | AF87: 3400 | AG87: 2650 | AH87: 82
A88: 18 | B88: 1830 | C88: 18 | D88: 4150 | E88: 18 | F88: 1610 | G88: 18 | H88: 15300 | I88: 18 | J88: 1960 | K88: 18 | L88: 15400 | M88: 18 | N88: 42400 | O88: 18 | P88: 83500 | Q88: 18 | R88: 70724 | S88: 18 | T88: 190000 | U88: 18 | V88: 2260 | W88: 18 | Y88: 18 | Z88: 154 | AA88: 510 | AB88: 1090 | AC88: - | AD88: 1120 | AE88: 2700 | AF88: 3500 | AG88: 2700 | AH88: 83
A89: 17 | B89: 1840 | C89: 17 | D89: 4200 | E89: 17 | F89: 1620 | G89: 17 | H89: 15400 | I89: 17 | J89: 1970 | K89: 17 | L89: 15600 | M89: 17 | N89: 42600 | O89: 17 | P89: 84000 | Q89: 17 | R89: 70824 | S89: 17 | T89: 191000 | U89: 17 | V89: 2270 | W89: 17 | Y89: 17 | Z89: 156 | AA89: 515 | AB89: 1105 | AC89: 275 | AD89: 1130 | AE89: 2800 | AF89: 3600 | AG89: 2800 | AH89: 84
A90: 16 | B90: 1850 | C90: 16 | D90: 4250 | E90: 16 | F90: 1630 | G90: 16 | H90: 15500 | I90: 16 | J90: 1980 | K90: 16 | L90: 15800 | M90: 16 | N90: 42800 | O90: 16 | P90: 84500 | Q90: 16 | R90: 70924 | S90: 16 | T90: 192000 | U90: 16 | V90: 2280 | W90: 16 | Y90: 16 | Z90: 158 | AA90: 520 | AB90: 1120 | AC90: - | AD90: 1140 | AE90: 2900 | AF90: 3700 | AG90: 2900 | AH90: 85
A91: 15 | B91: 1860 | C91: 15 | D91: 4300 | E91: 15 | F91: 1640 | G91: 15 | H91: 15600 | I91: 15 | J91: 1990 | K91: 15 | L91: 20000 | M91: 15 | N91: 43000 | O91: 15 | P91: 85000 | Q91: 15 | R91: 71024 | S91: 15 | T91: 193000 | U91: 15 | V91: 2290 | W91: 15 | Y91: 15 | Z91: 160 | AA91: 525 | AB91: 1135 | AC91: 280 | AD91: 1150 | AE91: 3000 | AF91: 3800 | AG91: 3000 | AH91: 86
A92: 14 | B92: 1870 | C92: 14 | D92: 4350 | E92: 14 | F92: 1650 | G92: 14 | H92: 15700 | I92: 14 | J92: 2000 | K92: 14 | L92: 20200 | M92: 14 | N92: 43200 | O92: 14 | P92: 85500 | Q92: 14 | R92: 71124 | S92: 14 | T92: 194000 | U92: 14 | V92: 2300 | W92: 14 | Y92: 14 | Z92: 162 | AA92: 530 | AB92: 1150 | AC92: - | AD92: 1160 | AE92: 3100 | AF92: 3900 | AG92: 3100 | AH92: 87
A93: 13 | B93: 1880 | C93: 13 | D93: 4400 | E93: 13 | F93: 1660 | G93: 13 | H93: 15800 | I93: 13 | J93: 2010 | K93: 13 | L93: 20400 | M93: 13 | N93: 43400 | O93: 13 | P93: 90000 | Q93: 13 | R93: 71224 | S93: 13 | T93: 195000 | U93: 13 | V93: 2310 | W93: 13 | Y93: 13 | Z93: 164 | AA93: 535 | AB93: 1165 | AC93: 285 | AD93: 1170 | AE93: 3200 | AF93: 4000 | AG93: 3200 | AH93: 88
A94: 12 | B94: 1890 | C94: 12 | D94: 4450 | E94: 12 | F94: 1670 | G94: 12 | H94: 15900 | I94: 12 | J94: 2020 | K94: 12 | L94: 20600 | M94: 12 | N94: 43600 | O94: 12 | P94: 90500 | Q94: 12 | R94: 71324 | S94: 12 | T94: 200000 | U94: 12 | V94: 2320 | W94: 12 | Y94: 12 | Z94: 166 | AA94: 540 | AB94: 1180 | AC94: - | AD94: 1180 | AE94: 3300 | AF94: 4100 | AG94: 3300 | AH94: 89
A95: 11 | B95: 1900 | C95: 11 | D95: 4500 | E95: 11 | F95: 1680 | G95: 11 | H95: 20000 | I95: 11 | J95: 2030 | K95: 11 | L95: 20800 | M95: 11 | N95: 43800 | O95: 11 | P95: 91000 | Q95: 11 | R95: 71424 | S95: 11 | T95: 201000 | U95: 11 | V95: 2330 | W95: 11 | Y95: 11 | Z95: 168 | AA95: 550 | AB95: 1195 | AC95: 290 | AD95: 1190 | AE95: 3400 | AF95: 4200 | AG95: 3400 | AH95: 90
A96: 10 | B96: 1920 | C96: 10 | D96: 4550 | E96: 10 | F96: 1690 | G96: 10 | H96: 20100 | I96: 10 | J96: 2040 | K96: 10 | L96: 21000 | M96: 10 | N96: 44000 | O96: 10 | P96: 91500 | Q96: 10 | R96: 71524 | S96: 10 | T96: 202000 | U96: 10 | V96: 2340 | W96: 10 | Y96: 10 | Z96: 170 | AA96: 560 | AB96: 1210 | AC96: - | AD96: 1200 | AE96: 3500 | AF96: 4300 | AG96: 3500 | AH96: 91
A97: 9 | B97: 1940 | C97: 9 | D97: 4600 | E97: 9 | F97: 1700 | G97: 9 | H97: 20200 | I97: 9 | J97: 2050 | K97: 9 | L97: 21200 | M97: 9 | N97: 44200 | O97: 9 | P97: 92000 | Q97: 9 | R97: 71624 | S97: 9 | T97: 203000 | U97: 9 | V97: 2350 | W97: 9 | Y97: 9 | Z97: 172 | AA97: 570 | AB97: 1225 | AC97: 295 | AD97: 1220 | AE97: 3600 | AF97: 4500 | AG97: 3600 | AH97: 92
A98: 8 | B98: 1960 | C98: 8 | D98: 4650 | E98: 8 | F98: 1710 | G98: 8 | H98: 20300 | I98: 8 | J98: 2060 | K98: 8 | L98: 21400 | M98: 8 | N98: 44400 | O98: 8 | P98: 92500 | Q98: 8 | R98: 71724 | S98: 8 | T98: 204000 | U98: 8 | V98: 2360 | W98: 8 | Y98: 8 | Z98: 174 | AA98: 580 | AB98: 1240 | AC98: 300 | AD98: 1240 | AE98: 3700 | AF98: 4400 | AG98: 3700 | AH98: 93
A99: 7 | B99: 1980 | C99: 7 | D99: 4700 | E99: 7 | F99: 1720 | G99: 7 | H99: 20400 | I99: 7 | J99: 2070 | K99: 7 | L99: 21600 | M99: 7 | N99: 44600 | O99: 7 | P99: 93000 | Q99: 7 | R99: 71824 | S99: 7 | T99: 205000 | U99: 7 | V99: 2370 | W99: 7 | Y99: 7 | Z99: 176 | AA99: 590 | AB99: 1255 | AC99: 310 | AD99: 1260 | AE99: 3800 | AF99: 4600 | AG99: 3800 | AH99: 94
A100: 6 | B100: 2000 | C100: 6 | D100: 4750 | E100: 6 | F100: 1730 | G100: 6 | H100: 20500 | I100: 6 | J100: 2080 | K100: 6 | L100: 21800 | M100: 6 | N100: 44800 | O100: 6 | P100: 93500 | Q100: 6 | R100: 71924 | S100: 6 | T100: 210000 | U100: 6 | V100: 2380 | W100: 6 | Y100: 6 | Z100: 178 | AA100: 600 | AB100: 1270 | AC100: 320 | AD100: 1280 | AE100: 3900 | AF100: 4700 | AG100: 3900 | AH100: 95
A101: 5 | B101: 2020 | C101: 5 | D101: 4800 | E101: 5 | F101: 1740 | G101: 5 | H101: 20600 | I101: 5 | J101: 2090 | K101: 5 | L101: 22000 | M101: 5 | N101: 45000 | O101: 5 | P101: 94000 | Q101: 5 | R101: 72024 | S101: 5 | T101: 211000 | U101: 5 | V101: 2390 | W101: 5 | Y101: 5 | Z101: 180 | AA101: 610 | AB101: 1285 | AC101: 330 | AD101: 1300 | AE101: 4000 | AF101: 4800 | AG101: 4000 | AH101: 96
A102: 4 | B102: 2040 | C102: 4 | D102: 4850 | E102: 4 | F102: 1750 | G102: 4 | H102: 20700 | I102: 4 | J102: 2100 | K102: 4 | L102: 22200 | M102: 4 | N102: 45200 | O102: 4 | P102: 94500 | Q102: 4 | R102: 72124 | S102: 4 | T102: 212000 | U102: 4 | V102: 2400 | W102: 4 | Y102: 4 | Z102: 182 | AA102: 620 | AB102: 1300 | AC102: 340 | AD102: 1320 | AE102: 4100 | AF102: 4900 | AG102: 4100 | AH102: 97
A103: 3 | B103: 2060 | C103: 3 | D103: 4900 | E103: 3 | F103: 1760 | G103: 3 | H103: 20800 | I103: 3 | J103: 2110 | K103: 3 | L103: 22400 | M103: 3 | N103: 45400 | O103: 3 | P103: 95000 | Q103: 3 | R103: 72224 | S103: 3 | T103: 213000 | U103: 3 | V103: 2410 | W103: 3 | Y103: 3 | Z103: 184 | AA103: 630 | AB103: 1315 | AC103: 350 | AD103: 1340 | AE103: 4200 | AF103: 5000 | AG103: 4200 | AH103: 98
A104: 2 | B104: 2080 | C104: 2 | D104: 4950 | E104: 2 | F104: 1770 | G104: 2 | H104: 20900 | I104: 2 | J104: 2120 | K104: 2 | L104: 22600 | M104: 2 | N104: 45600 | O104: 2 | P104: 95500 | Q104: 2 | R104: 72324 | S104: 2 | T104: 214000 | U104: 2 | V104: 2420 | W104: 2 | Y104: 2 | Z104: 186 | AA104: 640 | AB104: 1330 | AC104: 360 | AD104: 1360 | AE104: 4300 | AF104: 5100 | AG104: 4300 | AH104: 99
A105: 1 | B105: 2100 | C105: 1 | D105: 5000 | E105: 1 | F105: 1780 | G105: 1 | H105: 21000 | I105: 1 | J105: 2130 | K105: 1 | L105: 22800 | M105: 1 | N105: 45800 | O105: 1 | P105: 100000 | Q105: 1 | R105: 72424 | S105: 1 | T105: 215000 | U105: 1 | V105: 2430 | W105: 1 | Y105: 1 | Z105: 188 | AA105: 650 | AB105: 1345 | AC105: 370 | AD105: 1380 | AE105: 4400 | AF105: 5200 | AG105: 4400 | AH105: 100
B106: DNS | D106: DNS | F106: DNS | H106: DNS | J106: DNS | L106: DNS | N106: DNS | P106: DNS | R106: DNS | T106: DNS | V106: DNS | X106: DNS | Y106: 0 | Z106: DNS | AA106: DNS | AB106: DNS | AC106: DNS | AD106: DNS | AE106: DNS | AF106: DNS | AH106: 0
B107: DNF | D107: DNF | F107: DNF | H107: DNF | J107: DNF | L107: DNF | N107: DNF | P107: DNF | R107: DNF | T107: DNF | V107: DNF | X107: DNF | Y107: 0 | Z107: NM | AA107: NM | AB107: NM | AC107: NM | AD107: NM | AE107: NM | AF107: NM | AH107: 0
B108: NM | D108: NM | F108: NM | H108: NM | J108: NM | L108: NM | N108: NM | P108: NM | R108: NM | T108: NM | V108: NM | X108: NM | Y108: 0 | Z108: DQ | AA108: DQ | AB108: DQ | AC108: DQ | AD108: DQ | AE108: DQ | AF108: DQ | AH108: 0
B109: DQ | D109: DQ | F109: DQ | H109: DQ | J109: DQ | L109: DQ | N109: DQ | P109: DQ | R109: DQ | T109: DQ | V109: DQ | X109: DQ | Y109: 0 | AH109: 0

Sheet 70m.Eng
A1: =('YARIŞMA BİLGİLERİ'!A2) -> Türkiye Atletizm Federasyonu İzmir Atletizm İl Temsilciliği
A2: ='YARIŞMA BİLGİLERİ'!F19 -> Naili Moran Türkiye Atletizm Şampiyonası
A3: Yarışma : | D3: ='YARIŞMA PROGRAMI'!C9 -> 70 Metre Engelli
A4: Kategori : | D4: ='YARIŞMA BİLGİLERİ'!F21 -> 12 Yaş Erkekler | M4: Tarih-Saat : | N4: ='YARIŞMA PROGRAMI'!B9 -> 14 Haziran 2014 - 9:50
N5: 41804.48749
A6: Sıra No | B6: Göğüs No | C6: Doğum Tarihi Gün/Ay/Yıl | D6: Adı ve Soyadı | E6: İLİ | F6: Derece | G6: Puan | I6: 1. SERİ | M6: Rüzgar:
I7: Sıra No | J7: Formül | K7: Göğüs No | L7: Doğum Tarihi | M7: Adı ve Soyadı | N7: İLİ | O7: Derece | P7: El Kronometre | Q7: Seri Geliş
A8: 1 | B8: 679 | C8: 2002-11-21 | D8: GÖKHAN GENÇTÜRK | E8: TEKİRDAĞ | F8: 1306 | G8: 83 | I8: 1 | J8: 70M.ENG-1-1
A9: 2 | B9: 116 | C9: 2002-01-01 | D9: SERKUT DEĞİRMENCİ | E9: BALIKESİR | F9: 1329 | G9: 81 | I9: 2 | J9: 70M.ENG-1-2 | K9: 157 | L9: 2002-06-25 | M9: C. BERKE TAŞATAN | N9: BİLECİK | O9: 1393 | Q9: 3
A10: 3 | B10: 680 | C10: 2002-02-27 | D10: KAAN YILDIRIM | E10: TEKİRDAĞ | F10: 1332 | G10: 80 | I10: 3 | J10: 70M.ENG-1-3 | K10: 734 | L10: 2002-03-28 | M10: BARTU AYDOĞAN | N10: BURSA | O10: 1435 | Q10: 4
A11: 4 | B11: 157 | C11: 2002-06-25 | D11: C. BERKE TAŞATAN | E11: BİLECİK | F11: 1393 | G11: 74 | I11: 4 | J11: 70M.ENG-1-4 | K11: 116 | L11: 2002-01-01 | M11: SERKUT DEĞİRMENCİ | N11: BALIKESİR | O11: 1329 | Q11: 2
A12: 5 | B12: 734 | C12: 2002-03-28 | D12: BARTU AYDOĞAN | E12: BURSA | F12: 1435 | G12: 70 | I12: 5 | J12: 70M.ENG-1-5 | K12: 696 | L12: 2002-01-01 | M12: ÖZCAN ÖNDER | N12: TOKAT | O12: 1885 | Q12: 5
A13: 6 | B13: 411 | C13: 2002-07-19 | D13: GÖRKEM ÖNSAY | E13: İZMİR | F13: 1449 | G13: 69 | I13: 6 | J13: 70M.ENG-1-6 | K13: 679 | L13: 2002-11-21 | M13: GÖKHAN GENÇTÜRK | N13: TEKİRDAĞ | O13: 1306 | Q13: 1
A14: 7 | B14: 27 | C14: 2002-01-01 | D14: AHMET COŞKUN | E14: ADIYAMAN | F14: 1509 | G14: 63 | I14: 7 | J14: 70M.ENG-1-7
A15: 8 | B15: 84 | C15: 2002-01-01 | D15: İLHAN BAKTEMUR | E15: AYDIN | F15: 1510 | G15: 63 | I15: 8 | J15: 70M.ENG-1-8
A16: 9 | B16: 156 | C16: 2002-11-25 | D16: ABDÜLKADİR TAŞKIRAN | E16: BİLECİK | F16: 1514 | G16: 62 | I16: 2. SERİ | M16: Rüzgar:
A17: 10 | B17: 696 | C17: 2002-01-01 | D17: ÖZCAN ÖNDER | E17: TOKAT | F17: 1885 | G17: 25 | I17: Sıra No | J17: Formül | K17: Göğüs No | L17: Doğum Tarihi | M17: Adı ve Soyadı | N17: İLİ | O17: Derece | P17: El Kronometre | Q17: Seri Geliş
I18: 1 | J18: 70M.ENG-2-1
I19: 2 | J19: 70M.ENG-2-2 | K19: 84 | L19: 2002-01-01 | M19: İLHAN BAKTEMUR | N19: AYDIN | O19: 1510 | Q19: 4
I20: 3 | J20: 70M.ENG-2-3 | K20: 156 | L20: 2002-11-25 | M20: ABDÜLKADİR TAŞKIRAN | N20: BİLECİK | O20: 1514 | Q20: 5
I21: 4 | J21: 70M.ENG-2-4 | K21: 680 | L21: 2002-02-27 | M21: KAAN YILDIRIM | N21: TEKİRDAĞ | O21: 1332 | Q21: 1
I22: 5 | J22: 70M.ENG-2-5 | K22: 411 | L22: 2002-07-19 | M22: GÖRKEM ÖNSAY | N22: İZMİR | O22: 1449 | Q22: 2
I23: 6 | J23: 70M.ENG-2-6 | K23: 27 | L23: 2002-01-01 | M23: AHMET COŞKUN | N23: ADIYAMAN | O23: 1509 | Q23: 3
I24: 7 | J24: 70M.ENG-2-7
I25: 8 | J25: 70M.ENG-2-8
I26: 3. SERİ | M26: Rüzgar:
I27: Sıra No | J27: Formül | K27: Göğüs No | L27: Doğum Tarihi | M27: Adı ve Soyadı | N27: İLİ | O27: Derece | P27: El Kronometre | Q27: Seri Geliş
I28: 1 | J28: 70M.ENG-3-1
I29: 2 | J29: 70M.ENG-3-2
I30: 3 | J30: 70M.ENG-3-3
I31: 4 | J31: 70M.ENG-3-4
I32: 5 | J32: 70M.ENG-3-5
I33: 6 | J33: 70M.ENG-3-6
I34: 7 | J34: 70M.ENG-3-7
I35: 8 | J35: 70M.ENG-3-8
I36: 4. SERİ | M36: Rüzgar:
I37: Sıra No | J37: Formül | K37: Göğüs No | L37: Doğum Tarihi | M37: Adı ve Soyadı | N37: İLİ | O37: Derece | P37: El Kronometre | Q37: Seri Geliş
I38: 1 | J38: 70M.ENG-4-1
I39: 2 | J39: 70M.ENG-4-2
I40: 3 | J40: 70M.ENG-4-3
I41: 4 | J41: 70M.ENG-4-4
I42: 5 | J42: 70M.ENG-4-5
I43: 6 | J43: 70M.ENG-4-6
I44: 7 | J44: 70M.ENG-4-7
I45: 8 | J45: 70M.ENG-4-8
A47: Müsabakalar Direktörü | E47: Baş Hakem | F47: Lider | H47: Sekreter | M47: Hakem | N47: Hakem | P47: Hakem
A65536: CELAL KAYAÖZ

Sheet Gülle
A1: ='YARIŞMA BİLGİLERİ'!A2:K2 -> Türkiye Atletizm Federasyonu İzmir Atletizm İl Temsilciliği
A2: ='YARIŞMA BİLGİLERİ'!A14:K14 -> Naili Moran Türkiye Atletizm Şampiyonası
A3: Yarışma : | D3: ='YARIŞMA PROGRAMI'!C14 -> Gülle Atma
A4: Kategori : | D4: ='YARIŞMA BİLGİLERİ'!F21 -> 12 Yaş Erkekler | F4: Ağırlık | G4: 2 kg. | I4: Tarih-Saat : | K4: ='YARIŞMA PROGRAMI'!B14 -> 14 Haziran 2014 - 10:45
J5: 41804.75477
A6: SIRA NO | C6: GÖĞÜS NO | D6: DOĞUM TARİHİ Gün/Ay/Yıl | E6: ADI VE SOYADI | F6: İLİ | G6: A T M A L A R | J6: SONUÇ | K6: PUAN | L6: KLASMAN
G7: 1 | H7: 2 | I7: 3
A8: 1 | B8: GÜLLE-12 | C8: 548 | D8: 2002-01-05 | E8: MELİH GÖKALP | F8: KÜTAHYA | G8: 1228 | H8: 1250 | I8: X | J8: 1250 | K8: 93
A9: 2 | B9: GÜLLE-7 | C9: 653 | D9: 2002-01-01 | E9: MUSA DALKILIÇ | F9: SİİRT | G9: 1196 | H9: X | I9: 1215 | J9: 1215 | K9: 91
A10: 3 | B10: GÜLLE-10 | C10: 566 | D10: 2002-07-31 | E10: FERAY ÇELİK | F10: MUĞLA | G10: 1148 | H10: 1156 | I10: 1186 | J10: 1186 | K10: 89
A11: 4 | B11: GÜLLE-9 | C11: 565 | D11: 2002-07-31 | E11: FERHAT ÇELİK | F11: MUĞLA | G11: 1046 | H11: 1028 | I11: 1091 | J11: 1091 | K11: 80
A12: 5 | B12: GÜLLE-11 | C12: 680 | D12: 2002-02-27 | E12: KAAN YILDIRIM | F12: TEKİRDAĞ | G12: 1022 | H12: X | I12: 1086 | J12: 1086 | K12: 79
A13: 6 | B13: GÜLLE-8 | C13: 655 | D13: 2002-02-12 | E13: ZÜBEYT TEMEL | F13: SİİRT | G13: 1011 | H13: 1048 | I13: X | J13: 1048 | K13: 75
A14: 7 | B14: GÜLLE-4 | C14: 608 | D14: 2002-09-15 | E14: OĞUZHAN USTA | F14: OSMANİYE | G14: 1017 | H14: X | I14: X | J14: 1017 | K14: 72
A15: 8 | B15: GÜLLE-6 | C15: 508 | D15: 2002-05-03 | E15: ERSİN İLHAN | F15: KOCAELİ | G15: 904 | H15: X | I15: 798 | J15: 904 | K15: 61
A16: 9 | B16: GÜLLE-2 | C16: 735 | D16: 2002-01-01 | E16: MİRSAT KADİR KUTLU | F16: BURSA | G16: 783 | H16: X | I16: 855 | J16: 855 | K16: 56
A17: 10 | B17: GÜLLE-1 | C17: 609 | D17: 2002-03-06 | E17: AKİF HANİFİOĞLU | F17: OSMANİYE | G17: 780 | H17: 772 | I17: 818 | J17: 818 | K17: 52
A18: 11 | B18: GÜLLE-3 | C18: 157 | D18: 2002-06-25 | E18: C. BERKE TAŞATAN | F18: BİLECİK | G18: 630 | H18: 653 | I18: 671 | J18: 671 | K18: 38
A19: - | B19: GÜLLE-5 | C19: 27 | D19: 2002-01-01 | E19: AHMET COŞKUN | F19: ADIYAMAN | G19: X | H19: X | I19: - | J19: NM | K19: 0
B20: GÜLLE-13 | J20: 0
B21: GÜLLE-14 | J21: 0
B22: GÜLLE-15 | J22: 0
B23: GÜLLE-16 | J23: 0
B24: GÜLLE-17 | J24: 0
B25: GÜLLE-18 | J25: 0
B26: GÜLLE-19 | J26: 0
B27: GÜLLE-20 | J27: 0
B28: GÜLLE-21 | J28: 0
B29: GÜLLE-22 | J29: 0
B30: GÜLLE-23 | J30: 0
B31: GÜLLE-24 | J31: 0
B32: GÜLLE-25 | J32: 0
B33: GÜLLE-26 | J33: 0
B34: GÜLLE-27 | J34: 0
B35: GÜLLE-28 | J35: 0
B36: GÜLLE-29 | J36: 0
B37: GÜLLE-30 | J37: 0
B38: GÜLLE-31 | J38: 0
B39: GÜLLE-32 | J39: 0
B40: GÜLLE-33 | J40: 0
B41: GÜLLE-34 | J41: 0
B42: GÜLLE-35 | J42: 0
B43: GÜLLE-36 | J43: 0
B44: GÜLLE-37 | J44: 0
B45: GÜLLE-38 | J45: 0
B46: GÜLLE-39 | J46: 0
B47: GÜLLE-40 | J47: 0
A49: Müsabaka Direktörü | E49: Baş Hakem | F49: Lider | G49: Sekreter | J49: Hakem
A65536: CELAL KAYAÖZ

Sheet Uzun A
A1: ='YARIŞMA BİLGİLERİ'!A2:K2 -> Türkiye Atletizm Federasyonu İzmir Atletizm İl Temsilciliği
A2: ='YARIŞMA BİLGİLERİ'!A14:K14 -> Naili Moran Türkiye Atletizm Şampiyonası
A3: Yarışma : | D3: ='YARIŞMA PROGRAMI'!C11 -> Uzun Atlama-A
A4: Kategori : | D4: ='YARIŞMA BİLGİLERİ'!F21 -> 12 Yaş Erkekler | I4: Tarih-Saat : | K4: ='YARIŞMA PROGRAMI'!B11 -> 14 Haziran 2014 - 11:45
J5: 41804.61862
A6: SIRA NO | C6: GÖĞÜS NO | D6: DOĞUM TARİHİ Gün/Ay/Yıl | E6: ADI VE SOYADI | F6: İLİ | G6: A T L A M A L A R | J6: SONUÇ | K6: PUAN | L6: RÜZGAR
G7: 1 | H7: 2 | I7: 3
A8: 1 | B8: UZUN-A-34 | C8: 220 | D8: 2002-06-03 | E8: BERKİN BERBEROĞLU | F8: ÇANAKKALE | G8: 444 | H8: 457 | I8: 457 | J8: 457 | K8: 76
A9: 2 | B9: UZUN-A-19 | C9: 565 | D9: 2002-07-31 | E9: FERHAT ÇELİK | F9: MUĞLA | G9: 405 | H9: 456 | I9: 437 | J9: 456 | K9: 76
A10: 3 | B10: UZUN-A-23 | C10: 549 | D10: 2002-03-04 | E10: HASAN ÇAĞRI AKAN | F10: KÜTAHYA | G10: 455 | H10: 444 | I10: 425 | J10: 455 | K10: 76
A11: 4 | B11: UZUN-A-9 | C11: 573 | D11: 2002-01-01 | E11: İbrahim KARATEKER | F11: MUŞ | G11: 421 | H11: 435 | I11: 454 | J11: 454 | K11: 76
A12: 5 | B12: UZUN-A-24 | C12: 221 | D12: 2002-01-05 | E12: KADİR FURKAN SİVRİOĞLU | F12: ÇANAKKALE | G12: 429 | H12: 446 | I12: 427 | J12: 446 | K12: 75
A13: 6 | B13: UZUN-A-32 | C13: 249 | D13: 2002-03-24 | E13: EMRE YILDIZ | F13: ERZİNCAN | G13: 431 | H13: 440 | I13: X | J13: 440 | K13: 75
A14: 7 | B14: UZUN-A-33 | C14: 702 | D14: 2002-01-30 | E14: OZAN ŞAHİN | F14: TOKAT | G14: 435 | H14: X | I14: 415 | J14: 435 | K14: 74
A15: 8 | B15: UZUN-A-30 | C15: 426 | D15: 2002-08-06 | E15: BARAN ÇAPKIN | F15: İZMİR | G15: 425 | H15: 429 | I15: 423 | J15: 429 | K15: 73
A16: 9 | B16: UZUN-A-28 | C16: 174 | D16: 2002-01-01 | E16: NİHAT BİRGİN | F16: BİNGÖL | G16: 418 | H16: 425 | I16: 396 | J16: 425 | K16: 73
A17: 10 | B17: UZUN-A-29 | C17: 550 | D17: 2002-01-01 | E17: AHMET ÖZER | F17: KÜTAHYA | G17: 403 | H17: 424 | I17: 376 | J17: 424 | K17: 73
A18: 11 | B18: UZUN-A-10 | C18: 428 | D18: 2002-07-25 | E18: YASİN KINA | F18: İZMİR | G18: 421 | H18: 416 | I18: 422 | J18: 422 | K18: 73
A19: 12 | B19: UZUN-A-27 | C19: 111 | D19: 2002-09-24 | E19: OĞUZHAN KOŞAR | F19: BALIKESİR | G19: 420 | H19: 395 | I19: 385 | J19: 420 | K19: 73
A20: 13 | B20: UZUN-A-31 | C20: 696 | D20: 2002-01-01 | E20: ÖZCAN ÖNDER | F20: TOKAT | G20: 414 | H20: 417 | I20: 395 | J20: 417 | K20: 72
A21: 14 | B21: UZUN-A-17 | C21: 695 | D21: 2002-06-19 | E21: AHMET EREN ŞAHİN | F21: TOKAT | G21: 414 | H21: 396 | I21: 398 | J21: 414 | K21: 72
A22: 15 | B22: UZUN-A-22 | C22: 234 | D22: 2002-01-01 | E22: M.ŞİRİN FİDANBOY | F22: DİYARBAKIR | G22: 407 | H22: 402 | I22: X | J22: 407 | K22: 71
A23: 16 | B23: UZUN-A-21 | C23: 281 | D23: 2002-01-01 | E23: DAVUT AKDENİZ | F23: GAZİANTEP | G23: 360 | H23: 406 | I23: 396 | J23: 406 | K23: 71
A24: 17 | B24: UZUN-A-20 | C24: 733 | D24: 2002-01-17 | E24: KEMAL EREN ZEYTUN | F24: BURSA | G24: 364 | H24: 396 | I24: 404 | J24: 404 | K24: 71
A25: 18 | B25: UZUN-A-14 | C25: 349 | D25: 2002-07-09 | E25: A.BATUHAN KESKİNKILIÇ | F25: ISPARTA | G25: 378 | H25: 400 | I25: 396 | J25: 400 | K25: 71
A26: 19 | B26: UZUN-A-35 | C26: 156 | D26: 2002-11-25 | E26: ABDÜLKADİR TAŞKIRAN | F26: BİLECİK | G26: 384 | H26: 380 | I26: 394 | J26: 394 | K26: 69
A27: 20 | B27: UZUN-A-26 | C27: 584 | D27: 2002-07-20 | E27: Mezher GÜLER | F27: MUŞ | G27: 366 | H27: 386 | I27: 379 | J27: 386 | K27: 66
A28: 21 | B28: UZUN-A-11 | C28: 282 | D28: 2002-01-01 | E28: MUSTAFA BAKIR | F28: GAZİANTEP | G28: 372 | H28: 383 | I28: - | J28: 383 | K28: 65
A29: 22 | B29: UZUN-A-18 | C29: 233 | D29: 2002-01-01 | E29: ÖMER İÇLEK | F29: DİYARBAKIR | G29: X | H29: 375 | I29: 357 | J29: 375 | K29: 63
A30: 23 | B30: UZUN-A-5 | C30: 168 | D30: 2002-01-01 | E30: UMUT DÖĞÜM | F30: BİNGÖL | G30: 362 | H30: 371 | I30: 335 | J30: 371 | K30: 61
A31: 24 | B31: UZUN-A-7 | C31: 350 | D31: 2002-03-14 | E31: HÜSEYİN EĞİN | F31: ISPARTA | G31: 371 | H31: 359 | I31: X | J31: 371 | K31: 61
A32: 25 | B32: UZUN-A-8 | C32: 348 | D32: 2002-10-30 | E32: FAİK ÖLMEZ | F32: ISPARTA | G32: 348 | H32: 315 | I32: 369 | J32: 369 | K32: 61
A33: 26 | B33: UZUN-A-16 | C33: 480 | D33: 2002-05-21 | E33: RAMAZAN YULAF | F33: KIRIKKALE | G33: 364 | H33: X | I33: 368 | J33: 368 | K33: 60
A34: 27 | B34: UZUN-A-6 | C34: 346 | D34: 2002-05-28 | E34: MELİH GÜLDAL | F34: ISPARTA | G34: 310 | H34: 368 | I34: 350 | J34: 368 | K34: 60
A35: 28 | B35: UZUN-A-1 | C35: 128 | D35: 2002-02-16 | E35: ENİS ÖZDEMİR | F35: BARTIN | G35: 317 | H35: 340 | I35: 367 | J35: 367 | K35: 60
A36: 29 | B36: UZUN-A-4 | C36: 169 | D36: 2002-01-01 | E36: EYÜP YILDIRIM | F36: BİNGÖL | G36: 367 | H36: 327 | I36: 333 | J36: 367 | K36: 60
A37: 30 | B37: UZUN-A-13 | C37: 551 | D37: 2002-01-01 | E37: HALİT GÜNGÖR | F37: KÜTAHYA | G37: 338 | H37: 332 | I37: 354 | J37: 354 | K37: 56
A38: 31 | B38: UZUN-A-15 | C38: 427 | D38: 2002-05-21 | E38: ENSAR YILMAZ | F38: İZMİR | G38: 340 | H38: 328 | I38: 348 | J38: 348 | K38: 54
A39: 32 | B39: UZUN-A-3 | C39: 170 | D39: 2002-01-01 | E39: HALİT ÇAKAR | F39: BİNGÖL | G39: 340 | H39: X | I39: X | J39: 340 | K39: 51
A40: 33 | B40: UZUN-A-2 | C40: 127 | D40: 2002-12-26 | E40: ALPER RIZA BASAN | F40: BARTIN | G40: X | H40: 338 | I40: 286 | J40: 338 | K40: 50
A41: 34 | B41: UZUN-A-12 | C41: 283 | D41: 2002-01-01 | E41: SÜLEYMAN TOKER | F41: GAZİANTEP | G41: X | H41: 309 | I41: - | J41: 309 | K41: 41
B42: UZUN-A-36 | J42: 0
B43: UZUN-A-37 | J43: 0
B44: UZUN-A-38 | J44: 0
B45: UZUN-A-39 | J45: 0
B46: UZUN-A-40 | C46: =IF(ISERROR(VLOOKUP(B46,'KAYIT LİSTESİ'!$B$4:$H$788,2,0)),"",(VLOOKUP(B46,'KAYIT LİSTESİ'!$B$4:$H$788,2,0))) ->  | D46: =IF(ISERROR(VLOOKUP(B46,'KAYIT LİSTESİ'!$B$4:$H$788,4,0)),"",(VLOOKUP(B46,'KAYIT LİSTESİ'!$B$4:$H$788,4,0))) ->  | E46: =IF(ISERROR(VLOOKUP(B46,'KAYIT LİSTESİ'!$B$4:$H$788,5,0)),"",(VLOOKUP(B46,'KAYIT LİSTESİ'!$B$4:$H$788,5,0))) ->  | F46: =IF(ISERROR(VLOOKUP(B46,'KAYIT LİSTESİ'!$B$4:$H$788,6,0)),"",(VLOOKUP(B46,'KAYIT LİSTESİ'!$B$4:$H$788,6,0))) ->  | J46: =MAX(G46:I46) -> 0 | K46: =IF(LEN(J46)>0,VLOOKUP(J46,puan!$AA$4:$AH$111,8)-IF(COUNTIF(puan!$AA$4:$AH$111,J46)=0,0,0)," ") -> 
A48: Müsabaka Direktörü | E48: Baş Hakem | F48: Lider | G48: Sekreter | J48: Hakem
A65535: CELAL KAYAÖZ

Sheet Uzun B
A1: ='YARIŞMA BİLGİLERİ'!A2:K2 -> Türkiye Atletizm Federasyonu İzmir Atletizm İl Temsilciliği
A2: ='YARIŞMA BİLGİLERİ'!A14:K14 -> Naili Moran Türkiye Atletizm Şampiyonası
A3: Yarışma : | D3: ='YARIŞMA PROGRAMI'!C12 -> Uzun Atlama-B
A4: Kategori : | D4: ='YARIŞMA BİLGİLERİ'!F21 -> 12 Yaş Erkekler | I4: Tarih-Saat : | K4: ='YARIŞMA PROGRAMI'!B11 -> 14 Haziran 2014 - 11:45
J5: 41804.62456
A6: SIRA NO | C6: GÖĞÜS NO | D6: DOĞUM TARİHİ Gün/Ay/Yıl | E6: ADI VE SOYADI | F6: İLİ | G6: A T L A M A L A R | J6: SONUÇ | K6: PUAN | L6: RÜZGAR
G7: 1 | H7: 2 | I7: 3
A8: 1 | B8: UZUN-B-10 | C8: 116 | D8: 2002-01-01 | E8: SERKUT DEĞİRMENCİ | F8: BALIKESİR | G8: X | H8: 516 | I8: 521 | J8: 521 | K8: 85
A9: 2 | B9: UZUN-B-7 | C9: 508 | D9: 2002-05-03 | E9: ERSİN İLHAN | F9: KOCAELİ | G9: 502 | H9: 496 | I9: 491 | J9: 502 | K9: 81
A10: 3 | B10: UZUN-B-3 | C10: 248 | D10: 2002-11-20 | E10: ERAY KARAL | F10: ERZİNCAN | G10: 456 | H10: 457 | I10: 477 | J10: 477 | K10: 78
A11: 4 | B11: UZUN-B-4 | C11: 655 | D11: 2002-02-12 | E11: ZÜBEYT TEMEL | F11: SİİRT | G11: 474 | H11: 462 | I11: X | J11: 474 | K11: 78
A12: 5 | B12: UZUN-B-8 | C12: 679 | D12: 2002-11-21 | E12: GÖKHAN GENÇTÜRK | F12: TEKİRDAĞ | G12: 419 | H12: X | I12: 456 | J12: 456 | K12: 76
A13: 6 | B13: UZUN-B-34 | C13: 16 | D13: 2002-01-01 | E13: GÖRKEM KAYA | F13: ADANA | G13: 438 | H13: 445 | I13: 434 | J13: 445 | K13: 75
A14: 7 | B14: UZUN-B-33 | C14: 50 | D14: 2002-06-13 | E14: TOLGA BAŞKOL | F14: AMASYA | G14: 438 | H14: 414 | I14: X | J14: 438 | K14: 74
A15: 8 | B15: UZUN-B-15 | C15: 566 | D15: 2002-07-31 | E15: FERAY ÇELİK | F15: MUĞLA | G15: 433 | H15: 426 | I15: 412 | J15: 433 | K15: 74
A16: 9 | B16: UZUN-B-35 | C16: 509 | D16: 2002-01-01 | E16: UMUT DOĞAN | F16: KOCAELİ | G16: 369 | H16: 425 | I16: 404 | J16: 425 | K16: 73
A17: 10 | B17: UZUN-B-2 | C17: 425 | D17: 2002-09-16 | E17: EREN GENÇ | F17: İZMİR | G17: 425 | H17: 348 | I17: 363 | J17: 425 | K17: 73
A18: 11 | B18: UZUN-B-18 | C18: 734 | D18: 2002-03-28 | E18: BARTU AYDOĞAN | F18: BURSA | G18: 398 | H18: 396 | I18: 423 | J18: 423 | K18: 73
A19: 12 | B19: UZUN-B-26 | C19: 83 | D19: 2002-01-20 | E19: ENVER VİRAN | F19: AYDIN | G19: 385 | H19: 392 | I19: 402 | J19: 402 | K19: 71
A20: 13 | B20: UZUN-B-22 | C20: 64 | D20: 2002-07-09 | E20: DOĞUKAN KÖMÜR | F20: ARDAHAN | G20: 371 | H20: 402 | I20: 362 | J20: 402 | K20: 71
A21: 14 | B21: UZUN-B-6 | C21: 411 | D21: 2002-07-19 | E21: GÖRKEM ÖNSAY | F21: İZMİR | G21: 398 | H21: 382 | I21: 384 | J21: 398 | K21: 70
A22: 15 | B22: UZUN-B-12 | C22: 301 | D22: 2002-11-24 | E22: YUSUFHAN DEMİRÇİ | F22: GİRESUN | G22: 392 | H22: 389 | I22: 372 | J22: 392 | K22: 68
A23: 16 | B23: UZUN-B-25 | C23: 322 | D23: 2002-02-07 | E23: EMRE KARA | F23: HATAY | G23: 363 | H23: 352 | I23: 378 | J23: 378 | K23: 64
A24: 17 | B24: UZUN-B-27 | C24: 66 | D24: 2002-01-01 | E24: YUSUF ARABUL | F24: ARDAHAN | G24: 364 | H24: 377 | I24: X | J24: 377 | K24: 63
A25: 18 | B25: UZUN-B-11 | C25: 40 | D25: 2002-01-15 | E25: HAKAN ACUN | F25: AKSARAY | G25: X | H25: X | I25: 373 | J25: 373 | K25: 62
A26: 19 | B26: UZUN-B-14 | C26: 611 | D26: 2002-09-05 | E26: MEHMET ALİ GÜNEŞ | F26: OSMANİYE | G26: 367 | H26: 365 | I26: 370 | J26: 370 | K26: 61
A27: 20 | B27: UZUN-B-31 | C27: 601 | D27: 2002-07-04 | E27: ÖMER DİLDÖKEN | F27: NEVŞEHİR | G27: 369 | H27: 366 | I27: 365 | J27: 369 | K27: 61
A28: 21 | B28: UZUN-B-1 | C28: 654 | D28: 2002-01-07 | E28: DAVUT BASUT | F28: SİİRT | G28: X | H28: 340 | I28: 367 | J28: 367 | K28: 60
A29: 22 | B29: UZUN-B-21 | C29: 466 | D29: 2002-08-22 | E29: MUSTAFA TALAŞ | F29: KARAMAN | G29: 366 | H29: 358 | I29: 320 | J29: 366 | K29: 60
A30: 23 | B30: UZUN-B-19 | C30: 499 | D30: 2002-12-17 | E30: BEYTULLAH KAYA | F30: KIRŞEHİR | G30: 363 | H30: 340 | I30: 364 | J30: 364 | K30: 59
A31: 24 | B31: UZUN-B-23 | C31: 314 | D31: 2002-02-22 | E31: ALİ İSMAİL ÇİÇEK | F31: HATAY | G31: 336 | H31: 353 | I31: X | J31: 353 | K31: 55
A32: 25 | B32: UZUN-B-24 | C32: 465 | D32: 2002-02-16 | E32: İSMET FURKAN YANDI | F32: KARAMAN | G32: 308 | H32: X | I32: 352 | J32: 352 | K32: 55
A33: 26 | B33: UZUN-B-29 | C33: 600 | D33: 2002-11-21 | E33: MELİH ÇOPUR | F33: NEVŞEHİR | G33: 338 | H33: 350 | I33: 318 | J33: 350 | K33: 54
A34: 27 | B34: UZUN-B-20 | C34: 315 | D34: 2002-09-09 | E34: MUSTAFA TUNA | F34: HATAY | G34: X | H34: 340 | I34: X | J34: 340 | K34: 51
A35: 28 | B35: UZUN-B-17 | C35: 84 | D35: 2002-01-01 | E35: İLHAN BAKTEMUR | F35: AYDIN | G35: X | H35: 334 | I35: 333 | J35: 334 | K35: 49
A36: 29 | B36: UZUN-B-16 | C36: 610 | D36: 2002-01-10 | E36: BURAK YILDIZ | F36: OSMANİYE | G36: 280 | H36: X | I36: X | J36: 280 | K36: 31
A37: 30 | B37: UZUN-B-28 | C37: 67 | D37: 2002-01-01 | E37: ADEM BİLGİN | F37: ARDAHAN | G37: 208 | H37: 211 | I37: 208 | J37: 211 | K37: 8
A38: - | B38: UZUN-B-13 | C38: 612 | D38: 2002-10-12 | E38: MERT YAHYA YILDIRIM | F38: OSMANİYE | G38: X | H38: X | I38: X | J38: NM | K38: 0
A39: - | B39: UZUN-B-30 | C39: 28 | D39: 2002-08-01 | E39: HASAN ALANTAR | F39: ADIYAMAN | J39: DNS | K39: 0
A40: - | B40: UZUN-B-32 | C40: 26 | D40: 2002-01-01 | E40: MEHMET VURUCU | F40: ADIYAMAN | J40: DNS | K40: 0
B42: UZUN-B-36 | J42: 0
B43: UZUN-B-37 | J43: 0
B44: UZUN-B-38 | J44: 0
B45: UZUN-B-39 | J45: 0
B46: UZUN-B-40 | C46: =IF(ISERROR(VLOOKUP(B46,'KAYIT LİSTESİ'!$B$4:$H$788,2,0)),"",(VLOOKUP(B46,'KAYIT LİSTESİ'!$B$4:$H$788,2,0))) ->  | D46: =IF(ISERROR(VLOOKUP(B46,'KAYIT LİSTESİ'!$B$4:$H$788,4,0)),"",(VLOOKUP(B46,'KAYIT LİSTESİ'!$B$4:$H$788,4,0))) ->  | E46: =IF(ISERROR(VLOOKUP(B46,'KAYIT LİSTESİ'!$B$4:$H$788,5,0)),"",(VLOOKUP(B46,'KAYIT LİSTESİ'!$B$4:$H$788,5,0))) ->  | F46: =IF(ISERROR(VLOOKUP(B46,'KAYIT LİSTESİ'!$B$4:$H$788,6,0)),"",(VLOOKUP(B46,'KAYIT LİSTESİ'!$B$4:$H$788,6,0))) ->  | J46: =MAX(G46:I46) -> 0 | K46: =IF(LEN(J46)>0,VLOOKUP(J46,puan!$AA$4:$AH$111,8)-IF(COUNTIF(puan!$AA$4:$AH$111,J46)=0,0,0)," ") -> 
A48: Müsabaka Direktörü | E48: Baş Hakem | F48: Lider | G48: Sekreter | J48: Hakem
A65535: CELAL KAYAÖZ

Sheet Uzun Genel Sonucu
A1: ='YARIŞMA BİLGİLERİ'!A2:K2 -> Türkiye Atletizm Federasyonu İzmir Atletizm İl Temsilciliği
A2: ='YARIŞMA BİLGİLERİ'!A14:K14 -> Naili Moran Türkiye Atletizm Şampiyonası
A3: Yarışma : | D3: Uzun Atlama Genel Sonuçları
A4: Kategori : | D4: ='YARIŞMA BİLGİLERİ'!F21 -> 12 Yaş Erkekler | I4: Tarih-Saat : | K4: ='YARIŞMA PROGRAMI'!B11 -> 14 Haziran 2014 - 11:45
J5: 41804.6293
A6: SIRA NO | C6: GÖĞÜS NO | D6: DOĞUM TARİHİ Gün/Ay/Yıl | E6: ADI VE SOYADI | F6: İLİ | G6: A T L A M A L A R | J6: SONUÇ | K6: PUAN | L6: RÜZGAR
G7: 1 | H7: 2 | I7: 3
A8: 1 | B8: UZUN-B-10 | C8: 116 | D8: 2002-01-01 | E8: SERKUT DEĞİRMENCİ | F8: BALIKESİR | G8: X | H8: 516 | I8: 521 | J8: 521 | K8: 85
A9: 2 | B9: UZUN-B-7 | C9: 508 | D9: 2002-05-03 | E9: ERSİN İLHAN | F9: KOCAELİ | G9: 502 | H9: 496 | I9: 491 | J9: 502 | K9: 81
A10: 3 | B10: UZUN-B-3 | C10: 248 | D10: 2002-11-20 | E10: ERAY KARAL | F10: ERZİNCAN | G10: 456 | H10: 457 | I10: 477 | J10: 477 | K10: 78
A11: 4 | B11: UZUN-B-4 | C11: 655 | D11: 2002-02-12 | E11: ZÜBEYT TEMEL | F11: SİİRT | G11: 474 | H11: 462 | I11: X | J11: 474 | K11: 78
A12: 5 | B12: UZUN-A-34 | C12: 220 | D12: 2002-06-03 | E12: BERKİN BERBEROĞLU | F12: ÇANAKKALE | G12: 444 | H12: 457 | I12: 457 | J12: 457 | K12: 76
A13: 6 | B13: UZUN-A-19 | C13: 565 | D13: 2002-07-31 | E13: FERHAT ÇELİK | F13: MUĞLA | G13: 405 | H13: 456 | I13: 437 | J13: 456 | K13: 76
A14: 7 | B14: UZUN-B-8 | C14: 679 | D14: 2002-11-21 | E14: GÖKHAN GENÇTÜRK | F14: TEKİRDAĞ | G14: 419 | H14: X | I14: 456 | J14: 456 | K14: 76
A15: 8 | B15: UZUN-A-23 | C15: 549 | D15: 2002-03-04 | E15: HASAN ÇAĞRI AKAN | F15: KÜTAHYA | G15: 455 | H15: 444 | I15: 425 | J15: 455 | K15: 76
A16: 9 | B16: UZUN-A-9 | C16: 573 | D16: 2002-01-01 | E16: İbrahim KARATEKER | F16: MUŞ | G16: 421 | H16: 435 | I16: 454 | J16: 454 | K16: 76
A17: 10 | B17: UZUN-A-24 | C17: 221 | D17: 2002-01-05 | E17: KADİR FURKAN SİVRİOĞLU | F17: ÇANAKKALE | G17: 429 | H17: 446 | I17: 427 | J17: 446 | K17: 75
A18: 11 | B18: UZUN-B-34 | C18: 16 | D18: 2002-01-01 | E18: GÖRKEM KAYA | F18: ADANA | G18: 438 | H18: 445 | I18: 434 | J18: 445 | K18: 75
A19: 12 | B19: UZUN-A-32 | C19: 249 | D19: 2002-03-24 | E19: EMRE YILDIZ | F19: ERZİNCAN | G19: 431 | H19: 440 | I19: X | J19: 440 | K19: 75
A20: 13 | B20: UZUN-B-33 | C20: 50 | D20: 2002-06-13 | E20: TOLGA BAŞKOL | F20: AMASYA | G20: 438 | H20: 414 | I20: X | J20: 438 | K20: 74
A21: 14 | B21: UZUN-A-33 | C21: 702 | D21: 2002-01-30 | E21: OZAN ŞAHİN | F21: TOKAT | G21: 435 | H21: X | I21: 415 | J21: 435 | K21: 74
A22: 15 | B22: UZUN-B-15 | C22: 566 | D22: 2002-07-31 | E22: FERAY ÇELİK | F22: MUĞLA | G22: 433 | H22: 426 | I22: 412 | J22: 433 | K22: 74
A23: 16 | B23: UZUN-A-30 | C23: 426 | D23: 2002-08-06 | E23: BARAN ÇAPKIN | F23: İZMİR | G23: 425 | H23: 429 | I23: 423 | J23: 429 | K23: 73
A24: 17 | B24: UZUN-A-28 | C24: 174 | D24: 2002-01-01 | E24: NİHAT BİRGİN | F24: BİNGÖL | G24: 418 | H24: 425 | I24: 396 | J24: 425 | K24: 73
A25: 18 | B25: UZUN-B-35 | C25: 509 | D25: 2002-01-01 | E25: UMUT DOĞAN | F25: KOCAELİ | G25: 369 | H25: 425 | I25: 404 | J25: 425 | K25: 73
A26: 19 | B26: UZUN-B-2 | C26: 425 | D26: 2002-09-16 | E26: EREN GENÇ | F26: İZMİR | G26: 425 | H26: 348 | I26: 363 | J26: 425 | K26: 73
A27: 20 | B27: UZUN-A-29 | C27: 550 | D27: 2002-01-01 | E27: AHMET ÖZER | F27: KÜTAHYA | G27: 403 | H27: 424 | I27: 376 | J27: 424 | K27: 73
A28: 21 | B28: UZUN-B-18 | C28: 734 | D28: 2002-03-28 | E28: BARTU AYDOĞAN | F28: BURSA | G28: 398 | H28: 396 | I28: 423 | J28: 423 | K28: 73
A29: 22 | B29: UZUN-A-10 | C29: 428 | D29: 2002-07-25 | E29: YASİN KINA | F29: İZMİR | G29: 421 | H29: 416 | I29: 422 | J29: 422 | K29: 73
A30: 23 | B30: UZUN-A-27 | C30: 111 | D30: 2002-09-24 | E30: OĞUZHAN KOŞAR | F30: BALIKESİR | G30: 420 | H30: 395 | I30: 385 | J30: 420 | K30: 73
A31: 24 | B31: UZUN-A-31 | C31: 696 | D31: 2002-01-01 | E31: ÖZCAN ÖNDER | F31: TOKAT | G31: 414 | H31: 417 | I31: 395 | J31: 417 | K31: 72
A32: 25 | B32: UZUN-A-17 | C32: 695 | D32: 2002-06-19 | E32: AHMET EREN ŞAHİN | F32: TOKAT | G32: 414 | H32: 396 | I32: 398 | J32: 414 | K32: 72
A33: 26 | B33: UZUN-A-22 | C33: 234 | D33: 2002-01-01 | E33: M.ŞİRİN FİDANBOY | F33: DİYARBAKIR | G33: 407 | H33: 402 | I33: X | J33: 407 | K33: 71
A34: 27 | B34: UZUN-A-21 | C34: 281 | D34: 2002-01-01 | E34: DAVUT AKDENİZ | F34: GAZİANTEP | G34: 360 | H34: 406 | I34: 396 | J34: 406 | K34: 71
A35: 28 | B35: UZUN-A-20 | C35: 733 | D35: 2002-01-17 | E35: KEMAL EREN ZEYTUN | F35: BURSA | G35: 364 | H35: 396 | I35: 404 | J35: 404 | K35: 71
A36: 29 | B36: UZUN-B-26 | C36: 83 | D36: 2002-01-20 | E36: ENVER VİRAN | F36: AYDIN | G36: 385 | H36: 392 | I36: 402 | J36: 402 | K36: 71
A37: 30 | B37: UZUN-B-22 | C37: 64 | D37: 2002-07-09 | E37: DOĞUKAN KÖMÜR | F37: ARDAHAN | G37: 371 | H37: 402 | I37: 362 | J37: 402 | K37: 71
A38: 31 | B38: UZUN-A-14 | C38: 349 | D38: 2002-07-09 | E38: A.BATUHAN KESKİNKILIÇ | F38: ISPARTA | G38: 378 | H38: 400 | I38: 396 | J38: 400 | K38: 71
A39: 32 | B39: UZUN-B-6 | C39: 411 | D39: 2002-07-19 | E39: GÖRKEM ÖNSAY | F39: İZMİR | G39: 398 | H39: 382 | I39: 384 | J39: 398 | K39: 70
A40: 33 | B40: UZUN-A-35 | C40: 156 | D40: 2002-11-25 | E40: ABDÜLKADİR TAŞKIRAN | F40: BİLECİK | G40: 384 | H40: 380 | I40: 394 | J40: 394 | K40: 69
A41: 34 | B41: UZUN-B-12 | C41: 301 | D41: 2002-11-24 | E41: YUSUFHAN DEMİRÇİ | F41: GİRESUN | G41: 392 | H41: 389 | I41: 372 | J41: 392 | K41: 68
A42: 35 | B42: UZUN-A-26 | C42: 584 | D42: 2002-07-20 | E42: Mezher GÜLER | F42: MUŞ | G42: 366 | H42: 386 | I42: 379 | J42: 386 | K42: 66
A43: 36 | B43: UZUN-A-11 | C43: 282 | D43: 2002-01-01 | E43: MUSTAFA BAKIR | F43: GAZİANTEP | G43: 372 | H43: 383 | I43: - | J43: 383 | K43: 65
A44: 37 | B44: UZUN-B-25 | C44: 322 | D44: 2002-02-07 | E44: EMRE KARA | F44: HATAY | G44: 363 | H44: 352 | I44: 378 | J44: 378 | K44: 64
A45: 38 | B45: UZUN-B-27 | C45: 66 | D45: 2002-01-01 | E45: YUSUF ARABUL | F45: ARDAHAN | G45: 364 | H45: 377 | I45: X | J45: 377 | K45: 63
A46: 39 | B46: UZUN-A-18 | C46: 233 | D46: 2002-01-01 | E46: ÖMER İÇLEK | F46: DİYARBAKIR | G46: X | H46: 375 | I46: 357 | J46: 375 | K46: 63
A47: 40 | B47: UZUN-B-11 | C47: 40 | D47: 2002-01-15 | E47: HAKAN ACUN | F47: AKSARAY | G47: X | H47: X | I47: 373 | J47: 373 | K47: 62
A48: 41 | B48: UZUN-A-5 | C48: 168 | D48: 2002-01-01 | E48: UMUT DÖĞÜM | F48: BİNGÖL | G48: 362 | H48: 371 | I48: 335 | J48: 371 | K48: 61
A49: 42 | B49: UZUN-A-7 | C49: 350 | D49: 2002-03-14 | E49: HÜSEYİN EĞİN | F49: ISPARTA | G49: 371 | H49: 359 | I49: X | J49: 371 | K49: 61
A50: 43 | B50: UZUN-B-14 | C50: 611 | D50: 2002-09-05 | E50: MEHMET ALİ GÜNEŞ | F50: OSMANİYE | G50: 367 | H50: 365 | I50: 370 | J50: 370 | K50: 61
A51: 44 | B51: UZUN-B-31 | C51: 601 | D51: 2002-07-04 | E51: ÖMER DİLDÖKEN | F51: NEVŞEHİR | G51: 369 | H51: 366 | I51: 365 | J51: 369 | K51: 61
A52: 45 | B52: UZUN-A-8 | C52: 348 | D52: 2002-10-30 | E52: FAİK ÖLMEZ | F52: ISPARTA | G52: 348 | H52: 315 | I52: 369 | J52: 369 | K52: 61
A53: 46 | B53: UZUN-A-16 | C53: 480 | D53: 2002-05-21 | E53: RAMAZAN YULAF | F53: KIRIKKALE | G53: 364 | H53: X | I53: 368 | J53: 368 | K53: 60
A54: 47 | B54: UZUN-A-6 | C54: 346 | D54: 2002-05-28 | E54: MELİH GÜLDAL | F54: ISPARTA | G54: 310 | H54: 368 | I54: 350 | J54: 368 | K54: 60
A55: 48 | B55: UZUN-A-1 | C55: 128 | D55: 2002-02-16 | E55: ENİS ÖZDEMİR | F55: BARTIN | G55: 317 | H55: 340 | I55: 367 | J55: 367 | K55: 60
A56: 49 | B56: UZUN-B-1 | C56: 654 | D56: 2002-01-07 | E56: DAVUT BASUT | F56: SİİRT | G56: X | H56: 340 | I56: 367 | J56: 367 | K56: 60
A57: 50 | B57: UZUN-A-4 | C57: 169 | D57: 2002-01-01 | E57: EYÜP YILDIRIM | F57: BİNGÖL | G57: 367 | H57: 327 | I57: 333 | J57: 367 | K57: 60
A58: 51 | B58: UZUN-B-21 | C58: 466 | D58: 2002-08-22 | E58: MUSTAFA TALAŞ | F58: KARAMAN | G58: 366 | H58: 358 | I58: 320 | J58: 366 | K58: 60
A59: 52 | B59: UZUN-B-19 | C59: 499 | D59: 2002-12-17 | E59: BEYTULLAH KAYA | F59: KIRŞEHİR | G59: 363 | H59: 340 | I59: 364 | J59: 364 | K59: 59
A60: 53 | B60: UZUN-A-13 | C60: 551 | D60: 2002-01-01 | E60: HALİT GÜNGÖR | F60: KÜTAHYA | G60: 338 | H60: 332 | I60: 354 | J60: 354 | K60: 56
A61: 54 | B61: UZUN-B-23 | C61: 314 | D61: 2002-02-22 | E61: ALİ İSMAİL ÇİÇEK | F61: HATAY | G61: 336 | H61: 353 | I61: X | J61: 353 | K61: 55
A62: 55 | B62: UZUN-B-24 | C62: 465 | D62: 2002-02-16 | E62: İSMET FURKAN YANDI | F62: KARAMAN | G62: 308 | H62: X | I62: 352 | J62: 352 | K62: 55
A63: 56 | B63: UZUN-B-29 | C63: 600 | D63: 2002-11-21 | E63: MELİH ÇOPUR | F63: NEVŞEHİR | G63: 338 | H63: 350 | I63: 318 | J63: 350 | K63: 54
A64: 57 | B64: UZUN-A-15 | C64: 427 | D64: 2002-05-21 | E64: ENSAR YILMAZ | F64: İZMİR | G64: 340 | H64: 328 | I64: 348 | J64: 348 | K64: 54
A65: 58 | B65: UZUN-A-3 | C65: 170 | D65: 2002-01-01 | E65: HALİT ÇAKAR | F65: BİNGÖL | G65: 340 | H65: X | I65: X | J65: 340 | K65: 51
A66: 59 | B66: UZUN-B-20 | C66: 315 | D66: 2002-09-09 | E66: MUSTAFA TUNA | F66: HATAY | G66: X | H66: 340 | I66: X | J66: 340 | K66: 51
A67: 60 | B67: UZUN-A-2 | C67: 127 | D67: 2002-12-26 | E67: ALPER RIZA BASAN | F67: BARTIN | G67: X | H67: 338 | I67: 286 | J67: 338 | K67: 50
A68: 61 | B68: UZUN-B-17 | C68: 84 | D68: 2002-01-01 | E68: İLHAN BAKTEMUR | F68: AYDIN | G68: X | H68: 334 | I68: 333 | J68: 334 | K68: 49
A69: 62 | B69: UZUN-A-12 | C69: 283 | D69: 2002-01-01 | E69: SÜLEYMAN TOKER | F69: GAZİANTEP | G69: X | H69: 309 | I69: - | J69: 309 | K69: 41
A70: 63 | B70: UZUN-B-16 | C70: 610 | D70: 2002-01-10 | E70: BURAK YILDIZ | F70: OSMANİYE | G70: 280 | H70: X | I70: X | J70: 280 | K70: 31
A71: 64 | B71: UZUN-B-28 | C71: 67 | D71: 2002-01-01 | E71: ADEM BİLGİN | F71: ARDAHAN | G71: 208 | H71: 211 | I71: 208 | J71: 211 | K71: 8
A72: - | B72: UZUN-B-13 | C72: 612 | D72: 2002-10-12 | E72: MERT YAHYA YILDIRIM | F72: OSMANİYE | G72: X | H72: X | I72: X | J72: NM | K72: 0
A73: - | B73: UZUN-B-30 | C73: 28 | D73: 2002-08-01 | E73: HASAN ALANTAR | F73: ADIYAMAN | J73: DNS | K73: 0
A74: - | B74: UZUN-B-32 | C74: 26 | D74: 2002-01-01 | E74: MEHMET VURUCU | F74: ADIYAMAN | J74: DNS | K74: 0
A75: Müsabaka Direktörü | E75: Baş Hakem | F75: Lider | G75: Sekreter | J75: Hakem
A65562: CELAL KAYAÖZ

Sheet 75m.
A1: =('YARIŞMA BİLGİLERİ'!A2) -> Türkiye Atletizm Federasyonu İzmir Atletizm İl Temsilciliği
A2: ='YARIŞMA BİLGİLERİ'!F19 -> Naili Moran Türkiye Atletizm Şampiyonası
A3: Yarışma : | D3: ='YARIŞMA PROGRAMI'!C7 -> 75 Metre
A4: Kategori : | D4: ='YARIŞMA BİLGİLERİ'!F21 -> 12 Yaş Erkekler | M4: Tarih-Saat : | N4: ='YARIŞMA PROGRAMI'!B7 -> 14 Haziran 2014 - 17:50
N5: 41804.76052
A6: Sıra No | B6: Göğüs No | C6: Doğum Tarihi Gün/Ay/Yıl | D6: Adı ve Soyadı | E6: İLİ | F6: Derece | G6: Puan | I6: 1. SERİ | M6: Rüzgar:
I7: Sıra No | J7: Formül | K7: Göğüs No | L7: Doğum Tarihi | M7: Adı ve Soyadı | N7: İLİ | O7: Derece | P7: El Kronometre | Q7: Seri Geliş
A8: 1 | B8: 116 | C8: 2002-01-01 | D8: SERKUT DEĞİRMENCİ | E8: BALIKESİR | F8: 969 | G8: 96 | I8: 1 | J8: 75M-1-1 | K8: 509 | L8: 2002-01-01 | M8: UMUT DOĞAN | N8: KOCAELİ | O8: 1053 | Q8: 3
A9: 2 | B9: 508 | C9: 2002-05-03 | D9: ERSİN İLHAN | E9: KOCAELİ | F9: 994 | G9: 90 | I9: 2 | J9: 75M-1-2 | K9: 233 | L9: 2002-01-01 | M9: ÖMER İÇLEK | N9: DİYARBAKIR | O9: 1123 | Q9: 8
A10: 3 | B10: 248 | C10: 2002-11-20 | D10: ERAY KARAL | E10: ERZİNCAN | F10: 1051 | G10: 78 | I10: 3 | J10: 75M-1-3 | K10: 679 | L10: 2002-11-21 | M10: GÖKHAN GENÇTÜRK | N10: TEKİRDAĞ | O10: 1087 | Q10: 5
A11: 4 | B11: 509 | C11: 2002-01-01 | D11: UMUT DOĞAN | E11: KOCAELİ | F11: 1053 | G11: 78 | I11: 4 | J11: 75M-1-4 | K11: 116 | L11: 2002-01-01 | M11: SERKUT DEĞİRMENCİ | N11: BALIKESİR | O11: 969 | Q11: 1
A12: 5 | B12: 220 | C12: 2002-06-03 | D12: BERKİN BERBEROĞLU | E12: ÇANAKKALE | F12: 1055 | G12: 78 | I12: 5 | J12: 75M-1-5 | K12: 425 | L12: 2002-09-16 | M12: EREN GENÇ | N12: İZMİR | O12: 1111 | Q12: 6
A13: 6 | B13: 655 | C13: 2002-02-12 | D13: ZÜBEYT TEMEL | E13: SİİRT | F13: 1057 | G13: 78 | I13: 6 | J13: 75M-1-6 | K13: 695 | L13: 2002-06-19 | M13: AHMET EREN ŞAHİN | N13: TOKAT | O13: 1116 | Q13: 7
A14: 7 | B14: 565 | C14: 2002-07-31 | D14: FERHAT ÇELİK | E14: MUĞLA | F14: 1079 | G14: 74 | I14: 7 | J14: 75M-1-7 | K14: 508 | L14: 2002-05-03 | M14: ERSİN İLHAN | N14: KOCAELİ | O14: 994 | Q14: 2
A15: 8 | B15: 549 | C15: 2002-03-04 | D15: HASAN ÇAĞRI AKAN | E15: KÜTAHYA | F15: 1080 | G15: 74 | I15: 8 | J15: 75M-1-8 | K15: 655 | L15: 2002-02-12 | M15: ZÜBEYT TEMEL | N15: SİİRT | O15: 1057 | Q15: 4
A16: 9 | B16: 679 | C16: 2002-11-21 | D16: GÖKHAN GENÇTÜRK | E16: TEKİRDAĞ | F16: 1087 | G16: 72 | I16: 2. SERİ | M16: Rüzgar:
A17: 10 | B17: 50 | C17: 2002-06-13 | D17: TOLGA BAŞKOL | E17: AMASYA | F17: 1097 | G17: 70 | I17: Sıra No | J17: Formül | K17: Göğüs No | L17: Doğum Tarihi | M17: Adı ve Soyadı | N17: İLİ | O17: Derece | P17: El Kronometre | Q17: Seri Geliş
A18: 11 | B18: 653 | C18: 2002-01-01 | D18: MUSA DALKILIÇ | E18: SİİRT | F18: 1098 | G18: 70 | I18: 1 | J18: 75M-2-1 | K18: 548 | L18: 2002-01-05 | M18: MELİH GÖKALP | N18: KÜTAHYA | O18: 1117 | Q18: 5
A19: 12 | B19: 16 | C19: 2002-01-01 | D19: GÖRKEM KAYA | E19: ADANA | F19: 1099 | G19: 70 | I19: 2 | J19: 75M-2-2 | K19: 220 | L19: 2002-06-03 | M19: BERKİN BERBEROĞLU | N19: ÇANAKKALE | O19: 1055 | Q19: 1
A20: 13 | B20: 425 | C20: 2002-09-16 | D20: EREN GENÇ | E20: İZMİR | F20: 1111 | G20: 67 | I20: 3 | J20: 75M-2-3 | K20: 346 | L20: 2002-05-28 | M20: MELİH GÜLDAL | N20: ISPARTA | O20: 1189 | Q20: 8
A21: 14 | B21: 608 | C21: 2002-09-15 | D21: OĞUZHAN USTA | E21: OSMANİYE | F21: 1112 | G21: 67 | I21: 4 | J21: 75M-2-4 | K21: 702 | L21: 2002-01-30 | M21: OZAN ŞAHİN | N21: TOKAT | O21: 1158 | Q21: 2
A22: 15 | B22: 695 | C22: 2002-06-19 | D22: AHMET EREN ŞAHİN | E22: TOKAT | F22: 1116 | G22: 67 | I22: 5 | J22: 75M-2-5 | K22: 349 | L22: 2002-07-09 | M22: A.BATUHAN KESKİNKILIÇ | N22: ISPARTA | O22: 1160 | Q22: 7
A23: 16 | B23: 735 | C23: 2002-01-01 | D23: MİRSAT KADİR KUTLU | E23: BURSA | F23: 1116 | G23: 67 | I23: 6 | J23: 75M-2-6 | K23: 549 | L23: 2002-03-04 | M23: HASAN ÇAĞRI AKAN | N23: KÜTAHYA | O23: 1080 | Q23: 3
A24: 17 | B24: 548 | C24: 2002-01-05 | D24: MELİH GÖKALP | E24: KÜTAHYA | F24: 1117 | G24: 67 | I24: 7 | J24: 75M-2-7 | K24: 350 | L24: 2002-03-14 | M24: HÜSEYİN EĞİN | N24: ISPARTA | O24: 1140 | Q24: 6
A25: 18 | B25: 233 | C25: 2002-01-01 | D25: ÖMER İÇLEK | E25: DİYARBAKIR | F25: 1123 | G25: 66 | I25: 8 | J25: 75M-2-8 | K25: 653 | L25: 2002-01-01 | M25: MUSA DALKILIÇ | N25: SİİRT | O25: 1098 | Q25: 4
A26: 19 | B26: 157 | C26: 2002-06-25 | D26: C. BERKE TAŞATAN | E26: BİLECİK | F26: 1135 | G26: 65 | I26: 3. SERİ | M26: Rüzgar:
A27: 20 | B27: 350 | C27: 2002-03-14 | D27: HÜSEYİN EĞİN | E27: ISPARTA | F27: 1140 | G27: 65 | I27: Sıra No | J27: Formül | K27: Göğüs No | L27: Doğum Tarihi | M27: Adı ve Soyadı | N27: İLİ | O27: Derece | P27: El Kronometre | Q27: Seri Geliş
A28: 21 | B28: 301 | C28: 2002-11-24 | D28: YUSUFHAN DEMİRÇİ | E28: GİRESUN | F28: 1144 | G28: 64 | I28: 1 | J28: 75M-3-1 | K28: 16 | L28: 2002-01-01 | M28: GÖRKEM KAYA | N28: ADANA | O28: 1099 | Q28: 3
A29: 22 | B29: 702 | C29: 2002-01-30 | D29: OZAN ŞAHİN | E29: TOKAT | F29: 1158 | G29: 63 | I29: 2 | J29: 75M-3-2 | K29: 50 | L29: 2002-06-13 | M29: TOLGA BAŞKOL | N29: AMASYA | O29: 1097 | Q29: 2
A30: 23 | B30: 696 | C30: 2002-01-01 | D30: ÖZCAN ÖNDER | E30: TOKAT | F30: 1159 | G30: 63 | I30: 3 | J30: 75M-3-3 | K30: 234 | L30: 2002-01-01 | M30: M.ŞİRİN FİDANBOY | N30: DİYARBAKIR | O30: 1199 | Q30: 6
A31: 24 | B31: 349 | C31: 2002-07-09 | D31: A.BATUHAN KESKİNKILIÇ | E31: ISPARTA | F31: 1160 | G31: 63 | I31: 4 | J31: 75M-3-4 | K31: 157 | L31: 2002-06-25 | M31: C. BERKE TAŞATAN | N31: BİLECİK | O31: 1135 | Q31: 4
A32: 25 | B32: 84 | C32: 2002-01-01 | D32: İLHAN BAKTEMUR | E32: AYDIN | F32: 1163 | G32: 62 | I32: 5 | J32: 75M-3-5 | K32: 696 | L32: 2002-01-01 | M32: ÖZCAN ÖNDER | N32: TOKAT | O32: 1159 | Q32: 5
A33: 26 | B33: 611 | C33: 2002-09-05 | D33: MEHMET ALİ GÜNEŞ | E33: OSMANİYE | F33: 1165 | G33: 62 | I33: 6 | J33: 75M-3-6 | K33: 565 | L33: 2002-07-31 | M33: FERHAT ÇELİK | N33: MUĞLA | O33: 1079 | Q33: 1
A34: 27 | B34: 346 | C34: 2002-05-28 | D34: MELİH GÜLDAL | E34: ISPARTA | F34: 1189 | G34: 60 | I34: 7 | J34: 75M-3-7 | K34: 40 | L34: 2002-01-15 | M34: HAKAN ACUN | N34: AKSARAY | O34: 1209 | Q34: 7
A35: 28 | B35: 234 | C35: 2002-01-01 | D35: M.ŞİRİN FİDANBOY | E35: DİYARBAKIR | F35: 1199 | G35: 59 | I35: 8 | J35: 75M-3-8
A36: 29 | B36: 40 | C36: 2002-01-15 | D36: HAKAN ACUN | E36: AKSARAY | F36: 1209 | G36: 58 | I36: 4. SERİ | M36: Rüzgar:
A37: 30 | B37: 610 | C37: 2002-01-10 | D37: BURAK YILDIZ | E37: OSMANİYE | F37: 1340 | G37: 45 | I37: Sıra No | J37: Formül | K37: Göğüs No | L37: Doğum Tarihi | M37: Adı ve Soyadı | N37: İLİ | O37: Derece | P37: El Kronometre | Q37: Seri Geliş
I38: 1 | J38: 75M-4-1 | K38: 248 | L38: 2002-11-20 | M38: ERAY KARAL | N38: ERZİNCAN | O38: 1051 | Q38: 1
I39: 2 | J39: 75M-4-2 | K39: 611 | L39: 2002-09-05 | M39: MEHMET ALİ GÜNEŞ | N39: OSMANİYE | O39: 1165 | Q39: 6
I40: 3 | J40: 75M-4-3 | K40: 608 | L40: 2002-09-15 | M40: OĞUZHAN USTA | N40: OSMANİYE | O40: 1112 | Q40: 2
I41: 4 | J41: 75M-4-4 | K41: 84 | L41: 2002-01-01 | M41: İLHAN BAKTEMUR | N41: AYDIN | O41: 1163 | Q41: 5
I42: 5 | J42: 75M-4-5 | K42: 735 | L42: 2002-01-01 | M42: MİRSAT KADİR KUTLU | N42: BURSA | O42: 1116 | Q42: 3
I43: 6 | J43: 75M-4-6 | K43: 301 | L43: 2002-11-24 | M43: YUSUFHAN DEMİRÇİ | N43: GİRESUN | O43: 1144 | Q43: 4
I44: 7 | J44: 75M-4-7 | K44: 610 | L44: 2002-01-10 | M44: BURAK YILDIZ | N44: OSMANİYE | O44: 1340 | Q44: 7
I45: 8 | J45: 75M-4-8
A47: Müsabakalar Direktörü | E47: Baş Hakem | F47: Lider | H47: Sekreter | M47: Hakem | N47: Hakem | P47: Hakem
A65536: CELAL KAYAÖZ

Sheet Yüksek
A1: =('YARIŞMA BİLGİLERİ'!A2) -> Türkiye Atletizm Federasyonu İzmir Atletizm İl Temsilciliği | BU1: DERECE
A2: ='YARIŞMA BİLGİLERİ'!F19 -> Naili Moran Türkiye Atletizm Şampiyonası | BU2: 1 | BV2: 0
A3: Yarışma : | E3: ='YARIŞMA PROGRAMI'!C10 -> Yüksek Atlama | BU3: 98 | BV3: 1
A4: Kategori : | E4: ='YARIŞMA BİLGİLERİ'!F21 -> 12 Yaş Erkekler | AW4: Tarih-Saat : | BC4: ='YARIŞMA PROGRAMI'!B10 -> 14 Haziran 2014 - 17:00 | BU4: 100 | BV4: 2
BO5: 41804.76954 | BU5: 102 | BV5: 3
A6: SIRA NO | C6: GÖĞÜS NO | D6: DOĞUM TARİHİ | E6: ADI VE SOYADI | F6: İLİ | G6: A T L A M A L A R | BO6: SONUÇ | BP6: PUAN | BQ6: KLASMAN | BU6: 104 | BV6: 4
G7: 110 | J7: 115 | M7: 120 | P7: 125 | S7: 130 | V7: 134 | Y7: 138 | AB7: 142 | AE7: 146 | AH7: 150 | AK7: 152 | AN7: 154 | AQ7: 156 | AT7: 158 | AW7: 160 | AZ7: 162 | BC7: 164 | BF7: 166 | BI7: 168 | BL7: 170 | BU7: 106 | BV7: 5
A8: 1 | B8: Yüksek-5 | C8: 221 | D8: 2002-01-05 | E8: KADİR FURKAN SİVRİOĞLU | F8: ÇANAKKALE | G8: - | J8: - | M8: O | P8: O | S8: O | V8: O | Y8: O | AB8: X | AC8: X | AD8: X | BO8: 138 | BP8: 74 | BU8: 108 | BV8: 6
A9: 2 | B9: Yüksek-4 | C9: 349 | D9: 2002-07-09 | E9: A.BATUHAN KESKİNKILIÇ | F9: ISPARTA | G9: - | J9: - | M9: X | N9: O | P9: O | S9: O | V9: X | W9: X | X9: X | BO9: 130 | BP9: 66 | BU9: 110 | BV9: 7
A10: 3 | B10: Yüksek-1 | C10: 301 | D10: 2002-11-24 | E10: YUSUFHAN DEMİRÇİ | F10: GİRESUN | J10: O | M10: X | N10: O | P10: X | Q10: X | R10: O | S10: O | V10: X | W10: X | X10: X | BO10: 130 | BP10: 66 | BU10: 112 | BV10: 8
A11: 4 | B11: Yüksek-6 | C11: 680 | D11: 2002-02-27 | E11: KAAN YILDIRIM | F11: TEKİRDAĞ | G11: - | J11: - | M11: - | P11: O | S11: X | T11: O | V11: X | W11: X | X11: X | BO11: 130 | BP11: 66 | BU11: 114 | BV11: 9
A12: 5 | B12: Yüksek-3 | C12: 220 | D12: 2002-06-03 | E12: BERKİN BERBEROĞLU | F12: ÇANAKKALE | G12: O | J12: O | M12: O | P12: X | Q12: X | R12: X | BO12: 120 | BP12: 56 | BU12: 116 | BV12: 10
A13: 6 | B13: Yüksek-2 | C13: 112 | D13: 2002-11-25 | E13: BEYCAN DELİGÖZ | F13: BALIKESİR | G13: O | J13: X | K13: X | L13: O | M13: X | N13: X | O13: O | P13: X | Q13: X | R13: X | BO13: 120 | BP13: 56 | BU13: 118 | BV13: 11
A14: - | B14: Yüksek-7 | C14: 510 | D14: 2002-01-01 | E14: MURAT GÜN | F14: KOCAELİ | M14: X | N14: X | O14: X | BO14: NM | BP14: 0 | BU14: 120 | BV14: 12
B15: Yüksek-8 | BU15: 122 | BV15: 13
B16: Yüksek-9 | BU16: 124 | BV16: 14
B17: Yüksek-10 | BU17: 126 | BV17: 15
B18: Yüksek-11 | BU18: 128 | BV18: 16
B19: Yüksek-12 | BU19: 130 | BV19: 17
B20: Yüksek-13 | BU20: 132 | BV20: 18
B21: Yüksek-14 | BU21: 134 | BV21: 19
B22: Yüksek-15 | BU22: 136 | BV22: 20
B23: Yüksek-16 | BU23: 138 | BV23: 21
B24: Yüksek-17 | BU24: 140 | BV24: 22
B25: Yüksek-18 | BU25: 142 | BV25: 23
B26: Yüksek-19 | BU26: 144 | BV26: 24
B27: Yüksek-20 | BU27: 146 | BV27: 25
B28: Yüksek-21 | BU28: 148 | BV28: 26
B29: Yüksek-22 | BU29: 150 | BV29: 27
B30: Yüksek-23 | BU30: 152 | BV30: 28
B31: Yüksek-24 | BU31: 154 | BV31: 29
B32: Yüksek-25 | BU32: 156 | BV32: 30
BU33: 157 | BV33: 31
A34: Müsabaka Direktörü | F34: Baş Hakem | J34: Lider | S34: Sekreter | BO34: Hakem | BU34: 158 | BV34: 32
BU35: 159 | BV35: 33
BU36: 160 | BV36: 34
BU37: 161 | BV37: 35
BU38: 162 | BV38: 36
BU39: 163 | BV39: 37
BU40: 164 | BV40: 38
BU41: 165 | BV41: 39
BU42: 166 | BV42: 40
BU43: 167 | BV43: 41
BU44: 168 | BV44: 42
BU45: 169 | BV45: 43
BU46: 170 | BV46: 44
BU47: 171 | BV47: 45
BU48: 172 | BV48: 46
BU49: 173 | BV49: 47
BU50: 174 | BV50: 48
BU51: 175 | BV51: 49
BU52: 176 | BV52: 50
BU53: 177 | BV53: 51
BU54: 178 | BV54: 52
BU55: 179 | BV55: 53
BU56: 180 | BV56: 54
BU57: 181 | BV57: 55
BU58: 182 | BV58: 56
BU59: 183 | BV59: 57
BU60: 184 | BV60: 58
BU61: 185 | BV61: 59
BU62: 186 | BV62: 60
BU63: 187 | BV63: 61
BU64: 188 | BV64: 62
BU65: 189 | BV65: 63
BU66: 190 | BV66: 64
BU67: 191 | BV67: 65
BU68: 192 | BV68: 66
BU69: 193 | BV69: 67
BU70: 194 | BV70: 68
BU71: 195 | BV71: 69
BU72: 196 | BV72: 70
BU73: 197 | BV73: 71
BU74: 198 | BV74: 72
BU75: 199 | BV75: 73
BU76: 200 | BV76: 74
BU77: 201 | BV77: 75
BU78: 202 | BV78: 76
BU79: 203 | BV79: 77
BU80: 204 | BV80: 78
BU81: 205 | BV81: 79
BU82: 206 | BV82: 80
BU83: 207 | BV83: 81
BU84: 208 | BV84: 82
BU85: 209 | BV85: 83
BU86: 210 | BV86: 84
BU87: 211 | BV87: 85
BU88: 212 | BV88: 86
BU89: 213 | BV89: 87
BU90: 214 | BV90: 88
BU91: 215 | BV91: 89
BU92: 216 | BV92: 90
BV93: 91
BU94: 217 | BV94: 92
BV95: 93
BU96: 218 | BV96: 94
BV97: 95
BU98: 219 | BV98: 96
BV99: 97
BU100: 220 | BV100: 98
BV101: 99
BU102: 221 | BV102: 100
BU281: DNS | BV281: 0
A65536: CELAL KAYAÖZ

Sheet 1500m.
A1: =('YARIŞMA BİLGİLERİ'!A2) -> Türkiye Atletizm Federasyonu İzmir Atletizm İl Temsilciliği
A2: ='YARIŞMA BİLGİLERİ'!F19 -> Naili Moran Türkiye Atletizm Şampiyonası
A3: Yarışma : | D3: ='YARIŞMA PROGRAMI'!C8 -> 1500 Metre
A4: Kategori : | D4: ='YARIŞMA BİLGİLERİ'!F21 -> 12 Yaş Erkekler | M4: Tarih-Saat | N4: ='YARIŞMA PROGRAMI'!B8 -> 14 Haziran 2014 - 19:45
I5: GÜNCELLEME: 14.06.2014 23:04 | N5: 41804.92723
A6: Sıra No | B6: Göğüs No | C6: Doğum Tarihi Gün/Ay/Yıl | D6: Adı ve Soyadı | E6: İLİ | F6: Derece | G6: Puan | I6: 1. SERİ
I7: Sıra No | J7: Formül | K7: Göğüs No | L7: Doğum Tarihi | M7: Adı ve Soyadı | N7: İLİ | O7: Derece | P7: El Kronometre | Q7: Seri Geliş
A8: 1 | B8: 510 | C8: 2002-01-01 | D8: MURAT GÜN | E8: KOCAELİ | F8: 44005 | G8: 87 | I8: 1 | J8: 1500M-1-1
A9: 2 | B9: 733 | C9: 2002-01-17 | D9: KEMAL EREN ZEYTUN | E9: BURSA | F9: 44326 | G9: 86 | I9: 2 | J9: 1500M-1-2 | K9: 428 | L9: 2002-07-25 | M9: YASİN KINA | N9: İZMİR | O9: 61275 | Q9: 19
A10: 3 | B10: 584 | C10: 2002-07-20 | D10: Mezher GÜLER | E10: MUŞ | F10: 44505 | G10: 85 | I10: 3 | J10: 1500M-1-3 | K10: 573 | L10: 2002-01-01 | M10: İbrahim KARATEKER | N10: MUŞ | O10: 44772 | Q10: 4
A11: 4 | B11: 573 | C11: 2002-01-01 | D11: İbrahim KARATEKER | E11: MUŞ | F11: 44772 | G11: 85 | I11: 4 | J11: 1500M-1-4 | K11: 64 | L11: 2002-07-09 | M11: DOĞUKAN KÖMÜR | N11: ARDAHAN | O11: 45827 | Q11: 6
A12: 5 | B12: 282 | C12: 2002-01-01 | D12: MUSTAFA BAKIR | E12: GAZİANTEP | F12: 45160 | G12: 83 | I12: 5 | J12: 1500M-1-5 | K12: 426 | L12: 2002-08-06 | M12: BARAN ÇAPKIN | N12: İZMİR | O12: 54914 | Q12: 18
A13: 6 | B13: 64 | C13: 2002-07-09 | D13: DOĞUKAN KÖMÜR | E13: ARDAHAN | F13: 45827 | G13: 81 | I13: 6 | J13: 1500M-1-6 | K13: 733 | L13: 2002-01-17 | M13: KEMAL EREN ZEYTUN | N13: BURSA | O13: 44326 | Q13: 2
A14: 7 | B14: 315 | C14: 2002-09-09 | D14: MUSTAFA TUNA | E14: HATAY | F14: 50123 | G14: 80 | I14: 7 | J14: 1500M-1-7 | K14: 654 | L14: 2002-01-07 | M14: DAVUT BASUT | N14: SİİRT | O14: 51150 | Q14: 9
A15: 8 | B15: 249 | C15: 2002-03-24 | D15: EMRE YILDIZ | E15: ERZİNCAN | F15: 50140 | G15: 80 | I15: 8 | J15: 1500M-1-8 | K15: 584 | L15: 2002-07-20 | M15: Mezher GÜLER | N15: MUŞ | O15: 44505 | Q15: 3
A16: 9 | B16: 233 | C16: 2002-01-01 | D16: ÖMER İÇLEK | E16: DİYARBAKIR | F16: 50361 | G16: 79 | I16: 9 | J16: 1500M-1-9 | K16: 465 | L16: 2002-02-16 | M16: İSMET FURKAN YANDI | N16: KARAMAN | O16: DNF | Q16: -
A17: 10 | B17: 174 | C17: 2002-01-01 | D17: NİHAT BİRGİN | E17: BİNGÖL | F17: 50713 | G17: 78 | I17: 10 | J17: 1500M-1-10 | K17: 425 | L17: 2002-09-16 | M17: EREN GENÇ | N17: İZMİR | O17: 65190 | Q17: 21
A18: 11 | B18: 169 | C18: 2002-01-01 | D18: EYÜP YILDIRIM | E18: BİNGÖL | F18: 50750 | G18: 78 | I18: 11 | J18: 1500M-1-11 | K18: 550 | L18: 2002-01-01 | M18: AHMET ÖZER | N18: KÜTAHYA | O18: 51921 | Q18: 13
A19: 12 | B19: 283 | C19: 2002-01-01 | D19: SÜLEYMAN TOKER | E19: GAZİANTEP | F19: 50829 | G19: 78 | I19: 12 | J19: 1500M-1-12 | K19: 427 | L19: 2002-05-21 | M19: ENSAR YILMAZ | N19: İZMİR | O19: 54521 | Q19: 17
A20: 13 | B20: 168 | C20: 2002-01-01 | D20: UMUT DÖĞÜM | E20: BİNGÖL | F20: 50921 | G20: 77 | I20: 2. SERİ
A21: 14 | B21: 499 | C21: 2002-12-17 | D21: BEYTULLAH KAYA | E21: KIRŞEHİR | F21: 50977 | G21: 77 | I21: Sıra No | J21: Formül | K21: Göğüs No | L21: Doğum Tarihi | M21: Adı ve Soyadı | N21: İLİ | O21: Derece | P21: El Kronometre | Q21: Seri Geliş
A22: 15 | B22: 654 | C22: 2002-01-07 | D22: DAVUT BASUT | E22: SİİRT | F22: 51150 | G22: 77 | I22: 1 | J22: 1500M-2-1 | K22: 466 | L22: 2002-08-22 | M22: MUSTAFA TALAŞ | N22: KARAMAN | O22: 52330 | Q22: 15
A23: 16 | B23: 322 | C23: 2002-02-07 | D23: EMRE KARA | E23: HATAY | F23: 51168 | G23: 77 | I23: 2 | J23: 1500M-2-2 | K23: 480 | L23: 2002-05-21 | M23: RAMAZAN YULAF | N23: KIRIKKALE | O23: 53583 | Q23: 16
A24: 17 | B24: 348 | C24: 2002-10-30 | D24: FAİK ÖLMEZ | E24: ISPARTA | F24: 51203 | G24: 76 | I24: 3 | J24: 1500M-2-3 | K24: 283 | L24: 2002-01-01 | M24: SÜLEYMAN TOKER | N24: GAZİANTEP | O24: 50829 | Q24: 8
A25: 18 | B25: 156 | C25: 2002-11-25 | D25: ABDÜLKADİR TAŞKIRAN | E25: BİLECİK | F25: 51251 | G25: 76 | I25: 4 | J25: 1500M-2-4 | K25: 66 | L25: 2002-01-01 | M25: YUSUF ARABUL | N25: ARDAHAN | O25: 52155 | Q25: 14
A26: 19 | B26: 170 | C26: 2002-01-01 | D26: HALİT ÇAKAR | E26: BİNGÖL | F26: 51330 | G26: 76 | I26: 5 | J26: 1500M-2-5 | K26: 249 | L26: 2002-03-24 | M26: EMRE YILDIZ | N26: ERZİNCAN | O26: 50140 | Q26: 7
A27: 20 | B27: 111 | C27: 2002-09-24 | D27: OĞUZHAN KOŞAR | E27: BALIKESİR | F27: 51438 | G27: 76 | I27: 6 | J27: 1500M-2-6 | K27: 67 | L27: 2002-01-01 | M27: ADEM BİLGİN | N27: ARDAHAN | O27: 63398 | Q27: 20
A28: 21 | B28: 281 | C28: 2002-01-01 | D28: DAVUT AKDENİZ | E28: GAZİANTEP | F28: 51527 | G28: 75 | I28: 7 | J28: 1500M-2-7 | K28: 281 | L28: 2002-01-01 | M28: DAVUT AKDENİZ | N28: GAZİANTEP | O28: 51527 | Q28: 11
A29: 22 | B29: 609 | C29: 2002-03-06 | D29: AKİF HANİFİOĞLU | E29: OSMANİYE | F29: 51544 | G29: 75 | I29: 8 | J29: 1500M-2-8 | K29: 510 | L29: 2002-01-01 | M29: MURAT GÜN | N29: KOCAELİ | O29: 44005 | Q29: 1
A30: 23 | B30: 612 | C30: 2002-10-12 | D30: MERT YAHYA YILDIRIM | E30: OSMANİYE | F30: 51735 | G30: 75 | I30: 9 | J30: 1500M-2-9 | K30: 348 | L30: 2002-10-30 | M30: FAİK ÖLMEZ | N30: ISPARTA | O30: 51203 | Q30: 10
A31: 24 | B31: 734 | C31: 2002-03-28 | D31: BARTU AYDOĞAN | E31: BURSA | F31: 51794 | G31: 75 | I31: 10 | J31: 1500M-2-10 | K31: 282 | L31: 2002-01-01 | M31: MUSTAFA BAKIR | N31: GAZİANTEP | O31: 45160 | Q31: 5
A32: 25 | B32: 550 | C32: 2002-01-01 | D32: AHMET ÖZER | E32: KÜTAHYA | F32: 51921 | G32: 74 | I32: 11 | J32: 1500M-2-11 | K32: 734 | L32: 2002-03-28 | M32: BARTU AYDOĞAN | N32: BURSA | O32: 51794 | Q32: 12
A33: 26 | B33: 551 | C33: 2002-01-01 | D33: HALİT GÜNGÖR | E33: KÜTAHYA | F33: 51975 | G33: 74 | I33: 12 | J33: 1500M-2-12 | K33: 233 | L33: 2002-01-01 | M33: ÖMER İÇLEK | N33: DİYARBAKIR | O33: 50361 | Q33: 2
A34: 27 | B34: 66 | C34: 2002-01-01 | D34: YUSUF ARABUL | E34: ARDAHAN | F34: 52155 | G34: 73 | I34: 3. SERİ
A35: 28 | B35: 466 | C35: 2002-08-22 | D35: MUSTAFA TALAŞ | E35: KARAMAN | F35: 52330 | G35: 73 | I35: Sıra No | J35: Formül | K35: Göğüs No | L35: Doğum Tarihi | M35: Adı ve Soyadı | N35: İLİ | O35: Derece | P35: El Kronometre | Q35: Seri Geliş
A36: 29 | B36: 112 | C36: 2002-11-25 | D36: BEYCAN DELİGÖZ | E36: BALIKESİR | F36: 52418 | G36: 72 | I36: 1 | J36: 1500M-3-1 | K36: 551 | L36: 2002-01-01 | M36: HALİT GÜNGÖR | N36: KÜTAHYA | O36: 51975 | Q36: 13
A37: 30 | B37: 26 | C37: 2002-01-01 | D37: MEHMET VURUCU | E37: ADIYAMAN | F37: 52559 | G37: 72 | I37: 2 | J37: 1500M-3-2
A38: 31 | B38: 314 | C38: 2002-02-22 | D38: ALİ İSMAİL ÇİÇEK | E38: HATAY | F38: 53248 | G38: 70 | I38: 3 | J38: 1500M-3-3 | K38: 111 | L38: 2002-09-24 | M38: OĞUZHAN KOŞAR | N38: BALIKESİR | O38: 51438 | Q38: 10
A39: 32 | B39: 127 | C39: 2002-12-26 | D39: ALPER RIZA BASAN | E39: BARTIN | F39: 53269 | G39: 70 | I39: 4 | J39: 1500M-3-4 | K39: 112 | L39: 2002-11-25 | M39: BEYCAN DELİGÖZ | N39: BALIKESİR | O39: 52418 | Q39: 14
A40: 33 | B40: 480 | C40: 2002-05-21 | D40: RAMAZAN YULAF | E40: KIRIKKALE | F40: 53583 | G40: 69 | I40: 5 | J40: 1500M-3-5 | K40: 174 | L40: 2002-01-01 | M40: NİHAT BİRGİN | N40: BİNGÖL | O40: 50713 | Q40: 3
A41: 34 | B41: 128 | C41: 2002-02-16 | D41: ENİS ÖZDEMİR | E41: BARTIN | F41: 54370 | G41: 66 | I41: 6 | J41: 1500M-3-6 | K41: 127 | L41: 2002-12-26 | M41: ALPER RIZA BASAN | N41: BARTIN | O41: 53269 | Q41: 17
A42: 35 | B42: 427 | C42: 2002-05-21 | D42: ENSAR YILMAZ | E42: İZMİR | F42: 54521 | G42: 65 | I42: 7 | J42: 1500M-3-7 | K42: 168 | L42: 2002-01-01 | M42: UMUT DÖĞÜM | N42: BİNGÖL | O42: 50921 | Q42: 5
A43: 36 | B43: 426 | C43: 2002-08-06 | D43: BARAN ÇAPKIN | E43: İZMİR | F43: 54914 | G43: 64 | I43: 8 | J43: 1500M-3-8 | K43: 169 | L43: 2002-01-01 | M43: EYÜP YILDIRIM | N43: BİNGÖL | O43: 50750 | Q43: 4
A44: 37 | B44: 83 | C44: 2002-01-20 | D44: ENVER VİRAN | E44: AYDIN | F44: 60074 | G44: 60 | I44: 9 | J44: 1500M-3-9 | K44: 156 | L44: 2002-11-25 | M44: ABDÜLKADİR TAŞKIRAN | N44: BİLECİK | O44: 51251 | Q44: 8
A45: 38 | B45: 428 | C45: 2002-07-25 | D45: YASİN KINA | E45: İZMİR | F45: 61275 | G45: 56 | I45: 10 | J45: 1500M-3-10 | K45: 170 | L45: 2002-01-01 | M45: HALİT ÇAKAR | N45: BİNGÖL | O45: 51330 | Q45: 9
A46: 39 | B46: 67 | C46: 2002-01-01 | D46: ADEM BİLGİN | E46: ARDAHAN | F46: 63398 | G46: 49 | I46: 11 | J46: 1500M-3-11 | K46: 128 | L46: 2002-02-16 | M46: ENİS ÖZDEMİR | N46: BARTIN | O46: 54370 | Q46: 18
A47: 40 | B47: 425 | C47: 2002-09-16 | D47: EREN GENÇ | E47: İZMİR | F47: 65190 | G47: 43 | I47: 12 | J47: 1500M-3-12
A48: - | B48: 465 | C48: 2002-02-16 | D48: İSMET FURKAN YANDI | E48: KARAMAN | F48: DNF | G48: 0 | I48: 4. SERİ
A49: - | B49: 600 | C49: 2002-11-21 | D49: MELİH ÇOPUR | E49: NEVŞEHİR | F49: DNF | G49: 0 | I49: Sıra No | J49: Formül | K49: Göğüs No | L49: Doğum Tarihi | M49: Adı ve Soyadı | N49: İLİ | O49: Derece | P49: El Kronometre | Q49: Seri Geliş
A50: - | B50: 28 | C50: 2002-08-01 | D50: HASAN ALANTAR | E50: ADIYAMAN | F50: DNF | G50: 0 | I50: 1 | J50: 1500M-4-1 | K50: 600 | L50: 2002-11-21 | M50: MELİH ÇOPUR | N50: NEVŞEHİR | O50: DNF | Q50: -
A51: - | B51: 601 | C51: 2002-07-04 | D51: ÖMER DİLDÖKEN | E51: NEVŞEHİR | F51: DNF | G51: 0 | I51: 2 | J51: 1500M-4-2 | K51: 28 | L51: 2002-08-01 | M51: HASAN ALANTAR | N51: ADIYAMAN | O51: DNF | Q51: -
I52: 3 | J52: 1500M-4-3 | K52: 601 | L52: 2002-07-04 | M52: ÖMER DİLDÖKEN | N52: NEVŞEHİR | O52: DNF | Q52: -
I53: 4 | J53: 1500M-4-4 | K53: 26 | L53: 2002-01-01 | M53: MEHMET VURUCU | N53: ADIYAMAN | O53: 52559 | Q53: 15
I54: 5 | J54: 1500M-4-5 | K54: 499 | L54: 2002-12-17 | M54: BEYTULLAH KAYA | N54: KIRŞEHİR | O54: 50977 | Q54: 6
I55: 6 | J55: 1500M-4-6 | K55: 315 | L55: 2002-09-09 | M55: MUSTAFA TUNA | N55: HATAY | O55: 50123 | Q55: 1
I56: 7 | J56: 1500M-4-7 | K56: 314 | L56: 2002-02-22 | M56: ALİ İSMAİL ÇİÇEK | N56: HATAY | O56: 53248 | Q56: 16
I57: 8 | J57: 1500M-4-8 | K57: 322 | L57: 2002-02-07 | M57: EMRE KARA | N57: HATAY | O57: 51168 | Q57: 7
I58: 9 | J58: 1500M-4-9 | K58: 83 | L58: 2002-01-20 | M58: ENVER VİRAN | N58: AYDIN | O58: 60074 | Q58: 19
I59: 10 | J59: 1500M-4-10 | K59: 609 | L59: 2002-03-06 | M59: AKİF HANİFİOĞLU | N59: OSMANİYE | O59: 51544 | Q59: 11
I60: 11 | J60: 1500M-4-11 | K60: 612 | L60: 2002-10-12 | M60: MERT YAHYA YILDIRIM | N60: OSMANİYE | O60: 51735 | Q60: 12
A61: Müsabakalar Direktörü | E61: Baş Hakem | F61: Lider | I61: 12 | J61: 1500M-4-12
H63: Sekreter | M63: Hakem | N63: Hakem | P63: Hakem
A65534: CELAL KAYAÖZ

Sheet 2.Gün Start Listesi (hidden)
A1: =('YARIŞMA BİLGİLERİ'!A2) -> Türkiye Atletizm Federasyonu İzmir Atletizm İl Temsilciliği
A2: ='YARIŞMA BİLGİLERİ'!F19 -> Naili Moran Türkiye Atletizm Şampiyonası
A3: 2.GÜN GENÇ ERKEKLER START LİSTELERİ
A4: 800 METRE | I4: ÜÇADIM ATLAMA
A5: 1. SERİ
A6: Sıra No | B6: Formül | C6: Göğüs No | D6: Doğum Tarihi | E6: Adı ve Soyadı | F6: Okulu | G6: Start Kontrol | I6: SIRA NO | K6: GÖĞÜS NO | L6: DOĞUM TARİHİ | M6: ADI VE SOYADI | N6: OKULU | O6: START KONTROL
A7: 1 | B7: 800M-1-1 | C7: =IF(ISERROR(VLOOKUP(B7,'KAYIT LİSTESİ'!$B$4:$H$788,2,0)),"",(VLOOKUP(B7,'KAYIT LİSTESİ'!$B$4:$H$788,2,0))) -> 40 | D7: =IF(ISERROR(VLOOKUP(B7,'KAYIT LİSTESİ'!$B$4:$H$788,4,0)),"",(VLOOKUP(B7,'KAYIT LİSTESİ'!$B$4:$H$788,4,0))) -> 2002-01-15 | E7: =IF(ISERROR(VLOOKUP(B7,'KAYIT LİSTESİ'!$B$4:$H$788,5,0)),"",(VLOOKUP(B7,'KAYIT LİSTESİ'!$B$4:$H$788,5,0))) -> HAKAN ACUN | F7: =IF(ISERROR(VLOOKUP(B7,'KAYIT LİSTESİ'!$B$4:$H$788,6,0)),"",(VLOOKUP(B7,'KAYIT LİSTESİ'!$B$4:$H$788,6,0))) -> AKSARAY
A8: 2 | B8: 800M-1-2 | C8: =IF(ISERROR(VLOOKUP(B8,'KAYIT LİSTESİ'!$B$4:$H$788,2,0)),"",(VLOOKUP(B8,'KAYIT LİSTESİ'!$B$4:$H$788,2,0))) ->  | D8: =IF(ISERROR(VLOOKUP(B8,'KAYIT LİSTESİ'!$B$4:$H$788,4,0)),"",(VLOOKUP(B8,'KAYIT LİSTESİ'!$B$4:$H$788,4,0))) ->  | E8: =IF(ISERROR(VLOOKUP(B8,'KAYIT LİSTESİ'!$B$4:$H$788,5,0)),"",(VLOOKUP(B8,'KAYIT LİSTESİ'!$B$4:$H$788,5,0))) ->  | F8: =IF(ISERROR(VLOOKUP(B8,'KAYIT LİSTESİ'!$B$4:$H$788,6,0)),"",(VLOOKUP(B8,'KAYIT LİSTESİ'!$B$4:$H$788,6,0))) ->  | I8: 1 | J8: ÜÇADIM-1 | K8: =IF(ISERROR(VLOOKUP(J8,'KAYIT LİSTESİ'!$B$4:$H$788,2,0)),"",(VLOOKUP(J8,'KAYIT LİSTESİ'!$B$4:$H$788,2,0))) ->  | L8: =IF(ISERROR(VLOOKUP(J8,'KAYIT LİSTESİ'!$B$4:$H$788,4,0)),"",(VLOOKUP(J8,'KAYIT LİSTESİ'!$B$4:$H$788,4,0))) ->  | M8: =IF(ISERROR(VLOOKUP(J8,'KAYIT LİSTESİ'!$B$4:$H$788,5,0)),"",(VLOOKUP(J8,'KAYIT LİSTESİ'!$B$4:$H$788,5,0))) ->  | N8: =IF(ISERROR(VLOOKUP(J8,'KAYIT LİSTESİ'!$B$4:$H$788,6,0)),"",(VLOOKUP(J8,'KAYIT LİSTESİ'!$B$4:$H$788,6,0))) -> 
A9: 3 | B9: 800M-1-3 | C9: =IF(ISERROR(VLOOKUP(B9,'KAYIT LİSTESİ'!$B$4:$H$788,2,0)),"",(VLOOKUP(B9,'KAYIT LİSTESİ'!$B$4:$H$788,2,0))) -> 584 | D9: =IF(ISERROR(VLOOKUP(B9,'KAYIT LİSTESİ'!$B$4:$H$788,4,0)),"",(VLOOKUP(B9,'KAYIT LİSTESİ'!$B$4:$H$788,4,0))) -> 2002-07-20 | E9: =IF(ISERROR(VLOOKUP(B9,'KAYIT LİSTESİ'!$B$4:$H$788,5,0)),"",(VLOOKUP(B9,'KAYIT LİSTESİ'!$B$4:$H$788,5,0))) -> Mezher GÜLER | F9: =IF(ISERROR(VLOOKUP(B9,'KAYIT LİSTESİ'!$B$4:$H$788,6,0)),"",(VLOOKUP(B9,'KAYIT LİSTESİ'!$B$4:$H$788,6,0))) -> MUŞ | I9: 2 | J9: ÜÇADIM-2 | K9: =IF(ISERROR(VLOOKUP(J9,'KAYIT LİSTESİ'!$B$4:$H$788,2,0)),"",(VLOOKUP(J9,'KAYIT LİSTESİ'!$B$4:$H$788,2,0))) ->  | L9: =IF(ISERROR(VLOOKUP(J9,'KAYIT LİSTESİ'!$B$4:$H$788,4,0)),"",(VLOOKUP(J9,'KAYIT LİSTESİ'!$B$4:$H$788,4,0))) ->  | M9: =IF(ISERROR(VLOOKUP(J9,'KAYIT LİSTESİ'!$B$4:$H$788,5,0)),"",(VLOOKUP(J9,'KAYIT LİSTESİ'!$B$4:$H$788,5,0))) ->  | N9: =IF(ISERROR(VLOOKUP(J9,'KAYIT LİSTESİ'!$B$4:$H$788,6,0)),"",(VLOOKUP(J9,'KAYIT LİSTESİ'!$B$4:$H$788,6,0))) -> 
A10: 4 | B10: 800M-1-4 | C10: =IF(ISERROR(VLOOKUP(B10,'KAYIT LİSTESİ'!$B$4:$H$788,2,0)),"",(VLOOKUP(B10,'KAYIT LİSTESİ'!$B$4:$H$788,2,0))) -> 573 | D10: =IF(ISERROR(VLOOKUP(B10,'KAYIT LİSTESİ'!$B$4:$H$788,4,0)),"",(VLOOKUP(B10,'KAYIT LİSTESİ'!$B$4:$H$788,4,0))) -> 2002-01-01 | E10: =IF(ISERROR(VLOOKUP(B10,'KAYIT LİSTESİ'!$B$4:$H$788,5,0)),"",(VLOOKUP(B10,'KAYIT LİSTESİ'!$B$4:$H$788,5,0))) -> İbrahim KARATEKER | F10: =IF(ISERROR(VLOOKUP(B10,'KAYIT LİSTESİ'!$B$4:$H$788,6,0)),"",(VLOOKUP(B10,'KAYIT LİSTESİ'!$B$4:$H$788,6,0))) -> MUŞ | I10: 3 | J10: ÜÇADIM-3 | K10: =IF(ISERROR(VLOOKUP(J10,'KAYIT LİSTESİ'!$B$4:$H$788,2,0)),"",(VLOOKUP(J10,'KAYIT LİSTESİ'!$B$4:$H$788,2,0))) ->  | L10: =IF(ISERROR(VLOOKUP(J10,'KAYIT LİSTESİ'!$B$4:$H$788,4,0)),"",(VLOOKUP(J10,'KAYIT LİSTESİ'!$B$4:$H$788,4,0))) ->  | M10: =IF(ISERROR(VLOOKUP(J10,'KAYIT LİSTESİ'!$B$4:$H$788,5,0)),"",(VLOOKUP(J10,'KAYIT LİSTESİ'!$B$4:$H$788,5,0))) ->  | N10: =IF(ISERROR(VLOOKUP(J10,'KAYIT LİSTESİ'!$B$4:$H$788,6,0)),"",(VLOOKUP(J10,'KAYIT LİSTESİ'!$B$4:$H$788,6,0))) -> 
A11: 5 | B11: 800M-1-5 | C11: =IF(ISERROR(VLOOKUP(B11,'KAYIT LİSTESİ'!$B$4:$H$788,2,0)),"",(VLOOKUP(B11,'KAYIT LİSTESİ'!$B$4:$H$788,2,0))) -> 733 | D11: =IF(ISERROR(VLOOKUP(B11,'KAYIT LİSTESİ'!$B$4:$H$788,4,0)),"",(VLOOKUP(B11,'KAYIT LİSTESİ'!$B$4:$H$788,4,0))) -> 2002-01-17 | E11: =IF(ISERROR(VLOOKUP(B11,'KAYIT LİSTESİ'!$B$4:$H$788,5,0)),"",(VLOOKUP(B11,'KAYIT LİSTESİ'!$B$4:$H$788,5,0))) -> KEMAL EREN ZEYTUN | F11: =IF(ISERROR(VLOOKUP(B11,'KAYIT LİSTESİ'!$B$4:$H$788,6,0)),"",(VLOOKUP(B11,'KAYIT LİSTESİ'!$B$4:$H$788,6,0))) -> BURSA | I11: 4 | J11: ÜÇADIM-4 | K11: =IF(ISERROR(VLOOKUP(J11,'KAYIT LİSTESİ'!$B$4:$H$788,2,0)),"",(VLOOKUP(J11,'KAYIT LİSTESİ'!$B$4:$H$788,2,0))) ->  | L11: =IF(ISERROR(VLOOKUP(J11,'KAYIT LİSTESİ'!$B$4:$H$788,4,0)),"",(VLOOKUP(J11,'KAYIT LİSTESİ'!$B$4:$H$788,4,0))) ->  | M11: =IF(ISERROR(VLOOKUP(J11,'KAYIT LİSTESİ'!$B$4:$H$788,5,0)),"",(VLOOKUP(J11,'KAYIT LİSTESİ'!$B$4:$H$788,5,0))) ->  | N11: =IF(ISERROR(VLOOKUP(J11,'KAYIT LİSTESİ'!$B$4:$H$788,6,0)),"",(VLOOKUP(J11,'KAYIT LİSTESİ'!$B$4:$H$788,6,0))) -> 
A12: 6 | B12: 800M-1-6 | C12: =IF(ISERROR(VLOOKUP(B12,'KAYIT LİSTESİ'!$B$4:$H$788,2,0)),"",(VLOOKUP(B12,'KAYIT LİSTESİ'!$B$4:$H$788,2,0))) -> 64 | D12: =IF(ISERROR(VLOOKUP(B12,'KAYIT LİSTESİ'!$B$4:$H$788,4,0)),"",(VLOOKUP(B12,'KAYIT LİSTESİ'!$B$4:$H$788,4,0))) -> 2002-07-09 | E12: =IF(ISERROR(VLOOKUP(B12,'KAYIT LİSTESİ'!$B$4:$H$788,5,0)),"",(VLOOKUP(B12,'KAYIT LİSTESİ'!$B$4:$H$788,5,0))) -> DOĞUKAN KÖMÜR | F12: =IF(ISERROR(VLOOKUP(B12,'KAYIT LİSTESİ'!$B$4:$H$788,6,0)),"",(VLOOKUP(B12,'KAYIT LİSTESİ'!$B$4:$H$788,6,0))) -> ARDAHAN | I12: 5 | J12: ÜÇADIM-5 | K12: =IF(ISERROR(VLOOKUP(J12,'KAYIT LİSTESİ'!$B$4:$H$788,2,0)),"",(VLOOKUP(J12,'KAYIT LİSTESİ'!$B$4:$H$788,2,0))) ->  | L12: =IF(ISERROR(VLOOKUP(J12,'KAYIT LİSTESİ'!$B$4:$H$788,4,0)),"",(VLOOKUP(J12,'KAYIT LİSTESİ'!$B$4:$H$788,4,0))) ->  | M12: =IF(ISERROR(VLOOKUP(J12,'KAYIT LİSTESİ'!$B$4:$H$788,5,0)),"",(VLOOKUP(J12,'KAYIT LİSTESİ'!$B$4:$H$788,5,0))) ->  | N12: =IF(ISERROR(VLOOKUP(J12,'KAYIT LİSTESİ'!$B$4:$H$788,6,0)),"",(VLOOKUP(J12,'KAYIT LİSTESİ'!$B$4:$H$788,6,0))) -> 
A13: 7 | B13: 800M-1-7 | C13: =IF(ISERROR(VLOOKUP(B13,'KAYIT LİSTESİ'!$B$4:$H$788,2,0)),"",(VLOOKUP(B13,'KAYIT LİSTESİ'!$B$4:$H$788,2,0))) -> 480 | D13: =IF(ISERROR(VLOOKUP(B13,'KAYIT LİSTESİ'!$B$4:$H$788,4,0)),"",(VLOOKUP(B13,'KAYIT LİSTESİ'!$B$4:$H$788,4,0))) -> 2002-05-21 | E13: =IF(ISERROR(VLOOKUP(B13,'KAYIT LİSTESİ'!$B$4:$H$788,5,0)),"",(VLOOKUP(B13,'KAYIT LİSTESİ'!$B$4:$H$788,5,0))) -> RAMAZAN YULAF | F13: =IF(ISERROR(VLOOKUP(B13,'KAYIT LİSTESİ'!$B$4:$H$788,6,0)),"",(VLOOKUP(B13,'KAYIT LİSTESİ'!$B$4:$H$788,6,0))) -> KIRIKKALE | I13: 6 | J13: ÜÇADIM-6 | K13: =IF(ISERROR(VLOOKUP(J13,'KAYIT LİSTESİ'!$B$4:$H$788,2,0)),"",(VLOOKUP(J13,'KAYIT LİSTESİ'!$B$4:$H$788,2,0))) ->  | L13: =IF(ISERROR(VLOOKUP(J13,'KAYIT LİSTESİ'!$B$4:$H$788,4,0)),"",(VLOOKUP(J13,'KAYIT LİSTESİ'!$B$4:$H$788,4,0))) ->  | M13: =IF(ISERROR(VLOOKUP(J13,'KAYIT LİSTESİ'!$B$4:$H$788,5,0)),"",(VLOOKUP(J13,'KAYIT LİSTESİ'!$B$4:$H$788,5,0))) ->  | N13: =IF(ISERROR(VLOOKUP(J13,'KAYIT LİSTESİ'!$B$4:$H$788,6,0)),"",(VLOOKUP(J13,'KAYIT LİSTESİ'!$B$4:$H$788,6,0))) -> 
A14: 8 | B14: 800M-1-8 | C14: =IF(ISERROR(VLOOKUP(B14,'KAYIT LİSTESİ'!$B$4:$H$788,2,0)),"",(VLOOKUP(B14,'KAYIT LİSTESİ'!$B$4:$H$788,2,0))) -> 465 | D14: =IF(ISERROR(VLOOKUP(B14,'KAYIT LİSTESİ'!$B$4:$H$788,4,0)),"",(VLOOKUP(B14,'KAYIT LİSTESİ'!$B$4:$H$788,4,0))) -> 2002-02-16 | E14: =IF(ISERROR(VLOOKUP(B14,'KAYIT LİSTESİ'!$B$4:$H$788,5,0)),"",(VLOOKUP(B14,'KAYIT LİSTESİ'!$B$4:$H$788,5,0))) -> İSMET FURKAN YANDI | F14: =IF(ISERROR(VLOOKUP(B14,'KAYIT LİSTESİ'!$B$4:$H$788,6,0)),"",(VLOOKUP(B14,'KAYIT LİSTESİ'!$B$4:$H$788,6,0))) -> KARAMAN | I14: 7 | J14: ÜÇADIM-7 | K14: =IF(ISERROR(VLOOKUP(J14,'KAYIT LİSTESİ'!$B$4:$H$788,2,0)),"",(VLOOKUP(J14,'KAYIT LİSTESİ'!$B$4:$H$788,2,0))) ->  | L14: =IF(ISERROR(VLOOKUP(J14,'KAYIT LİSTESİ'!$B$4:$H$788,4,0)),"",(VLOOKUP(J14,'KAYIT LİSTESİ'!$B$4:$H$788,4,0))) ->  | M14: =IF(ISERROR(VLOOKUP(J14,'KAYIT LİSTESİ'!$B$4:$H$788,5,0)),"",(VLOOKUP(J14,'KAYIT LİSTESİ'!$B$4:$H$788,5,0))) ->  | N14: =IF(ISERROR(VLOOKUP(J14,'KAYIT LİSTESİ'!$B$4:$H$788,6,0)),"",(VLOOKUP(J14,'KAYIT LİSTESİ'!$B$4:$H$788,6,0))) -> 
A15: 9 | B15: 800M-1-9 | C15: =IF(ISERROR(VLOOKUP(B15,'KAYIT LİSTESİ'!$B$4:$H$788,2,0)),"",(VLOOKUP(B15,'KAYIT LİSTESİ'!$B$4:$H$788,2,0))) -> 111 | D15: =IF(ISERROR(VLOOKUP(B15,'KAYIT LİSTESİ'!$B$4:$H$788,4,0)),"",(VLOOKUP(B15,'KAYIT LİSTESİ'!$B$4:$H$788,4,0))) -> 2002-09-24 | E15: =IF(ISERROR(VLOOKUP(B15,'KAYIT LİSTESİ'!$B$4:$H$788,5,0)),"",(VLOOKUP(B15,'KAYIT LİSTESİ'!$B$4:$H$788,5,0))) -> OĞUZHAN KOŞAR | F15: =IF(ISERROR(VLOOKUP(B15,'KAYIT LİSTESİ'!$B$4:$H$788,6,0)),"",(VLOOKUP(B15,'KAYIT LİSTESİ'!$B$4:$H$788,6,0))) -> BALIKESİR | I15: 8 | J15: ÜÇADIM-8 | K15: =IF(ISERROR(VLOOKUP(J15,'KAYIT LİSTESİ'!$B$4:$H$788,2,0)),"",(VLOOKUP(J15,'KAYIT LİSTESİ'!$B$4:$H$788,2,0))) ->  | L15: =IF(ISERROR(VLOOKUP(J15,'KAYIT LİSTESİ'!$B$4:$H$788,4,0)),"",(VLOOKUP(J15,'KAYIT LİSTESİ'!$B$4:$H$788,4,0))) ->  | M15: =IF(ISERROR(VLOOKUP(J15,'KAYIT LİSTESİ'!$B$4:$H$788,5,0)),"",(VLOOKUP(J15,'KAYIT LİSTESİ'!$B$4:$H$788,5,0))) ->  | N15: =IF(ISERROR(VLOOKUP(J15,'KAYIT LİSTESİ'!$B$4:$H$788,6,0)),"",(VLOOKUP(J15,'KAYIT LİSTESİ'!$B$4:$H$788,6,0))) -> 
A16: 10 | B16: 800M-1-10 | C16: =IF(ISERROR(VLOOKUP(B16,'KAYIT LİSTESİ'!$B$4:$H$788,2,0)),"",(VLOOKUP(B16,'KAYIT LİSTESİ'!$B$4:$H$788,2,0))) -> 466 | D16: =IF(ISERROR(VLOOKUP(B16,'KAYIT LİSTESİ'!$B$4:$H$788,4,0)),"",(VLOOKUP(B16,'KAYIT LİSTESİ'!$B$4:$H$788,4,0))) -> 2002-08-22 | E16: =IF(ISERROR(VLOOKUP(B16,'KAYIT LİSTESİ'!$B$4:$H$788,5,0)),"",(VLOOKUP(B16,'KAYIT LİSTESİ'!$B$4:$H$788,5,0))) -> MUSTAFA TALAŞ | F16: =IF(ISERROR(VLOOKUP(B16,'KAYIT LİSTESİ'!$B$4:$H$788,6,0)),"",(VLOOKUP(B16,'KAYIT LİSTESİ'!$B$4:$H$788,6,0))) -> KARAMAN | I16: 9 | J16: ÜÇADIM-9 | K16: =IF(ISERROR(VLOOKUP(J16,'KAYIT LİSTESİ'!$B$4:$H$788,2,0)),"",(VLOOKUP(J16,'KAYIT LİSTESİ'!$B$4:$H$788,2,0))) ->  | L16: =IF(ISERROR(VLOOKUP(J16,'KAYIT LİSTESİ'!$B$4:$H$788,4,0)),"",(VLOOKUP(J16,'KAYIT LİSTESİ'!$B$4:$H$788,4,0))) ->  | M16: =IF(ISERROR(VLOOKUP(J16,'KAYIT LİSTESİ'!$B$4:$H$788,5,0)),"",(VLOOKUP(J16,'KAYIT LİSTESİ'!$B$4:$H$788,5,0))) ->  | N16: =IF(ISERROR(VLOOKUP(J16,'KAYIT LİSTESİ'!$B$4:$H$788,6,0)),"",(VLOOKUP(J16,'KAYIT LİSTESİ'!$B$4:$H$788,6,0))) -> 
A17: 11 | B17: 800M-1-11 | C17: =IF(ISERROR(VLOOKUP(B17,'KAYIT LİSTESİ'!$B$4:$H$788,2,0)),"",(VLOOKUP(B17,'KAYIT LİSTESİ'!$B$4:$H$788,2,0))) ->  | D17: =IF(ISERROR(VLOOKUP(B17,'KAYIT LİSTESİ'!$B$4:$H$788,4,0)),"",(VLOOKUP(B17,'KAYIT LİSTESİ'!$B$4:$H$788,4,0))) ->  | E17: =IF(ISERROR(VLOOKUP(B17,'KAYIT LİSTESİ'!$B$4:$H$788,5,0)),"",(VLOOKUP(B17,'KAYIT LİSTESİ'!$B$4:$H$788,5,0))) ->  | F17: =IF(ISERROR(VLOOKUP(B17,'KAYIT LİSTESİ'!$B$4:$H$788,6,0)),"",(VLOOKUP(B17,'KAYIT LİSTESİ'!$B$4:$H$788,6,0))) ->  | I17: 10 | J17: ÜÇADIM-10 | K17: =IF(ISERROR(VLOOKUP(J17,'KAYIT LİSTESİ'!$B$4:$H$788,2,0)),"",(VLOOKUP(J17,'KAYIT LİSTESİ'!$B$4:$H$788,2,0))) ->  | L17: =IF(ISERROR(VLOOKUP(J17,'KAYIT LİSTESİ'!$B$4:$H$788,4,0)),"",(VLOOKUP(J17,'KAYIT LİSTESİ'!$B$4:$H$788,4,0))) ->  | M17: =IF(ISERROR(VLOOKUP(J17,'KAYIT LİSTESİ'!$B$4:$H$788,5,0)),"",(VLOOKUP(J17,'KAYIT LİSTESİ'!$B$4:$H$788,5,0))) ->  | N17: =IF(ISERROR(VLOOKUP(J17,'KAYIT LİSTESİ'!$B$4:$H$788,6,0)),"",(VLOOKUP(J17,'KAYIT LİSTESİ'!$B$4:$H$788,6,0))) -> 
A18: 12 | B18: 800M-1-12 | C18: =IF(ISERROR(VLOOKUP(B18,'KAYIT LİSTESİ'!$B$4:$H$788,2,0)),"",(VLOOKUP(B18,'KAYIT LİSTESİ'!$B$4:$H$788,2,0))) ->  | D18: =IF(ISERROR(VLOOKUP(B18,'KAYIT LİSTESİ'!$B$4:$H$788,4,0)),"",(VLOOKUP(B18,'KAYIT LİSTESİ'!$B$4:$H$788,4,0))) ->  | E18: =IF(ISERROR(VLOOKUP(B18,'KAYIT LİSTESİ'!$B$4:$H$788,5,0)),"",(VLOOKUP(B18,'KAYIT LİSTESİ'!$B$4:$H$788,5,0))) ->  | F18: =IF(ISERROR(VLOOKUP(B18,'KAYIT LİSTESİ'!$B$4:$H$788,6,0)),"",(VLOOKUP(B18,'KAYIT LİSTESİ'!$B$4:$H$788,6,0))) ->  | I18: 11 | J18: ÜÇADIM-11 | K18: =IF(ISERROR(VLOOKUP(J18,'KAYIT LİSTESİ'!$B$4:$H$788,2,0)),"",(VLOOKUP(J18,'KAYIT LİSTESİ'!$B$4:$H$788,2,0))) ->  | L18: =IF(ISERROR(VLOOKUP(J18,'KAYIT LİSTESİ'!$B$4:$H$788,4,0)),"",(VLOOKUP(J18,'KAYIT LİSTESİ'!$B$4:$H$788,4,0))) ->  | M18: =IF(ISERROR(VLOOKUP(J18,'KAYIT LİSTESİ'!$B$4:$H$788,5,0)),"",(VLOOKUP(J18,'KAYIT LİSTESİ'!$B$4:$H$788,5,0))) ->  | N18: =IF(ISERROR(VLOOKUP(J18,'KAYIT LİSTESİ'!$B$4:$H$788,6,0)),"",(VLOOKUP(J18,'KAYIT LİSTESİ'!$B$4:$H$788,6,0))) -> 
A19: 2. SERİ | I19: 12 | J19: ÜÇADIM-12 | K19: =IF(ISERROR(VLOOKUP(J19,'KAYIT LİSTESİ'!$B$4:$H$788,2,0)),"",(VLOOKUP(J19,'KAYIT LİSTESİ'!$B$4:$H$788,2,0))) ->  | L19: =IF(ISERROR(VLOOKUP(J19,'KAYIT LİSTESİ'!$B$4:$H$788,4,0)),"",(VLOOKUP(J19,'KAYIT LİSTESİ'!$B$4:$H$788,4,0))) ->  | M19: =IF(ISERROR(VLOOKUP(J19,'KAYIT LİSTESİ'!$B$4:$H$788,5,0)),"",(VLOOKUP(J19,'KAYIT LİSTESİ'!$B$4:$H$788,5,0))) ->  | N19: =IF(ISERROR(VLOOKUP(J19,'KAYIT LİSTESİ'!$B$4:$H$788,6,0)),"",(VLOOKUP(J19,'KAYIT LİSTESİ'!$B$4:$H$788,6,0))) -> 
A20: Sıra No | B20: Formül | C20: Göğüs No | D20: Doğum Tarihi | E20: Adı ve Soyadı | F20: Okulu | G20: Start Kontrol | I20: 13 | J20: ÜÇADIM-13 | K20: =IF(ISERROR(VLOOKUP(J20,'KAYIT LİSTESİ'!$B$4:$H$788,2,0)),"",(VLOOKUP(J20,'KAYIT LİSTESİ'!$B$4:$H$788,2,0))) ->  | L20: =IF(ISERROR(VLOOKUP(J20,'KAYIT LİSTESİ'!$B$4:$H$788,4,0)),"",(VLOOKUP(J20,'KAYIT LİSTESİ'!$B$4:$H$788,4,0))) ->  | M20: =IF(ISERROR(VLOOKUP(J20,'KAYIT LİSTESİ'!$B$4:$H$788,5,0)),"",(VLOOKUP(J20,'KAYIT LİSTESİ'!$B$4:$H$788,5,0))) ->  | N20: =IF(ISERROR(VLOOKUP(J20,'KAYIT LİSTESİ'!$B$4:$H$788,6,0)),"",(VLOOKUP(J20,'KAYIT LİSTESİ'!$B$4:$H$788,6,0))) -> 
A21: 1 | B21: 800M-2-1 | C21: =IF(ISERROR(VLOOKUP(B21,'KAYIT LİSTESİ'!$B$4:$H$788,2,0)),"",(VLOOKUP(B21,'KAYIT LİSTESİ'!$B$4:$H$788,2,0))) -> 281 | D21: =IF(ISERROR(VLOOKUP(B21,'KAYIT LİSTESİ'!$B$4:$H$788,4,0)),"",(VLOOKUP(B21,'KAYIT LİSTESİ'!$B$4:$H$788,4,0))) -> 2002-01-01 | E21: =IF(ISERROR(VLOOKUP(B21,'KAYIT LİSTESİ'!$B$4:$H$788,5,0)),"",(VLOOKUP(B21,'KAYIT LİSTESİ'!$B$4:$H$788,5,0))) -> DAVUT AKDENİZ | F21: =IF(ISERROR(VLOOKUP(B21,'KAYIT LİSTESİ'!$B$4:$H$788,6,0)),"",(VLOOKUP(B21,'KAYIT LİSTESİ'!$B$4:$H$788,6,0))) -> GAZİANTEP | I21: 14 | J21: ÜÇADIM-14 | K21: =IF(ISERROR(VLOOKUP(J21,'KAYIT LİSTESİ'!$B$4:$H$788,2,0)),"",(VLOOKUP(J21,'KAYIT LİSTESİ'!$B$4:$H$788,2,0))) ->  | L21: =IF(ISERROR(VLOOKUP(J21,'KAYIT LİSTESİ'!$B$4:$H$788,4,0)),"",(VLOOKUP(J21,'KAYIT LİSTESİ'!$B$4:$H$788,4,0))) ->  | M21: =IF(ISERROR(VLOOKUP(J21,'KAYIT LİSTESİ'!$B$4:$H$788,5,0)),"",(VLOOKUP(J21,'KAYIT LİSTESİ'!$B$4:$H$788,5,0))) ->  | N21: =IF(ISERROR(VLOOKUP(J21,'KAYIT LİSTESİ'!$B$4:$H$788,6,0)),"",(VLOOKUP(J21,'KAYIT LİSTESİ'!$B$4:$H$788,6,0))) -> 
A22: 2 | B22: 800M-2-2 | C22: =IF(ISERROR(VLOOKUP(B22,'KAYIT LİSTESİ'!$B$4:$H$788,2,0)),"",(VLOOKUP(B22,'KAYIT LİSTESİ'!$B$4:$H$788,2,0))) -> 550 | D22: =IF(ISERROR(VLOOKUP(B22,'KAYIT LİSTESİ'!$B$4:$H$788,4,0)),"",(VLOOKUP(B22,'KAYIT LİSTESİ'!$B$4:$H$788,4,0))) -> 2002-01-01 | E22: =IF(ISERROR(VLOOKUP(B22,'KAYIT LİSTESİ'!$B$4:$H$788,5,0)),"",(VLOOKUP(B22,'KAYIT LİSTESİ'!$B$4:$H$788,5,0))) -> AHMET ÖZER | F22: =IF(ISERROR(VLOOKUP(B22,'KAYIT LİSTESİ'!$B$4:$H$788,6,0)),"",(VLOOKUP(B22,'KAYIT LİSTESİ'!$B$4:$H$788,6,0))) -> KÜTAHYA | I22: 15 | J22: ÜÇADIM-15 | K22: =IF(ISERROR(VLOOKUP(J22,'KAYIT LİSTESİ'!$B$4:$H$788,2,0)),"",(VLOOKUP(J22,'KAYIT LİSTESİ'!$B$4:$H$788,2,0))) ->  | L22: =IF(ISERROR(VLOOKUP(J22,'KAYIT LİSTESİ'!$B$4:$H$788,4,0)),"",(VLOOKUP(J22,'KAYIT LİSTESİ'!$B$4:$H$788,4,0))) ->  | M22: =IF(ISERROR(VLOOKUP(J22,'KAYIT LİSTESİ'!$B$4:$H$788,5,0)),"",(VLOOKUP(J22,'KAYIT LİSTESİ'!$B$4:$H$788,5,0))) ->  | N22: =IF(ISERROR(VLOOKUP(J22,'KAYIT LİSTESİ'!$B$4:$H$788,6,0)),"",(VLOOKUP(J22,'KAYIT LİSTESİ'!$B$4:$H$788,6,0))) -> 
A23: 3 | B23: 800M-2-3 | C23: =IF(ISERROR(VLOOKUP(B23,'KAYIT LİSTESİ'!$B$4:$H$788,2,0)),"",(VLOOKUP(B23,'KAYIT LİSTESİ'!$B$4:$H$788,2,0))) -> 551 | D23: =IF(ISERROR(VLOOKUP(B23,'KAYIT LİSTESİ'!$B$4:$H$788,4,0)),"",(VLOOKUP(B23,'KAYIT LİSTESİ'!$B$4:$H$788,4,0))) -> 2002-01-01 | E23: =IF(ISERROR(VLOOKUP(B23,'KAYIT LİSTESİ'!$B$4:$H$788,5,0)),"",(VLOOKUP(B23,'KAYIT LİSTESİ'!$B$4:$H$788,5,0))) -> HALİT GÜNGÖR | F23: =IF(ISERROR(VLOOKUP(B23,'KAYIT LİSTESİ'!$B$4:$H$788,6,0)),"",(VLOOKUP(B23,'KAYIT LİSTESİ'!$B$4:$H$788,6,0))) -> KÜTAHYA | I23: 16 | J23: ÜÇADIM-16 | K23: =IF(ISERROR(VLOOKUP(J23,'KAYIT LİSTESİ'!$B$4:$H$788,2,0)),"",(VLOOKUP(J23,'KAYIT LİSTESİ'!$B$4:$H$788,2,0))) ->  | L23: =IF(ISERROR(VLOOKUP(J23,'KAYIT LİSTESİ'!$B$4:$H$788,4,0)),"",(VLOOKUP(J23,'KAYIT LİSTESİ'!$B$4:$H$788,4,0))) ->  | M23: =IF(ISERROR(VLOOKUP(J23,'KAYIT LİSTESİ'!$B$4:$H$788,5,0)),"",(VLOOKUP(J23,'KAYIT LİSTESİ'!$B$4:$H$788,5,0))) ->  | N23: =IF(ISERROR(VLOOKUP(J23,'KAYIT LİSTESİ'!$B$4:$H$788,6,0)),"",(VLOOKUP(J23,'KAYIT LİSTESİ'!$B$4:$H$788,6,0))) -> 
A24: 4 | B24: 800M-2-4 | C24: =IF(ISERROR(VLOOKUP(B24,'KAYIT LİSTESİ'!$B$4:$H$788,2,0)),"",(VLOOKUP(B24,'KAYIT LİSTESİ'!$B$4:$H$788,2,0))) -> 283 | D24: =IF(ISERROR(VLOOKUP(B24,'KAYIT LİSTESİ'!$B$4:$H$788,4,0)),"",(VLOOKUP(B24,'KAYIT LİSTESİ'!$B$4:$H$788,4,0))) -> 2002-01-01 | E24: =IF(ISERROR(VLOOKUP(B24,'KAYIT LİSTESİ'!$B$4:$H$788,5,0)),"",(VLOOKUP(B24,'KAYIT LİSTESİ'!$B$4:$H$788,5,0))) -> SÜLEYMAN TOKER | F24: =IF(ISERROR(VLOOKUP(B24,'KAYIT LİSTESİ'!$B$4:$H$788,6,0)),"",(VLOOKUP(B24,'KAYIT LİSTESİ'!$B$4:$H$788,6,0))) -> GAZİANTEP | I24: 17 | J24: ÜÇADIM-17 | K24: =IF(ISERROR(VLOOKUP(J24,'KAYIT LİSTESİ'!$B$4:$H$788,2,0)),"",(VLOOKUP(J24,'KAYIT LİSTESİ'!$B$4:$H$788,2,0))) ->  | L24: =IF(ISERROR(VLOOKUP(J24,'KAYIT LİSTESİ'!$B$4:$H$788,4,0)),"",(VLOOKUP(J24,'KAYIT LİSTESİ'!$B$4:$H$788,4,0))) ->  | M24: =IF(ISERROR(VLOOKUP(J24,'KAYIT LİSTESİ'!$B$4:$H$788,5,0)),"",(VLOOKUP(J24,'KAYIT LİSTESİ'!$B$4:$H$788,5,0))) ->  | N24: =IF(ISERROR(VLOOKUP(J24,'KAYIT LİSTESİ'!$B$4:$H$788,6,0)),"",(VLOOKUP(J24,'KAYIT LİSTESİ'!$B$4:$H$788,6,0))) -> 
A25: 5 | B25: 800M-2-5 | C25: =IF(ISERROR(VLOOKUP(B25,'KAYIT LİSTESİ'!$B$4:$H$788,2,0)),"",(VLOOKUP(B25,'KAYIT LİSTESİ'!$B$4:$H$788,2,0))) -> 249 | D25: =IF(ISERROR(VLOOKUP(B25,'KAYIT LİSTESİ'!$B$4:$H$788,4,0)),"",(VLOOKUP(B25,'KAYIT LİSTESİ'!$B$4:$H$788,4,0))) -> 2002-03-24 | E25: =IF(ISERROR(VLOOKUP(B25,'KAYIT LİSTESİ'!$B$4:$H$788,5,0)),"",(VLOOKUP(B25,'KAYIT LİSTESİ'!$B$4:$H$788,5,0))) -> EMRE YILDIZ | F25: =IF(ISERROR(VLOOKUP(B25,'KAYIT LİSTESİ'!$B$4:$H$788,6,0)),"",(VLOOKUP(B25,'KAYIT LİSTESİ'!$B$4:$H$788,6,0))) -> ERZİNCAN | I25: 18 | J25: ÜÇADIM-18 | K25: =IF(ISERROR(VLOOKUP(J25,'KAYIT LİSTESİ'!$B$4:$H$788,2,0)),"",(VLOOKUP(J25,'KAYIT LİSTESİ'!$B$4:$H$788,2,0))) ->  | L25: =IF(ISERROR(VLOOKUP(J25,'KAYIT LİSTESİ'!$B$4:$H$788,4,0)),"",(VLOOKUP(J25,'KAYIT LİSTESİ'!$B$4:$H$788,4,0))) ->  | M25: =IF(ISERROR(VLOOKUP(J25,'KAYIT LİSTESİ'!$B$4:$H$788,5,0)),"",(VLOOKUP(J25,'KAYIT LİSTESİ'!$B$4:$H$788,5,0))) ->  | N25: =IF(ISERROR(VLOOKUP(J25,'KAYIT LİSTESİ'!$B$4:$H$788,6,0)),"",(VLOOKUP(J25,'KAYIT LİSTESİ'!$B$4:$H$788,6,0))) -> 
A26: 6 | B26: 800M-2-6 | C26: =IF(ISERROR(VLOOKUP(B26,'KAYIT LİSTESİ'!$B$4:$H$788,2,0)),"",(VLOOKUP(B26,'KAYIT LİSTESİ'!$B$4:$H$788,2,0))) -> 282 | D26: =IF(ISERROR(VLOOKUP(B26,'KAYIT LİSTESİ'!$B$4:$H$788,4,0)),"",(VLOOKUP(B26,'KAYIT LİSTESİ'!$B$4:$H$788,4,0))) -> 2002-01-01 | E26: =IF(ISERROR(VLOOKUP(B26,'KAYIT LİSTESİ'!$B$4:$H$788,5,0)),"",(VLOOKUP(B26,'KAYIT LİSTESİ'!$B$4:$H$788,5,0))) -> MUSTAFA BAKIR | F26: =IF(ISERROR(VLOOKUP(B26,'KAYIT LİSTESİ'!$B$4:$H$788,6,0)),"",(VLOOKUP(B26,'KAYIT LİSTESİ'!$B$4:$H$788,6,0))) -> GAZİANTEP | I26: 19 | J26: ÜÇADIM-19 | K26: =IF(ISERROR(VLOOKUP(J26,'KAYIT LİSTESİ'!$B$4:$H$788,2,0)),"",(VLOOKUP(J26,'KAYIT LİSTESİ'!$B$4:$H$788,2,0))) ->  | L26: =IF(ISERROR(VLOOKUP(J26,'KAYIT LİSTESİ'!$B$4:$H$788,4,0)),"",(VLOOKUP(J26,'KAYIT LİSTESİ'!$B$4:$H$788,4,0))) ->  | M26: =IF(ISERROR(VLOOKUP(J26,'KAYIT LİSTESİ'!$B$4:$H$788,5,0)),"",(VLOOKUP(J26,'KAYIT LİSTESİ'!$B$4:$H$788,5,0))) ->  | N26: =IF(ISERROR(VLOOKUP(J26,'KAYIT LİSTESİ'!$B$4:$H$788,6,0)),"",(VLOOKUP(J26,'KAYIT LİSTESİ'!$B$4:$H$788,6,0))) -> 
A27: 7 | B27: 800M-2-7 | C27: =IF(ISERROR(VLOOKUP(B27,'KAYIT LİSTESİ'!$B$4:$H$788,2,0)),"",(VLOOKUP(B27,'KAYIT LİSTESİ'!$B$4:$H$788,2,0))) -> 428 | D27: =IF(ISERROR(VLOOKUP(B27,'KAYIT LİSTESİ'!$B$4:$H$788,4,0)),"",(VLOOKUP(B27,'KAYIT LİSTESİ'!$B$4:$H$788,4,0))) -> 2002-07-25 | E27: =IF(ISERROR(VLOOKUP(B27,'KAYIT LİSTESİ'!$B$4:$H$788,5,0)),"",(VLOOKUP(B27,'KAYIT LİSTESİ'!$B$4:$H$788,5,0))) -> YASİN KINA | F27: =IF(ISERROR(VLOOKUP(B27,'KAYIT LİSTESİ'!$B$4:$H$788,6,0)),"",(VLOOKUP(B27,'KAYIT LİSTESİ'!$B$4:$H$788,6,0))) -> İZMİR | I27: 20 | J27: ÜÇADIM-20 | K27: =IF(ISERROR(VLOOKUP(J27,'KAYIT LİSTESİ'!$B$4:$H$788,2,0)),"",(VLOOKUP(J27,'KAYIT LİSTESİ'!$B$4:$H$788,2,0))) ->  | L27: =IF(ISERROR(VLOOKUP(J27,'KAYIT LİSTESİ'!$B$4:$H$788,4,0)),"",(VLOOKUP(J27,'KAYIT LİSTESİ'!$B$4:$H$788,4,0))) ->  | M27: =IF(ISERROR(VLOOKUP(J27,'KAYIT LİSTESİ'!$B$4:$H$788,5,0)),"",(VLOOKUP(J27,'KAYIT LİSTESİ'!$B$4:$H$788,5,0))) ->  | N27: =IF(ISERROR(VLOOKUP(J27,'KAYIT LİSTESİ'!$B$4:$H$788,6,0)),"",(VLOOKUP(J27,'KAYIT LİSTESİ'!$B$4:$H$788,6,0))) -> 
A28: 8 | B28: 800M-2-8 | C28: =IF(ISERROR(VLOOKUP(B28,'KAYIT LİSTESİ'!$B$4:$H$788,2,0)),"",(VLOOKUP(B28,'KAYIT LİSTESİ'!$B$4:$H$788,2,0))) -> 510 | D28: =IF(ISERROR(VLOOKUP(B28,'KAYIT LİSTESİ'!$B$4:$H$788,4,0)),"",(VLOOKUP(B28,'KAYIT LİSTESİ'!$B$4:$H$788,4,0))) -> 2002-01-01 | E28: =IF(ISERROR(VLOOKUP(B28,'KAYIT LİSTESİ'!$B$4:$H$788,5,0)),"",(VLOOKUP(B28,'KAYIT LİSTESİ'!$B$4:$H$788,5,0))) -> MURAT GÜN | F28: =IF(ISERROR(VLOOKUP(B28,'KAYIT LİSTESİ'!$B$4:$H$788,6,0)),"",(VLOOKUP(B28,'KAYIT LİSTESİ'!$B$4:$H$788,6,0))) -> KOCAELİ | I28: 21 | J28: ÜÇADIM-21 | K28: =IF(ISERROR(VLOOKUP(J28,'KAYIT LİSTESİ'!$B$4:$H$788,2,0)),"",(VLOOKUP(J28,'KAYIT LİSTESİ'!$B$4:$H$788,2,0))) ->  | L28: =IF(ISERROR(VLOOKUP(J28,'KAYIT LİSTESİ'!$B$4:$H$788,4,0)),"",(VLOOKUP(J28,'KAYIT LİSTESİ'!$B$4:$H$788,4,0))) ->  | M28: =IF(ISERROR(VLOOKUP(J28,'KAYIT LİSTESİ'!$B$4:$H$788,5,0)),"",(VLOOKUP(J28,'KAYIT LİSTESİ'!$B$4:$H$788,5,0))) ->  | N28: =IF(ISERROR(VLOOKUP(J28,'KAYIT LİSTESİ'!$B$4:$H$788,6,0)),"",(VLOOKUP(J28,'KAYIT LİSTESİ'!$B$4:$H$788,6,0))) -> 
A29: 9 | B29: 800M-2-9 | C29: =IF(ISERROR(VLOOKUP(B29,'KAYIT LİSTESİ'!$B$4:$H$788,2,0)),"",(VLOOKUP(B29,'KAYIT LİSTESİ'!$B$4:$H$788,2,0))) -> 248 | D29: =IF(ISERROR(VLOOKUP(B29,'KAYIT LİSTESİ'!$B$4:$H$788,4,0)),"",(VLOOKUP(B29,'KAYIT LİSTESİ'!$B$4:$H$788,4,0))) -> 2002-11-20 | E29: =IF(ISERROR(VLOOKUP(B29,'KAYIT LİSTESİ'!$B$4:$H$788,5,0)),"",(VLOOKUP(B29,'KAYIT LİSTESİ'!$B$4:$H$788,5,0))) -> ERAY KARAL | F29: =IF(ISERROR(VLOOKUP(B29,'KAYIT LİSTESİ'!$B$4:$H$788,6,0)),"",(VLOOKUP(B29,'KAYIT LİSTESİ'!$B$4:$H$788,6,0))) -> ERZİNCAN | I29: 22 | J29: ÜÇADIM-22 | K29: =IF(ISERROR(VLOOKUP(J29,'KAYIT LİSTESİ'!$B$4:$H$788,2,0)),"",(VLOOKUP(J29,'KAYIT LİSTESİ'!$B$4:$H$788,2,0))) ->  | L29: =IF(ISERROR(VLOOKUP(J29,'KAYIT LİSTESİ'!$B$4:$H$788,4,0)),"",(VLOOKUP(J29,'KAYIT LİSTESİ'!$B$4:$H$788,4,0))) ->  | M29: =IF(ISERROR(VLOOKUP(J29,'KAYIT LİSTESİ'!$B$4:$H$788,5,0)),"",(VLOOKUP(J29,'KAYIT LİSTESİ'!$B$4:$H$788,5,0))) ->  | N29: =IF(ISERROR(VLOOKUP(J29,'KAYIT LİSTESİ'!$B$4:$H$788,6,0)),"",(VLOOKUP(J29,'KAYIT LİSTESİ'!$B$4:$H$788,6,0))) -> 
A30: 10 | B30: 800M-2-10 | C30: =IF(ISERROR(VLOOKUP(B30,'KAYIT LİSTESİ'!$B$4:$H$788,2,0)),"",(VLOOKUP(B30,'KAYIT LİSTESİ'!$B$4:$H$788,2,0))) -> 346 | D30: =IF(ISERROR(VLOOKUP(B30,'KAYIT LİSTESİ'!$B$4:$H$788,4,0)),"",(VLOOKUP(B30,'KAYIT LİSTESİ'!$B$4:$H$788,4,0))) -> 2002-05-28 | E30: =IF(ISERROR(VLOOKUP(B30,'KAYIT LİSTESİ'!$B$4:$H$788,5,0)),"",(VLOOKUP(B30,'KAYIT LİSTESİ'!$B$4:$H$788,5,0))) -> MELİH GÜLDAL | F30: =IF(ISERROR(VLOOKUP(B30,'KAYIT LİSTESİ'!$B$4:$H$788,6,0)),"",(VLOOKUP(B30,'KAYIT LİSTESİ'!$B$4:$H$788,6,0))) -> ISPARTA | I30: 23 | J30: ÜÇADIM-23 | K30: =IF(ISERROR(VLOOKUP(J30,'KAYIT LİSTESİ'!$B$4:$H$788,2,0)),"",(VLOOKUP(J30,'KAYIT LİSTESİ'!$B$4:$H$788,2,0))) ->  | L30: =IF(ISERROR(VLOOKUP(J30,'KAYIT LİSTESİ'!$B$4:$H$788,4,0)),"",(VLOOKUP(J30,'KAYIT LİSTESİ'!$B$4:$H$788,4,0))) ->  | M30: =IF(ISERROR(VLOOKUP(J30,'KAYIT LİSTESİ'!$B$4:$H$788,5,0)),"",(VLOOKUP(J30,'KAYIT LİSTESİ'!$B$4:$H$788,5,0))) ->  | N30: =IF(ISERROR(VLOOKUP(J30,'KAYIT LİSTESİ'!$B$4:$H$788,6,0)),"",(VLOOKUP(J30,'KAYIT LİSTESİ'!$B$4:$H$788,6,0))) -> 
A31: 11 | B31: 800M-2-11 | C31: =IF(ISERROR(VLOOKUP(B31,'KAYIT LİSTESİ'!$B$4:$H$788,2,0)),"",(VLOOKUP(B31,'KAYIT LİSTESİ'!$B$4:$H$788,2,0))) ->  | D31: =IF(ISERROR(VLOOKUP(B31,'KAYIT LİSTESİ'!$B$4:$H$788,4,0)),"",(VLOOKUP(B31,'KAYIT LİSTESİ'!$B$4:$H$788,4,0))) ->  | E31: =IF(ISERROR(VLOOKUP(B31,'KAYIT LİSTESİ'!$B$4:$H$788,5,0)),"",(VLOOKUP(B31,'KAYIT LİSTESİ'!$B$4:$H$788,5,0))) ->  | F31: =IF(ISERROR(VLOOKUP(B31,'KAYIT LİSTESİ'!$B$4:$H$788,6,0)),"",(VLOOKUP(B31,'KAYIT LİSTESİ'!$B$4:$H$788,6,0))) ->  | I31: 24 | J31: ÜÇADIM-24 | K31: =IF(ISERROR(VLOOKUP(J31,'KAYIT LİSTESİ'!$B$4:$H$788,2,0)),"",(VLOOKUP(J31,'KAYIT LİSTESİ'!$B$4:$H$788,2,0))) ->  | L31: =IF(ISERROR(VLOOKUP(J31,'KAYIT LİSTESİ'!$B$4:$H$788,4,0)),"",(VLOOKUP(J31,'KAYIT LİSTESİ'!$B$4:$H$788,4,0))) ->  | M31: =IF(ISERROR(VLOOKUP(J31,'KAYIT LİSTESİ'!$B$4:$H$788,5,0)),"",(VLOOKUP(J31,'KAYIT LİSTESİ'!$B$4:$H$788,5,0))) ->  | N31: =IF(ISERROR(VLOOKUP(J31,'KAYIT LİSTESİ'!$B$4:$H$788,6,0)),"",(VLOOKUP(J31,'KAYIT LİSTESİ'!$B$4:$H$788,6,0))) -> 
A32: 12 | B32: 800M-2-12 | C32: =IF(ISERROR(VLOOKUP(B32,'KAYIT LİSTESİ'!$B$4:$H$788,2,0)),"",(VLOOKUP(B32,'KAYIT LİSTESİ'!$B$4:$H$788,2,0))) ->  | D32: =IF(ISERROR(VLOOKUP(B32,'KAYIT LİSTESİ'!$B$4:$H$788,4,0)),"",(VLOOKUP(B32,'KAYIT LİSTESİ'!$B$4:$H$788,4,0))) ->  | E32: =IF(ISERROR(VLOOKUP(B32,'KAYIT LİSTESİ'!$B$4:$H$788,5,0)),"",(VLOOKUP(B32,'KAYIT LİSTESİ'!$B$4:$H$788,5,0))) ->  | F32: =IF(ISERROR(VLOOKUP(B32,'KAYIT LİSTESİ'!$B$4:$H$788,6,0)),"",(VLOOKUP(B32,'KAYIT LİSTESİ'!$B$4:$H$788,6,0))) ->  | I32: 25 | J32: ÜÇADIM-25 | K32: =IF(ISERROR(VLOOKUP(J32,'KAYIT LİSTESİ'!$B$4:$H$788,2,0)),"",(VLOOKUP(J32,'KAYIT LİSTESİ'!$B$4:$H$788,2,0))) ->  | L32: =IF(ISERROR(VLOOKUP(J32,'KAYIT LİSTESİ'!$B$4:$H$788,4,0)),"",(VLOOKUP(J32,'KAYIT LİSTESİ'!$B$4:$H$788,4,0))) ->  | M32: =IF(ISERROR(VLOOKUP(J32,'KAYIT LİSTESİ'!$B$4:$H$788,5,0)),"",(VLOOKUP(J32,'KAYIT LİSTESİ'!$B$4:$H$788,5,0))) ->  | N32: =IF(ISERROR(VLOOKUP(J32,'KAYIT LİSTESİ'!$B$4:$H$788,6,0)),"",(VLOOKUP(J32,'KAYIT LİSTESİ'!$B$4:$H$788,6,0))) -> 
A33: 3. SERİ | I33: DİSK ATMA
A34: Sıra No | B34: Formül | C34: Göğüs No | D34: Doğum Tarihi | E34: Adı ve Soyadı | F34: Okulu | G34: Start Kontrol | I34: SIRA NO | K34: GÖĞÜS NO | L34: DOĞUM TARİHİ | M34: ADI VE SOYADI | N34: OKULU | O34: START KONTROL
A35: 1 | B35: 800M-3-1 | C35: =IF(ISERROR(VLOOKUP(B35,'KAYIT LİSTESİ'!$B$4:$H$788,2,0)),"",(VLOOKUP(B35,'KAYIT LİSTESİ'!$B$4:$H$788,2,0))) ->  | D35: =IF(ISERROR(VLOOKUP(B35,'KAYIT LİSTESİ'!$B$4:$H$788,4,0)),"",(VLOOKUP(B35,'KAYIT LİSTESİ'!$B$4:$H$788,4,0))) ->  | E35: =IF(ISERROR(VLOOKUP(B35,'KAYIT LİSTESİ'!$B$4:$H$788,5,0)),"",(VLOOKUP(B35,'KAYIT LİSTESİ'!$B$4:$H$788,5,0))) ->  | F35: =IF(ISERROR(VLOOKUP(B35,'KAYIT LİSTESİ'!$B$4:$H$788,6,0)),"",(VLOOKUP(B35,'KAYIT LİSTESİ'!$B$4:$H$788,6,0))) ->  | I35: 1 | J35: DİSK-1 | K35: =IF(ISERROR(VLOOKUP(J35,'KAYIT LİSTESİ'!$B$4:$H$788,2,0)),"",(VLOOKUP(J35,'KAYIT LİSTESİ'!$B$4:$H$788,2,0))) ->  | L35: =IF(ISERROR(VLOOKUP(J35,'KAYIT LİSTESİ'!$B$4:$H$788,4,0)),"",(VLOOKUP(J35,'KAYIT LİSTESİ'!$B$4:$H$788,4,0))) ->  | M35: =IF(ISERROR(VLOOKUP(J35,'KAYIT LİSTESİ'!$B$4:$H$788,5,0)),"",(VLOOKUP(J35,'KAYIT LİSTESİ'!$B$4:$H$788,5,0))) ->  | N35: =IF(ISERROR(VLOOKUP(J35,'KAYIT LİSTESİ'!$B$4:$H$788,6,0)),"",(VLOOKUP(J35,'KAYIT LİSTESİ'!$B$4:$H$788,6,0))) -> 
A36: 2 | B36: 800M-3-2 | C36: =IF(ISERROR(VLOOKUP(B36,'KAYIT LİSTESİ'!$B$4:$H$788,2,0)),"",(VLOOKUP(B36,'KAYIT LİSTESİ'!$B$4:$H$788,2,0))) -> 348 | D36: =IF(ISERROR(VLOOKUP(B36,'KAYIT LİSTESİ'!$B$4:$H$788,4,0)),"",(VLOOKUP(B36,'KAYIT LİSTESİ'!$B$4:$H$788,4,0))) -> 2002-10-30 | E36: =IF(ISERROR(VLOOKUP(B36,'KAYIT LİSTESİ'!$B$4:$H$788,5,0)),"",(VLOOKUP(B36,'KAYIT LİSTESİ'!$B$4:$H$788,5,0))) -> FAİK ÖLMEZ | F36: =IF(ISERROR(VLOOKUP(B36,'KAYIT LİSTESİ'!$B$4:$H$788,6,0)),"",(VLOOKUP(B36,'KAYIT LİSTESİ'!$B$4:$H$788,6,0))) -> ISPARTA | I36: 2 | J36: DİSK-2 | K36: =IF(ISERROR(VLOOKUP(J36,'KAYIT LİSTESİ'!$B$4:$H$788,2,0)),"",(VLOOKUP(J36,'KAYIT LİSTESİ'!$B$4:$H$788,2,0))) ->  | L36: =IF(ISERROR(VLOOKUP(J36,'KAYIT LİSTESİ'!$B$4:$H$788,4,0)),"",(VLOOKUP(J36,'KAYIT LİSTESİ'!$B$4:$H$788,4,0))) ->  | M36: =IF(ISERROR(VLOOKUP(J36,'KAYIT LİSTESİ'!$B$4:$H$788,5,0)),"",(VLOOKUP(J36,'KAYIT LİSTESİ'!$B$4:$H$788,5,0))) ->  | N36: =IF(ISERROR(VLOOKUP(J36,'KAYIT LİSTESİ'!$B$4:$H$788,6,0)),"",(VLOOKUP(J36,'KAYIT LİSTESİ'!$B$4:$H$788,6,0))) -> 
A37: 3 | B37: 800M-3-3 | C37: =IF(ISERROR(VLOOKUP(B37,'KAYIT LİSTESİ'!$B$4:$H$788,2,0)),"",(VLOOKUP(B37,'KAYIT LİSTESİ'!$B$4:$H$788,2,0))) -> 66 | D37: =IF(ISERROR(VLOOKUP(B37,'KAYIT LİSTESİ'!$B$4:$H$788,4,0)),"",(VLOOKUP(B37,'KAYIT LİSTESİ'!$B$4:$H$788,4,0))) -> 2002-01-01 | E37: =IF(ISERROR(VLOOKUP(B37,'KAYIT LİSTESİ'!$B$4:$H$788,5,0)),"",(VLOOKUP(B37,'KAYIT LİSTESİ'!$B$4:$H$788,5,0))) -> YUSUF ARABUL | F37: =IF(ISERROR(VLOOKUP(B37,'KAYIT LİSTESİ'!$B$4:$H$788,6,0)),"",(VLOOKUP(B37,'KAYIT LİSTESİ'!$B$4:$H$788,6,0))) -> ARDAHAN | I37: 3 | J37: DİSK-3 | K37: =IF(ISERROR(VLOOKUP(J37,'KAYIT LİSTESİ'!$B$4:$H$788,2,0)),"",(VLOOKUP(J37,'KAYIT LİSTESİ'!$B$4:$H$788,2,0))) ->  | L37: =IF(ISERROR(VLOOKUP(J37,'KAYIT LİSTESİ'!$B$4:$H$788,4,0)),"",(VLOOKUP(J37,'KAYIT LİSTESİ'!$B$4:$H$788,4,0))) ->  | M37: =IF(ISERROR(VLOOKUP(J37,'KAYIT LİSTESİ'!$B$4:$H$788,5,0)),"",(VLOOKUP(J37,'KAYIT LİSTESİ'!$B$4:$H$788,5,0))) ->  | N37: =IF(ISERROR(VLOOKUP(J37,'KAYIT LİSTESİ'!$B$4:$H$788,6,0)),"",(VLOOKUP(J37,'KAYIT LİSTESİ'!$B$4:$H$788,6,0))) -> 
A38: 4 | B38: 800M-3-4 | C38: =IF(ISERROR(VLOOKUP(B38,'KAYIT LİSTESİ'!$B$4:$H$788,2,0)),"",(VLOOKUP(B38,'KAYIT LİSTESİ'!$B$4:$H$788,2,0))) -> 67 | D38: =IF(ISERROR(VLOOKUP(B38,'KAYIT LİSTESİ'!$B$4:$H$788,4,0)),"",(VLOOKUP(B38,'KAYIT LİSTESİ'!$B$4:$H$788,4,0))) -> 2002-01-01 | E38: =IF(ISERROR(VLOOKUP(B38,'KAYIT LİSTESİ'!$B$4:$H$788,5,0)),"",(VLOOKUP(B38,'KAYIT LİSTESİ'!$B$4:$H$788,5,0))) -> ADEM BİLGİN | F38: =IF(ISERROR(VLOOKUP(B38,'KAYIT LİSTESİ'!$B$4:$H$788,6,0)),"",(VLOOKUP(B38,'KAYIT LİSTESİ'!$B$4:$H$788,6,0))) -> ARDAHAN | I38: 4 | J38: DİSK-4 | K38: =IF(ISERROR(VLOOKUP(J38,'KAYIT LİSTESİ'!$B$4:$H$788,2,0)),"",(VLOOKUP(J38,'KAYIT LİSTESİ'!$B$4:$H$788,2,0))) ->  | L38: =IF(ISERROR(VLOOKUP(J38,'KAYIT LİSTESİ'!$B$4:$H$788,4,0)),"",(VLOOKUP(J38,'KAYIT LİSTESİ'!$B$4:$H$788,4,0))) ->  | M38: =IF(ISERROR(VLOOKUP(J38,'KAYIT LİSTESİ'!$B$4:$H$788,5,0)),"",(VLOOKUP(J38,'KAYIT LİSTESİ'!$B$4:$H$788,5,0))) ->  | N38: =IF(ISERROR(VLOOKUP(J38,'KAYIT LİSTESİ'!$B$4:$H$788,6,0)),"",(VLOOKUP(J38,'KAYIT LİSTESİ'!$B$4:$H$788,6,0))) -> 
A39: 5 | B39: 800M-3-5 | C39: =IF(ISERROR(VLOOKUP(B39,'KAYIT LİSTESİ'!$B$4:$H$788,2,0)),"",(VLOOKUP(B39,'KAYIT LİSTESİ'!$B$4:$H$788,2,0))) -> 509 | D39: =IF(ISERROR(VLOOKUP(B39,'KAYIT LİSTESİ'!$B$4:$H$788,4,0)),"",(VLOOKUP(B39,'KAYIT LİSTESİ'!$B$4:$H$788,4,0))) -> 2002-01-01 | E39: =IF(ISERROR(VLOOKUP(B39,'KAYIT LİSTESİ'!$B$4:$H$788,5,0)),"",(VLOOKUP(B39,'KAYIT LİSTESİ'!$B$4:$H$788,5,0))) -> UMUT DOĞAN | F39: =IF(ISERROR(VLOOKUP(B39,'KAYIT LİSTESİ'!$B$4:$H$788,6,0)),"",(VLOOKUP(B39,'KAYIT LİSTESİ'!$B$4:$H$788,6,0))) -> KOCAELİ | I39: 5 | J39: DİSK-5 | K39: =IF(ISERROR(VLOOKUP(J39,'KAYIT LİSTESİ'!$B$4:$H$788,2,0)),"",(VLOOKUP(J39,'KAYIT LİSTESİ'!$B$4:$H$788,2,0))) ->  | L39: =IF(ISERROR(VLOOKUP(J39,'KAYIT LİSTESİ'!$B$4:$H$788,4,0)),"",(VLOOKUP(J39,'KAYIT LİSTESİ'!$B$4:$H$788,4,0))) ->  | M39: =IF(ISERROR(VLOOKUP(J39,'KAYIT LİSTESİ'!$B$4:$H$788,5,0)),"",(VLOOKUP(J39,'KAYIT LİSTESİ'!$B$4:$H$788,5,0))) ->  | N39: =IF(ISERROR(VLOOKUP(J39,'KAYIT LİSTESİ'!$B$4:$H$788,6,0)),"",(VLOOKUP(J39,'KAYIT LİSTESİ'!$B$4:$H$788,6,0))) -> 
A40: 6 | B40: 800M-3-6 | C40: =IF(ISERROR(VLOOKUP(B40,'KAYIT LİSTESİ'!$B$4:$H$788,2,0)),"",(VLOOKUP(B40,'KAYIT LİSTESİ'!$B$4:$H$788,2,0))) -> 168 | D40: =IF(ISERROR(VLOOKUP(B40,'KAYIT LİSTESİ'!$B$4:$H$788,4,0)),"",(VLOOKUP(B40,'KAYIT LİSTESİ'!$B$4:$H$788,4,0))) -> 2002-01-01 | E40: =IF(ISERROR(VLOOKUP(B40,'KAYIT LİSTESİ'!$B$4:$H$788,5,0)),"",(VLOOKUP(B40,'KAYIT LİSTESİ'!$B$4:$H$788,5,0))) -> UMUT DÖĞÜM | F40: =IF(ISERROR(VLOOKUP(B40,'KAYIT LİSTESİ'!$B$4:$H$788,6,0)),"",(VLOOKUP(B40,'KAYIT LİSTESİ'!$B$4:$H$788,6,0))) -> BİNGÖL | I40: 6 | J40: DİSK-6 | K40: =IF(ISERROR(VLOOKUP(J40,'KAYIT LİSTESİ'!$B$4:$H$788,2,0)),"",(VLOOKUP(J40,'KAYIT LİSTESİ'!$B$4:$H$788,2,0))) ->  | L40: =IF(ISERROR(VLOOKUP(J40,'KAYIT LİSTESİ'!$B$4:$H$788,4,0)),"",(VLOOKUP(J40,'KAYIT LİSTESİ'!$B$4:$H$788,4,0))) ->  | M40: =IF(ISERROR(VLOOKUP(J40,'KAYIT LİSTESİ'!$B$4:$H$788,5,0)),"",(VLOOKUP(J40,'KAYIT LİSTESİ'!$B$4:$H$788,5,0))) ->  | N40: =IF(ISERROR(VLOOKUP(J40,'KAYIT LİSTESİ'!$B$4:$H$788,6,0)),"",(VLOOKUP(J40,'KAYIT LİSTESİ'!$B$4:$H$788,6,0))) -> 
A41: 7 | B41: 800M-3-7 | C41: =IF(ISERROR(VLOOKUP(B41,'KAYIT LİSTESİ'!$B$4:$H$788,2,0)),"",(VLOOKUP(B41,'KAYIT LİSTESİ'!$B$4:$H$788,2,0))) -> 654 | D41: =IF(ISERROR(VLOOKUP(B41,'KAYIT LİSTESİ'!$B$4:$H$788,4,0)),"",(VLOOKUP(B41,'KAYIT LİSTESİ'!$B$4:$H$788,4,0))) -> 2002-01-07 | E41: =IF(ISERROR(VLOOKUP(B41,'KAYIT LİSTESİ'!$B$4:$H$788,5,0)),"",(VLOOKUP(B41,'KAYIT LİSTESİ'!$B$4:$H$788,5,0))) -> DAVUT BASUT | F41: =IF(ISERROR(VLOOKUP(B41,'KAYIT LİSTESİ'!$B$4:$H$788,6,0)),"",(VLOOKUP(B41,'KAYIT LİSTESİ'!$B$4:$H$788,6,0))) -> SİİRT | I41: 7 | J41: DİSK-7 | K41: =IF(ISERROR(VLOOKUP(J41,'KAYIT LİSTESİ'!$B$4:$H$788,2,0)),"",(VLOOKUP(J41,'KAYIT LİSTESİ'!$B$4:$H$788,2,0))) ->  | L41: =IF(ISERROR(VLOOKUP(J41,'KAYIT LİSTESİ'!$B$4:$H$788,4,0)),"",(VLOOKUP(J41,'KAYIT LİSTESİ'!$B$4:$H$788,4,0))) ->  | M41: =IF(ISERROR(VLOOKUP(J41,'KAYIT LİSTESİ'!$B$4:$H$788,5,0)),"",(VLOOKUP(J41,'KAYIT LİSTESİ'!$B$4:$H$788,5,0))) ->  | N41: =IF(ISERROR(VLOOKUP(J41,'KAYIT LİSTESİ'!$B$4:$H$788,6,0)),"",(VLOOKUP(J41,'KAYIT LİSTESİ'!$B$4:$H$788,6,0))) -> 
A42: 8 | B42: 800M-3-8 | C42: =IF(ISERROR(VLOOKUP(B42,'KAYIT LİSTESİ'!$B$4:$H$788,2,0)),"",(VLOOKUP(B42,'KAYIT LİSTESİ'!$B$4:$H$788,2,0))) -> 427 | D42: =IF(ISERROR(VLOOKUP(B42,'KAYIT LİSTESİ'!$B$4:$H$788,4,0)),"",(VLOOKUP(B42,'KAYIT LİSTESİ'!$B$4:$H$788,4,0))) -> 2002-05-21 | E42: =IF(ISERROR(VLOOKUP(B42,'KAYIT LİSTESİ'!$B$4:$H$788,5,0)),"",(VLOOKUP(B42,'KAYIT LİSTESİ'!$B$4:$H$788,5,0))) -> ENSAR YILMAZ | F42: =IF(ISERROR(VLOOKUP(B42,'KAYIT LİSTESİ'!$B$4:$H$788,6,0)),"",(VLOOKUP(B42,'KAYIT LİSTESİ'!$B$4:$H$788,6,0))) -> İZMİR | I42: 8 | J42: DİSK-8 | K42: =IF(ISERROR(VLOOKUP(J42,'KAYIT LİSTESİ'!$B$4:$H$788,2,0)),"",(VLOOKUP(J42,'KAYIT LİSTESİ'!$B$4:$H$788,2,0))) ->  | L42: =IF(ISERROR(VLOOKUP(J42,'KAYIT LİSTESİ'!$B$4:$H$788,4,0)),"",(VLOOKUP(J42,'KAYIT LİSTESİ'!$B$4:$H$788,4,0))) ->  | M42: =IF(ISERROR(VLOOKUP(J42,'KAYIT LİSTESİ'!$B$4:$H$788,5,0)),"",(VLOOKUP(J42,'KAYIT LİSTESİ'!$B$4:$H$788,5,0))) ->  | N42: =IF(ISERROR(VLOOKUP(J42,'KAYIT LİSTESİ'!$B$4:$H$788,6,0)),"",(VLOOKUP(J42,'KAYIT LİSTESİ'!$B$4:$H$788,6,0))) -> 
A43: 9 | B43: 800M-3-9 | C43: =IF(ISERROR(VLOOKUP(B43,'KAYIT LİSTESİ'!$B$4:$H$788,2,0)),"",(VLOOKUP(B43,'KAYIT LİSTESİ'!$B$4:$H$788,2,0))) -> 234 | D43: =IF(ISERROR(VLOOKUP(B43,'KAYIT LİSTESİ'!$B$4:$H$788,4,0)),"",(VLOOKUP(B43,'KAYIT LİSTESİ'!$B$4:$H$788,4,0))) -> 2002-01-01 | E43: =IF(ISERROR(VLOOKUP(B43,'KAYIT LİSTESİ'!$B$4:$H$788,5,0)),"",(VLOOKUP(B43,'KAYIT LİSTESİ'!$B$4:$H$788,5,0))) -> M.ŞİRİN FİDANBOY | F43: =IF(ISERROR(VLOOKUP(B43,'KAYIT LİSTESİ'!$B$4:$H$788,6,0)),"",(VLOOKUP(B43,'KAYIT LİSTESİ'!$B$4:$H$788,6,0))) -> DİYARBAKIR | I43: 9 | J43: DİSK-9 | K43: =IF(ISERROR(VLOOKUP(J43,'KAYIT LİSTESİ'!$B$4:$H$788,2,0)),"",(VLOOKUP(J43,'KAYIT LİSTESİ'!$B$4:$H$788,2,0))) ->  | L43: =IF(ISERROR(VLOOKUP(J43,'KAYIT LİSTESİ'!$B$4:$H$788,4,0)),"",(VLOOKUP(J43,'KAYIT LİSTESİ'!$B$4:$H$788,4,0))) ->  | M43: =IF(ISERROR(VLOOKUP(J43,'KAYIT LİSTESİ'!$B$4:$H$788,5,0)),"",(VLOOKUP(J43,'KAYIT LİSTESİ'!$B$4:$H$788,5,0))) ->  | N43: =IF(ISERROR(VLOOKUP(J43,'KAYIT LİSTESİ'!$B$4:$H$788,6,0)),"",(VLOOKUP(J43,'KAYIT LİSTESİ'!$B$4:$H$788,6,0))) -> 
A44: 10 | B44: 800M-3-10 | C44: =IF(ISERROR(VLOOKUP(B44,'KAYIT LİSTESİ'!$B$4:$H$788,2,0)),"",(VLOOKUP(B44,'KAYIT LİSTESİ'!$B$4:$H$788,2,0))) -> 174 | D44: =IF(ISERROR(VLOOKUP(B44,'KAYIT LİSTESİ'!$B$4:$H$788,4,0)),"",(VLOOKUP(B44,'KAYIT LİSTESİ'!$B$4:$H$788,4,0))) -> 2002-01-01 | E44: =IF(ISERROR(VLOOKUP(B44,'KAYIT LİSTESİ'!$B$4:$H$788,5,0)),"",(VLOOKUP(B44,'KAYIT LİSTESİ'!$B$4:$H$788,5,0))) -> NİHAT BİRGİN | F44: =IF(ISERROR(VLOOKUP(B44,'KAYIT LİSTESİ'!$B$4:$H$788,6,0)),"",(VLOOKUP(B44,'KAYIT LİSTESİ'!$B$4:$H$788,6,0))) -> BİNGÖL | I44: 10 | J44: DİSK-10 | K44: =IF(ISERROR(VLOOKUP(J44,'KAYIT LİSTESİ'!$B$4:$H$788,2,0)),"",(VLOOKUP(J44,'KAYIT LİSTESİ'!$B$4:$H$788,2,0))) ->  | L44: =IF(ISERROR(VLOOKUP(J44,'KAYIT LİSTESİ'!$B$4:$H$788,4,0)),"",(VLOOKUP(J44,'KAYIT LİSTESİ'!$B$4:$H$788,4,0))) ->  | M44: =IF(ISERROR(VLOOKUP(J44,'KAYIT LİSTESİ'!$B$4:$H$788,5,0)),"",(VLOOKUP(J44,'KAYIT LİSTESİ'!$B$4:$H$788,5,0))) ->  | N44: =IF(ISERROR(VLOOKUP(J44,'KAYIT LİSTESİ'!$B$4:$H$788,6,0)),"",(VLOOKUP(J44,'KAYIT LİSTESİ'!$B$4:$H$788,6,0))) -> 
A45: 11 | B45: 800M-3-11 | C45: =IF(ISERROR(VLOOKUP(B45,'KAYIT LİSTESİ'!$B$4:$H$788,2,0)),"",(VLOOKUP(B45,'KAYIT LİSTESİ'!$B$4:$H$788,2,0))) ->  | D45: =IF(ISERROR(VLOOKUP(B45,'KAYIT LİSTESİ'!$B$4:$H$788,4,0)),"",(VLOOKUP(B45,'KAYIT LİSTESİ'!$B$4:$H$788,4,0))) ->  | E45: =IF(ISERROR(VLOOKUP(B45,'KAYIT LİSTESİ'!$B$4:$H$788,5,0)),"",(VLOOKUP(B45,'KAYIT LİSTESİ'!$B$4:$H$788,5,0))) ->  | F45: =IF(ISERROR(VLOOKUP(B45,'KAYIT LİSTESİ'!$B$4:$H$788,6,0)),"",(VLOOKUP(B45,'KAYIT LİSTESİ'!$B$4:$H$788,6,0))) ->  | I45: 11 | J45: DİSK-11 | K45: =IF(ISERROR(VLOOKUP(J45,'KAYIT LİSTESİ'!$B$4:$H$788,2,0)),"",(VLOOKUP(J45,'KAYIT LİSTESİ'!$B$4:$H$788,2,0))) ->  | L45: =IF(ISERROR(VLOOKUP(J45,'KAYIT LİSTESİ'!$B$4:$H$788,4,0)),"",(VLOOKUP(J45,'KAYIT LİSTESİ'!$B$4:$H$788,4,0))) ->  | M45: =IF(ISERROR(VLOOKUP(J45,'KAYIT LİSTESİ'!$B$4:$H$788,5,0)),"",(VLOOKUP(J45,'KAYIT LİSTESİ'!$B$4:$H$788,5,0))) ->  | N45: =IF(ISERROR(VLOOKUP(J45,'KAYIT LİSTESİ'!$B$4:$H$788,6,0)),"",(VLOOKUP(J45,'KAYIT LİSTESİ'!$B$4:$H$788,6,0))) -> 
A46: 12 | B46: 800M-3-12 | C46: =IF(ISERROR(VLOOKUP(B46,'KAYIT LİSTESİ'!$B$4:$H$788,2,0)),"",(VLOOKUP(B46,'KAYIT LİSTESİ'!$B$4:$H$788,2,0))) ->  | D46: =IF(ISERROR(VLOOKUP(B46,'KAYIT LİSTESİ'!$B$4:$H$788,4,0)),"",(VLOOKUP(B46,'KAYIT LİSTESİ'!$B$4:$H$788,4,0))) ->  | E46: =IF(ISERROR(VLOOKUP(B46,'KAYIT LİSTESİ'!$B$4:$H$788,5,0)),"",(VLOOKUP(B46,'KAYIT LİSTESİ'!$B$4:$H$788,5,0))) ->  | F46: =IF(ISERROR(VLOOKUP(B46,'KAYIT LİSTESİ'!$B$4:$H$788,6,0)),"",(VLOOKUP(B46,'KAYIT LİSTESİ'!$B$4:$H$788,6,0))) ->  | I46: 12 | J46: DİSK-12 | K46: =IF(ISERROR(VLOOKUP(J46,'KAYIT LİSTESİ'!$B$4:$H$788,2,0)),"",(VLOOKUP(J46,'KAYIT LİSTESİ'!$B$4:$H$788,2,0))) ->  | L46: =IF(ISERROR(VLOOKUP(J46,'KAYIT LİSTESİ'!$B$4:$H$788,4,0)),"",(VLOOKUP(J46,'KAYIT LİSTESİ'!$B$4:$H$788,4,0))) ->  | M46: =IF(ISERROR(VLOOKUP(J46,'KAYIT LİSTESİ'!$B$4:$H$788,5,0)),"",(VLOOKUP(J46,'KAYIT LİSTESİ'!$B$4:$H$788,5,0))) ->  | N46: =IF(ISERROR(VLOOKUP(J46,'KAYIT LİSTESİ'!$B$4:$H$788,6,0)),"",(VLOOKUP(J46,'KAYIT LİSTESİ'!$B$4:$H$788,6,0))) -> 
A47: 4. SERİ | I47: 13 | J47: DİSK-13 | K47: =IF(ISERROR(VLOOKUP(J47,'KAYIT LİSTESİ'!$B$4:$H$788,2,0)),"",(VLOOKUP(J47,'KAYIT LİSTESİ'!$B$4:$H$788,2,0))) ->  | L47: =IF(ISERROR(VLOOKUP(J47,'KAYIT LİSTESİ'!$B$4:$H$788,4,0)),"",(VLOOKUP(J47,'KAYIT LİSTESİ'!$B$4:$H$788,4,0))) ->  | M47: =IF(ISERROR(VLOOKUP(J47,'KAYIT LİSTESİ'!$B$4:$H$788,5,0)),"",(VLOOKUP(J47,'KAYIT LİSTESİ'!$B$4:$H$788,5,0))) ->  | N47: =IF(ISERROR(VLOOKUP(J47,'KAYIT LİSTESİ'!$B$4:$H$788,6,0)),"",(VLOOKUP(J47,'KAYIT LİSTESİ'!$B$4:$H$788,6,0))) -> 
A48: Sıra No | B48: Formül | C48: Göğüs No | D48: Doğum Tarihi | E48: Adı ve Soyadı | F48: Okulu | G48: Start Kontrol | I48: 14 | J48: DİSK-14 | K48: =IF(ISERROR(VLOOKUP(J48,'KAYIT LİSTESİ'!$B$4:$H$788,2,0)),"",(VLOOKUP(J48,'KAYIT LİSTESİ'!$B$4:$H$788,2,0))) ->  | L48: =IF(ISERROR(VLOOKUP(J48,'KAYIT LİSTESİ'!$B$4:$H$788,4,0)),"",(VLOOKUP(J48,'KAYIT LİSTESİ'!$B$4:$H$788,4,0))) ->  | M48: =IF(ISERROR(VLOOKUP(J48,'KAYIT LİSTESİ'!$B$4:$H$788,5,0)),"",(VLOOKUP(J48,'KAYIT LİSTESİ'!$B$4:$H$788,5,0))) ->  | N48: =IF(ISERROR(VLOOKUP(J48,'KAYIT LİSTESİ'!$B$4:$H$788,6,0)),"",(VLOOKUP(J48,'KAYIT LİSTESİ'!$B$4:$H$788,6,0))) -> 
A49: 1 | B49: 800M-4-1 | C49: =IF(ISERROR(VLOOKUP(B49,'KAYIT LİSTESİ'!$B$4:$H$788,2,0)),"",(VLOOKUP(B49,'KAYIT LİSTESİ'!$B$4:$H$788,2,0))) -> 169 | D49: =IF(ISERROR(VLOOKUP(B49,'KAYIT LİSTESİ'!$B$4:$H$788,4,0)),"",(VLOOKUP(B49,'KAYIT LİSTESİ'!$B$4:$H$788,4,0))) -> 2002-01-01 | E49: =IF(ISERROR(VLOOKUP(B49,'KAYIT LİSTESİ'!$B$4:$H$788,5,0)),"",(VLOOKUP(B49,'KAYIT LİSTESİ'!$B$4:$H$788,5,0))) -> EYÜP YILDIRIM | F49: =IF(ISERROR(VLOOKUP(B49,'KAYIT LİSTESİ'!$B$4:$H$788,6,0)),"",(VLOOKUP(B49,'KAYIT LİSTESİ'!$B$4:$H$788,6,0))) -> BİNGÖL | I49: 15 | J49: DİSK-15 | K49: =IF(ISERROR(VLOOKUP(J49,'KAYIT LİSTESİ'!$B$4:$H$788,2,0)),"",(VLOOKUP(J49,'KAYIT LİSTESİ'!$B$4:$H$788,2,0))) ->  | L49: =IF(ISERROR(VLOOKUP(J49,'KAYIT LİSTESİ'!$B$4:$H$788,4,0)),"",(VLOOKUP(J49,'KAYIT LİSTESİ'!$B$4:$H$788,4,0))) ->  | M49: =IF(ISERROR(VLOOKUP(J49,'KAYIT LİSTESİ'!$B$4:$H$788,5,0)),"",(VLOOKUP(J49,'KAYIT LİSTESİ'!$B$4:$H$788,5,0))) ->  | N49: =IF(ISERROR(VLOOKUP(J49,'KAYIT LİSTESİ'!$B$4:$H$788,6,0)),"",(VLOOKUP(J49,'KAYIT LİSTESİ'!$B$4:$H$788,6,0))) -> 
A50: 2 | B50: 800M-4-2 | C50: =IF(ISERROR(VLOOKUP(B50,'KAYIT LİSTESİ'!$B$4:$H$788,2,0)),"",(VLOOKUP(B50,'KAYIT LİSTESİ'!$B$4:$H$788,2,0))) -> 127 | D50: =IF(ISERROR(VLOOKUP(B50,'KAYIT LİSTESİ'!$B$4:$H$788,4,0)),"",(VLOOKUP(B50,'KAYIT LİSTESİ'!$B$4:$H$788,4,0))) -> 2002-12-26 | E50: =IF(ISERROR(VLOOKUP(B50,'KAYIT LİSTESİ'!$B$4:$H$788,5,0)),"",(VLOOKUP(B50,'KAYIT LİSTESİ'!$B$4:$H$788,5,0))) -> ALPER RIZA BASAN | F50: =IF(ISERROR(VLOOKUP(B50,'KAYIT LİSTESİ'!$B$4:$H$788,6,0)),"",(VLOOKUP(B50,'KAYIT LİSTESİ'!$B$4:$H$788,6,0))) -> BARTIN | I50: 16 | J50: DİSK-16 | K50: =IF(ISERROR(VLOOKUP(J50,'KAYIT LİSTESİ'!$B$4:$H$788,2,0)),"",(VLOOKUP(J50,'KAYIT LİSTESİ'!$B$4:$H$788,2,0))) ->  | L50: =IF(ISERROR(VLOOKUP(J50,'KAYIT LİSTESİ'!$B$4:$H$788,4,0)),"",(VLOOKUP(J50,'KAYIT LİSTESİ'!$B$4:$H$788,4,0))) ->  | M50: =IF(ISERROR(VLOOKUP(J50,'KAYIT LİSTESİ'!$B$4:$H$788,5,0)),"",(VLOOKUP(J50,'KAYIT LİSTESİ'!$B$4:$H$788,5,0))) ->  | N50: =IF(ISERROR(VLOOKUP(J50,'KAYIT LİSTESİ'!$B$4:$H$788,6,0)),"",(VLOOKUP(J50,'KAYIT LİSTESİ'!$B$4:$H$788,6,0))) -> 
A51: 3 | B51: 800M-4-3 | C51: =IF(ISERROR(VLOOKUP(B51,'KAYIT LİSTESİ'!$B$4:$H$788,2,0)),"",(VLOOKUP(B51,'KAYIT LİSTESİ'!$B$4:$H$788,2,0))) -> 695 | D51: =IF(ISERROR(VLOOKUP(B51,'KAYIT LİSTESİ'!$B$4:$H$788,4,0)),"",(VLOOKUP(B51,'KAYIT LİSTESİ'!$B$4:$H$788,4,0))) -> 2002-06-19 | E51: =IF(ISERROR(VLOOKUP(B51,'KAYIT LİSTESİ'!$B$4:$H$788,5,0)),"",(VLOOKUP(B51,'KAYIT LİSTESİ'!$B$4:$H$788,5,0))) -> AHMET EREN ŞAHİN | F51: =IF(ISERROR(VLOOKUP(B51,'KAYIT LİSTESİ'!$B$4:$H$788,6,0)),"",(VLOOKUP(B51,'KAYIT LİSTESİ'!$B$4:$H$788,6,0))) -> TOKAT | I51: 17 | J51: DİSK-17 | K51: =IF(ISERROR(VLOOKUP(J51,'KAYIT LİSTESİ'!$B$4:$H$788,2,0)),"",(VLOOKUP(J51,'KAYIT LİSTESİ'!$B$4:$H$788,2,0))) ->  | L51: =IF(ISERROR(VLOOKUP(J51,'KAYIT LİSTESİ'!$B$4:$H$788,4,0)),"",(VLOOKUP(J51,'KAYIT LİSTESİ'!$B$4:$H$788,4,0))) ->  | M51: =IF(ISERROR(VLOOKUP(J51,'KAYIT LİSTESİ'!$B$4:$H$788,5,0)),"",(VLOOKUP(J51,'KAYIT LİSTESİ'!$B$4:$H$788,5,0))) ->  | N51: =IF(ISERROR(VLOOKUP(J51,'KAYIT LİSTESİ'!$B$4:$H$788,6,0)),"",(VLOOKUP(J51,'KAYIT LİSTESİ'!$B$4:$H$788,6,0))) -> 
A52: 4 | B52: 800M-4-4 | C52: =IF(ISERROR(VLOOKUP(B52,'KAYIT LİSTESİ'!$B$4:$H$788,2,0)),"",(VLOOKUP(B52,'KAYIT LİSTESİ'!$B$4:$H$788,2,0))) -> 549 | D52: =IF(ISERROR(VLOOKUP(B52,'KAYIT LİSTESİ'!$B$4:$H$788,4,0)),"",(VLOOKUP(B52,'KAYIT LİSTESİ'!$B$4:$H$788,4,0))) -> 2002-03-04 | E52: =IF(ISERROR(VLOOKUP(B52,'KAYIT LİSTESİ'!$B$4:$H$788,5,0)),"",(VLOOKUP(B52,'KAYIT LİSTESİ'!$B$4:$H$788,5,0))) -> HASAN ÇAĞRI AKAN | F52: =IF(ISERROR(VLOOKUP(B52,'KAYIT LİSTESİ'!$B$4:$H$788,6,0)),"",(VLOOKUP(B52,'KAYIT LİSTESİ'!$B$4:$H$788,6,0))) -> KÜTAHYA | I52: 18 | J52: DİSK-18 | K52: =IF(ISERROR(VLOOKUP(J52,'KAYIT LİSTESİ'!$B$4:$H$788,2,0)),"",(VLOOKUP(J52,'KAYIT LİSTESİ'!$B$4:$H$788,2,0))) ->  | L52: =IF(ISERROR(VLOOKUP(J52,'KAYIT LİSTESİ'!$B$4:$H$788,4,0)),"",(VLOOKUP(J52,'KAYIT LİSTESİ'!$B$4:$H$788,4,0))) ->  | M52: =IF(ISERROR(VLOOKUP(J52,'KAYIT LİSTESİ'!$B$4:$H$788,5,0)),"",(VLOOKUP(J52,'KAYIT LİSTESİ'!$B$4:$H$788,5,0))) ->  | N52: =IF(ISERROR(VLOOKUP(J52,'KAYIT LİSTESİ'!$B$4:$H$788,6,0)),"",(VLOOKUP(J52,'KAYIT LİSTESİ'!$B$4:$H$788,6,0))) -> 
A53: 5 | B53: 800M-4-5 | C53: =IF(ISERROR(VLOOKUP(B53,'KAYIT LİSTESİ'!$B$4:$H$788,2,0)),"",(VLOOKUP(B53,'KAYIT LİSTESİ'!$B$4:$H$788,2,0))) -> 170 | D53: =IF(ISERROR(VLOOKUP(B53,'KAYIT LİSTESİ'!$B$4:$H$788,4,0)),"",(VLOOKUP(B53,'KAYIT LİSTESİ'!$B$4:$H$788,4,0))) -> 2002-01-01 | E53: =IF(ISERROR(VLOOKUP(B53,'KAYIT LİSTESİ'!$B$4:$H$788,5,0)),"",(VLOOKUP(B53,'KAYIT LİSTESİ'!$B$4:$H$788,5,0))) -> HALİT ÇAKAR | F53: =IF(ISERROR(VLOOKUP(B53,'KAYIT LİSTESİ'!$B$4:$H$788,6,0)),"",(VLOOKUP(B53,'KAYIT LİSTESİ'!$B$4:$H$788,6,0))) -> BİNGÖL | I53: 19 | J53: DİSK-19 | K53: =IF(ISERROR(VLOOKUP(J53,'KAYIT LİSTESİ'!$B$4:$H$788,2,0)),"",(VLOOKUP(J53,'KAYIT LİSTESİ'!$B$4:$H$788,2,0))) ->  | L53: =IF(ISERROR(VLOOKUP(J53,'KAYIT LİSTESİ'!$B$4:$H$788,4,0)),"",(VLOOKUP(J53,'KAYIT LİSTESİ'!$B$4:$H$788,4,0))) ->  | M53: =IF(ISERROR(VLOOKUP(J53,'KAYIT LİSTESİ'!$B$4:$H$788,5,0)),"",(VLOOKUP(J53,'KAYIT LİSTESİ'!$B$4:$H$788,5,0))) ->  | N53: =IF(ISERROR(VLOOKUP(J53,'KAYIT LİSTESİ'!$B$4:$H$788,6,0)),"",(VLOOKUP(J53,'KAYIT LİSTESİ'!$B$4:$H$788,6,0))) -> 
A54: 6 | B54: 800M-4-6 | C54: =IF(ISERROR(VLOOKUP(B54,'KAYIT LİSTESİ'!$B$4:$H$788,2,0)),"",(VLOOKUP(B54,'KAYIT LİSTESİ'!$B$4:$H$788,2,0))) -> 112 | D54: =IF(ISERROR(VLOOKUP(B54,'KAYIT LİSTESİ'!$B$4:$H$788,4,0)),"",(VLOOKUP(B54,'KAYIT LİSTESİ'!$B$4:$H$788,4,0))) -> 2002-11-25 | E54: =IF(ISERROR(VLOOKUP(B54,'KAYIT LİSTESİ'!$B$4:$H$788,5,0)),"",(VLOOKUP(B54,'KAYIT LİSTESİ'!$B$4:$H$788,5,0))) -> BEYCAN DELİGÖZ | F54: =IF(ISERROR(VLOOKUP(B54,'KAYIT LİSTESİ'!$B$4:$H$788,6,0)),"",(VLOOKUP(B54,'KAYIT LİSTESİ'!$B$4:$H$788,6,0))) -> BALIKESİR | I54: 20 | J54: DİSK-20 | K54: =IF(ISERROR(VLOOKUP(J54,'KAYIT LİSTESİ'!$B$4:$H$788,2,0)),"",(VLOOKUP(J54,'KAYIT LİSTESİ'!$B$4:$H$788,2,0))) ->  | L54: =IF(ISERROR(VLOOKUP(J54,'KAYIT LİSTESİ'!$B$4:$H$788,4,0)),"",(VLOOKUP(J54,'KAYIT LİSTESİ'!$B$4:$H$788,4,0))) ->  | M54: =IF(ISERROR(VLOOKUP(J54,'KAYIT LİSTESİ'!$B$4:$H$788,5,0)),"",(VLOOKUP(J54,'KAYIT LİSTESİ'!$B$4:$H$788,5,0))) ->  | N54: =IF(ISERROR(VLOOKUP(J54,'KAYIT LİSTESİ'!$B$4:$H$788,6,0)),"",(VLOOKUP(J54,'KAYIT LİSTESİ'!$B$4:$H$788,6,0))) -> 
A55: 7 | B55: 800M-4-7 | C55: =IF(ISERROR(VLOOKUP(B55,'KAYIT LİSTESİ'!$B$4:$H$788,2,0)),"",(VLOOKUP(B55,'KAYIT LİSTESİ'!$B$4:$H$788,2,0))) -> 426 | D55: =IF(ISERROR(VLOOKUP(B55,'KAYIT LİSTESİ'!$B$4:$H$788,4,0)),"",(VLOOKUP(B55,'KAYIT LİSTESİ'!$B$4:$H$788,4,0))) -> 2002-08-06 | E55: =IF(ISERROR(VLOOKUP(B55,'KAYIT LİSTESİ'!$B$4:$H$788,5,0)),"",(VLOOKUP(B55,'KAYIT LİSTESİ'!$B$4:$H$788,5,0))) -> BARAN ÇAPKIN | F55: =IF(ISERROR(VLOOKUP(B55,'KAYIT LİSTESİ'!$B$4:$H$788,6,0)),"",(VLOOKUP(B55,'KAYIT LİSTESİ'!$B$4:$H$788,6,0))) -> İZMİR | I55: 21 | J55: DİSK-21 | K55: =IF(ISERROR(VLOOKUP(J55,'KAYIT LİSTESİ'!$B$4:$H$788,2,0)),"",(VLOOKUP(J55,'KAYIT LİSTESİ'!$B$4:$H$788,2,0))) ->  | L55: =IF(ISERROR(VLOOKUP(J55,'KAYIT LİSTESİ'!$B$4:$H$788,4,0)),"",(VLOOKUP(J55,'KAYIT LİSTESİ'!$B$4:$H$788,4,0))) ->  | M55: =IF(ISERROR(VLOOKUP(J55,'KAYIT LİSTESİ'!$B$4:$H$788,5,0)),"",(VLOOKUP(J55,'KAYIT LİSTESİ'!$B$4:$H$788,5,0))) ->  | N55: =IF(ISERROR(VLOOKUP(J55,'KAYIT LİSTESİ'!$B$4:$H$788,6,0)),"",(VLOOKUP(J55,'KAYIT LİSTESİ'!$B$4:$H$788,6,0))) -> 
A56: 8 | B56: 800M-4-8 | C56: =IF(ISERROR(VLOOKUP(B56,'KAYIT LİSTESİ'!$B$4:$H$788,2,0)),"",(VLOOKUP(B56,'KAYIT LİSTESİ'!$B$4:$H$788,2,0))) -> 411 | D56: =IF(ISERROR(VLOOKUP(B56,'KAYIT LİSTESİ'!$B$4:$H$788,4,0)),"",(VLOOKUP(B56,'KAYIT LİSTESİ'!$B$4:$H$788,4,0))) -> 2002-07-19 | E56: =IF(ISERROR(VLOOKUP(B56,'KAYIT LİSTESİ'!$B$4:$H$788,5,0)),"",(VLOOKUP(B56,'KAYIT LİSTESİ'!$B$4:$H$788,5,0))) -> GÖRKEM ÖNSAY | F56: =IF(ISERROR(VLOOKUP(B56,'KAYIT LİSTESİ'!$B$4:$H$788,6,0)),"",(VLOOKUP(B56,'KAYIT LİSTESİ'!$B$4:$H$788,6,0))) -> İZMİR | I56: 22 | J56: DİSK-22 | K56: =IF(ISERROR(VLOOKUP(J56,'KAYIT LİSTESİ'!$B$4:$H$788,2,0)),"",(VLOOKUP(J56,'KAYIT LİSTESİ'!$B$4:$H$788,2,0))) ->  | L56: =IF(ISERROR(VLOOKUP(J56,'KAYIT LİSTESİ'!$B$4:$H$788,4,0)),"",(VLOOKUP(J56,'KAYIT LİSTESİ'!$B$4:$H$788,4,0))) ->  | M56: =IF(ISERROR(VLOOKUP(J56,'KAYIT LİSTESİ'!$B$4:$H$788,5,0)),"",(VLOOKUP(J56,'KAYIT LİSTESİ'!$B$4:$H$788,5,0))) ->  | N56: =IF(ISERROR(VLOOKUP(J56,'KAYIT LİSTESİ'!$B$4:$H$788,6,0)),"",(VLOOKUP(J56,'KAYIT LİSTESİ'!$B$4:$H$788,6,0))) -> 
A57: 9 | B57: 800M-4-9 | C57: =IF(ISERROR(VLOOKUP(B57,'KAYIT LİSTESİ'!$B$4:$H$788,2,0)),"",(VLOOKUP(B57,'KAYIT LİSTESİ'!$B$4:$H$788,2,0))) -> 350 | D57: =IF(ISERROR(VLOOKUP(B57,'KAYIT LİSTESİ'!$B$4:$H$788,4,0)),"",(VLOOKUP(B57,'KAYIT LİSTESİ'!$B$4:$H$788,4,0))) -> 2002-03-14 | E57: =IF(ISERROR(VLOOKUP(B57,'KAYIT LİSTESİ'!$B$4:$H$788,5,0)),"",(VLOOKUP(B57,'KAYIT LİSTESİ'!$B$4:$H$788,5,0))) -> HÜSEYİN EĞİN | F57: =IF(ISERROR(VLOOKUP(B57,'KAYIT LİSTESİ'!$B$4:$H$788,6,0)),"",(VLOOKUP(B57,'KAYIT LİSTESİ'!$B$4:$H$788,6,0))) -> ISPARTA | I57: 23 | J57: DİSK-23 | K57: =IF(ISERROR(VLOOKUP(J57,'KAYIT LİSTESİ'!$B$4:$H$788,2,0)),"",(VLOOKUP(J57,'KAYIT LİSTESİ'!$B$4:$H$788,2,0))) ->  | L57: =IF(ISERROR(VLOOKUP(J57,'KAYIT LİSTESİ'!$B$4:$H$788,4,0)),"",(VLOOKUP(J57,'KAYIT LİSTESİ'!$B$4:$H$788,4,0))) ->  | M57: =IF(ISERROR(VLOOKUP(J57,'KAYIT LİSTESİ'!$B$4:$H$788,5,0)),"",(VLOOKUP(J57,'KAYIT LİSTESİ'!$B$4:$H$788,5,0))) ->  | N57: =IF(ISERROR(VLOOKUP(J57,'KAYIT LİSTESİ'!$B$4:$H$788,6,0)),"",(VLOOKUP(J57,'KAYIT LİSTESİ'!$B$4:$H$788,6,0))) -> 
A58: 10 | B58: 800M-4-10 | C58: =IF(ISERROR(VLOOKUP(B58,'KAYIT LİSTESİ'!$B$4:$H$788,2,0)),"",(VLOOKUP(B58,'KAYIT LİSTESİ'!$B$4:$H$788,2,0))) -> 128 | D58: =IF(ISERROR(VLOOKUP(B58,'KAYIT LİSTESİ'!$B$4:$H$788,4,0)),"",(VLOOKUP(B58,'KAYIT LİSTESİ'!$B$4:$H$788,4,0))) -> 2002-02-16 | E58: =IF(ISERROR(VLOOKUP(B58,'KAYIT LİSTESİ'!$B$4:$H$788,5,0)),"",(VLOOKUP(B58,'KAYIT LİSTESİ'!$B$4:$H$788,5,0))) -> ENİS ÖZDEMİR | F58: =IF(ISERROR(VLOOKUP(B58,'KAYIT LİSTESİ'!$B$4:$H$788,6,0)),"",(VLOOKUP(B58,'KAYIT LİSTESİ'!$B$4:$H$788,6,0))) -> BARTIN | I58: 24 | J58: DİSK-24 | K58: =IF(ISERROR(VLOOKUP(J58,'KAYIT LİSTESİ'!$B$4:$H$788,2,0)),"",(VLOOKUP(J58,'KAYIT LİSTESİ'!$B$4:$H$788,2,0))) ->  | L58: =IF(ISERROR(VLOOKUP(J58,'KAYIT LİSTESİ'!$B$4:$H$788,4,0)),"",(VLOOKUP(J58,'KAYIT LİSTESİ'!$B$4:$H$788,4,0))) ->  | M58: =IF(ISERROR(VLOOKUP(J58,'KAYIT LİSTESİ'!$B$4:$H$788,5,0)),"",(VLOOKUP(J58,'KAYIT LİSTESİ'!$B$4:$H$788,5,0))) ->  | N58: =IF(ISERROR(VLOOKUP(J58,'KAYIT LİSTESİ'!$B$4:$H$788,6,0)),"",(VLOOKUP(J58,'KAYIT LİSTESİ'!$B$4:$H$788,6,0))) -> 
A59: 11 | B59: 800M-4-11 | C59: =IF(ISERROR(VLOOKUP(B59,'KAYIT LİSTESİ'!$B$4:$H$788,2,0)),"",(VLOOKUP(B59,'KAYIT LİSTESİ'!$B$4:$H$788,2,0))) ->  | D59: =IF(ISERROR(VLOOKUP(B59,'KAYIT LİSTESİ'!$B$4:$H$788,4,0)),"",(VLOOKUP(B59,'KAYIT LİSTESİ'!$B$4:$H$788,4,0))) ->  | E59: =IF(ISERROR(VLOOKUP(B59,'KAYIT LİSTESİ'!$B$4:$H$788,5,0)),"",(VLOOKUP(B59,'KAYIT LİSTESİ'!$B$4:$H$788,5,0))) ->  | F59: =IF(ISERROR(VLOOKUP(B59,'KAYIT LİSTESİ'!$B$4:$H$788,6,0)),"",(VLOOKUP(B59,'KAYIT LİSTESİ'!$B$4:$H$788,6,0))) ->  | I59: 25 | J59: DİSK-25 | K59: =IF(ISERROR(VLOOKUP(J59,'KAYIT LİSTESİ'!$B$4:$H$788,2,0)),"",(VLOOKUP(J59,'KAYIT LİSTESİ'!$B$4:$H$788,2,0))) ->  | L59: =IF(ISERROR(VLOOKUP(J59,'KAYIT LİSTESİ'!$B$4:$H$788,4,0)),"",(VLOOKUP(J59,'KAYIT LİSTESİ'!$B$4:$H$788,4,0))) ->  | M59: =IF(ISERROR(VLOOKUP(J59,'KAYIT LİSTESİ'!$B$4:$H$788,5,0)),"",(VLOOKUP(J59,'KAYIT LİSTESİ'!$B$4:$H$788,5,0))) ->  | N59: =IF(ISERROR(VLOOKUP(J59,'KAYIT LİSTESİ'!$B$4:$H$788,6,0)),"",(VLOOKUP(J59,'KAYIT LİSTESİ'!$B$4:$H$788,6,0))) -> 
